Workbook

Sheet Finansplan
B1: Kontantpris og kontant vurdering
B2: Ejendom | G2: Skatte% | I2: 0.385
B3: Alternativ | G3: Kalk.rente p.a. | I3: 0.05
B4: Navn | G4: Kalk.rente/termin | I4: =(1+I3)^0.25-1 -> 0.01227223443
B5: Aftalt kontantpris | G5: Realkredit - vurdering og belåningsværdi
B6: Fast ejendom | G6: Fast ejendom | I6: incl. staldinventar, grundforbedr. og alm. driftsbehold.
B7: Besætning | G7: Besætning
B8: Maskiner | G8: Maskiner, rullende materiel
B9: Staldinventar | G9: Rettigheder
B10: Leveringsrettigheder | G10: I alt vurdering af den kontante handelsværdi | N10: =SUM(N6:N9) -> 0
B11: Beholdninger | G11: Reduktion for rettigheder | N11: =N9*-1 -> 0 | O11: - værdi rettighederne
B12: I alt kontantpris | E12: =SUM(E6:E11) -> 0 | G12: Reduktion for rullende materiel, SDO/SDRO | N12: =IF(ISBLANK(M12),N8*-1,M12) -> 0 | O12: - maskiner medtages ikke ved SDO
G13: Værdiansættelse, belåningsværdi SDO | N13: =N10+N11+N12 -> 0 | O13: = realkredit SDO udmåling
G14: Fast ejendom + 30% | K14: fast ejd | N14: =N6*1.3 -> 0 | O14: beregning af løsørereduktion
G15: Realkredit belåningsværdi evt. løsørered. | N15: =IF(N14<N13,N14,N13) -> 0 | O15: den mindste af de to ovenfor
B16: Finansieringsplan | J16: Annuitet-Serie | K16: Obl-Kontant | L16: Kurs | M16: Debitorrenteente | N16: Adm.bidrag% | O16: Løbetid år | P16: Afdragsfri år
B17: Realkredit | C17: korr | F17: korr
B18: Låne grænse | C18: 0.7 | D18: af | E18: =N15 -> 0 | G18: =IF(ISBLANK(F18),E18*C18,F18) -> 0 | Q18: Før skat | R18: Efter skat | S18: Købesum
B19: Lån | E19: Fordelings pct. | G19: Kontant | I19: Hovedstol | Q19: eff. rente | R19: eff. rente | S19: Indskudshovedstol | T19: antal lån | W19: VejEffFør | X19: VejEffEft
B20: Fast rente 30 år | E20: =1-E21-E22-E23-E24 -> 0.5 | F20: =IF(Real1!$P$1=0,"","Korr") ->  | G20: =IF(K20="k",I20,I20*L20/100) -> 0 | H20: =$G$18*E20 -> 0 | I20: =IF(K20="o",ROUND(H20/L20/10,0)*1000,ROUND(H20,-3)) -> 0 | J20: a | K20: o | L20: 98.88 | M20: 0.0406 | N20: 0.0125 | O20: 30 | Q20: =IF(G20<0.4,0,Real1!$D$9) -> 0 | R20: =IF(G20<0.4,0,Real1!$D$10) -> 0 | S20: =IF(K20="k",G20,I20) -> 0 | T20: =IF(G20>1,1,0) -> 0 | W20: =(G20/LånIalt)*Q20 ->  | X20: =(G20/LånIalt)*R20 -> 
B21: Flexkort | E21: 0.5 | F21: =IF(Real2!$P$1=0,"","Korr") ->  | G21: =IF(K21="k",I21,I21*L21/100) -> 0 | H21: =$G$18*E21 -> 0 | I21: =IF(K21="o",ROUND(H21/L21/10,0)*1000,ROUND(H21,-3)) -> 0 | J21: a | K21: o | L21: 100.011 | M21: 0.0278 | N21: 0.0125 | O21: 30 | P21: 10 | Q21: =IF(G21<0.4,0,Real2!$D$9) -> 0 | R21: =IF(G21<0.4,0,Real2!$D$10) -> 0 | S21: =IF(K21="k",G21,I21) -> 0 | T21: =IF(G21>1,1,0) -> 0 | X21: =(G21/LånIalt)*R21 -> 
F22: =IF(Real3!$P$1=0,"","Korr") ->  | G22: =IF(K22="k",I22,I22*L22/100) -> 0 | H22: 0 | I22: =IF(K22="o",ROUND(H22/L22/10,0)*1000,ROUND(H22,-3)) -> 0 | J22: a | K22: k | L22: 96 | M22: 0.02 | N22: 0.012 | O22: 30 | Q22: =IF(G22<0.4,0,Real3!$D$9) -> 0 | R22: =IF(G22<0.4,0,Real3!$D$10) -> 0 | S22: 0 | T22: =IF(G22>1,1,0) -> 0 | W22: =(G22/LånIalt)*Q22 ->  | X22: =(G22/LånIalt)*R22 -> 
F23: =IF(Real4!$P$1=0,"","Korr") ->  | G23: 0 | H23: 0 | I23: 0 | J23: a | K23: o | L23: 99 | M23: 0.02 | N23: 0.0125 | O23: 30 | Q23: =IF(G23<0.4,0,Real4!$D$9) -> 0 | R23: =IF(G23<0.4,0,Real4!$D$10) -> 0 | S23: 0 | T23: =IF(G23>1,1,0) -> 0 | X23: =(G23/LånIalt)*R23 -> 
F24: =IF(Real5!$P$1=0,"","Korr") ->  | G24: 0 | H24: 0 | I24: 0 | J24: a | K24: o | L24: 98 | M24: 0.02 | N24: 0.0125 | O24: 30 | Q24: =IF(G24<0.4,0,Real5!$D$9) -> 0 | R24: =IF(G24<0.4,0,Real5!$D$10) -> 0 | S24: 0 | T24: =IF(G24>1,1,0) -> 0 | X24: =(G24/LånIalt)*R24 -> 
B25: I alt | E25: =SUM(E20:E24) -> 1 | G25: =SUM(G20:G24) -> 0 | H25: =SUM(H20:H24) -> 0 | I25: =SUM(I20:I24) -> 0 | S25: =SUM(S20:S24) -> 0
B26: Banklån | J26: Ann.-Serie | L26: Kurs | M26: Rente | O26: Løbetid år | P26: Afdragsfri år
B27: Vækstlån
B28: Sælgerpantebrev | Q28: Før skat | R28: Efter skat
B29: Lån | F29: korr | G29: Kontant | I29: Hovedstol | Q29: eff. rente | R29: eff. rente | T29: antal lån | W29: VejEffFør | X29: VejEffEft
B30: Banklån | E30: =IF(Lån6!$P$1=0,"","Korr") ->  | G30: =H30 -> 0 | H30: =IF(ISBLANK(F30),IF(Kontantpris-RealkreditIalt-G33-G34-G32-G31>10000,TRUNC(Kontantpris-RealkreditIalt-G33-G34-G32-G31,-5),0),F30) -> 0 | I30: =G30/L30*100 -> 0 | J30: a | L30: 100 | M30: 0.07 | O30: 10 | Q30: =IF(G30<0.4,0,Lån6!$D$9) -> 0 | R30: =IF(G30<0.4,0,Lån6!$D$10) -> 0 | S30: =I30 -> 0 | T30: =IF(G30>1,1,0) -> 0 | W30: =(G30/LånIalt)*Q30 ->  | X30: =(G30/LånIalt)*R30 ->  | AH30: =I30 -> 0
B31: EIFO | E31: =IF(Lån7!$P$1=0,"","Korr") ->  | G31: =I31*L31/100 -> 0 | H31: =F31*L31/100 -> 0 | I31: =ROUND(F31/L31*100,-3) -> 0 | J31: a | L31: 100 | M31: 0.1 | O31: 10 | Q31: =IF(G31<0.4,0,Lån7!$D$9) -> 0 | R31: =IF(G31<0.4,0,Lån7!$D$10) -> 0 | S31: =I31 -> 0 | T31: =IF(G31>1,1,0) -> 0 | W31: =(G31/LånIalt)*Q31 ->  | X31: =(G31/LånIalt)*R31 ->  | AH31: 0
B32: Etableringslån | E32: =IF(Lån8!$P$1=0,"","Korr") ->  | G32: =I32*L32/100 -> 0 | H32: =F32*L32/100 -> 0 | I32: =ROUND(F32/L32*100,-3) -> 0 | J32: a | L32: 100 | M32: 0.07 | O32: 15 | Q32: =IF(G32<0.4,0,Lån8!$D$9) -> 0 | R32: =IF(G32<0.4,0,Lån8!$D$10) -> 0 | S32: 0 | T32: 0 | W32: =(G32/LånIalt)*Q32 ->  | X32: =(G32/LånIalt)*R32 ->  | AH32: 0
B33: Familielån | E33: =IF(Lån9!$P$1=0,"","Korr") ->  | G33: 0 | H33: 0 | I33: 0 | J33: a | L33: 100 | M33: 0 | O33: 30 | Q33: =IF(G33<0.4,0,Lån9!$D$9) -> 0 | R33: =IF(G33<0.4,0,Lån9!$D$10) -> 0 | S33: =I33 -> 0 | T33: =IF(G33>1,1,0) -> 0 | W33: =(G33/LånIalt)*Q33 ->  | X33: =(G33/LånIalt)*R33 ->  | AH33: 0
B34: Sælgerpantebrev | E34: =IF(Lån10!$P$1=0,"","Korr") ->  | G34: 0 | H34: 0 | I34: 0 | J34: a | L34: 85 | M34: 0.09 | O34: 10 | Q34: =IF(G34<0.4,0,Lån10!$D$9) -> 0 | R34: =IF(G34<0.4,0,Lån10!$D$10) -> 0 | S34: =I34 -> 0 | T34: =IF(G34>1,1,0) -> 0 | X34: =(G34/LånIalt)*R34 ->  | AH34: =I34 -> 0
B35: Finansieringsplan | G35: Kontant | I35: Hovedstol
B36: Gaver | C36: Succession | E36: =IF(G36=0,"",G36/$G$44) ->  | I36: =G36 -> 0 | Q36: Før skat | R36: Efter skat | S36: =G36 -> 0
B37: Restfinansiering, kontant | E37: =IF(G37=0,"",G37/$G$44) ->  | G37: =G44-G43-G42-G41-G40-G39-G38-G36 -> 0 | I37: =G37 -> 0 | Q37: eff. rente | R37: eff. rente | S37: =I37 -> 0
B38: =B30 -> Banklån | E38: =IF(G38=0,"",G38/$G$44) ->  | G38: =G30 -> 0 | I38: =I30 -> 0 | P38: Eff. rente vejet gns. | Q38: =IF(Kontantpris=0,0,W38) -> 0 | R38: =IF(Kontantpris=0,0,X38) -> 0 | T38: =SUM(T20:T34) -> 0 | U38: Antal lån i alt | W38: =SUM(W20:W37) ->  | X38: =SUM(X20:X37) -> 
B39: =B31 -> EIFO | E39: =IF(G39=0,"",G39/$G$44) ->  | G39: =G31 -> 0 | I39: =I31 -> 0
B40: Etableringslån | G40: 0 | I40: =I32 -> 0
B41: =B33 -> Familielån | E41: =IF(G41=0,"",G41/$G$44) ->  | G41: =G33 -> 0 | I41: =I33 -> 0
B42: =B34 -> Sælgerpantebrev | E42: =IF(G42=0,"",G42/$G$44) ->  | G42: =G34 -> 0 | I42: =I34 -> 0 | P42: KK-saldo primo | Q42: =IF(G44=0,0,'Omk. & restfinans'!F36) -> 0
B43: Realkredit i alt | E43: =IF(G43=0,"",G43/$G$44) ->  | G43: =G25 -> 0 | I43: =SUM(I20:I24) -> 0 | P43: Opsparing (likvid egenkapital) | Q43: ='Omk. & restfinans'!F29 -> 0 | T43: =SUM(T20:T24) -> 0 | U43: Antal realkredit i alt
B44: Kontant pris i alt | E44: =SUM(E36:E43) -> 0 | G44: =E12 -> 0 | I44: =SUM(I36:I43) -> 0 | J44: -> | L44: =Kontantpris-I44 -> 0 | S44: =S37+S36+S34+S33+S30+S25 -> 0
S45: =IF(købesum-Kontantpris=0,0.000001,købesum/Kontantpris) -> 1e-06 | T45: Faktor Købesum/Kontantpris
U46: Kontantværdi lån i alt | X46: =SUM(G38:G43) -> 0
R59: © CHA 12.02.2025
AC109: 1 | AD109: 2 | AE109: 3 | AF109: 4 | AG109: 5 | AH109: 6 | AI109: 7 | AJ109: 8 | AK109: 9 | AL109: 10 | AM109: 11 | AN109: 12 | AO109: 13 | AP109: 14 | AQ109: 15 | AR109: 16
AD110: Afdrag | AN110: Alle | AO110: Realkredit | AR110: Alle
AB111: År | AC111: Terminer | AD111: =Real1!$D2 -> Fast rente 30 år | AE111: =Real2!$D2 -> Flexkort | AF111: =Real3!$D2 -> 0 | AG111: =Real4!$D2 -> 0 | AH111: =Real5!$D2 -> 0 | AI111: =Lån6!$D2 -> Banklån | AJ111: =Lån7!$D2 -> EIFO | AK111: =Lån8!$D2 -> Etableringslån | AL111: =Lån9!$D2 -> Familielån | AM111: =Lån10!$D2 -> Sælgerpantebrev | AN111: SUM | AO111: sum | AP111: År til dato | AQ111: År til dato | AR111: år til dato
AB112: 0 | AD112: Real1 | AE112: Real2 | AF112: Real3 | AG112: Real4 | AH112: Real5 | AI112: Lån6 | AJ112: Lån7 | AK112: Lån8 | AL112: Lån9 | AM112: Lån10
AC113: 1 | AD113: =IF(Real1!$H$2="k",Real1!$P85,Real1!$C85) -> 0 | AE113: =IF(Real2!$H$2="k",Real2!$P85,Real2!$C85) -> 0 | AF113: =IF(Real3!$H$2="k",Real3!$P85,Real3!$C85) -> 0 | AG113: =IF(Real4!$H$2="k",Real4!$P85,Real4!$C85) -> 0 | AH113: =IF(Real5!$H$2="k",Real5!$P85,Real5!$C85) -> 0 | AI113: =Lån6!$C85 -> 0 | AJ113: =Lån7!$C85 -> 0 | AK113: =Lån8!$C85 -> 0 | AL113: =Lån9!$C85 -> 0 | AM113: =Lån10!$C85 -> 0 | AN113: =SUM(AD113:AM113) -> 0 | AO113: =AD113+AE113+AF113+AG113+AH113 -> 0 | AP113: =AO113 -> 0 | AQ113: =AI113 -> 0 | AR113: =AR112+AN113 -> 0
AC114: 2 | AD114: =IF(Real1!$H$2="k",Real1!$P86,Real1!$C86) -> 0 | AE114: =IF(Real2!$H$2="k",Real2!$P86,Real2!$C86) -> 0 | AF114: =IF(Real3!$H$2="k",Real3!$P86,Real3!$C86) -> 0 | AG114: =IF(Real4!$H$2="k",Real4!$P86,Real4!$C86) -> 0 | AH114: =IF(Real5!$H$2="k",Real5!$P86,Real5!$C86) -> 0 | AI114: =Lån6!$C86 -> 0 | AJ114: =Lån7!$C86 -> 0 | AK114: =Lån8!$C86 -> 0 | AL114: =Lån9!$C86 -> 0 | AM114: =Lån10!$C86 -> 0 | AN114: =SUM(AD114:AM114) -> 0 | AO114: =AD114+AE114+AF114+AG114+AH114 -> 0 | AP114: =AP113+AO114 -> 0 | AQ114: =AQ113+AI114 -> 0 | AR114: =AR113+AN114 -> 0
AC115: 3 | AD115: =IF(Real1!$H$2="k",Real1!$P87,Real1!$C87) -> 0 | AE115: =IF(Real2!$H$2="k",Real2!$P87,Real2!$C87) -> 0 | AF115: =IF(Real3!$H$2="k",Real3!$P87,Real3!$C87) -> 0 | AG115: =IF(Real4!$H$2="k",Real4!$P87,Real4!$C87) -> 0 | AH115: =IF(Real5!$H$2="k",Real5!$P87,Real5!$C87) -> 0 | AI115: =Lån6!$C87 -> 0 | AJ115: =Lån7!$C87 -> 0 | AK115: =Lån8!$C87 -> 0 | AL115: =Lån9!$C87 -> 0 | AM115: =Lån10!$C87 -> 0 | AN115: 0 | AO115: 0 | AP115: =AP114+AO115 -> 0 | AQ115: 0 | AR115: 0
AB116: 1 | AC116: 4 | AD116: =IF(Real1!$H$2="k",Real1!$P88,Real1!$C88) -> 0 | AE116: =IF(Real2!$H$2="k",Real2!$P88,Real2!$C88) -> 0 | AF116: =IF(Real3!$H$2="k",Real3!$P88,Real3!$C88) -> 0 | AG116: =IF(Real4!$H$2="k",Real4!$P88,Real4!$C88) -> 0 | AH116: =IF(Real5!$H$2="k",Real5!$P88,Real5!$C88) -> 0 | AI116: =Lån6!$C88 -> 0 | AJ116: =Lån7!$C88 -> 0 | AK116: =Lån8!$C88 -> 0 | AL116: =Lån9!$C88 -> 0 | AM116: =Lån10!$C88 -> 0 | AN116: 0 | AO116: 0 | AP116: 0 | AQ116: 0 | AR116: 0
AC117: 5 | AD117: =IF(Real1!$H$2="k",Real1!$P89,Real1!$C89) -> 0 | AE117: =IF(Real2!$H$2="k",Real2!$P89,Real2!$C89) -> 0 | AF117: =IF(Real3!$H$2="k",Real3!$P89,Real3!$C89) -> 0 | AG117: =IF(Real4!$H$2="k",Real4!$P89,Real4!$C89) -> 0 | AH117: =IF(Real5!$H$2="k",Real5!$P89,Real5!$C89) -> 0 | AI117: =Lån6!$C89 -> 0 | AJ117: =Lån7!$C89 -> 0 | AK117: =Lån8!$C89 -> 0 | AL117: =Lån9!$C89 -> 0 | AM117: =Lån10!$C89 -> 0 | AN117: 0 | AO117: 0 | AP117: 0 | AQ117: 0 | AR117: 0
AC118: 6 | AD118: =IF(Real1!$H$2="k",Real1!$P90,Real1!$C90) -> 0 | AE118: =IF(Real2!$H$2="k",Real2!$P90,Real2!$C90) -> 0 | AF118: =IF(Real3!$H$2="k",Real3!$P90,Real3!$C90) -> 0 | AG118: =IF(Real4!$H$2="k",Real4!$P90,Real4!$C90) -> 0 | AH118: =IF(Real5!$H$2="k",Real5!$P90,Real5!$C90) -> 0 | AI118: =Lån6!$C90 -> 0 | AJ118: =Lån7!$C90 -> 0 | AK118: =Lån8!$C90 -> 0 | AL118: =Lån9!$C90 -> 0 | AM118: =Lån10!$C90 -> 0 | AN118: 0 | AO118: 0 | AP118: 0 | AQ118: 0 | AR118: 0
AC119: 7 | AD119: =IF(Real1!$H$2="k",Real1!$P91,Real1!$C91) -> 0 | AE119: =IF(Real2!$H$2="k",Real2!$P91,Real2!$C91) -> 0 | AF119: =IF(Real3!$H$2="k",Real3!$P91,Real3!$C91) -> 0 | AG119: =IF(Real4!$H$2="k",Real4!$P91,Real4!$C91) -> 0 | AH119: =IF(Real5!$H$2="k",Real5!$P91,Real5!$C91) -> 0 | AI119: =Lån6!$C91 -> 0 | AJ119: =Lån7!$C91 -> 0 | AK119: =Lån8!$C91 -> 0 | AL119: =Lån9!$C91 -> 0 | AM119: =Lån10!$C91 -> 0 | AN119: 0 | AO119: 0 | AP119: 0 | AQ119: 0 | AR119: 0
AB120: 2 | AC120: 8 | AD120: =IF(Real1!$H$2="k",Real1!$P92,Real1!$C92) -> 0 | AE120: =IF(Real2!$H$2="k",Real2!$P92,Real2!$C92) -> 0 | AF120: =IF(Real3!$H$2="k",Real3!$P92,Real3!$C92) -> 0 | AG120: =IF(Real4!$H$2="k",Real4!$P92,Real4!$C92) -> 0 | AH120: =IF(Real5!$H$2="k",Real5!$P92,Real5!$C92) -> 0 | AI120: =Lån6!$C92 -> 0 | AJ120: =Lån7!$C92 -> 0 | AK120: =Lån8!$C92 -> 0 | AL120: =Lån9!$C92 -> 0 | AM120: =Lån10!$C92 -> 0 | AN120: 0 | AO120: 0 | AP120: 0 | AQ120: 0 | AR120: 0
AC121: 9 | AD121: =IF(Real1!$H$2="k",Real1!$P93,Real1!$C93) -> 0 | AE121: =IF(Real2!$H$2="k",Real2!$P93,Real2!$C93) -> 0 | AF121: =IF(Real3!$H$2="k",Real3!$P93,Real3!$C93) -> 0 | AG121: =IF(Real4!$H$2="k",Real4!$P93,Real4!$C93) -> 0 | AH121: =IF(Real5!$H$2="k",Real5!$P93,Real5!$C93) -> 0 | AI121: =Lån6!$C93 -> 0 | AJ121: =Lån7!$C93 -> 0 | AK121: =Lån8!$C93 -> 0 | AL121: =Lån9!$C93 -> 0 | AM121: =Lån10!$C93 -> 0 | AN121: 0 | AO121: 0 | AP121: 0 | AQ121: 0 | AR121: 0
AC122: 10 | AD122: =IF(Real1!$H$2="k",Real1!$P94,Real1!$C94) -> 0 | AE122: =IF(Real2!$H$2="k",Real2!$P94,Real2!$C94) -> 0 | AF122: =IF(Real3!$H$2="k",Real3!$P94,Real3!$C94) -> 0 | AG122: =IF(Real4!$H$2="k",Real4!$P94,Real4!$C94) -> 0 | AH122: =IF(Real5!$H$2="k",Real5!$P94,Real5!$C94) -> 0 | AI122: =Lån6!$C94 -> 0 | AJ122: =Lån7!$C94 -> 0 | AK122: =Lån8!$C94 -> 0 | AL122: =Lån9!$C94 -> 0 | AM122: =Lån10!$C94 -> 0 | AN122: 0 | AO122: 0 | AP122: 0 | AQ122: 0 | AR122: 0
AC123: 11 | AD123: =IF(Real1!$H$2="k",Real1!$P95,Real1!$C95) -> 0 | AE123: =IF(Real2!$H$2="k",Real2!$P95,Real2!$C95) -> 0 | AF123: =IF(Real3!$H$2="k",Real3!$P95,Real3!$C95) -> 0 | AG123: =IF(Real4!$H$2="k",Real4!$P95,Real4!$C95) -> 0 | AH123: =IF(Real5!$H$2="k",Real5!$P95,Real5!$C95) -> 0 | AI123: =Lån6!$C95 -> 0 | AJ123: =Lån7!$C95 -> 0 | AK123: =Lån8!$C95 -> 0 | AL123: =Lån9!$C95 -> 0 | AM123: =Lån10!$C95 -> 0 | AN123: 0 | AO123: 0 | AP123: 0 | AQ123: 0 | AR123: 0
AB124: 3 | AC124: 12 | AD124: =IF(Real1!$H$2="k",Real1!$P96,Real1!$C96) -> 0 | AE124: =IF(Real2!$H$2="k",Real2!$P96,Real2!$C96) -> 0 | AF124: =IF(Real3!$H$2="k",Real3!$P96,Real3!$C96) -> 0 | AG124: =IF(Real4!$H$2="k",Real4!$P96,Real4!$C96) -> 0 | AH124: =IF(Real5!$H$2="k",Real5!$P96,Real5!$C96) -> 0 | AI124: =Lån6!$C96 -> 0 | AJ124: =Lån7!$C96 -> 0 | AK124: =Lån8!$C96 -> 0 | AL124: =Lån9!$C96 -> 0 | AM124: =Lån10!$C96 -> 0 | AN124: 0 | AO124: 0 | AP124: 0 | AQ124: 0 | AR124: 0
AC125: 13 | AD125: =IF(Real1!$H$2="k",Real1!$P97,Real1!$C97) -> 0 | AE125: =IF(Real2!$H$2="k",Real2!$P97,Real2!$C97) -> 0 | AF125: =IF(Real3!$H$2="k",Real3!$P97,Real3!$C97) -> 0 | AG125: =IF(Real4!$H$2="k",Real4!$P97,Real4!$C97) -> 0 | AH125: =IF(Real5!$H$2="k",Real5!$P97,Real5!$C97) -> 0 | AI125: =Lån6!$C97 -> 0 | AJ125: =Lån7!$C97 -> 0 | AK125: =Lån8!$C97 -> 0 | AL125: =Lån9!$C97 -> 0 | AM125: =Lån10!$C97 -> 0 | AN125: 0 | AO125: 0 | AP125: 0 | AQ125: 0 | AR125: 0
AC126: 14 | AD126: =IF(Real1!$H$2="k",Real1!$P98,Real1!$C98) -> 0 | AE126: =IF(Real2!$H$2="k",Real2!$P98,Real2!$C98) -> 0 | AF126: =IF(Real3!$H$2="k",Real3!$P98,Real3!$C98) -> 0 | AG126: =IF(Real4!$H$2="k",Real4!$P98,Real4!$C98) -> 0 | AH126: =IF(Real5!$H$2="k",Real5!$P98,Real5!$C98) -> 0 | AI126: =Lån6!$C98 -> 0 | AJ126: =Lån7!$C98 -> 0 | AK126: =Lån8!$C98 -> 0 | AL126: =Lån9!$C98 -> 0 | AM126: =Lån10!$C98 -> 0 | AN126: 0 | AO126: 0 | AP126: 0 | AQ126: 0 | AR126: 0
AC127: 15 | AD127: =IF(Real1!$H$2="k",Real1!$P99,Real1!$C99) -> 0 | AE127: =IF(Real2!$H$2="k",Real2!$P99,Real2!$C99) -> 0 | AF127: =IF(Real3!$H$2="k",Real3!$P99,Real3!$C99) -> 0 | AG127: =IF(Real4!$H$2="k",Real4!$P99,Real4!$C99) -> 0 | AH127: =IF(Real5!$H$2="k",Real5!$P99,Real5!$C99) -> 0 | AI127: =Lån6!$C99 -> 0 | AJ127: =Lån7!$C99 -> 0 | AK127: =Lån8!$C99 -> 0 | AL127: =Lån9!$C99 -> 0 | AM127: =Lån10!$C99 -> 0 | AN127: 0 | AO127: 0 | AP127: 0 | AQ127: 0 | AR127: 0
AB128: 4 | AC128: 16 | AD128: =IF(Real1!$H$2="k",Real1!$P100,Real1!$C100) -> 0 | AE128: =IF(Real2!$H$2="k",Real2!$P100,Real2!$C100) -> 0 | AF128: =IF(Real3!$H$2="k",Real3!$P100,Real3!$C100) -> 0 | AG128: =IF(Real4!$H$2="k",Real4!$P100,Real4!$C100) -> 0 | AH128: =IF(Real5!$H$2="k",Real5!$P100,Real5!$C100) -> 0 | AI128: =Lån6!$C100 -> 0 | AJ128: =Lån7!$C100 -> 0 | AK128: =Lån8!$C100 -> 0 | AL128: =Lån9!$C100 -> 0 | AM128: =Lån10!$C100 -> 0 | AN128: 0 | AO128: 0 | AP128: 0 | AQ128: 0 | AR128: 0
AC129: 17 | AD129: =IF(Real1!$H$2="k",Real1!$P101,Real1!$C101) -> 0 | AE129: =IF(Real2!$H$2="k",Real2!$P101,Real2!$C101) -> 0 | AF129: =IF(Real3!$H$2="k",Real3!$P101,Real3!$C101) -> 0 | AG129: =IF(Real4!$H$2="k",Real4!$P101,Real4!$C101) -> 0 | AH129: =IF(Real5!$H$2="k",Real5!$P101,Real5!$C101) -> 0 | AI129: =Lån6!$C101 -> 0 | AJ129: =Lån7!$C101 -> 0 | AK129: =Lån8!$C101 -> 0 | AL129: =Lån9!$C101 -> 0 | AM129: =Lån10!$C101 -> 0 | AN129: 0 | AO129: 0 | AP129: 0 | AQ129: 0 | AR129: 0
AC130: 18 | AD130: =IF(Real1!$H$2="k",Real1!$P102,Real1!$C102) -> 0 | AE130: =IF(Real2!$H$2="k",Real2!$P102,Real2!$C102) -> 0 | AF130: =IF(Real3!$H$2="k",Real3!$P102,Real3!$C102) -> 0 | AG130: =IF(Real4!$H$2="k",Real4!$P102,Real4!$C102) -> 0 | AH130: =IF(Real5!$H$2="k",Real5!$P102,Real5!$C102) -> 0 | AI130: =Lån6!$C102 -> 0 | AJ130: =Lån7!$C102 -> 0 | AK130: =Lån8!$C102 -> 0 | AL130: =Lån9!$C102 -> 0 | AM130: =Lån10!$C102 -> 0 | AN130: 0 | AO130: 0 | AP130: 0 | AQ130: 0 | AR130: 0
AC131: 19 | AD131: =IF(Real1!$H$2="k",Real1!$P103,Real1!$C103) -> 0 | AE131: =IF(Real2!$H$2="k",Real2!$P103,Real2!$C103) -> 0 | AF131: =IF(Real3!$H$2="k",Real3!$P103,Real3!$C103) -> 0 | AG131: =IF(Real4!$H$2="k",Real4!$P103,Real4!$C103) -> 0 | AH131: =IF(Real5!$H$2="k",Real5!$P103,Real5!$C103) -> 0 | AI131: =Lån6!$C103 -> 0 | AJ131: =Lån7!$C103 -> 0 | AK131: =Lån8!$C103 -> 0 | AL131: =Lån9!$C103 -> 0 | AM131: =Lån10!$C103 -> 0 | AN131: 0 | AO131: 0 | AP131: =AP130+AO131 -> 0 | AQ131: 0 | AR131: =AR130+AN131 -> 0
AB132: 5 | AC132: 20 | AD132: =IF(Real1!$H$2="k",Real1!$P104,Real1!$C104) -> 0 | AE132: =IF(Real2!$H$2="k",Real2!$P104,Real2!$C104) -> 0 | AF132: =IF(Real3!$H$2="k",Real3!$P104,Real3!$C104) -> 0 | AG132: =IF(Real4!$H$2="k",Real4!$P104,Real4!$C104) -> 0 | AH132: =IF(Real5!$H$2="k",Real5!$P104,Real5!$C104) -> 0 | AI132: =Lån6!$C104 -> 0 | AJ132: =Lån7!$C104 -> 0 | AK132: =Lån8!$C104 -> 0 | AL132: =Lån9!$C104 -> 0 | AM132: =Lån10!$C104 -> 0 | AN132: 0 | AO132: 0 | AP132: 0 | AQ132: 0 | AR132: 0
AC133: 21 | AD133: =IF(Real1!$H$2="k",Real1!$P105,Real1!$C105) -> 0 | AE133: =IF(Real2!$H$2="k",Real2!$P105,Real2!$C105) -> 0 | AF133: =IF(Real3!$H$2="k",Real3!$P105,Real3!$C105) -> 0 | AG133: =IF(Real4!$H$2="k",Real4!$P105,Real4!$C105) -> 0 | AH133: =IF(Real5!$H$2="k",Real5!$P105,Real5!$C105) -> 0 | AI133: =Lån6!$C105 -> 0 | AJ133: =Lån7!$C105 -> 0 | AK133: =Lån8!$C105 -> 0 | AL133: =Lån9!$C105 -> 0 | AM133: =Lån10!$C105 -> 0 | AN133: 0 | AO133: 0 | AP133: 0 | AQ133: 0 | AR133: 0
AC134: 22 | AD134: =IF(Real1!$H$2="k",Real1!$P106,Real1!$C106) -> 0 | AE134: =IF(Real2!$H$2="k",Real2!$P106,Real2!$C106) -> 0 | AF134: =IF(Real3!$H$2="k",Real3!$P106,Real3!$C106) -> 0 | AG134: =IF(Real4!$H$2="k",Real4!$P106,Real4!$C106) -> 0 | AH134: =IF(Real5!$H$2="k",Real5!$P106,Real5!$C106) -> 0 | AI134: =Lån6!$C106 -> 0 | AJ134: =Lån7!$C106 -> 0 | AK134: =Lån8!$C106 -> 0 | AL134: =Lån9!$C106 -> 0 | AM134: =Lån10!$C106 -> 0 | AN134: 0 | AO134: 0 | AP134: 0 | AQ134: 0 | AR134: 0
AC135: 23 | AD135: =IF(Real1!$H$2="k",Real1!$P107,Real1!$C107) -> 0 | AE135: =IF(Real2!$H$2="k",Real2!$P107,Real2!$C107) -> 0 | AF135: =IF(Real3!$H$2="k",Real3!$P107,Real3!$C107) -> 0 | AG135: =IF(Real4!$H$2="k",Real4!$P107,Real4!$C107) -> 0 | AH135: =IF(Real5!$H$2="k",Real5!$P107,Real5!$C107) -> 0 | AI135: =Lån6!$C107 -> 0 | AJ135: =Lån7!$C107 -> 0 | AK135: =Lån8!$C107 -> 0 | AL135: =Lån9!$C107 -> 0 | AM135: =Lån10!$C107 -> 0 | AN135: 0 | AO135: 0 | AP135: 0 | AQ135: 0 | AR135: 0
AB136: 6 | AC136: 24 | AD136: =IF(Real1!$H$2="k",Real1!$P108,Real1!$C108) -> 0 | AE136: =IF(Real2!$H$2="k",Real2!$P108,Real2!$C108) -> 0 | AF136: =IF(Real3!$H$2="k",Real3!$P108,Real3!$C108) -> 0 | AG136: =IF(Real4!$H$2="k",Real4!$P108,Real4!$C108) -> 0 | AH136: =IF(Real5!$H$2="k",Real5!$P108,Real5!$C108) -> 0 | AI136: =Lån6!$C108 -> 0 | AJ136: =Lån7!$C108 -> 0 | AK136: =Lån8!$C108 -> 0 | AL136: =Lån9!$C108 -> 0 | AM136: =Lån10!$C108 -> 0 | AN136: 0 | AO136: 0 | AP136: 0 | AQ136: 0 | AR136: 0
AC137: 25 | AD137: =IF(Real1!$H$2="k",Real1!$P109,Real1!$C109) -> 0 | AE137: =IF(Real2!$H$2="k",Real2!$P109,Real2!$C109) -> 0 | AF137: =IF(Real3!$H$2="k",Real3!$P109,Real3!$C109) -> 0 | AG137: =IF(Real4!$H$2="k",Real4!$P109,Real4!$C109) -> 0 | AH137: =IF(Real5!$H$2="k",Real5!$P109,Real5!$C109) -> 0 | AI137: =Lån6!$C109 -> 0 | AJ137: =Lån7!$C109 -> 0 | AK137: =Lån8!$C109 -> 0 | AL137: =Lån9!$C109 -> 0 | AM137: =Lån10!$C109 -> 0 | AN137: 0 | AO137: 0 | AP137: 0 | AQ137: 0 | AR137: 0
AC138: 26 | AD138: =IF(Real1!$H$2="k",Real1!$P110,Real1!$C110) -> 0 | AE138: =IF(Real2!$H$2="k",Real2!$P110,Real2!$C110) -> 0 | AF138: =IF(Real3!$H$2="k",Real3!$P110,Real3!$C110) -> 0 | AG138: =IF(Real4!$H$2="k",Real4!$P110,Real4!$C110) -> 0 | AH138: =IF(Real5!$H$2="k",Real5!$P110,Real5!$C110) -> 0 | AI138: =Lån6!$C110 -> 0 | AJ138: =Lån7!$C110 -> 0 | AK138: =Lån8!$C110 -> 0 | AL138: =Lån9!$C110 -> 0 | AM138: =Lån10!$C110 -> 0 | AN138: 0 | AO138: 0 | AP138: 0 | AQ138: 0 | AR138: 0
AC139: 27 | AD139: =IF(Real1!$H$2="k",Real1!$P111,Real1!$C111) -> 0 | AE139: =IF(Real2!$H$2="k",Real2!$P111,Real2!$C111) -> 0 | AF139: =IF(Real3!$H$2="k",Real3!$P111,Real3!$C111) -> 0 | AG139: =IF(Real4!$H$2="k",Real4!$P111,Real4!$C111) -> 0 | AH139: =IF(Real5!$H$2="k",Real5!$P111,Real5!$C111) -> 0 | AI139: =Lån6!$C111 -> 0 | AJ139: =Lån7!$C111 -> 0 | AK139: =Lån8!$C111 -> 0 | AL139: =Lån9!$C111 -> 0 | AM139: =Lån10!$C111 -> 0 | AN139: 0 | AO139: 0 | AP139: 0 | AQ139: 0 | AR139: 0
AB140: 7 | AC140: 28 | AD140: =IF(Real1!$H$2="k",Real1!$P112,Real1!$C112) -> 0 | AE140: =IF(Real2!$H$2="k",Real2!$P112,Real2!$C112) -> 0 | AF140: =IF(Real3!$H$2="k",Real3!$P112,Real3!$C112) -> 0 | AG140: =IF(Real4!$H$2="k",Real4!$P112,Real4!$C112) -> 0 | AH140: =IF(Real5!$H$2="k",Real5!$P112,Real5!$C112) -> 0 | AI140: =Lån6!$C112 -> 0 | AJ140: =Lån7!$C112 -> 0 | AK140: =Lån8!$C112 -> 0 | AL140: =Lån9!$C112 -> 0 | AM140: =Lån10!$C112 -> 0 | AN140: 0 | AO140: 0 | AP140: 0 | AQ140: 0 | AR140: 0
AC141: 29 | AD141: =IF(Real1!$H$2="k",Real1!$P113,Real1!$C113) -> 0 | AE141: =IF(Real2!$H$2="k",Real2!$P113,Real2!$C113) -> 0 | AF141: =IF(Real3!$H$2="k",Real3!$P113,Real3!$C113) -> 0 | AG141: =IF(Real4!$H$2="k",Real4!$P113,Real4!$C113) -> 0 | AH141: =IF(Real5!$H$2="k",Real5!$P113,Real5!$C113) -> 0 | AI141: =Lån6!$C113 -> 0 | AJ141: =Lån7!$C113 -> 0 | AK141: =Lån8!$C113 -> 0 | AL141: =Lån9!$C113 -> 0 | AM141: =Lån10!$C113 -> 0 | AN141: 0 | AO141: 0 | AP141: 0 | AQ141: 0 | AR141: 0
AC142: 30 | AD142: =IF(Real1!$H$2="k",Real1!$P114,Real1!$C114) -> 0 | AE142: =IF(Real2!$H$2="k",Real2!$P114,Real2!$C114) -> 0 | AF142: =IF(Real3!$H$2="k",Real3!$P114,Real3!$C114) -> 0 | AG142: =IF(Real4!$H$2="k",Real4!$P114,Real4!$C114) -> 0 | AH142: =IF(Real5!$H$2="k",Real5!$P114,Real5!$C114) -> 0 | AI142: =Lån6!$C114 -> 0 | AJ142: =Lån7!$C114 -> 0 | AK142: =Lån8!$C114 -> 0 | AL142: =Lån9!$C114 -> 0 | AM142: =Lån10!$C114 -> 0 | AN142: 0 | AO142: 0 | AP142: 0 | AQ142: 0 | AR142: 0
AC143: 31 | AD143: =IF(Real1!$H$2="k",Real1!$P115,Real1!$C115) -> 0 | AE143: =IF(Real2!$H$2="k",Real2!$P115,Real2!$C115) -> 0 | AF143: =IF(Real3!$H$2="k",Real3!$P115,Real3!$C115) -> 0 | AG143: =IF(Real4!$H$2="k",Real4!$P115,Real4!$C115) -> 0 | AH143: =IF(Real5!$H$2="k",Real5!$P115,Real5!$C115) -> 0 | AI143: =Lån6!$C115 -> 0 | AJ143: =Lån7!$C115 -> 0 | AK143: =Lån8!$C115 -> 0 | AL143: =Lån9!$C115 -> 0 | AM143: =Lån10!$C115 -> 0 | AN143: 0 | AO143: 0 | AP143: 0 | AQ143: 0 | AR143: 0
AB144: 8 | AC144: 32 | AD144: =IF(Real1!$H$2="k",Real1!$P116,Real1!$C116) -> 0 | AE144: =IF(Real2!$H$2="k",Real2!$P116,Real2!$C116) -> 0 | AF144: =IF(Real3!$H$2="k",Real3!$P116,Real3!$C116) -> 0 | AG144: =IF(Real4!$H$2="k",Real4!$P116,Real4!$C116) -> 0 | AH144: =IF(Real5!$H$2="k",Real5!$P116,Real5!$C116) -> 0 | AI144: =Lån6!$C116 -> 0 | AJ144: =Lån7!$C116 -> 0 | AK144: =Lån8!$C116 -> 0 | AL144: =Lån9!$C116 -> 0 | AM144: =Lån10!$C116 -> 0 | AN144: 0 | AO144: 0 | AP144: =AP143+AO144 -> 0 | AQ144: 0 | AR144: 0
AC145: 33 | AD145: =IF(Real1!$H$2="k",Real1!$P117,Real1!$C117) -> 0 | AE145: =IF(Real2!$H$2="k",Real2!$P117,Real2!$C117) -> 0 | AF145: =IF(Real3!$H$2="k",Real3!$P117,Real3!$C117) -> 0 | AG145: =IF(Real4!$H$2="k",Real4!$P117,Real4!$C117) -> 0 | AH145: =IF(Real5!$H$2="k",Real5!$P117,Real5!$C117) -> 0 | AI145: =Lån6!$C117 -> 0 | AJ145: =Lån7!$C117 -> 0 | AK145: =Lån8!$C117 -> 0 | AL145: =Lån9!$C117 -> 0 | AM145: =Lån10!$C117 -> 0 | AN145: 0 | AO145: =AD145+AE145+AF145+AG145+AH145 -> 0 | AP145: 0 | AQ145: 0 | AR145: 0
AC146: 34 | AD146: =IF(Real1!$H$2="k",Real1!$P118,Real1!$C118) -> 0 | AE146: =IF(Real2!$H$2="k",Real2!$P118,Real2!$C118) -> 0 | AF146: =IF(Real3!$H$2="k",Real3!$P118,Real3!$C118) -> 0 | AG146: =IF(Real4!$H$2="k",Real4!$P118,Real4!$C118) -> 0 | AH146: =IF(Real5!$H$2="k",Real5!$P118,Real5!$C118) -> 0 | AI146: =Lån6!$C118 -> 0 | AJ146: =Lån7!$C118 -> 0 | AK146: =Lån8!$C118 -> 0 | AL146: =Lån9!$C118 -> 0 | AM146: =Lån10!$C118 -> 0 | AN146: 0 | AO146: 0 | AP146: 0 | AQ146: =AQ145+AI146 -> 0 | AR146: 0
AC147: 35 | AD147: =IF(Real1!$H$2="k",Real1!$P119,Real1!$C119) -> 0 | AE147: =IF(Real2!$H$2="k",Real2!$P119,Real2!$C119) -> 0 | AF147: =IF(Real3!$H$2="k",Real3!$P119,Real3!$C119) -> 0 | AG147: =IF(Real4!$H$2="k",Real4!$P119,Real4!$C119) -> 0 | AH147: =IF(Real5!$H$2="k",Real5!$P119,Real5!$C119) -> 0 | AI147: =Lån6!$C119 -> 0 | AJ147: =Lån7!$C119 -> 0 | AK147: =Lån8!$C119 -> 0 | AL147: =Lån9!$C119 -> 0 | AM147: =Lån10!$C119 -> 0 | AN147: 0 | AO147: 0 | AP147: 0 | AQ147: 0 | AR147: 0
AB148: 9 | AC148: 36 | AD148: =IF(Real1!$H$2="k",Real1!$P120,Real1!$C120) -> 0 | AE148: =IF(Real2!$H$2="k",Real2!$P120,Real2!$C120) -> 0 | AF148: =IF(Real3!$H$2="k",Real3!$P120,Real3!$C120) -> 0 | AG148: =IF(Real4!$H$2="k",Real4!$P120,Real4!$C120) -> 0 | AH148: =IF(Real5!$H$2="k",Real5!$P120,Real5!$C120) -> 0 | AI148: =Lån6!$C120 -> 0 | AJ148: =Lån7!$C120 -> 0 | AK148: =Lån8!$C120 -> 0 | AL148: =Lån9!$C120 -> 0 | AM148: =Lån10!$C120 -> 0 | AN148: 0 | AO148: 0 | AP148: =AP147+AO148 -> 0 | AQ148: 0 | AR148: 0
AC149: 37 | AD149: =IF(Real1!$H$2="k",Real1!$P121,Real1!$C121) -> 0 | AE149: =IF(Real2!$H$2="k",Real2!$P121,Real2!$C121) -> 0 | AF149: =IF(Real3!$H$2="k",Real3!$P121,Real3!$C121) -> 0 | AG149: =IF(Real4!$H$2="k",Real4!$P121,Real4!$C121) -> 0 | AH149: =IF(Real5!$H$2="k",Real5!$P121,Real5!$C121) -> 0 | AI149: =Lån6!$C121 -> 0 | AJ149: =Lån7!$C121 -> 0 | AK149: =Lån8!$C121 -> 0 | AL149: =Lån9!$C121 -> 0 | AM149: =Lån10!$C121 -> 0 | AN149: 0 | AO149: 0 | AP149: 0 | AQ149: 0 | AR149: 0
AC150: 38 | AD150: =IF(Real1!$H$2="k",Real1!$P122,Real1!$C122) -> 0 | AE150: =IF(Real2!$H$2="k",Real2!$P122,Real2!$C122) -> 0 | AF150: =IF(Real3!$H$2="k",Real3!$P122,Real3!$C122) -> 0 | AG150: =IF(Real4!$H$2="k",Real4!$P122,Real4!$C122) -> 0 | AH150: =IF(Real5!$H$2="k",Real5!$P122,Real5!$C122) -> 0 | AI150: =Lån6!$C122 -> 0 | AJ150: =Lån7!$C122 -> 0 | AK150: =Lån8!$C122 -> 0 | AL150: =Lån9!$C122 -> 0 | AM150: =Lån10!$C122 -> 0 | AN150: 0 | AO150: 0 | AP150: 0 | AQ150: 0 | AR150: 0
AC151: 39 | AD151: =IF(Real1!$H$2="k",Real1!$P123,Real1!$C123) -> 0 | AE151: =IF(Real2!$H$2="k",Real2!$P123,Real2!$C123) -> 0 | AF151: =IF(Real3!$H$2="k",Real3!$P123,Real3!$C123) -> 0 | AG151: =IF(Real4!$H$2="k",Real4!$P123,Real4!$C123) -> 0 | AH151: =IF(Real5!$H$2="k",Real5!$P123,Real5!$C123) -> 0 | AI151: =Lån6!$C123 -> 0 | AJ151: =Lån7!$C123 -> 0 | AK151: =Lån8!$C123 -> 0 | AL151: =Lån9!$C123 -> 0 | AM151: =Lån10!$C123 -> 0 | AN151: 0 | AO151: 0 | AP151: 0 | AQ151: 0 | AR151: 0
AB152: 10 | AC152: 40 | AD152: =IF(Real1!$H$2="k",Real1!$P124,Real1!$C124) -> 0 | AE152: =IF(Real2!$H$2="k",Real2!$P124,Real2!$C124) -> 0 | AF152: =IF(Real3!$H$2="k",Real3!$P124,Real3!$C124) -> 0 | AG152: =IF(Real4!$H$2="k",Real4!$P124,Real4!$C124) -> 0 | AH152: =IF(Real5!$H$2="k",Real5!$P124,Real5!$C124) -> 0 | AI152: =Lån6!$C124 -> 0 | AJ152: =Lån7!$C124 -> 0 | AK152: =Lån8!$C124 -> 0 | AL152: =Lån9!$C124 -> 0 | AM152: =Lån10!$C124 -> 0 | AN152: 0 | AO152: 0 | AP152: 0 | AQ152: 0 | AR152: 0
AC153: 41 | AD153: =IF(Real1!$H$2="k",Real1!$P125,Real1!$C125) -> 0 | AE153: =IF(Real2!$H$2="k",Real2!$P125,Real2!$C125) -> 0 | AF153: =IF(Real3!$H$2="k",Real3!$P125,Real3!$C125) -> 0 | AG153: =IF(Real4!$H$2="k",Real4!$P125,Real4!$C125) -> 0 | AH153: =IF(Real5!$H$2="k",Real5!$P125,Real5!$C125) -> 0 | AI153: =Lån6!$C125 -> 0 | AJ153: =Lån7!$C125 -> 0 | AK153: =Lån8!$C125 -> 0 | AL153: =Lån9!$C125 -> 0 | AM153: =Lån10!$C125 -> 0 | AN153: 0 | AO153: 0 | AP153: 0 | AQ153: 0 | AR153: 0
AC154: 42 | AD154: =IF(Real1!$H$2="k",Real1!$P126,Real1!$C126) -> 0 | AE154: =IF(Real2!$H$2="k",Real2!$P126,Real2!$C126) -> 0 | AF154: =IF(Real3!$H$2="k",Real3!$P126,Real3!$C126) -> 0 | AG154: =IF(Real4!$H$2="k",Real4!$P126,Real4!$C126) -> 0 | AH154: =IF(Real5!$H$2="k",Real5!$P126,Real5!$C126) -> 0 | AI154: =Lån6!$C126 -> 0 | AJ154: =Lån7!$C126 -> 0 | AK154: =Lån8!$C126 -> 0 | AL154: =Lån9!$C126 -> 0 | AM154: =Lån10!$C126 -> 0 | AN154: 0 | AO154: 0 | AP154: 0 | AQ154: 0 | AR154: 0
AC155: 43 | AD155: =IF(Real1!$H$2="k",Real1!$P127,Real1!$C127) -> 0 | AE155: =IF(Real2!$H$2="k",Real2!$P127,Real2!$C127) -> 0 | AF155: =IF(Real3!$H$2="k",Real3!$P127,Real3!$C127) -> 0 | AG155: =IF(Real4!$H$2="k",Real4!$P127,Real4!$C127) -> 0 | AH155: =IF(Real5!$H$2="k",Real5!$P127,Real5!$C127) -> 0 | AI155: =Lån6!$C127 -> 0 | AJ155: =Lån7!$C127 -> 0 | AK155: =Lån8!$C127 -> 0 | AL155: =Lån9!$C127 -> 0 | AM155: =Lån10!$C127 -> 0 | AN155: 0 | AO155: 0 | AP155: 0 | AQ155: 0 | AR155: 0
AB156: 11 | AC156: 44 | AD156: =IF(Real1!$H$2="k",Real1!$P128,Real1!$C128) -> 0 | AE156: =IF(Real2!$H$2="k",Real2!$P128,Real2!$C128) -> 0 | AF156: =IF(Real3!$H$2="k",Real3!$P128,Real3!$C128) -> 0 | AG156: =IF(Real4!$H$2="k",Real4!$P128,Real4!$C128) -> 0 | AH156: =IF(Real5!$H$2="k",Real5!$P128,Real5!$C128) -> 0 | AI156: =Lån6!$C128 -> 0 | AJ156: =Lån7!$C128 -> 0 | AK156: =Lån8!$C128 -> 0 | AL156: =Lån9!$C128 -> 0 | AM156: =Lån10!$C128 -> 0 | AN156: 0 | AO156: 0 | AP156: 0 | AQ156: 0 | AR156: 0
AC157: 45 | AD157: =IF(Real1!$H$2="k",Real1!$P129,Real1!$C129) -> 0 | AE157: =IF(Real2!$H$2="k",Real2!$P129,Real2!$C129) -> 0 | AF157: =IF(Real3!$H$2="k",Real3!$P129,Real3!$C129) -> 0 | AG157: =IF(Real4!$H$2="k",Real4!$P129,Real4!$C129) -> 0 | AH157: =IF(Real5!$H$2="k",Real5!$P129,Real5!$C129) -> 0 | AI157: =Lån6!$C129 -> 0 | AJ157: =Lån7!$C129 -> 0 | AK157: =Lån8!$C129 -> 0 | AL157: =Lån9!$C129 -> 0 | AM157: =Lån10!$C129 -> 0 | AN157: 0 | AO157: 0 | AP157: 0 | AQ157: 0 | AR157: 0
AC158: 46 | AD158: =IF(Real1!$H$2="k",Real1!$P130,Real1!$C130) -> 0 | AE158: =IF(Real2!$H$2="k",Real2!$P130,Real2!$C130) -> 0 | AF158: =IF(Real3!$H$2="k",Real3!$P130,Real3!$C130) -> 0 | AG158: =IF(Real4!$H$2="k",Real4!$P130,Real4!$C130) -> 0 | AH158: =IF(Real5!$H$2="k",Real5!$P130,Real5!$C130) -> 0 | AI158: =Lån6!$C130 -> 0 | AJ158: =Lån7!$C130 -> 0 | AK158: =Lån8!$C130 -> 0 | AL158: =Lån9!$C130 -> 0 | AM158: =Lån10!$C130 -> 0 | AN158: 0 | AO158: 0 | AP158: 0 | AQ158: 0 | AR158: 0
AC159: 47 | AD159: =IF(Real1!$H$2="k",Real1!$P131,Real1!$C131) -> 0 | AE159: =IF(Real2!$H$2="k",Real2!$P131,Real2!$C131) -> 0 | AF159: =IF(Real3!$H$2="k",Real3!$P131,Real3!$C131) -> 0 | AG159: =IF(Real4!$H$2="k",Real4!$P131,Real4!$C131) -> 0 | AH159: =IF(Real5!$H$2="k",Real5!$P131,Real5!$C131) -> 0 | AI159: =Lån6!$C131 -> 0 | AJ159: =Lån7!$C131 -> 0 | AK159: =Lån8!$C131 -> 0 | AL159: =Lån9!$C131 -> 0 | AM159: =Lån10!$C131 -> 0 | AN159: 0 | AO159: 0 | AP159: 0 | AQ159: 0 | AR159: 0
AB160: 12 | AC160: 48 | AD160: =IF(Real1!$H$2="k",Real1!$P132,Real1!$C132) -> 0 | AE160: =IF(Real2!$H$2="k",Real2!$P132,Real2!$C132) -> 0 | AF160: =IF(Real3!$H$2="k",Real3!$P132,Real3!$C132) -> 0 | AG160: =IF(Real4!$H$2="k",Real4!$P132,Real4!$C132) -> 0 | AH160: =IF(Real5!$H$2="k",Real5!$P132,Real5!$C132) -> 0 | AI160: =Lån6!$C132 -> 0 | AJ160: =Lån7!$C132 -> 0 | AK160: =Lån8!$C132 -> 0 | AL160: =Lån9!$C132 -> 0 | AM160: =Lån10!$C132 -> 0 | AN160: 0 | AO160: 0 | AP160: 0 | AQ160: 0 | AR160: 0
AC161: 49 | AD161: =IF(Real1!$H$2="k",Real1!$P133,Real1!$C133) -> 0 | AE161: =IF(Real2!$H$2="k",Real2!$P133,Real2!$C133) -> 0 | AF161: =IF(Real3!$H$2="k",Real3!$P133,Real3!$C133) -> 0 | AG161: =IF(Real4!$H$2="k",Real4!$P133,Real4!$C133) -> 0 | AH161: =IF(Real5!$H$2="k",Real5!$P133,Real5!$C133) -> 0 | AI161: =Lån6!$C133 -> 0 | AJ161: =Lån7!$C133 -> 0 | AK161: =Lån8!$C133 -> 0 | AL161: =Lån9!$C133 -> 0 | AM161: =Lån10!$C133 -> 0 | AN161: 0 | AO161: 0 | AP161: =AP160+AO161 -> 0 | AQ161: 0 | AR161: =AR160+AN161 -> 0
AC162: 50 | AD162: =IF(Real1!$H$2="k",Real1!$P134,Real1!$C134) -> 0 | AE162: =IF(Real2!$H$2="k",Real2!$P134,Real2!$C134) -> 0 | AF162: =IF(Real3!$H$2="k",Real3!$P134,Real3!$C134) -> 0 | AG162: =IF(Real4!$H$2="k",Real4!$P134,Real4!$C134) -> 0 | AH162: =IF(Real5!$H$2="k",Real5!$P134,Real5!$C134) -> 0 | AI162: =Lån6!$C134 -> 0 | AJ162: =Lån7!$C134 -> 0 | AK162: =Lån8!$C134 -> 0 | AL162: =Lån9!$C134 -> 0 | AM162: =Lån10!$C134 -> 0 | AN162: 0 | AO162: 0 | AP162: =AP161+AO162 -> 0 | AQ162: 0 | AR162: =AR161+AN162 -> 0
AC163: 51 | AD163: =IF(Real1!$H$2="k",Real1!$P135,Real1!$C135) -> 0 | AE163: =IF(Real2!$H$2="k",Real2!$P135,Real2!$C135) -> 0 | AF163: =IF(Real3!$H$2="k",Real3!$P135,Real3!$C135) -> 0 | AG163: =IF(Real4!$H$2="k",Real4!$P135,Real4!$C135) -> 0 | AH163: =IF(Real5!$H$2="k",Real5!$P135,Real5!$C135) -> 0 | AI163: =Lån6!$C135 -> 0 | AJ163: =Lån7!$C135 -> 0 | AK163: =Lån8!$C135 -> 0 | AL163: =Lån9!$C135 -> 0 | AM163: =Lån10!$C135 -> 0 | AN163: 0 | AO163: 0 | AP163: 0 | AQ163: 0 | AR163: 0
AB164: 13 | AC164: 52 | AD164: =IF(Real1!$H$2="k",Real1!$P136,Real1!$C136) -> 0 | AE164: =IF(Real2!$H$2="k",Real2!$P136,Real2!$C136) -> 0 | AF164: =IF(Real3!$H$2="k",Real3!$P136,Real3!$C136) -> 0 | AG164: =IF(Real4!$H$2="k",Real4!$P136,Real4!$C136) -> 0 | AH164: =IF(Real5!$H$2="k",Real5!$P136,Real5!$C136) -> 0 | AI164: =Lån6!$C136 -> 0 | AJ164: =Lån7!$C136 -> 0 | AK164: =Lån8!$C136 -> 0 | AL164: =Lån9!$C136 -> 0 | AM164: =Lån10!$C136 -> 0 | AN164: 0 | AO164: 0 | AP164: 0 | AQ164: 0 | AR164: 0
AC165: 53 | AD165: =IF(Real1!$H$2="k",Real1!$P137,Real1!$C137) -> 0 | AE165: =IF(Real2!$H$2="k",Real2!$P137,Real2!$C137) -> 0 | AF165: =IF(Real3!$H$2="k",Real3!$P137,Real3!$C137) -> 0 | AG165: =IF(Real4!$H$2="k",Real4!$P137,Real4!$C137) -> 0 | AH165: =IF(Real5!$H$2="k",Real5!$P137,Real5!$C137) -> 0 | AI165: =Lån6!$C137 -> 0 | AJ165: =Lån7!$C137 -> 0 | AK165: =Lån8!$C137 -> 0 | AL165: =Lån9!$C137 -> 0 | AM165: =Lån10!$C137 -> 0 | AN165: 0 | AO165: 0 | AP165: 0 | AQ165: 0 | AR165: 0
AC166: 54 | AD166: =IF(Real1!$H$2="k",Real1!$P138,Real1!$C138) -> 0 | AE166: =IF(Real2!$H$2="k",Real2!$P138,Real2!$C138) -> 0 | AF166: =IF(Real3!$H$2="k",Real3!$P138,Real3!$C138) -> 0 | AG166: =IF(Real4!$H$2="k",Real4!$P138,Real4!$C138) -> 0 | AH166: =IF(Real5!$H$2="k",Real5!$P138,Real5!$C138) -> 0 | AI166: =Lån6!$C138 -> 0 | AJ166: =Lån7!$C138 -> 0 | AK166: =Lån8!$C138 -> 0 | AL166: =Lån9!$C138 -> 0 | AM166: =Lån10!$C138 -> 0 | AN166: 0 | AO166: 0 | AP166: 0 | AQ166: 0 | AR166: 0
AC167: 55 | AD167: =IF(Real1!$H$2="k",Real1!$P139,Real1!$C139) -> 0 | AE167: =IF(Real2!$H$2="k",Real2!$P139,Real2!$C139) -> 0 | AF167: =IF(Real3!$H$2="k",Real3!$P139,Real3!$C139) -> 0 | AG167: =IF(Real4!$H$2="k",Real4!$P139,Real4!$C139) -> 0 | AH167: =IF(Real5!$H$2="k",Real5!$P139,Real5!$C139) -> 0 | AI167: =Lån6!$C139 -> 0 | AJ167: =Lån7!$C139 -> 0 | AK167: =Lån8!$C139 -> 0 | AL167: =Lån9!$C139 -> 0 | AM167: =Lån10!$C139 -> 0 | AN167: 0 | AO167: 0 | AP167: 0 | AQ167: 0 | AR167: 0
AB168: 14 | AC168: 56 | AD168: =IF(Real1!$H$2="k",Real1!$P140,Real1!$C140) -> 0 | AE168: =IF(Real2!$H$2="k",Real2!$P140,Real2!$C140) -> 0 | AF168: =IF(Real3!$H$2="k",Real3!$P140,Real3!$C140) -> 0 | AG168: =IF(Real4!$H$2="k",Real4!$P140,Real4!$C140) -> 0 | AH168: =IF(Real5!$H$2="k",Real5!$P140,Real5!$C140) -> 0 | AI168: =Lån6!$C140 -> 0 | AJ168: =Lån7!$C140 -> 0 | AK168: =Lån8!$C140 -> 0 | AL168: =Lån9!$C140 -> 0 | AM168: =Lån10!$C140 -> 0 | AN168: 0 | AO168: 0 | AP168: 0 | AQ168: 0 | AR168: 0
AC169: 57 | AD169: =IF(Real1!$H$2="k",Real1!$P141,Real1!$C141) -> 0 | AE169: =IF(Real2!$H$2="k",Real2!$P141,Real2!$C141) -> 0 | AF169: =IF(Real3!$H$2="k",Real3!$P141,Real3!$C141) -> 0 | AG169: =IF(Real4!$H$2="k",Real4!$P141,Real4!$C141) -> 0 | AH169: =IF(Real5!$H$2="k",Real5!$P141,Real5!$C141) -> 0 | AI169: =Lån6!$C141 -> 0 | AJ169: =Lån7!$C141 -> 0 | AK169: =Lån8!$C141 -> 0 | AL169: =Lån9!$C141 -> 0 | AM169: =Lån10!$C141 -> 0 | AN169: 0 | AO169: 0 | AP169: 0 | AQ169: 0 | AR169: 0
AC170: 58 | AD170: =IF(Real1!$H$2="k",Real1!$P142,Real1!$C142) -> 0 | AE170: =IF(Real2!$H$2="k",Real2!$P142,Real2!$C142) -> 0 | AF170: =IF(Real3!$H$2="k",Real3!$P142,Real3!$C142) -> 0 | AG170: =IF(Real4!$H$2="k",Real4!$P142,Real4!$C142) -> 0 | AH170: =IF(Real5!$H$2="k",Real5!$P142,Real5!$C142) -> 0 | AI170: =Lån6!$C142 -> 0 | AJ170: =Lån7!$C142 -> 0 | AK170: =Lån8!$C142 -> 0 | AL170: =Lån9!$C142 -> 0 | AM170: =Lån10!$C142 -> 0 | AN170: 0 | AO170: 0 | AP170: 0 | AQ170: 0 | AR170: 0
AC171: 59 | AD171: =IF(Real1!$H$2="k",Real1!$P143,Real1!$C143) -> 0 | AE171: =IF(Real2!$H$2="k",Real2!$P143,Real2!$C143) -> 0 | AF171: =IF(Real3!$H$2="k",Real3!$P143,Real3!$C143) -> 0 | AG171: =IF(Real4!$H$2="k",Real4!$P143,Real4!$C143) -> 0 | AH171: =IF(Real5!$H$2="k",Real5!$P143,Real5!$C143) -> 0 | AI171: =Lån6!$C143 -> 0 | AJ171: =Lån7!$C143 -> 0 | AK171: =Lån8!$C143 -> 0 | AL171: =Lån9!$C143 -> 0 | AM171: =Lån10!$C143 -> 0 | AN171: 0 | AO171: 0 | AP171: 0 | AQ171: 0 | AR171: 0
AB172: 15 | AC172: 60 | AD172: =IF(Real1!$H$2="k",Real1!$P144,Real1!$C144) -> 0 | AE172: =IF(Real2!$H$2="k",Real2!$P144,Real2!$C144) -> 0 | AF172: =IF(Real3!$H$2="k",Real3!$P144,Real3!$C144) -> 0 | AG172: =IF(Real4!$H$2="k",Real4!$P144,Real4!$C144) -> 0 | AH172: =IF(Real5!$H$2="k",Real5!$P144,Real5!$C144) -> 0 | AI172: =Lån6!$C144 -> 0 | AJ172: =Lån7!$C144 -> 0 | AK172: =Lån8!$C144 -> 0 | AL172: =Lån9!$C144 -> 0 | AM172: =Lån10!$C144 -> 0 | AN172: 0 | AO172: 0 | AP172: 0 | AQ172: 0 | AR172: 0
AC173: 61 | AD173: =IF(Real1!$H$2="k",Real1!$P145,Real1!$C145) -> 0 | AE173: =IF(Real2!$H$2="k",Real2!$P145,Real2!$C145) -> 0 | AF173: =IF(Real3!$H$2="k",Real3!$P145,Real3!$C145) -> 0 | AG173: =IF(Real4!$H$2="k",Real4!$P145,Real4!$C145) -> 0 | AH173: =IF(Real5!$H$2="k",Real5!$P145,Real5!$C145) -> 0 | AI173: =Lån6!$C145 -> 0 | AJ173: =Lån7!$C145 -> 0 | AK173: =Lån8!$C145 -> 0 | AL173: =Lån9!$C145 -> 0 | AM173: =Lån10!$C145 -> 0 | AN173: 0 | AO173: 0 | AP173: 0 | AQ173: 0 | AR173: 0
AC174: 62 | AD174: =IF(Real1!$H$2="k",Real1!$P146,Real1!$C146) -> 0 | AE174: =IF(Real2!$H$2="k",Real2!$P146,Real2!$C146) -> 0 | AF174: =IF(Real3!$H$2="k",Real3!$P146,Real3!$C146) -> 0 | AG174: =IF(Real4!$H$2="k",Real4!$P146,Real4!$C146) -> 0 | AH174: =IF(Real5!$H$2="k",Real5!$P146,Real5!$C146) -> 0 | AI174: =Lån6!$C146 -> 0 | AJ174: =Lån7!$C146 -> 0 | AK174: =Lån8!$C146 -> 0 | AL174: =Lån9!$C146 -> 0 | AM174: =Lån10!$C146 -> 0 | AN174: 0 | AO174: 0 | AP174: 0 | AQ174: 0 | AR174: 0
AC175: 63 | AD175: =IF(Real1!$H$2="k",Real1!$P147,Real1!$C147) -> 0 | AE175: =IF(Real2!$H$2="k",Real2!$P147,Real2!$C147) -> 0 | AF175: =IF(Real3!$H$2="k",Real3!$P147,Real3!$C147) -> 0 | AG175: =IF(Real4!$H$2="k",Real4!$P147,Real4!$C147) -> 0 | AH175: =IF(Real5!$H$2="k",Real5!$P147,Real5!$C147) -> 0 | AI175: =Lån6!$C147 -> 0 | AJ175: =Lån7!$C147 -> 0 | AK175: =Lån8!$C147 -> 0 | AL175: =Lån9!$C147 -> 0 | AM175: =Lån10!$C147 -> 0 | AN175: 0 | AO175: 0 | AP175: 0 | AQ175: 0 | AR175: 0
AB176: 16 | AC176: 64 | AD176: =IF(Real1!$H$2="k",Real1!$P148,Real1!$C148) -> 0 | AE176: =IF(Real2!$H$2="k",Real2!$P148,Real2!$C148) -> 0 | AF176: =IF(Real3!$H$2="k",Real3!$P148,Real3!$C148) -> 0 | AG176: =IF(Real4!$H$2="k",Real4!$P148,Real4!$C148) -> 0 | AH176: =IF(Real5!$H$2="k",Real5!$P148,Real5!$C148) -> 0 | AI176: =Lån6!$C148 -> 0 | AJ176: =Lån7!$C148 -> 0 | AK176: =Lån8!$C148 -> 0 | AL176: =Lån9!$C148 -> 0 | AM176: =Lån10!$C148 -> 0 | AN176: 0 | AO176: 0 | AP176: 0 | AQ176: 0 | AR176: 0
AC177: 65 | AD177: =IF(Real1!$H$2="k",Real1!$P149,Real1!$C149) -> 0 | AE177: =IF(Real2!$H$2="k",Real2!$P149,Real2!$C149) -> 0 | AF177: =IF(Real3!$H$2="k",Real3!$P149,Real3!$C149) -> 0 | AG177: =IF(Real4!$H$2="k",Real4!$P149,Real4!$C149) -> 0 | AH177: =IF(Real5!$H$2="k",Real5!$P149,Real5!$C149) -> 0 | AI177: =Lån6!$C149 -> 0 | AJ177: =Lån7!$C149 -> 0 | AK177: =Lån8!$C149 -> 0 | AL177: =Lån9!$C149 -> 0 | AM177: =Lån10!$C149 -> 0 | AN177: 0 | AO177: =AD177+AE177+AF177+AG177+AH177 -> 0 | AP177: 0 | AQ177: 0 | AR177: 0
AC178: 66 | AD178: =IF(Real1!$H$2="k",Real1!$P150,Real1!$C150) -> 0 | AE178: =IF(Real2!$H$2="k",Real2!$P150,Real2!$C150) -> 0 | AF178: =IF(Real3!$H$2="k",Real3!$P150,Real3!$C150) -> 0 | AG178: =IF(Real4!$H$2="k",Real4!$P150,Real4!$C150) -> 0 | AH178: =IF(Real5!$H$2="k",Real5!$P150,Real5!$C150) -> 0 | AI178: =Lån6!$C150 -> 0 | AJ178: =Lån7!$C150 -> 0 | AK178: =Lån8!$C150 -> 0 | AL178: =Lån9!$C150 -> 0 | AM178: =Lån10!$C150 -> 0 | AN178: =SUM(AD178:AM178) -> 0 | AO178: 0 | AP178: 0 | AQ178: =AQ177+AI178 -> 0 | AR178: =AR177+AN178 -> 0
AC179: 67 | AD179: =IF(Real1!$H$2="k",Real1!$P151,Real1!$C151) -> 0 | AE179: =IF(Real2!$H$2="k",Real2!$P151,Real2!$C151) -> 0 | AF179: =IF(Real3!$H$2="k",Real3!$P151,Real3!$C151) -> 0 | AG179: =IF(Real4!$H$2="k",Real4!$P151,Real4!$C151) -> 0 | AH179: =IF(Real5!$H$2="k",Real5!$P151,Real5!$C151) -> 0 | AI179: =Lån6!$C151 -> 0 | AJ179: =Lån7!$C151 -> 0 | AK179: =Lån8!$C151 -> 0 | AL179: =Lån9!$C151 -> 0 | AM179: =Lån10!$C151 -> 0 | AN179: 0 | AO179: 0 | AP179: 0 | AQ179: 0 | AR179: 0
AB180: 17 | AC180: 68 | AD180: =IF(Real1!$H$2="k",Real1!$P152,Real1!$C152) -> 0 | AE180: =IF(Real2!$H$2="k",Real2!$P152,Real2!$C152) -> 0 | AF180: =IF(Real3!$H$2="k",Real3!$P152,Real3!$C152) -> 0 | AG180: =IF(Real4!$H$2="k",Real4!$P152,Real4!$C152) -> 0 | AH180: =IF(Real5!$H$2="k",Real5!$P152,Real5!$C152) -> 0 | AI180: =Lån6!$C152 -> 0 | AJ180: =Lån7!$C152 -> 0 | AK180: =Lån8!$C152 -> 0 | AL180: =Lån9!$C152 -> 0 | AM180: =Lån10!$C152 -> 0 | AN180: 0 | AO180: 0 | AP180: 0 | AQ180: 0 | AR180: 0
AC181: 69 | AD181: =IF(Real1!$H$2="k",Real1!$P153,Real1!$C153) -> 0 | AE181: =IF(Real2!$H$2="k",Real2!$P153,Real2!$C153) -> 0 | AF181: =IF(Real3!$H$2="k",Real3!$P153,Real3!$C153) -> 0 | AG181: =IF(Real4!$H$2="k",Real4!$P153,Real4!$C153) -> 0 | AH181: =IF(Real5!$H$2="k",Real5!$P153,Real5!$C153) -> 0 | AI181: =Lån6!$C153 -> 0 | AJ181: =Lån7!$C153 -> 0 | AK181: =Lån8!$C153 -> 0 | AL181: =Lån9!$C153 -> 0 | AM181: =Lån10!$C153 -> 0 | AN181: 0 | AO181: 0 | AP181: 0 | AQ181: 0 | AR181: 0
AC182: 70 | AD182: =IF(Real1!$H$2="k",Real1!$P154,Real1!$C154) -> 0 | AE182: =IF(Real2!$H$2="k",Real2!$P154,Real2!$C154) -> 0 | AF182: =IF(Real3!$H$2="k",Real3!$P154,Real3!$C154) -> 0 | AG182: =IF(Real4!$H$2="k",Real4!$P154,Real4!$C154) -> 0 | AH182: =IF(Real5!$H$2="k",Real5!$P154,Real5!$C154) -> 0 | AI182: =Lån6!$C154 -> 0 | AJ182: =Lån7!$C154 -> 0 | AK182: =Lån8!$C154 -> 0 | AL182: =Lån9!$C154 -> 0 | AM182: =Lån10!$C154 -> 0 | AN182: 0 | AO182: 0 | AP182: 0 | AQ182: 0 | AR182: 0
AC183: 71 | AD183: =IF(Real1!$H$2="k",Real1!$P155,Real1!$C155) -> 0 | AE183: =IF(Real2!$H$2="k",Real2!$P155,Real2!$C155) -> 0 | AF183: =IF(Real3!$H$2="k",Real3!$P155,Real3!$C155) -> 0 | AG183: =IF(Real4!$H$2="k",Real4!$P155,Real4!$C155) -> 0 | AH183: =IF(Real5!$H$2="k",Real5!$P155,Real5!$C155) -> 0 | AI183: =Lån6!$C155 -> 0 | AJ183: =Lån7!$C155 -> 0 | AK183: =Lån8!$C155 -> 0 | AL183: =Lån9!$C155 -> 0 | AM183: =Lån10!$C155 -> 0 | AN183: 0 | AO183: 0 | AP183: 0 | AQ183: 0 | AR183: 0
AB184: 18 | AC184: 72 | AD184: =IF(Real1!$H$2="k",Real1!$P156,Real1!$C156) -> 0 | AE184: =IF(Real2!$H$2="k",Real2!$P156,Real2!$C156) -> 0 | AF184: =IF(Real3!$H$2="k",Real3!$P156,Real3!$C156) -> 0 | AG184: =IF(Real4!$H$2="k",Real4!$P156,Real4!$C156) -> 0 | AH184: =IF(Real5!$H$2="k",Real5!$P156,Real5!$C156) -> 0 | AI184: =Lån6!$C156 -> 0 | AJ184: =Lån7!$C156 -> 0 | AK184: =Lån8!$C156 -> 0 | AL184: =Lån9!$C156 -> 0 | AM184: =Lån10!$C156 -> 0 | AN184: 0 | AO184: 0 | AP184: 0 | AQ184: 0 | AR184: 0
AC185: 73 | AD185: =IF(Real1!$H$2="k",Real1!$P157,Real1!$C157) -> 0 | AE185: =IF(Real2!$H$2="k",Real2!$P157,Real2!$C157) -> 0 | AF185: =IF(Real3!$H$2="k",Real3!$P157,Real3!$C157) -> 0 | AG185: =IF(Real4!$H$2="k",Real4!$P157,Real4!$C157) -> 0 | AH185: =IF(Real5!$H$2="k",Real5!$P157,Real5!$C157) -> 0 | AI185: =Lån6!$C157 -> 0 | AJ185: =Lån7!$C157 -> 0 | AK185: =Lån8!$C157 -> 0 | AL185: =Lån9!$C157 -> 0 | AM185: =Lån10!$C157 -> 0 | AN185: 0 | AO185: 0 | AP185: 0 | AQ185: 0 | AR185: 0
AC186: 74 | AD186: =IF(Real1!$H$2="k",Real1!$P158,Real1!$C158) -> 0 | AE186: =IF(Real2!$H$2="k",Real2!$P158,Real2!$C158) -> 0 | AF186: =IF(Real3!$H$2="k",Real3!$P158,Real3!$C158) -> 0 | AG186: =IF(Real4!$H$2="k",Real4!$P158,Real4!$C158) -> 0 | AH186: =IF(Real5!$H$2="k",Real5!$P158,Real5!$C158) -> 0 | AI186: =Lån6!$C158 -> 0 | AJ186: =Lån7!$C158 -> 0 | AK186: =Lån8!$C158 -> 0 | AL186: =Lån9!$C158 -> 0 | AM186: =Lån10!$C158 -> 0 | AN186: 0 | AO186: 0 | AP186: 0 | AQ186: 0 | AR186: 0
AC187: 75 | AD187: =IF(Real1!$H$2="k",Real1!$P159,Real1!$C159) -> 0 | AE187: =IF(Real2!$H$2="k",Real2!$P159,Real2!$C159) -> 0 | AF187: =IF(Real3!$H$2="k",Real3!$P159,Real3!$C159) -> 0 | AG187: =IF(Real4!$H$2="k",Real4!$P159,Real4!$C159) -> 0 | AH187: =IF(Real5!$H$2="k",Real5!$P159,Real5!$C159) -> 0 | AI187: =Lån6!$C159 -> 0 | AJ187: =Lån7!$C159 -> 0 | AK187: =Lån8!$C159 -> 0 | AL187: =Lån9!$C159 -> 0 | AM187: =Lån10!$C159 -> 0 | AN187: 0 | AO187: 0 | AP187: 0 | AQ187: 0 | AR187: 0
AB188: 19 | AC188: 76 | AD188: =IF(Real1!$H$2="k",Real1!$P160,Real1!$C160) -> 0 | AE188: =IF(Real2!$H$2="k",Real2!$P160,Real2!$C160) -> 0 | AF188: =IF(Real3!$H$2="k",Real3!$P160,Real3!$C160) -> 0 | AG188: =IF(Real4!$H$2="k",Real4!$P160,Real4!$C160) -> 0 | AH188: =IF(Real5!$H$2="k",Real5!$P160,Real5!$C160) -> 0 | AI188: =Lån6!$C160 -> 0 | AJ188: =Lån7!$C160 -> 0 | AK188: =Lån8!$C160 -> 0 | AL188: =Lån9!$C160 -> 0 | AM188: =Lån10!$C160 -> 0 | AN188: 0 | AO188: 0 | AP188: 0 | AQ188: 0 | AR188: 0
AC189: 77 | AD189: =IF(Real1!$H$2="k",Real1!$P161,Real1!$C161) -> 0 | AE189: =IF(Real2!$H$2="k",Real2!$P161,Real2!$C161) -> 0 | AF189: =IF(Real3!$H$2="k",Real3!$P161,Real3!$C161) -> 0 | AG189: =IF(Real4!$H$2="k",Real4!$P161,Real4!$C161) -> 0 | AH189: =IF(Real5!$H$2="k",Real5!$P161,Real5!$C161) -> 0 | AI189: =Lån6!$C161 -> 0 | AJ189: =Lån7!$C161 -> 0 | AK189: =Lån8!$C161 -> 0 | AL189: =Lån9!$C161 -> 0 | AM189: =Lån10!$C161 -> 0 | AN189: 0 | AO189: 0 | AP189: 0 | AQ189: 0 | AR189: 0
AC190: 78 | AD190: =IF(Real1!$H$2="k",Real1!$P162,Real1!$C162) -> 0 | AE190: =IF(Real2!$H$2="k",Real2!$P162,Real2!$C162) -> 0 | AF190: =IF(Real3!$H$2="k",Real3!$P162,Real3!$C162) -> 0 | AG190: =IF(Real4!$H$2="k",Real4!$P162,Real4!$C162) -> 0 | AH190: =IF(Real5!$H$2="k",Real5!$P162,Real5!$C162) -> 0 | AI190: =Lån6!$C162 -> 0 | AJ190: =Lån7!$C162 -> 0 | AK190: =Lån8!$C162 -> 0 | AL190: =Lån9!$C162 -> 0 | AM190: =Lån10!$C162 -> 0 | AN190: 0 | AO190: 0 | AP190: 0 | AQ190: 0 | AR190: 0
AC191: 79 | AD191: =IF(Real1!$H$2="k",Real1!$P163,Real1!$C163) -> 0 | AE191: =IF(Real2!$H$2="k",Real2!$P163,Real2!$C163) -> 0 | AF191: =IF(Real3!$H$2="k",Real3!$P163,Real3!$C163) -> 0 | AG191: =IF(Real4!$H$2="k",Real4!$P163,Real4!$C163) -> 0 | AH191: =IF(Real5!$H$2="k",Real5!$P163,Real5!$C163) -> 0 | AI191: =Lån6!$C163 -> 0 | AJ191: =Lån7!$C163 -> 0 | AK191: =Lån8!$C163 -> 0 | AL191: =Lån9!$C163 -> 0 | AM191: =Lån10!$C163 -> 0 | AN191: 0 | AO191: 0 | AP191: 0 | AQ191: 0 | AR191: 0
AB192: 20 | AC192: 80 | AD192: =IF(Real1!$H$2="k",Real1!$P164,Real1!$C164) -> 0 | AE192: =IF(Real2!$H$2="k",Real2!$P164,Real2!$C164) -> 0 | AF192: =IF(Real3!$H$2="k",Real3!$P164,Real3!$C164) -> 0 | AG192: =IF(Real4!$H$2="k",Real4!$P164,Real4!$C164) -> 0 | AH192: =IF(Real5!$H$2="k",Real5!$P164,Real5!$C164) -> 0 | AI192: =Lån6!$C164 -> 0 | AJ192: =Lån7!$C164 -> 0 | AK192: =Lån8!$C164 -> 0 | AL192: =Lån9!$C164 -> 0 | AM192: =Lån10!$C164 -> 0 | AN192: 0 | AO192: 0 | AP192: 0 | AQ192: 0 | AR192: 0
AC193: 81 | AD193: =IF(Real1!$H$2="k",Real1!$P165,Real1!$C165) -> 0 | AE193: =IF(Real2!$H$2="k",Real2!$P165,Real2!$C165) -> 0 | AF193: =IF(Real3!$H$2="k",Real3!$P165,Real3!$C165) -> 0 | AG193: =IF(Real4!$H$2="k",Real4!$P165,Real4!$C165) -> 0 | AH193: =IF(Real5!$H$2="k",Real5!$P165,Real5!$C165) -> 0 | AI193: =Lån6!$C165 -> 0 | AJ193: =Lån7!$C165 -> 0 | AK193: =Lån8!$C165 -> 0 | AL193: =Lån9!$C165 -> 0 | AM193: =Lån10!$C165 -> 0 | AN193: 0 | AO193: 0 | AP193: 0 | AQ193: 0 | AR193: 0
AC194: 82 | AD194: =IF(Real1!$H$2="k",Real1!$P166,Real1!$C166) -> 0 | AE194: =IF(Real2!$H$2="k",Real2!$P166,Real2!$C166) -> 0 | AF194: =IF(Real3!$H$2="k",Real3!$P166,Real3!$C166) -> 0 | AG194: =IF(Real4!$H$2="k",Real4!$P166,Real4!$C166) -> 0 | AH194: =IF(Real5!$H$2="k",Real5!$P166,Real5!$C166) -> 0 | AI194: =Lån6!$C166 -> 0 | AJ194: =Lån7!$C166 -> 0 | AK194: =Lån8!$C166 -> 0 | AL194: =Lån9!$C166 -> 0 | AM194: =Lån10!$C166 -> 0 | AN194: 0 | AO194: 0 | AP194: =AP193+AO194 -> 0 | AQ194: 0 | AR194: 0
AC195: 83 | AD195: =IF(Real1!$H$2="k",Real1!$P167,Real1!$C167) -> 0 | AE195: =IF(Real2!$H$2="k",Real2!$P167,Real2!$C167) -> 0 | AF195: =IF(Real3!$H$2="k",Real3!$P167,Real3!$C167) -> 0 | AG195: =IF(Real4!$H$2="k",Real4!$P167,Real4!$C167) -> 0 | AH195: =IF(Real5!$H$2="k",Real5!$P167,Real5!$C167) -> 0 | AI195: =Lån6!$C167 -> 0 | AJ195: =Lån7!$C167 -> 0 | AK195: =Lån8!$C167 -> 0 | AL195: =Lån9!$C167 -> 0 | AM195: =Lån10!$C167 -> 0 | AN195: 0 | AO195: 0 | AP195: 0 | AQ195: 0 | AR195: 0
AB196: 21 | AC196: 84 | AD196: =IF(Real1!$H$2="k",Real1!$P168,Real1!$C168) -> 0 | AE196: =IF(Real2!$H$2="k",Real2!$P168,Real2!$C168) -> 0 | AF196: =IF(Real3!$H$2="k",Real3!$P168,Real3!$C168) -> 0 | AG196: =IF(Real4!$H$2="k",Real4!$P168,Real4!$C168) -> 0 | AH196: =IF(Real5!$H$2="k",Real5!$P168,Real5!$C168) -> 0 | AI196: =Lån6!$C168 -> 0 | AJ196: =Lån7!$C168 -> 0 | AK196: =Lån8!$C168 -> 0 | AL196: =Lån9!$C168 -> 0 | AM196: =Lån10!$C168 -> 0 | AN196: 0 | AO196: 0 | AP196: 0 | AQ196: 0 | AR196: 0
AC197: 85 | AD197: =IF(Real1!$H$2="k",Real1!$P169,Real1!$C169) -> 0 | AE197: =IF(Real2!$H$2="k",Real2!$P169,Real2!$C169) -> 0 | AF197: =IF(Real3!$H$2="k",Real3!$P169,Real3!$C169) -> 0 | AG197: =IF(Real4!$H$2="k",Real4!$P169,Real4!$C169) -> 0 | AH197: =IF(Real5!$H$2="k",Real5!$P169,Real5!$C169) -> 0 | AI197: =Lån6!$C169 -> 0 | AJ197: =Lån7!$C169 -> 0 | AK197: =Lån8!$C169 -> 0 | AL197: =Lån9!$C169 -> 0 | AM197: =Lån10!$C169 -> 0 | AN197: 0 | AO197: 0 | AP197: 0 | AQ197: 0 | AR197: 0
AC198: 86 | AD198: =IF(Real1!$H$2="k",Real1!$P170,Real1!$C170) -> 0 | AE198: =IF(Real2!$H$2="k",Real2!$P170,Real2!$C170) -> 0 | AF198: =IF(Real3!$H$2="k",Real3!$P170,Real3!$C170) -> 0 | AG198: =IF(Real4!$H$2="k",Real4!$P170,Real4!$C170) -> 0 | AH198: =IF(Real5!$H$2="k",Real5!$P170,Real5!$C170) -> 0 | AI198: =Lån6!$C170 -> 0 | AJ198: =Lån7!$C170 -> 0 | AK198: =Lån8!$C170 -> 0 | AL198: =Lån9!$C170 -> 0 | AM198: =Lån10!$C170 -> 0 | AN198: 0 | AO198: 0 | AP198: 0 | AQ198: 0 | AR198: 0
AC199: 87 | AD199: =IF(Real1!$H$2="k",Real1!$P171,Real1!$C171) -> 0 | AE199: =IF(Real2!$H$2="k",Real2!$P171,Real2!$C171) -> 0 | AF199: =IF(Real3!$H$2="k",Real3!$P171,Real3!$C171) -> 0 | AG199: =IF(Real4!$H$2="k",Real4!$P171,Real4!$C171) -> 0 | AH199: =IF(Real5!$H$2="k",Real5!$P171,Real5!$C171) -> 0 | AI199: =Lån6!$C171 -> 0 | AJ199: =Lån7!$C171 -> 0 | AK199: =Lån8!$C171 -> 0 | AL199: =Lån9!$C171 -> 0 | AM199: =Lån10!$C171 -> 0 | AN199: 0 | AO199: 0 | AP199: 0 | AQ199: 0 | AR199: 0
AB200: 22 | AC200: 88 | AD200: =IF(Real1!$H$2="k",Real1!$P172,Real1!$C172) -> 0 | AE200: =IF(Real2!$H$2="k",Real2!$P172,Real2!$C172) -> 0 | AF200: =IF(Real3!$H$2="k",Real3!$P172,Real3!$C172) -> 0 | AG200: =IF(Real4!$H$2="k",Real4!$P172,Real4!$C172) -> 0 | AH200: =IF(Real5!$H$2="k",Real5!$P172,Real5!$C172) -> 0 | AI200: =Lån6!$C172 -> 0 | AJ200: =Lån7!$C172 -> 0 | AK200: =Lån8!$C172 -> 0 | AL200: =Lån9!$C172 -> 0 | AM200: =Lån10!$C172 -> 0 | AN200: 0 | AO200: 0 | AP200: 0 | AQ200: 0 | AR200: 0
AC201: 89 | AD201: =IF(Real1!$H$2="k",Real1!$P173,Real1!$C173) -> 0 | AE201: =IF(Real2!$H$2="k",Real2!$P173,Real2!$C173) -> 0 | AF201: =IF(Real3!$H$2="k",Real3!$P173,Real3!$C173) -> 0 | AG201: =IF(Real4!$H$2="k",Real4!$P173,Real4!$C173) -> 0 | AH201: =IF(Real5!$H$2="k",Real5!$P173,Real5!$C173) -> 0 | AI201: =Lån6!$C173 -> 0 | AJ201: =Lån7!$C173 -> 0 | AK201: =Lån8!$C173 -> 0 | AL201: =Lån9!$C173 -> 0 | AM201: =Lån10!$C173 -> 0 | AN201: 0 | AO201: 0 | AP201: 0 | AQ201: 0 | AR201: 0
AC202: 90 | AD202: =IF(Real1!$H$2="k",Real1!$P174,Real1!$C174) -> 0 | AE202: =IF(Real2!$H$2="k",Real2!$P174,Real2!$C174) -> 0 | AF202: =IF(Real3!$H$2="k",Real3!$P174,Real3!$C174) -> 0 | AG202: =IF(Real4!$H$2="k",Real4!$P174,Real4!$C174) -> 0 | AH202: =IF(Real5!$H$2="k",Real5!$P174,Real5!$C174) -> 0 | AI202: =Lån6!$C174 -> 0 | AJ202: =Lån7!$C174 -> 0 | AK202: =Lån8!$C174 -> 0 | AL202: =Lån9!$C174 -> 0 | AM202: =Lån10!$C174 -> 0 | AN202: 0 | AO202: 0 | AP202: 0 | AQ202: 0 | AR202: 0
AC203: 91 | AD203: =IF(Real1!$H$2="k",Real1!$P175,Real1!$C175) -> 0 | AE203: =IF(Real2!$H$2="k",Real2!$P175,Real2!$C175) -> 0 | AF203: =IF(Real3!$H$2="k",Real3!$P175,Real3!$C175) -> 0 | AG203: =IF(Real4!$H$2="k",Real4!$P175,Real4!$C175) -> 0 | AH203: =IF(Real5!$H$2="k",Real5!$P175,Real5!$C175) -> 0 | AI203: =Lån6!$C175 -> 0 | AJ203: =Lån7!$C175 -> 0 | AK203: =Lån8!$C175 -> 0 | AL203: =Lån9!$C175 -> 0 | AM203: =Lån10!$C175 -> 0 | AN203: 0 | AO203: 0 | AP203: 0 | AQ203: 0 | AR203: 0
AB204: 23 | AC204: 92 | AD204: =IF(Real1!$H$2="k",Real1!$P176,Real1!$C176) -> 0 | AE204: =IF(Real2!$H$2="k",Real2!$P176,Real2!$C176) -> 0 | AF204: =IF(Real3!$H$2="k",Real3!$P176,Real3!$C176) -> 0 | AG204: =IF(Real4!$H$2="k",Real4!$P176,Real4!$C176) -> 0 | AH204: =IF(Real5!$H$2="k",Real5!$P176,Real5!$C176) -> 0 | AI204: =Lån6!$C176 -> 0 | AJ204: =Lån7!$C176 -> 0 | AK204: =Lån8!$C176 -> 0 | AL204: =Lån9!$C176 -> 0 | AM204: =Lån10!$C176 -> 0 | AN204: 0 | AO204: 0 | AP204: 0 | AQ204: 0 | AR204: 0
AC205: 93 | AD205: =IF(Real1!$H$2="k",Real1!$P177,Real1!$C177) -> 0 | AE205: =IF(Real2!$H$2="k",Real2!$P177,Real2!$C177) -> 0 | AF205: =IF(Real3!$H$2="k",Real3!$P177,Real3!$C177) -> 0 | AG205: =IF(Real4!$H$2="k",Real4!$P177,Real4!$C177) -> 0 | AH205: =IF(Real5!$H$2="k",Real5!$P177,Real5!$C177) -> 0 | AI205: =Lån6!$C177 -> 0 | AJ205: =Lån7!$C177 -> 0 | AK205: =Lån8!$C177 -> 0 | AL205: =Lån9!$C177 -> 0 | AM205: =Lån10!$C177 -> 0 | AN205: 0 | AO205: 0 | AP205: 0 | AQ205: 0 | AR205: 0
AC206: 94 | AD206: =IF(Real1!$H$2="k",Real1!$P178,Real1!$C178) -> 0 | AE206: =IF(Real2!$H$2="k",Real2!$P178,Real2!$C178) -> 0 | AF206: =IF(Real3!$H$2="k",Real3!$P178,Real3!$C178) -> 0 | AG206: =IF(Real4!$H$2="k",Real4!$P178,Real4!$C178) -> 0 | AH206: =IF(Real5!$H$2="k",Real5!$P178,Real5!$C178) -> 0 | AI206: =Lån6!$C178 -> 0 | AJ206: =Lån7!$C178 -> 0 | AK206: =Lån8!$C178 -> 0 | AL206: =Lån9!$C178 -> 0 | AM206: =Lån10!$C178 -> 0 | AN206: 0 | AO206: 0 | AP206: 0 | AQ206: 0 | AR206: 0
AC207: 95 | AD207: =IF(Real1!$H$2="k",Real1!$P179,Real1!$C179) -> 0 | AE207: =IF(Real2!$H$2="k",Real2!$P179,Real2!$C179) -> 0 | AF207: =IF(Real3!$H$2="k",Real3!$P179,Real3!$C179) -> 0 | AG207: =IF(Real4!$H$2="k",Real4!$P179,Real4!$C179) -> 0 | AH207: =IF(Real5!$H$2="k",Real5!$P179,Real5!$C179) -> 0 | AI207: =Lån6!$C179 -> 0 | AJ207: =Lån7!$C179 -> 0 | AK207: =Lån8!$C179 -> 0 | AL207: =Lån9!$C179 -> 0 | AM207: =Lån10!$C179 -> 0 | AN207: 0 | AO207: 0 | AP207: 0 | AQ207: 0 | AR207: 0
AB208: 24 | AC208: 96 | AD208: =IF(Real1!$H$2="k",Real1!$P180,Real1!$C180) -> 0 | AE208: =IF(Real2!$H$2="k",Real2!$P180,Real2!$C180) -> 0 | AF208: =IF(Real3!$H$2="k",Real3!$P180,Real3!$C180) -> 0 | AG208: =IF(Real4!$H$2="k",Real4!$P180,Real4!$C180) -> 0 | AH208: =IF(Real5!$H$2="k",Real5!$P180,Real5!$C180) -> 0 | AI208: =Lån6!$C180 -> 0 | AJ208: =Lån7!$C180 -> 0 | AK208: =Lån8!$C180 -> 0 | AL208: =Lån9!$C180 -> 0 | AM208: =Lån10!$C180 -> 0 | AN208: 0 | AO208: 0 | AP208: 0 | AQ208: 0 | AR208: 0
AC209: 97 | AD209: =IF(Real1!$H$2="k",Real1!$P181,Real1!$C181) -> 0 | AE209: =IF(Real2!$H$2="k",Real2!$P181,Real2!$C181) -> 0 | AF209: =IF(Real3!$H$2="k",Real3!$P181,Real3!$C181) -> 0 | AG209: =IF(Real4!$H$2="k",Real4!$P181,Real4!$C181) -> 0 | AH209: =IF(Real5!$H$2="k",Real5!$P181,Real5!$C181) -> 0 | AI209: =Lån6!$C181 -> 0 | AJ209: =Lån7!$C181 -> 0 | AK209: =Lån8!$C181 -> 0 | AL209: =Lån9!$C181 -> 0 | AM209: =Lån10!$C181 -> 0 | AN209: 0 | AO209: =AD209+AE209+AF209+AG209+AH209 -> 0 | AP209: 0 | AQ209: 0 | AR209: 0
AC210: 98 | AD210: =IF(Real1!$H$2="k",Real1!$P182,Real1!$C182) -> 0 | AE210: =IF(Real2!$H$2="k",Real2!$P182,Real2!$C182) -> 0 | AF210: =IF(Real3!$H$2="k",Real3!$P182,Real3!$C182) -> 0 | AG210: =IF(Real4!$H$2="k",Real4!$P182,Real4!$C182) -> 0 | AH210: =IF(Real5!$H$2="k",Real5!$P182,Real5!$C182) -> 0 | AI210: =Lån6!$C182 -> 0 | AJ210: =Lån7!$C182 -> 0 | AK210: =Lån8!$C182 -> 0 | AL210: =Lån9!$C182 -> 0 | AM210: =Lån10!$C182 -> 0 | AN210: 0 | AO210: 0 | AP210: 0 | AQ210: =AQ209+AI210 -> 0 | AR210: 0
AC211: 99 | AD211: =IF(Real1!$H$2="k",Real1!$P183,Real1!$C183) -> 0 | AE211: =IF(Real2!$H$2="k",Real2!$P183,Real2!$C183) -> 0 | AF211: =IF(Real3!$H$2="k",Real3!$P183,Real3!$C183) -> 0 | AG211: =IF(Real4!$H$2="k",Real4!$P183,Real4!$C183) -> 0 | AH211: =IF(Real5!$H$2="k",Real5!$P183,Real5!$C183) -> 0 | AI211: =Lån6!$C183 -> 0 | AJ211: =Lån7!$C183 -> 0 | AK211: =Lån8!$C183 -> 0 | AL211: =Lån9!$C183 -> 0 | AM211: =Lån10!$C183 -> 0 | AN211: 0 | AO211: 0 | AP211: 0 | AQ211: 0 | AR211: 0
AB212: 25 | AC212: 100 | AD212: =IF(Real1!$H$2="k",Real1!$P184,Real1!$C184) -> 0 | AE212: =IF(Real2!$H$2="k",Real2!$P184,Real2!$C184) -> 0 | AF212: =IF(Real3!$H$2="k",Real3!$P184,Real3!$C184) -> 0 | AG212: =IF(Real4!$H$2="k",Real4!$P184,Real4!$C184) -> 0 | AH212: =IF(Real5!$H$2="k",Real5!$P184,Real5!$C184) -> 0 | AI212: =Lån6!$C184 -> 0 | AJ212: =Lån7!$C184 -> 0 | AK212: =Lån8!$C184 -> 0 | AL212: =Lån9!$C184 -> 0 | AM212: =Lån10!$C184 -> 0 | AN212: 0 | AO212: 0 | AP212: =AP211+AO212 -> 0 | AQ212: 0 | AR212: 0
AC213: 101 | AD213: =IF(Real1!$H$2="k",Real1!$P185,Real1!$C185) -> 0 | AE213: =IF(Real2!$H$2="k",Real2!$P185,Real2!$C185) -> 0 | AF213: =IF(Real3!$H$2="k",Real3!$P185,Real3!$C185) -> 0 | AG213: =IF(Real4!$H$2="k",Real4!$P185,Real4!$C185) -> 0 | AH213: =IF(Real5!$H$2="k",Real5!$P185,Real5!$C185) -> 0 | AI213: =Lån6!$C185 -> 0 | AJ213: =Lån7!$C185 -> 0 | AK213: =Lån8!$C185 -> 0 | AL213: =Lån9!$C185 -> 0 | AM213: =Lån10!$C185 -> 0 | AN213: 0 | AO213: 0 | AP213: 0 | AQ213: 0 | AR213: 0
AC214: 102 | AD214: =IF(Real1!$H$2="k",Real1!$P186,Real1!$C186) -> 0 | AE214: =IF(Real2!$H$2="k",Real2!$P186,Real2!$C186) -> 0 | AF214: =IF(Real3!$H$2="k",Real3!$P186,Real3!$C186) -> 0 | AG214: =IF(Real4!$H$2="k",Real4!$P186,Real4!$C186) -> 0 | AH214: =IF(Real5!$H$2="k",Real5!$P186,Real5!$C186) -> 0 | AI214: =Lån6!$C186 -> 0 | AJ214: =Lån7!$C186 -> 0 | AK214: =Lån8!$C186 -> 0 | AL214: =Lån9!$C186 -> 0 | AM214: =Lån10!$C186 -> 0 | AN214: 0 | AO214: 0 | AP214: 0 | AQ214: 0 | AR214: 0
AC215: 103 | AD215: =IF(Real1!$H$2="k",Real1!$P187,Real1!$C187) -> 0 | AE215: =IF(Real2!$H$2="k",Real2!$P187,Real2!$C187) -> 0 | AF215: =IF(Real3!$H$2="k",Real3!$P187,Real3!$C187) -> 0 | AG215: =IF(Real4!$H$2="k",Real4!$P187,Real4!$C187) -> 0 | AH215: =IF(Real5!$H$2="k",Real5!$P187,Real5!$C187) -> 0 | AI215: =Lån6!$C187 -> 0 | AJ215: =Lån7!$C187 -> 0 | AK215: =Lån8!$C187 -> 0 | AL215: =Lån9!$C187 -> 0 | AM215: =Lån10!$C187 -> 0 | AN215: 0 | AO215: 0 | AP215: 0 | AQ215: 0 | AR215: 0
AB216: 26 | AC216: 104 | AD216: =IF(Real1!$H$2="k",Real1!$P188,Real1!$C188) -> 0 | AE216: =IF(Real2!$H$2="k",Real2!$P188,Real2!$C188) -> 0 | AF216: =IF(Real3!$H$2="k",Real3!$P188,Real3!$C188) -> 0 | AG216: =IF(Real4!$H$2="k",Real4!$P188,Real4!$C188) -> 0 | AH216: =IF(Real5!$H$2="k",Real5!$P188,Real5!$C188) -> 0 | AI216: =Lån6!$C188 -> 0 | AJ216: =Lån7!$C188 -> 0 | AK216: =Lån8!$C188 -> 0 | AL216: =Lån9!$C188 -> 0 | AM216: =Lån10!$C188 -> 0 | AN216: 0 | AO216: 0 | AP216: 0 | AQ216: 0 | AR216: 0
AC217: 105 | AD217: =IF(Real1!$H$2="k",Real1!$P189,Real1!$C189) -> 0 | AE217: =IF(Real2!$H$2="k",Real2!$P189,Real2!$C189) -> 0 | AF217: =IF(Real3!$H$2="k",Real3!$P189,Real3!$C189) -> 0 | AG217: =IF(Real4!$H$2="k",Real4!$P189,Real4!$C189) -> 0 | AH217: =IF(Real5!$H$2="k",Real5!$P189,Real5!$C189) -> 0 | AI217: =Lån6!$C189 -> 0 | AJ217: =Lån7!$C189 -> 0 | AK217: =Lån8!$C189 -> 0 | AL217: =Lån9!$C189 -> 0 | AM217: =Lån10!$C189 -> 0 | AN217: 0 | AO217: 0 | AP217: 0 | AQ217: 0 | AR217: 0
AC218: 106 | AD218: =IF(Real1!$H$2="k",Real1!$P190,Real1!$C190) -> 0 | AE218: =IF(Real2!$H$2="k",Real2!$P190,Real2!$C190) -> 0 | AF218: =IF(Real3!$H$2="k",Real3!$P190,Real3!$C190) -> 0 | AG218: =IF(Real4!$H$2="k",Real4!$P190,Real4!$C190) -> 0 | AH218: =IF(Real5!$H$2="k",Real5!$P190,Real5!$C190) -> 0 | AI218: =Lån6!$C190 -> 0 | AJ218: =Lån7!$C190 -> 0 | AK218: =Lån8!$C190 -> 0 | AL218: =Lån9!$C190 -> 0 | AM218: =Lån10!$C190 -> 0 | AN218: 0 | AO218: 0 | AP218: 0 | AQ218: 0 | AR218: 0
AC219: 107 | AD219: =IF(Real1!$H$2="k",Real1!$P191,Real1!$C191) -> 0 | AE219: =IF(Real2!$H$2="k",Real2!$P191,Real2!$C191) -> 0 | AF219: =IF(Real3!$H$2="k",Real3!$P191,Real3!$C191) -> 0 | AG219: =IF(Real4!$H$2="k",Real4!$P191,Real4!$C191) -> 0 | AH219: =IF(Real5!$H$2="k",Real5!$P191,Real5!$C191) -> 0 | AI219: =Lån6!$C191 -> 0 | AJ219: =Lån7!$C191 -> 0 | AK219: =Lån8!$C191 -> 0 | AL219: =Lån9!$C191 -> 0 | AM219: =Lån10!$C191 -> 0 | AN219: 0 | AO219: 0 | AP219: 0 | AQ219: 0 | AR219: 0
AB220: 27 | AC220: 108 | AD220: =IF(Real1!$H$2="k",Real1!$P192,Real1!$C192) -> 0 | AE220: =IF(Real2!$H$2="k",Real2!$P192,Real2!$C192) -> 0 | AF220: =IF(Real3!$H$2="k",Real3!$P192,Real3!$C192) -> 0 | AG220: =IF(Real4!$H$2="k",Real4!$P192,Real4!$C192) -> 0 | AH220: =IF(Real5!$H$2="k",Real5!$P192,Real5!$C192) -> 0 | AI220: =Lån6!$C192 -> 0 | AJ220: =Lån7!$C192 -> 0 | AK220: =Lån8!$C192 -> 0 | AL220: =Lån9!$C192 -> 0 | AM220: =Lån10!$C192 -> 0 | AN220: 0 | AO220: 0 | AP220: 0 | AQ220: 0 | AR220: 0
AC221: 109 | AD221: =IF(Real1!$H$2="k",Real1!$P193,Real1!$C193) -> 0 | AE221: =IF(Real2!$H$2="k",Real2!$P193,Real2!$C193) -> 0 | AF221: =IF(Real3!$H$2="k",Real3!$P193,Real3!$C193) -> 0 | AG221: =IF(Real4!$H$2="k",Real4!$P193,Real4!$C193) -> 0 | AH221: =IF(Real5!$H$2="k",Real5!$P193,Real5!$C193) -> 0 | AI221: =Lån6!$C193 -> 0 | AJ221: =Lån7!$C193 -> 0 | AK221: =Lån8!$C193 -> 0 | AL221: =Lån9!$C193 -> 0 | AM221: =Lån10!$C193 -> 0 | AN221: 0 | AO221: 0 | AP221: 0 | AQ221: 0 | AR221: 0
AC222: 110 | AD222: =IF(Real1!$H$2="k",Real1!$P194,Real1!$C194) -> 0 | AE222: =IF(Real2!$H$2="k",Real2!$P194,Real2!$C194) -> 0 | AF222: =IF(Real3!$H$2="k",Real3!$P194,Real3!$C194) -> 0 | AG222: =IF(Real4!$H$2="k",Real4!$P194,Real4!$C194) -> 0 | AH222: =IF(Real5!$H$2="k",Real5!$P194,Real5!$C194) -> 0 | AI222: =Lån6!$C194 -> 0 | AJ222: =Lån7!$C194 -> 0 | AK222: =Lån8!$C194 -> 0 | AL222: =Lån9!$C194 -> 0 | AM222: =Lån10!$C194 -> 0 | AN222: 0 | AO222: 0 | AP222: 0 | AQ222: 0 | AR222: 0
AC223: 111 | AD223: =IF(Real1!$H$2="k",Real1!$P195,Real1!$C195) -> 0 | AE223: =IF(Real2!$H$2="k",Real2!$P195,Real2!$C195) -> 0 | AF223: =IF(Real3!$H$2="k",Real3!$P195,Real3!$C195) -> 0 | AG223: =IF(Real4!$H$2="k",Real4!$P195,Real4!$C195) -> 0 | AH223: =IF(Real5!$H$2="k",Real5!$P195,Real5!$C195) -> 0 | AI223: =Lån6!$C195 -> 0 | AJ223: =Lån7!$C195 -> 0 | AK223: =Lån8!$C195 -> 0 | AL223: =Lån9!$C195 -> 0 | AM223: =Lån10!$C195 -> 0 | AN223: 0 | AO223: 0 | AP223: 0 | AQ223: 0 | AR223: 0
AB224: 28 | AC224: 112 | AD224: =IF(Real1!$H$2="k",Real1!$P196,Real1!$C196) -> 0 | AE224: =IF(Real2!$H$2="k",Real2!$P196,Real2!$C196) -> 0 | AF224: =IF(Real3!$H$2="k",Real3!$P196,Real3!$C196) -> 0 | AG224: =IF(Real4!$H$2="k",Real4!$P196,Real4!$C196) -> 0 | AH224: =IF(Real5!$H$2="k",Real5!$P196,Real5!$C196) -> 0 | AI224: =Lån6!$C196 -> 0 | AJ224: =Lån7!$C196 -> 0 | AK224: =Lån8!$C196 -> 0 | AL224: =Lån9!$C196 -> 0 | AM224: =Lån10!$C196 -> 0 | AN224: 0 | AO224: 0 | AP224: 0 | AQ224: 0 | AR224: 0
AC225: 113 | AD225: =IF(Real1!$H$2="k",Real1!$P197,Real1!$C197) -> 0 | AE225: =IF(Real2!$H$2="k",Real2!$P197,Real2!$C197) -> 0 | AF225: =IF(Real3!$H$2="k",Real3!$P197,Real3!$C197) -> 0 | AG225: =IF(Real4!$H$2="k",Real4!$P197,Real4!$C197) -> 0 | AH225: =IF(Real5!$H$2="k",Real5!$P197,Real5!$C197) -> 0 | AI225: =Lån6!$C197 -> 0 | AJ225: =Lån7!$C197 -> 0 | AK225: =Lån8!$C197 -> 0 | AL225: =Lån9!$C197 -> 0 | AM225: =Lån10!$C197 -> 0 | AN225: 0 | AO225: 0 | AP225: 0 | AQ225: 0 | AR225: 0
AC226: 114 | AD226: =IF(Real1!$H$2="k",Real1!$P198,Real1!$C198) -> 0 | AE226: =IF(Real2!$H$2="k",Real2!$P198,Real2!$C198) -> 0 | AF226: =IF(Real3!$H$2="k",Real3!$P198,Real3!$C198) -> 0 | AG226: =IF(Real4!$H$2="k",Real4!$P198,Real4!$C198) -> 0 | AH226: =IF(Real5!$H$2="k",Real5!$P198,Real5!$C198) -> 0 | AI226: =Lån6!$C198 -> 0 | AJ226: =Lån7!$C198 -> 0 | AK226: =Lån8!$C198 -> 0 | AL226: =Lån9!$C198 -> 0 | AM226: =Lån10!$C198 -> 0 | AN226: 0 | AO226: 0 | AP226: 0 | AQ226: 0 | AR226: 0
AC227: 115 | AD227: =IF(Real1!$H$2="k",Real1!$P199,Real1!$C199) -> 0 | AE227: =IF(Real2!$H$2="k",Real2!$P199,Real2!$C199) -> 0 | AF227: =IF(Real3!$H$2="k",Real3!$P199,Real3!$C199) -> 0 | AG227: =IF(Real4!$H$2="k",Real4!$P199,Real4!$C199) -> 0 | AH227: =IF(Real5!$H$2="k",Real5!$P199,Real5!$C199) -> 0 | AI227: =Lån6!$C199 -> 0 | AJ227: =Lån7!$C199 -> 0 | AK227: =Lån8!$C199 -> 0 | AL227: =Lån9!$C199 -> 0 | AM227: =Lån10!$C199 -> 0 | AN227: 0 | AO227: 0 | AP227: 0 | AQ227: 0 | AR227: 0
AB228: 29 | AC228: 116 | AD228: =IF(Real1!$H$2="k",Real1!$P200,Real1!$C200) -> 0 | AE228: =IF(Real2!$H$2="k",Real2!$P200,Real2!$C200) -> 0 | AF228: =IF(Real3!$H$2="k",Real3!$P200,Real3!$C200) -> 0 | AG228: =IF(Real4!$H$2="k",Real4!$P200,Real4!$C200) -> 0 | AH228: =IF(Real5!$H$2="k",Real5!$P200,Real5!$C200) -> 0 | AI228: =Lån6!$C200 -> 0 | AJ228: =Lån7!$C200 -> 0 | AK228: =Lån8!$C200 -> 0 | AL228: =Lån9!$C200 -> 0 | AM228: =Lån10!$C200 -> 0 | AN228: 0 | AO228: 0 | AP228: 0 | AQ228: 0 | AR228: 0
AC229: 117 | AD229: =IF(Real1!$H$2="k",Real1!$P201,Real1!$C201) -> 0 | AE229: =IF(Real2!$H$2="k",Real2!$P201,Real2!$C201) -> 0 | AF229: =IF(Real3!$H$2="k",Real3!$P201,Real3!$C201) -> 0 | AG229: =IF(Real4!$H$2="k",Real4!$P201,Real4!$C201) -> 0 | AH229: =IF(Real5!$H$2="k",Real5!$P201,Real5!$C201) -> 0 | AI229: =Lån6!$C201 -> 0 | AJ229: =Lån7!$C201 -> 0 | AK229: =Lån8!$C201 -> 0 | AL229: =Lån9!$C201 -> 0 | AM229: =Lån10!$C201 -> 0 | AN229: 0 | AO229: 0 | AP229: 0 | AQ229: 0 | AR229: 0
AC230: 118 | AD230: =IF(Real1!$H$2="k",Real1!$P202,Real1!$C202) -> 0 | AE230: =IF(Real2!$H$2="k",Real2!$P202,Real2!$C202) -> 0 | AF230: =IF(Real3!$H$2="k",Real3!$P202,Real3!$C202) -> 0 | AG230: =IF(Real4!$H$2="k",Real4!$P202,Real4!$C202) -> 0 | AH230: =IF(Real5!$H$2="k",Real5!$P202,Real5!$C202) -> 0 | AI230: =Lån6!$C202 -> 0 | AJ230: =Lån7!$C202 -> 0 | AK230: =Lån8!$C202 -> 0 | AL230: =Lån9!$C202 -> 0 | AM230: =Lån10!$C202 -> 0 | AN230: 0 | AO230: 0 | AP230: 0 | AQ230: 0 | AR230: 0
AC231: 119 | AD231: =IF(Real1!$H$2="k",Real1!$P203,Real1!$C203) -> 0 | AE231: =IF(Real2!$H$2="k",Real2!$P203,Real2!$C203) -> 0 | AF231: =IF(Real3!$H$2="k",Real3!$P203,Real3!$C203) -> 0 | AG231: =IF(Real4!$H$2="k",Real4!$P203,Real4!$C203) -> 0 | AH231: =IF(Real5!$H$2="k",Real5!$P203,Real5!$C203) -> 0 | AI231: =Lån6!$C203 -> 0 | AJ231: =Lån7!$C203 -> 0 | AK231: =Lån8!$C203 -> 0 | AL231: =Lån9!$C203 -> 0 | AM231: =Lån10!$C203 -> 0 | AN231: 0 | AO231: 0 | AP231: 0 | AQ231: 0 | AR231: 0
AB232: 30 | AC232: 120 | AD232: =IF(Real1!$H$2="k",Real1!$P204,Real1!$C204) -> 0 | AE232: =IF(Real2!$H$2="k",Real2!$P204,Real2!$C204) -> 0 | AF232: =IF(Real3!$H$2="k",Real3!$P204,Real3!$C204) -> 0 | AG232: =IF(Real4!$H$2="k",Real4!$P204,Real4!$C204) -> 0 | AH232: =IF(Real5!$H$2="k",Real5!$P204,Real5!$C204) -> 0 | AI232: =Lån6!$C204 -> 0 | AJ232: =Lån7!$C204 -> 0 | AK232: =Lån8!$C204 -> 0 | AL232: =Lån9!$C204 -> 0 | AM232: =Lån10!$C204 -> 0 | AN232: 0 | AO232: 0 | AP232: 0 | AQ232: 0 | AR232: 0

Sheet Omk. & restfinans
A1: Omkostninger, afstemning og aktivering
A2: Ejendom | C2: =Finansplan!$E2 -> 0 | P2: Restgæld, hvor låneomkostninger udgiftsføres år 1
A3: Alternativ | C3: =Finansplan!$E3 -> 0 | P3: Amortiseret kostpris, hvor låneomkostninger amortiseres i renten
A4: Navn | C4: =Finansplan!$E4 -> 0 | P4: 1 | Q4: = Amort, hvis 1 = kontant, 2 = amort | S4: =Amort*2 -> 2 | T4: Formelcelle for at aktivere event calculate, når amort skifter
A5: Skødeomkostninger | G5: Købers | L5: Afgiftsgrundlag fast ejendom
A6: Ejendomsmægler | E6: korr | F6: Sats | G6: andel | I6: Køber | J6: Sælger | N6: Kontantpris | O6: =FastEjendomPris -> 0 | Q6: Hvis BundFastEjendom > Kontantpris så BundFastEjendom ellers hvis kontantpris > Skøn så Kontantpris ellers skøn
A7: Ejendomsmægler honorar (af kontant pris) | F7: =IF(ISBLANK(E7),"1,00%",E7) -> 1,00% | G7: 0 | J7: =IF(ISBLANK(E7),F7*F71,E7*F71) -> 1e-06 | K7: + moms | N7: Skønnet pris
A8: Advokat og stempel | E8: korr | N8: Off. vurdering | S8: Kontantpris | T8: Skønnet pris | U8: 80 % off vurdering | V8: Grundlag
A9: Honorar til købers advokat/ejendomskonsulent | F9: =IF(ISBLANK(E9),"0,50%","Korr.") -> 0,50% | G9: 1 | I9: =IF(ISBLANK($E9),$F9*Kontantpris*$G$9,E9*$G$9) -> 0 | J9: =IF(ISBLANK($E9),$F9*Kontantpris*(1-$G$9),E9*(1-$G$9)) -> 0 | K9: af kontant pris | N9: =ProcentOffVurdering -> 0.85 | O9: =Off._vurdering*ProcentOffVurdering -> 0 | S9: 20000000 | V9: 20000000
A10: Skøde, variabel tinglysningsafgift | F10: =IF(ISBLANK(E10),"0,60%","Korr.") -> 0,60% | G10: 0.5 | H10: =O10*F10 -> 0 | I10: =IF(ISBLANK(E10),G10*H10,E10*G10) -> 0 | J10: =IF(ISBLANK(E10),H10*(1-G10),E10*(1-G10)) -> 0 | K10: af afgiftsgrundlaget | N10: Afgiftsgrundlag | O10: =R12 -> 0 | P10: =FastEjendomPris -> 0 | Q10: Kontantpris fast ejendom | S10: 20000000 | T10: 22000000 | U10: 18000000 | V10: 22000000
A11: Skøde, fast tinglysningsafgift | F11: =IF(Kontantpris>0,TinglysningSkoede,0) -> 0 | G11: 0.5 | I11: =IF(ISBLANK($E11),$F11*$G$11,$F11*$G$11) -> 0 | J11: =IF(ISBLANK($E11),$F11*(1-$G$11),$F11*(1-$G$11)) -> 0 | P11: =SkoenFriHandelPris -> 0 | Q11: Skøn fri handels pris, fast ejendom | S11: 20000000 | T11: 19000000 | U11: 18000000 | V11: 20000000
A12: I alt skødeomkostninger (afrundet hele tusinder) | I12: =ROUND(SUM(I8:I11),-3) -> 0 | J12: =ROUND(SUM(J8:J11),-3) -> 0 | P12: =Off._vurdering*0.8 -> 0 | Q12: 80 % off. ejendomsvurdering | R12: =IF(BundFastEjd>KontantFastEjendom,BundFastEjd,IF(KontantFastEjendom>SkoenFriHandelPris,KontantFastEjendom,SkoenFriHandelPris)) -> 0 | S12: 20000000 | U12: 21000000 | V12: 21000000
S13: 20000000 | T13: 21000000 | U13: 18000000 | V13: 21000000
A14: Låneomkostninger | G14: Købers | S14: 20000000 | T14: 23000000 | U14: 24000000 | V14: 24000000
A15: Realkredit- og andre lån | E15: korr | F15: Sats | G15: andel | I15: I alt | N15: standard
A16: Stiftelsesprovision (hovedstol) | F16: =IF(ISBLANK(E16),StiftelsesprovisionSats,E16) -> 0.01 | G16: 1 | I16: =(Real1!H32+Real2!H32+Real3!H32+Real4!H32+Real5!H32) *G16 -> 0 | J16: af realkredits hovedstole | N16: =Q16 -> 0 | P16: OK | Q16: =Real1!E75+Real2!E75+Real3!E75+Real4!E75+Real5!E75 -> 0 | R16: v
A17: Kurtage (kursværdi) | F17: =IF(Kontantpris=0,0,I17/(Finansplan!G25)) -> 0 | G17: 1 | I17: =(Real1!H33+Real2!H33+Real3!H33+Real4!H33+Real5!H33)*G17 -> 0 | J17: af realkredits kursværdi | N17: =Q17 -> 0 | P17: OK | Q17: =Real1!H33+Real2!H33+Real3!H33+Real4!H33+Real5!H33 -> 0 | R17: v
A18: Lånesags- og ekspeditionsgebyr | F18: =IF(ISBLANK(E18),VurderingGebyrSats,E18) -> 15000 | G18: 1 | I18: =(Real1!H34+Real2!H34+Real3!H34+Real4!H34+Real5!H34+Lån6!H34+Lån7!H34+Lån8!H34+Lån9!H34+Lån10!H34)*G18 -> 0 | J18: pr. etableret lån | N18: =Q18 -> 0 | P18: OK | Q18: =Finansplan!T38*VurderingGebyr -> 0 | R18: v
A19: Stempel (hovedstol) | D19: Korr. realkredit> | F19: =StempelSats -> 0.0145 | G19: 1 | I19: =(Real1!H35+Real2!H35+Real3!H35+Real4!H35+Real5!H35+Lån6!H35+Lån7!H35+Lån8!H35+Lån9!H35+Lån10!H35)*G19 -> 0 | J19: af samtlige låns hovedstole | N19: =Q19 -> 0 | P19: OK | Q19: =Real1!E76+Real2!E76+Real3!E76+Real4!E76+Real5!E76+Lån6!E76+Lån7!E76+Lån8!E76+Lån9!E76+Lån10!E76 -> 0 | R19: v
A20: Tinglysningsgebyr | F20: =TinglysningPtbr -> 1825 | G20: 1 | I20: =(Real1!H36+Real2!H36+Real3!H36+Real4!H36+Real5!H36+Lån6!H36+Lån7!H36+Lån8!H36+Lån9!H36+Lån10!H36)*G20 -> 0 | J20: pr. etableret lån | N20: =Q20 -> 0 | P20: OK | Q20: =Finansplan!T38*TinglysningPtbr -> 0 | R20: v
A21: Vækstkaution, stiftelsesomkostninger | G21: 1 | I21: =IF(Finansplan!R69=TRUE,#REF!,0) -> 0
A22: Korrektion af omkostninger | G22: 1 | N22: 0
A23: I alt låneomkostninger | I23: =SUM(I16:I22) -> 0 | N23: =ROUND(SUM(N16:N22),-3) -> 0 | Q23: =SUM(Q16:Q22) -> 0
A24: Skøde- og låneomkostninger i alt (afrundet hele tusinder) | I24: =ROUND(I23+I12,-3) -> 0
A26: Afstemning af kassekredit og egenkapital i åbningsbalancen
A28: Afstemning af likviditet i åbningsbalancen
A29: Købers likvide opsparing | G29: likvid opsparing på etablerings- og iværksætterkonti + kontant beholdning
A30: +/- Restbeløb fra Finansplan | F30: =Finansplan!G37*-1 -> 0 | G30: =IF(F30<0," som køber skal betale til sælger"," som køber har lånt ekstra") -> som køber har lånt ekstra
A31: - købers skødesomkostninger, der aktiveres | F31: =I12*-1 -> 0 | G31: som køber betaler
A32: =IF(Amort=1," - købers låneomkostninger, der udgiftsføres"," - købers låneomkostninger, der amortiseres") -> - købers låneomkostninger, der udgiftsføres | F32: =I23*-1 -> 0 | G32: som tilbageholdes eller opkræves af långiverne
A33: = Rest til kassekreditten, likviditet til drift | F33: =SUM(F29:F32) -> 0 | G33: likviditet til driften - efter betaling af skøde- og låneomkostninger | Q33: Balance data, hele tusinder
A34: =IF(Amort=1," som består af","") -> som består af
A35: =IF(Amort=1," Prioritetsomkostninger i første måned","") -> Prioritetsomkostninger i første måned | F35: =IF(Amort=1,F32,0) -> 0 | G35: =IF(Amort=1," indtastes som prioritetsomkostning første år i BudgetVejlby","") -> indtastes som prioritetsomkostning første år i BudgetVejlby
A36: Kassekredit saldo primo BudgetVejlby | F36: =F33+F35*-1 -> 0 | G36: indtastes som primo kassekredit i BudgetVejlby | Q36: =F36/1000 -> 0 | R36: =A36 -> Kassekredit saldo primo BudgetVejlby
A39: Afstemning af egenkapital i åbningsbalancen | X39: 2
A40: Landbrugsaktiver, anskaffelsespris | F40: =N71 -> 0.0001 | G40: kontantpris landbrugsaktiver plus aktiverede skødeomkostninger
A41: + Bil og andre personlige aktiver | G41: bil og andre aktiver skal tages med over i BudgetVejlby åbningsbalance | Q41: =F41/1000 -> 0 | R41: =A41 -> + Bil og andre personlige aktiver
A42: =IF(Amort=1," - lån hovedstol/restgæld"," - lån nettoprovenu") -> - lån hovedstol/restgæld | F42: =IF(Amort=1,SUM(Finansplan!I38:I43)*-1,SUM(Finansplan!G38:G43)*-1) -> 0 | G42: =IF(Amort=1," lånenes hovedstol overføres til budget"," lånenes nettoprovenu overføres til budget, dvs. kontantværdi minus omkostninger") -> lånenes hovedstol overføres til budget
A43: - låneomkostninger | F43: =IF(Amort =1,F32,0) -> 0 | G43: =IF(Amort=1," som køber betaler og udgiftsfører som prioritetsomkostninger","") -> som køber betaler og udgiftsfører som prioritetsomkostninger
A44: +/- kassekredit primo | F44: =F36 -> 0 | G44: som ovenfor
A45: = Egenkapital til drift | F45: =SUM(F40:F44) -> 0.0001 | G45: den egenkapital, der er at stå imod med driftsmæssigt (efter handlens omkostninger)
A46: =IF(Amort=1," som består af","") -> som består af
A47: =IF(Amort=1," Prioritetsomkostninger i første måned","") -> Prioritetsomkostninger i første måned | F47: =F35 -> 0 | G47: tab af egenkapital første måned ved udgiftsførsel af låneomkostninger
A48: = Egenkapital primo BudgetVejlby | F48: =F45-F47 -> 0.0001
A49: =IF(Amort=1,IF(F49>0," + Kurstab låneoptagelse"," + kursgevinst låneoptagelse"),"") -> + kursgevinst låneoptagelse | F49: =IF(Amort=1,Finansplan!L44*-1,"") -> 0 | G49: =IF(Amort=1,IF(F49>0," kurstabet fra låneoptagelsen er mistet i egenkapital,"," kursgevinsten fra låneoptagelsen er tillagt egenkapitalen"),"") -> kursgevinsten fra låneoptagelsen er tillagt egenkapitalen
A50: =IF(Amort=1," = Egenkapital før handlen","") -> = Egenkapital før handlen | F50: =IF(Amort=1,F48+F49,"") -> 0.0001 | G50: =IF(Amort=1," da lånene ikke overføres som kontantværdi, men som restgæld","") -> da lånene ikke overføres som kontantværdi, men som restgæld
A51: Aktivering af skødeomkostninger
I52: Tinglysning | J52: Advokat | N52: Anskaffelses-
F53: Kontantpris | I53: omkostning | J53: berigtigelse | N53: pris | O53: I alt
A54: Fast ejendom | F54: =IF(Finansplan!E6=0,0.0001,Finansplan!E6) -> 0.0001 | O54: =SUM(N55:N59) -> 0.0001 | Q54: Anskaffelsespris
A55: - heraf bygninger | I55: =ROUND(G55/$F$54*$I$71,-3) -> 0 | J55: =ROUND(G55/$G$71*$J$71,-3) -> 0 | L55: → | N55: =G55+I55+J55 -> 0 | Q55: =N55/1000 -> 0 | R55: =A55 -> - heraf bygninger
A56: - heraf stuehus beboet af ejer | I56: =ROUND(G56/$F$54*$I$71,-3) -> 0 | J56: =ROUND(G56/$G$71*$J$71,-3) -> 0 | L56: → | N56: =G56+I56+J56 -> 0 | Q56: 0 | R56: =A56 -> - heraf stuehus beboet af ejer
A57: - heraf udlejede stuehuse | I57: =ROUND(G57/$F$54*$I$71,-3) -> 0 | J57: =ROUND(G57/$G$71*$J$71,-3) -> 0 | L57: → | N57: =G57+I57+J57 -> 0 | Q57: 0 | R57: - heraf udlejede stuehuse
A58: - heraf grundforbedringer | I58: =ROUND(G58/$F$54*$I$71,-3) -> 0 | J58: =ROUND(G58/$G$71*$J$71,-3) -> 0 | L58: → | N58: =G58+I58+J58 -> 0 | Q58: 0 | R58: - heraf grundforbedringer
A59: - heraf jord | G59: =F54-G55-G56-G57-G58 -> 0.0001 | I59: =I71-I55-I56-I57 -> 0 | J59: =J71-SUM(J55:J57)-SUM(J60:J70) -> 0 | L59: → | N59: =G59+I59+J59 -> 0.0001 | Q59: 1e-07 | R59: - heraf jord
A60: Leveringsrettigheder | F60: =Finansplan!E10 -> 0 | I60: → | J60: =ROUND(F60/$G$71*$J$71,-3) -> 0 | L60: → | N60: =F60+J60 -> 0 | O60: =N60 -> 0 | Q60: 0 | R60: Leveringsrettigheder
A61: Inventar | F61: =Finansplan!E8+Finansplan!E9 -> 0 | O61: =SUM(N62:N64) -> 0
A62: - heraf inventar markredskaber | I62: → | J62: =ROUND(G62/$G$71*$J$71,-3) -> 0 | L62: → | N62: =G62+J62 -> 0 | Q62: =N62/1000 -> 0 | R62: - heraf inventar markredskaber
A63: - heraf inventar husdyrbrug | I63: → | J63: =ROUND(G63/$G$71*$J$71,-3) -> 0 | L63: → | N63: =G63+J63 -> 0 | Q63: =N63/1000 -> 0 | R63: - heraf inventar husdyrbrug
A64: - heraf inventar andet | G64: =F61-G62-G63 -> 0 | I64: → | J64: =ROUND(G64/$G$71*$J$71,-3) -> 0 | L64: → | N64: =G64+J64 -> 0 | Q64: =N64/1000 -> 0 | R64: - heraf inventar andet
A65: Besætning | F65: =Finansplan!E7 -> 0 | I65: → | J65: =ROUND(F65/$G$71*$J$71,-3) -> 0 | L65: → | N65: =F65+J65 -> 0 | O65: =N65 -> 0 | Q65: =N65/1000 -> 0 | R65: Besætning
A66: Beholdninger | F66: =Finansplan!E11 -> 0 | O66: =SUM(N67:N70) -> 0
A67: - heraf beholdninger egen avl | I67: → | J67: =ROUND(G67/$G$71*$J$71,-3) -> 0 | L67: → | N67: =G67+J67 -> 0 | Q67: =N67/1000 -> 0 | R67: - heraf beholdninger egen avl
A68: - heraf beholdning indkøbt foder | I68: → | J68: =ROUND(G68/$G$71*$J$71,-3) -> 0 | L68: → | N68: =G68+J68 -> 0 | Q68: =N68/1000 -> 0 | R68: - heraf beholdning indkøbt foder
A69: - heraf jordbeholdninger | I69: → | J69: 0 | L69: → | N69: =G69+J69 -> 0 | Q69: =N69/1000 -> 0 | R69: - heraf jordbeholdninger
A70: - heraf andre beholdninger | G70: =F66-G69-G68-G67 -> 0 | I70: → | J70: =ROUND(G70/$G$71*$J$71,-3) -> 0 | L70: → | N70: =G70+J70 -> 0 | Q70: =N70/1000 -> 0 | R70: - heraf andre beholdninger
A71: I alt kontant pris | F71: =F66+F65+F61+F60+F54 -> 0.0001 | G71: =SUM(G55:G70)+F60+F65 -> 0.0001 | I71: =ROUND(I10+I11,-3) -> 0 | J71: =ROUND(I9,-3) -> 0 | L71: =I71+J71 -> 0 | N71: =SUM(N54:N70) -> 0.0001 | O71: =SUM(O54:O70) -> 0.0001
G72: =IF(ABS(G71-F71)>0.5,"FEJL I AFSTEMNINGEN","") -> 
F73: Omkostninger pr. aktiv er afrundet til hele tusinder

Sheet Ydelse
B1: YDELSER | AK1: SATS-TABEL
B2: Ejendom | C2: =Finansplan!$E2 -> 0 | AK2: TinglysningPtbr | AN2: 1825 | AO2: https://domstol.dk/tinglysningsretten/tingboegerne/tinglysningsafgifter/
B3: Alternativ | C3: =Finansplan!$E3 -> 0 | AK3: TinglysningSkoede | AN3: 1850
B4: Navn | C4: =Finansplan!$E4 -> 0 | AK4: Kursskæring/Indskud | AN4: 0.01 | AO4: Førhen 1 % af hovedstol, nu i stedet brugt til kursskæring
B5: =Real1!$D$2 -> Fast rente 30 år | E5: =Real2!$D$2 -> Flexkort | H5: =Real3!$D$2 -> 0 | K5: =Real4!$D$2 -> 0 | N5: =Real5!$D$2 -> 0 | Q5: =Finansplan!$B$30 -> Banklån | T5: =Finansplan!$B$31 -> EIFO | W5: =Finansplan!$B$32 -> Etableringslån | Z5: =Finansplan!$B$33 -> Familielån | AC5: =Finansplan!$B$34 -> Sælgerpantebrev | AF5: I alt | AK5: MinStiftelse | AN5: 10000
B6: Real1 | E6: Real2 | H6: Real3 | K6: Real4 | N6: Real5 | Q6: Lån6 | T6: Lån7 | W6: Lån8 | Z6: Lån9 | AC6: Lån10 | AF6: Alle lån | AK6: KurtageGrænse | AN6: 3000000
A7: Primo | B7: =IF(Amort=2,Real1!$I$38,IF(Real1!$H$2="k",Real1!$I$31,Real1!$I$29)) -> 0 | D7: =IF(Amort=2,SUM(Real1!AC85:'Real1'!AC204),0) -> 0 | E7: =IF(Amort=2,Real2!$I$38,IF(Real2!$H$2="k",Real2!$I$31,Real2!$I$29)) -> 0 | G7: =IF(Amort=2,SUM(Real2!AC85:'Real2'!AC204),0) -> 0 | H7: =IF(Amort=2,Real3!$I$38,IF(Real3!$H$2="k",Real3!$I$31,Real3!$I$29)) -> 0 | J7: =IF(Amort=2,SUM(Real3!AC85:'Real3'!AC204),0) -> 0 | K7: =IF(Amort=2,Real4!$I$38,IF(Real4!$H$2="k",Real4!$I$31,Real4!$I$29)) -> 0 | M7: =IF(Amort=2,SUM(Real4!AC85:'Real4'!AC204),0) -> 0 | N7: =IF(Amort=2,Real5!$I$38,IF(Real5!$H$2="k",Real5!$I$31,Real5!$I$29)) -> 0 | P7: =IF(Amort=2,SUM(Real5!AC85:'Real5'!AC204),0) -> 0 | Q7: =IF(Amort=2,Lån6!$I$38,Lån6!$I$29) -> 0 | S7: =IF(Amort=2,SUM(Lån6!AC85:'Lån6'!AC204),0) -> 0 | T7: =IF(Amort=2,Lån7!$I$38,Lån7!$I$29) -> 0 | V7: =IF(Amort=2,SUM(Lån7!AC85:'Lån7'!AC204),0) -> 0 | W7: =IF(Amort=2,Lån8!$I$38,Lån8!$I$29) -> 0 | Y7: =IF(Amort=2,SUM(Lån8!AC85:'Lån8'!AC204),0) -> 0 | Z7: =IF(Amort=2,Lån9!$I$38,Lån9!$I$29) -> 0 | AB7: =IF(Amort=2,SUM(Lån9!AC85:'Lån9'!AC204),0) -> 0 | AC7: =IF(Amort=2,Lån10!$I$38,Lån10!$I$29) -> 0 | AE7: =IF(Amort=2,SUM(Lån10!AC85:'Lån10'!AC204),0) -> 0 | AF7: =B7+E7+H7+K7+N7+Q7+T7+W7+Z7+AC7 -> 0 | AI7: =Y7+V7+S7+P7+M7+J7+G7+D7+AB7+AE7 -> 0
A8: Termin | B8: Afdrag | C8: =IF(Amort=1,"Rente/adm","Rente ialt") -> Rente/adm | D8: =IF(Amort=2,"Amort","") ->  | E8: Afdrag | F8: =IF(Amort=1,"Rente/adm","Rente ialt") -> Rente/adm | G8: =IF(Amort=2,"Amort","") ->  | H8: Afdrag | I8: =IF(Amort=1,"Rente/adm","Rente ialt") -> Rente/adm | J8: =IF(Amort=2,"Amort","") ->  | K8: Afdrag | L8: =IF(Amort=1,"Rente/adm","Rente ialt") -> Rente/adm | M8: =IF(Amort=2,"Amort","") ->  | N8: Afdrag | O8: =IF(Amort=1,"Rente/adm","Rente ialt") -> Rente/adm | P8: =IF(Amort=2,"Amort","") ->  | Q8: Afdrag | R8: =IF(Amort=1,"Rente/adm","Rente ialt") -> Rente/adm | S8: =IF(Amort=2,"Amort","") ->  | T8: Afdrag | U8: =IF(Amort=1,"Rente/adm","Rente ialt") -> Rente/adm | V8: =IF(Amort=2,"Amort","") ->  | W8: Afdrag | X8: =IF(Amort=1,"Rente/adm","Rente ialt") -> Rente/adm | Y8: =IF(Amort=2,"Amort","") ->  | Z8: Afdrag | AA8: =IF(Amort=1,"Rente/adm","Rente ialt") -> Rente/adm | AB8: =IF(Amort=2,"Amort","") ->  | AC8: Afdrag | AD8: =IF(Amort=1,"Rente/adm","Rente ialt") -> Rente/adm | AE8: =IF(Amort=2,"Amort","") ->  | AF8: Afdrag | AG8: =IF(Amort=1,"Rente/adm","Rente ialt") -> Rente/adm | AH8: Ydelse | AI8: =IF(Amort=2,"Amort","") ->  | AK8: KurtageUnder3Sats | AN8: 0.0015
A9: 1 | B9: =Real1!$E$40 -> 0 | C9: =Real1!$F$40 -> 0 | D9: =IF(Amort=2,Real1!AC85,0) -> 0 | E9: =Real2!$E40 -> 0 | F9: =Real2!$F40 -> 0 | G9: =IF(Amort=2,Real2!AC85,0) -> 0 | H9: =Real3!$E40 -> 0 | I9: =Real3!$F40 -> 0 | J9: =IF(Amort=2,Real3!AC85,0) -> 0 | K9: =Real4!$E40 -> 0 | L9: =Real4!$F40 -> 0 | M9: =IF(Amort=2,Real4!AC85,0) -> 0 | N9: =Real5!$E40 -> 0 | O9: =Real5!$F40 -> 0 | P9: =IF(Amort=2,Real5!AC85,0) -> 0 | Q9: =Lån6!$E40 -> 0 | R9: =Lån6!$F40 -> 0 | S9: =IF(Amort=2,Lån6!AC85,0) -> 0 | T9: =Lån7!$E40 -> 0 | U9: =Lån7!$F40 -> 0 | V9: =IF(Amort=2,Lån7!AC85,0) -> 0 | W9: =Lån8!$E40 -> 0 | X9: =Lån8!$F40 -> 0 | Y9: =IF(Amort=2,Lån8!AC85,0) -> 0 | Z9: =Lån9!$E40 -> 0 | AA9: =Lån9!$F40 -> 0 | AB9: =IF(Amort=2,Lån9!AC85,0) -> 0 | AC9: =Lån10!$E40 -> 0 | AD9: =Lån10!$F40 -> 0 | AE9: =IF(Amort=2,Lån10!AC85,0) -> 0 | AF9: =B9+E9+H9+K9+N9+Q9+T9+W9+Z9+AC9 -> 0 | AG9: =C9+F9+I9+L9+O9+R9+U9+X9+AA9+AD9 -> 0 | AH9: =AF9+AG9 -> 0 | AI9: =Y9+V9+S9+P9+M9+J9+G9+D9+AB9+AE9 -> 0 | AK9: KurtageMinSats | AN9: 175
A10: 2 | B10: =Real1!E41 -> 0 | C10: =Real1!F41 -> 0 | D10: =IF(Amort=2,Real1!AC86,0) -> 0 | E10: =Real2!$E41 -> 0 | F10: =Real2!$F41 -> 0 | G10: =IF(Amort=2,Real2!AC86,0) -> 0 | H10: =Real3!$E41 -> 0 | I10: =Real3!$F41 -> 0 | J10: =IF(Amort=2,Real3!AC86,0) -> 0 | K10: =Real4!$E41 -> 0 | L10: =Real4!$F41 -> 0 | M10: =IF(Amort=2,Real4!AC86,0) -> 0 | N10: =Real5!$E41 -> 0 | O10: =Real5!$F41 -> 0 | P10: =IF(Amort=2,Real5!AC86,0) -> 0 | Q10: =Lån6!$E41 -> 0 | R10: =Lån6!$F41 -> 0 | S10: =IF(Amort=2,Lån6!AC86,0) -> 0 | T10: =Lån7!$E41 -> 0 | U10: =Lån7!$F41 -> 0 | V10: =IF(Amort=2,Lån7!AC86,0) -> 0 | W10: =Lån8!$E41 -> 0 | X10: =Lån8!$F41 -> 0 | Y10: =IF(Amort=2,Lån8!AC86,0) -> 0 | Z10: =Lån9!$E41 -> 0 | AA10: =Lån9!$F41 -> 0 | AB10: =IF(Amort=2,Lån9!AC86,0) -> 0 | AC10: =Lån10!$E41 -> 0 | AD10: =Lån10!$F41 -> 0 | AE10: =IF(Amort=2,Lån10!AC86,0) -> 0 | AF10: =B10+E10+H10+K10+N10+Q10+T10+W10+Z10+AC10 -> 0 | AG10: =C10+F10+I10+L10+O10+R10+U10+X10+AA10+AD10 -> 0 | AH10: =AF10+AG10 -> 0 | AI10: =Y10+V10+S10+P10+M10+J10+G10+D10+AB10+AE10 -> 0 | AK10: VurderingGebyrSats | AN10: 15000
A11: 3 | B11: =Real1!E42 -> 0 | C11: =Real1!F42 -> 0 | D11: =IF(Amort=2,Real1!AC87,0) -> 0 | E11: =Real2!$E42 -> 0 | F11: =Real2!$F42 -> 0 | G11: =IF(Amort=2,Real2!AC87,0) -> 0 | H11: =Real3!$E42 -> 0 | I11: =Real3!$F42 -> 0 | J11: =IF(Amort=2,Real3!AC87,0) -> 0 | K11: =Real4!$E42 -> 0 | L11: =Real4!$F42 -> 0 | M11: =IF(Amort=2,Real4!AC87,0) -> 0 | N11: =Real5!$E42 -> 0 | O11: =Real5!$F42 -> 0 | P11: =IF(Amort=2,Real5!AC87,0) -> 0 | Q11: =Lån6!$E42 -> 0 | R11: =Lån6!$F42 -> 0 | S11: =IF(Amort=2,Lån6!AC87,0) -> 0 | T11: =Lån7!$E42 -> 0 | U11: =Lån7!$F42 -> 0 | V11: =IF(Amort=2,Lån7!AC87,0) -> 0 | W11: =Lån8!$E42 -> 0 | X11: =Lån8!$F42 -> 0 | Y11: =IF(Amort=2,Lån8!AC87,0) -> 0 | Z11: =Lån9!$E42 -> 0 | AA11: =Lån9!$F42 -> 0 | AB11: =IF(Amort=2,Lån9!AC87,0) -> 0 | AC11: =Lån10!$E42 -> 0 | AD11: =Lån10!$F42 -> 0 | AE11: =IF(Amort=2,Lån10!AC87,0) -> 0 | AF11: =B11+E11+H11+K11+N11+Q11+T11+W11+Z11+AC11 -> 0 | AG11: =C11+F11+I11+L11+O11+R11+U11+X11+AA11+AD11 -> 0 | AH11: 0 | AI11: =Y11+V11+S11+P11+M11+J11+G11+D11+AB11+AE11 -> 0 | AK11: StempelSats | AN11: 0.0145 | AO11: Nedsat fra 1,50 % pr. 1. juli 2019. Nedsættes til 1,25 % pr. 1. januar 2026
A12: 4 | B12: =Real1!E43 -> 0 | C12: =Real1!F43 -> 0 | D12: =IF(Amort=2,Real1!AC88,0) -> 0 | E12: =Real2!$E43 -> 0 | F12: =Real2!$F43 -> 0 | G12: =IF(Amort=2,Real2!AC88,0) -> 0 | H12: =Real3!$E43 -> 0 | I12: =Real3!$F43 -> 0 | J12: =IF(Amort=2,Real3!AC88,0) -> 0 | K12: =Real4!$E43 -> 0 | L12: =Real4!$F43 -> 0 | M12: =IF(Amort=2,Real4!AC88,0) -> 0 | N12: =Real5!$E43 -> 0 | O12: =Real5!$F43 -> 0 | P12: =IF(Amort=2,Real5!AC88,0) -> 0 | Q12: =Lån6!$E43 -> 0 | R12: =Lån6!$F43 -> 0 | S12: =IF(Amort=2,Lån6!AC88,0) -> 0 | T12: =Lån7!$E43 -> 0 | U12: =Lån7!$F43 -> 0 | V12: =IF(Amort=2,Lån7!AC88,0) -> 0 | W12: =Lån8!$E43 -> 0 | X12: =Lån8!$F43 -> 0 | Y12: =IF(Amort=2,Lån8!AC88,0) -> 0 | Z12: =Lån9!$E43 -> 0 | AA12: =Lån9!$F43 -> 0 | AB12: =IF(Amort=2,Lån9!AC88,0) -> 0 | AC12: =Lån10!$E43 -> 0 | AD12: =Lån10!$F43 -> 0 | AE12: =IF(Amort=2,Lån10!AC88,0) -> 0 | AF12: 0 | AG12: 0 | AH12: 0 | AI12: 0 | AK12: AdmBidragSats | AN12: 0.0125
A13: 5 | B13: =Real1!E44 -> 0 | C13: =Real1!F44 -> 0 | D13: =IF(Amort=2,Real1!AC89,0) -> 0 | E13: =Real2!$E44 -> 0 | F13: =Real2!$F44 -> 0 | G13: =IF(Amort=2,Real2!AC89,0) -> 0 | H13: =Real3!$E44 -> 0 | I13: =Real3!$F44 -> 0 | J13: =IF(Amort=2,Real3!AC89,0) -> 0 | K13: =Real4!$E44 -> 0 | L13: =Real4!$F44 -> 0 | M13: =IF(Amort=2,Real4!AC89,0) -> 0 | N13: =Real5!$E44 -> 0 | O13: =Real5!$F44 -> 0 | P13: =IF(Amort=2,Real5!AC89,0) -> 0 | Q13: =Lån6!$E44 -> 0 | R13: =Lån6!$F44 -> 0 | S13: =IF(Amort=2,Lån6!AC89,0) -> 0 | T13: =Lån7!$E44 -> 0 | U13: =Lån7!$F44 -> 0 | V13: =IF(Amort=2,Lån7!AC89,0) -> 0 | W13: =Lån8!$E44 -> 0 | X13: =Lån8!$F44 -> 0 | Y13: =IF(Amort=2,Lån8!AC89,0) -> 0 | Z13: =Lån9!$E44 -> 0 | AA13: =Lån9!$F44 -> 0 | AB13: =IF(Amort=2,Lån9!AC89,0) -> 0 | AC13: =Lån10!$E44 -> 0 | AD13: =Lån10!$F44 -> 0 | AE13: =IF(Amort=2,Lån10!AC89,0) -> 0 | AF13: =B13+E13+H13+K13+N13+Q13+T13+W13+Z13+AC13 -> 0 | AG13: =C13+F13+I13+L13+O13+R13+U13+X13+AA13+AD13 -> 0 | AH13: 0 | AI13: =Y13+V13+S13+P13+M13+J13+G13+D13+AB13+AE13 -> 0 | AK13: Afgiftsgrundlag tinglysningsafgift, skøde | AO13: Lov om ændring af ejendomsvurderingsloven og forskellige andre love LOV nr. 2227 af 29/12/2020,
A14: 6 | B14: =Real1!E45 -> 0 | C14: =Real1!F45 -> 0 | D14: =IF(Amort=2,Real1!AC90,0) -> 0 | E14: =Real2!$E45 -> 0 | F14: =Real2!$F45 -> 0 | G14: =IF(Amort=2,Real2!AC90,0) -> 0 | H14: =Real3!$E45 -> 0 | I14: =Real3!$F45 -> 0 | J14: =IF(Amort=2,Real3!AC90,0) -> 0 | K14: =Real4!$E45 -> 0 | L14: =Real4!$F45 -> 0 | M14: =IF(Amort=2,Real4!AC90,0) -> 0 | N14: =Real5!$E45 -> 0 | O14: =Real5!$F45 -> 0 | P14: =IF(Amort=2,Real5!AC90,0) -> 0 | Q14: =Lån6!$E45 -> 0 | R14: =Lån6!$F45 -> 0 | S14: =IF(Amort=2,Lån6!AC90,0) -> 0 | T14: =Lån7!$E45 -> 0 | U14: =Lån7!$F45 -> 0 | V14: =IF(Amort=2,Lån7!AC90,0) -> 0 | W14: =Lån8!$E45 -> 0 | X14: =Lån8!$F45 -> 0 | Y14: =IF(Amort=2,Lån8!AC90,0) -> 0 | Z14: =Lån9!$E45 -> 0 | AA14: =Lån9!$F45 -> 0 | AB14: =IF(Amort=2,Lån9!AC90,0) -> 0 | AC14: =Lån10!$E45 -> 0 | AD14: =Lån10!$F45 -> 0 | AE14: =IF(Amort=2,Lån10!AC90,0) -> 0 | AF14: =B14+E14+H14+K14+N14+Q14+T14+W14+Z14+AC14 -> 0 | AG14: =C14+F14+I14+L14+O14+R14+U14+X14+AA14+AD14 -> 0 | AH14: 0 | AI14: =Y14+V14+S14+P14+M14+J14+G14+D14+AB14+AE14 -> 0 | AK14: ProcentOffVurdering | AN14: 0.85 | AO14: Værnsregel, % af offentlig vurdering som minimum afgiftsgrundlag
A15: 7 | B15: =Real1!E46 -> 0 | C15: =Real1!F46 -> 0 | D15: =IF(Amort=2,Real1!AC91,0) -> 0 | E15: =Real2!$E46 -> 0 | F15: =Real2!$F46 -> 0 | G15: =IF(Amort=2,Real2!AC91,0) -> 0 | H15: =Real3!$E46 -> 0 | I15: =Real3!$F46 -> 0 | J15: =IF(Amort=2,Real3!AC91,0) -> 0 | K15: =Real4!$E46 -> 0 | L15: =Real4!$F46 -> 0 | M15: =IF(Amort=2,Real4!AC91,0) -> 0 | N15: =Real5!$E46 -> 0 | O15: =Real5!$F46 -> 0 | P15: =IF(Amort=2,Real5!AC91,0) -> 0 | Q15: =Lån6!$E46 -> 0 | R15: =Lån6!$F46 -> 0 | S15: =IF(Amort=2,Lån6!AC91,0) -> 0 | T15: =Lån7!$E46 -> 0 | U15: =Lån7!$F46 -> 0 | V15: =IF(Amort=2,Lån7!AC91,0) -> 0 | W15: =Lån8!$E46 -> 0 | X15: =Lån8!$F46 -> 0 | Y15: =IF(Amort=2,Lån8!AC91,0) -> 0 | Z15: =Lån9!$E46 -> 0 | AA15: =Lån9!$F46 -> 0 | AB15: =IF(Amort=2,Lån9!AC91,0) -> 0 | AC15: =Lån10!$E46 -> 0 | AD15: =Lån10!$F46 -> 0 | AE15: =IF(Amort=2,Lån10!AC91,0) -> 0 | AF15: =B15+E15+H15+K15+N15+Q15+T15+W15+Z15+AC15 -> 0 | AG15: =C15+F15+I15+L15+O15+R15+U15+X15+AA15+AD15 -> 0 | AH15: 0 | AI15: =Y15+V15+S15+P15+M15+J15+G15+D15+AB15+AE15 -> 0
A16: 8 | B16: =Real1!E47 -> 0 | C16: =Real1!F47 -> 0 | D16: =IF(Amort=2,Real1!AC92,0) -> 0 | E16: =Real2!$E47 -> 0 | F16: =Real2!$F47 -> 0 | G16: =IF(Amort=2,Real2!AC92,0) -> 0 | H16: =Real3!$E47 -> 0 | I16: =Real3!$F47 -> 0 | J16: =IF(Amort=2,Real3!AC92,0) -> 0 | K16: =Real4!$E47 -> 0 | L16: =Real4!$F47 -> 0 | M16: =IF(Amort=2,Real4!AC92,0) -> 0 | N16: =Real5!$E47 -> 0 | O16: =Real5!$F47 -> 0 | P16: =IF(Amort=2,Real5!AC92,0) -> 0 | Q16: =Lån6!$E47 -> 0 | R16: =Lån6!$F47 -> 0 | S16: =IF(Amort=2,Lån6!AC92,0) -> 0 | T16: =Lån7!$E47 -> 0 | U16: =Lån7!$F47 -> 0 | V16: =IF(Amort=2,Lån7!AC92,0) -> 0 | W16: =Lån8!$E47 -> 0 | X16: =Lån8!$F47 -> 0 | Y16: =IF(Amort=2,Lån8!AC92,0) -> 0 | Z16: =Lån9!$E47 -> 0 | AA16: =Lån9!$F47 -> 0 | AB16: =IF(Amort=2,Lån9!AC92,0) -> 0 | AC16: =Lån10!$E47 -> 0 | AD16: =Lån10!$F47 -> 0 | AE16: =IF(Amort=2,Lån10!AC92,0) -> 0 | AF16: 0 | AG16: 0 | AH16: 0 | AI16: 0
A17: 9 | B17: =Real1!E48 -> 0 | C17: =Real1!F48 -> 0 | D17: =IF(Amort=2,Real1!AC93,0) -> 0 | E17: =Real2!$E48 -> 0 | F17: =Real2!$F48 -> 0 | G17: =IF(Amort=2,Real2!AC93,0) -> 0 | H17: =Real3!$E48 -> 0 | I17: =Real3!$F48 -> 0 | J17: =IF(Amort=2,Real3!AC93,0) -> 0 | K17: =Real4!$E48 -> 0 | L17: =Real4!$F48 -> 0 | M17: =IF(Amort=2,Real4!AC93,0) -> 0 | N17: =Real5!$E48 -> 0 | O17: =Real5!$F48 -> 0 | P17: =IF(Amort=2,Real5!AC93,0) -> 0 | Q17: =Lån6!$E48 -> 0 | R17: =Lån6!$F48 -> 0 | S17: =IF(Amort=2,Lån6!AC93,0) -> 0 | T17: =Lån7!$E48 -> 0 | U17: =Lån7!$F48 -> 0 | V17: =IF(Amort=2,Lån7!AC93,0) -> 0 | W17: =Lån8!$E48 -> 0 | X17: =Lån8!$F48 -> 0 | Y17: =IF(Amort=2,Lån8!AC93,0) -> 0 | Z17: =Lån9!$E48 -> 0 | AA17: =Lån9!$F48 -> 0 | AB17: =IF(Amort=2,Lån9!AC93,0) -> 0 | AC17: =Lån10!$E48 -> 0 | AD17: =Lån10!$F48 -> 0 | AE17: =IF(Amort=2,Lån10!AC93,0) -> 0 | AF17: =B17+E17+H17+K17+N17+Q17+T17+W17+Z17+AC17 -> 0 | AG17: =C17+F17+I17+L17+O17+R17+U17+X17+AA17+AD17 -> 0 | AH17: 0 | AI17: =Y17+V17+S17+P17+M17+J17+G17+D17+AB17+AE17 -> 0
A18: 10 | B18: =Real1!E49 -> 0 | C18: =Real1!F49 -> 0 | D18: =IF(Amort=2,Real1!AC94,0) -> 0 | E18: =Real2!$E49 -> 0 | F18: =Real2!$F49 -> 0 | G18: =IF(Amort=2,Real2!AC94,0) -> 0 | H18: =Real3!$E49 -> 0 | I18: =Real3!$F49 -> 0 | J18: =IF(Amort=2,Real3!AC94,0) -> 0 | K18: =Real4!$E49 -> 0 | L18: =Real4!$F49 -> 0 | M18: =IF(Amort=2,Real4!AC94,0) -> 0 | N18: =Real5!$E49 -> 0 | O18: =Real5!$F49 -> 0 | P18: =IF(Amort=2,Real5!AC94,0) -> 0 | Q18: =Lån6!$E49 -> 0 | R18: =Lån6!$F49 -> 0 | S18: =IF(Amort=2,Lån6!AC94,0) -> 0 | T18: =Lån7!$E49 -> 0 | U18: =Lån7!$F49 -> 0 | V18: =IF(Amort=2,Lån7!AC94,0) -> 0 | W18: =Lån8!$E49 -> 0 | X18: =Lån8!$F49 -> 0 | Y18: =IF(Amort=2,Lån8!AC94,0) -> 0 | Z18: =Lån9!$E49 -> 0 | AA18: =Lån9!$F49 -> 0 | AB18: =IF(Amort=2,Lån9!AC94,0) -> 0 | AC18: =Lån10!$E49 -> 0 | AD18: =Lån10!$F49 -> 0 | AE18: =IF(Amort=2,Lån10!AC94,0) -> 0 | AF18: =B18+E18+H18+K18+N18+Q18+T18+W18+Z18+AC18 -> 0 | AG18: =C18+F18+I18+L18+O18+R18+U18+X18+AA18+AD18 -> 0 | AH18: 0 | AI18: =Y18+V18+S18+P18+M18+J18+G18+D18+AB18+AE18 -> 0
A19: 11 | B19: =Real1!E50 -> 0 | C19: =Real1!F50 -> 0 | D19: =IF(Amort=2,Real1!AC95,0) -> 0 | E19: =Real2!$E50 -> 0 | F19: =Real2!$F50 -> 0 | G19: =IF(Amort=2,Real2!AC95,0) -> 0 | H19: =Real3!$E50 -> 0 | I19: =Real3!$F50 -> 0 | J19: =IF(Amort=2,Real3!AC95,0) -> 0 | K19: =Real4!$E50 -> 0 | L19: =Real4!$F50 -> 0 | M19: =IF(Amort=2,Real4!AC95,0) -> 0 | N19: =Real5!$E50 -> 0 | O19: =Real5!$F50 -> 0 | P19: =IF(Amort=2,Real5!AC95,0) -> 0 | Q19: =Lån6!$E50 -> 0 | R19: =Lån6!$F50 -> 0 | S19: =IF(Amort=2,Lån6!AC95,0) -> 0 | T19: =Lån7!$E50 -> 0 | U19: =Lån7!$F50 -> 0 | V19: =IF(Amort=2,Lån7!AC95,0) -> 0 | W19: =Lån8!$E50 -> 0 | X19: =Lån8!$F50 -> 0 | Y19: =IF(Amort=2,Lån8!AC95,0) -> 0 | Z19: =Lån9!$E50 -> 0 | AA19: =Lån9!$F50 -> 0 | AB19: =IF(Amort=2,Lån9!AC95,0) -> 0 | AC19: =Lån10!$E50 -> 0 | AD19: =Lån10!$F50 -> 0 | AE19: =IF(Amort=2,Lån10!AC95,0) -> 0 | AF19: =B19+E19+H19+K19+N19+Q19+T19+W19+Z19+AC19 -> 0 | AG19: =C19+F19+I19+L19+O19+R19+U19+X19+AA19+AD19 -> 0 | AH19: 0 | AI19: =Y19+V19+S19+P19+M19+J19+G19+D19+AB19+AE19 -> 0
A20: 12 | B20: =Real1!E51 -> 0 | C20: =Real1!F51 -> 0 | D20: =IF(Amort=2,Real1!AC96,0) -> 0 | E20: =Real2!$E51 -> 0 | F20: =Real2!$F51 -> 0 | G20: =IF(Amort=2,Real2!AC96,0) -> 0 | H20: =Real3!$E51 -> 0 | I20: =Real3!$F51 -> 0 | J20: =IF(Amort=2,Real3!AC96,0) -> 0 | K20: =Real4!$E51 -> 0 | L20: =Real4!$F51 -> 0 | M20: =IF(Amort=2,Real4!AC96,0) -> 0 | N20: =Real5!$E51 -> 0 | O20: =Real5!$F51 -> 0 | P20: =IF(Amort=2,Real5!AC96,0) -> 0 | Q20: =Lån6!$E51 -> 0 | R20: =Lån6!$F51 -> 0 | S20: =IF(Amort=2,Lån6!AC96,0) -> 0 | T20: =Lån7!$E51 -> 0 | U20: =Lån7!$F51 -> 0 | V20: =IF(Amort=2,Lån7!AC96,0) -> 0 | W20: =Lån8!$E51 -> 0 | X20: =Lån8!$F51 -> 0 | Y20: =IF(Amort=2,Lån8!AC96,0) -> 0 | Z20: =Lån9!$E51 -> 0 | AA20: =Lån9!$F51 -> 0 | AB20: =IF(Amort=2,Lån9!AC96,0) -> 0 | AC20: =Lån10!$E51 -> 0 | AD20: =Lån10!$F51 -> 0 | AE20: =IF(Amort=2,Lån10!AC96,0) -> 0 | AF20: 0 | AG20: 0 | AH20: 0 | AI20: 0
A21: 13 | B21: =Real1!E52 -> 0 | C21: =Real1!F52 -> 0 | D21: =IF(Amort=2,Real1!AC97,0) -> 0 | E21: =Real2!$E52 -> 0 | F21: =Real2!$F52 -> 0 | G21: =IF(Amort=2,Real2!AC97,0) -> 0 | H21: =Real3!$E52 -> 0 | I21: =Real3!$F52 -> 0 | J21: =IF(Amort=2,Real3!AC97,0) -> 0 | K21: =Real4!$E52 -> 0 | L21: =Real4!$F52 -> 0 | M21: =IF(Amort=2,Real4!AC97,0) -> 0 | N21: =Real5!$E52 -> 0 | O21: =Real5!$F52 -> 0 | P21: =IF(Amort=2,Real5!AC97,0) -> 0 | Q21: =Lån6!$E52 -> 0 | R21: =Lån6!$F52 -> 0 | S21: =IF(Amort=2,Lån6!AC97,0) -> 0 | T21: =Lån7!$E52 -> 0 | U21: =Lån7!$F52 -> 0 | V21: =IF(Amort=2,Lån7!AC97,0) -> 0 | W21: =Lån8!$E52 -> 0 | X21: =Lån8!$F52 -> 0 | Y21: =IF(Amort=2,Lån8!AC97,0) -> 0 | Z21: =Lån9!$E52 -> 0 | AA21: =Lån9!$F52 -> 0 | AB21: =IF(Amort=2,Lån9!AC97,0) -> 0 | AC21: =Lån10!$E52 -> 0 | AD21: =Lån10!$F52 -> 0 | AE21: =IF(Amort=2,Lån10!AC97,0) -> 0 | AF21: =B21+E21+H21+K21+N21+Q21+T21+W21+Z21+AC21 -> 0 | AG21: =C21+F21+I21+L21+O21+R21+U21+X21+AA21+AD21 -> 0 | AH21: 0 | AI21: =Y21+V21+S21+P21+M21+J21+G21+D21+AB21+AE21 -> 0
A22: 14 | B22: =Real1!E53 -> 0 | C22: =Real1!F53 -> 0 | D22: =IF(Amort=2,Real1!AC98,0) -> 0 | E22: =Real2!$E53 -> 0 | F22: =Real2!$F53 -> 0 | G22: =IF(Amort=2,Real2!AC98,0) -> 0 | H22: =Real3!$E53 -> 0 | I22: =Real3!$F53 -> 0 | J22: =IF(Amort=2,Real3!AC98,0) -> 0 | K22: =Real4!$E53 -> 0 | L22: =Real4!$F53 -> 0 | M22: =IF(Amort=2,Real4!AC98,0) -> 0 | N22: =Real5!$E53 -> 0 | O22: =Real5!$F53 -> 0 | P22: =IF(Amort=2,Real5!AC98,0) -> 0 | Q22: =Lån6!$E53 -> 0 | R22: =Lån6!$F53 -> 0 | S22: =IF(Amort=2,Lån6!AC98,0) -> 0 | T22: =Lån7!$E53 -> 0 | U22: =Lån7!$F53 -> 0 | V22: =IF(Amort=2,Lån7!AC98,0) -> 0 | W22: =Lån8!$E53 -> 0 | X22: =Lån8!$F53 -> 0 | Y22: =IF(Amort=2,Lån8!AC98,0) -> 0 | Z22: =Lån9!$E53 -> 0 | AA22: =Lån9!$F53 -> 0 | AB22: =IF(Amort=2,Lån9!AC98,0) -> 0 | AC22: =Lån10!$E53 -> 0 | AD22: =Lån10!$F53 -> 0 | AE22: =IF(Amort=2,Lån10!AC98,0) -> 0 | AF22: =B22+E22+H22+K22+N22+Q22+T22+W22+Z22+AC22 -> 0 | AG22: =C22+F22+I22+L22+O22+R22+U22+X22+AA22+AD22 -> 0 | AH22: 0 | AI22: =Y22+V22+S22+P22+M22+J22+G22+D22+AB22+AE22 -> 0
A23: 15 | B23: =Real1!E54 -> 0 | C23: =Real1!F54 -> 0 | D23: =IF(Amort=2,Real1!AC99,0) -> 0 | E23: =Real2!$E54 -> 0 | F23: =Real2!$F54 -> 0 | G23: =IF(Amort=2,Real2!AC99,0) -> 0 | H23: =Real3!$E54 -> 0 | I23: =Real3!$F54 -> 0 | J23: =IF(Amort=2,Real3!AC99,0) -> 0 | K23: =Real4!$E54 -> 0 | L23: =Real4!$F54 -> 0 | M23: =IF(Amort=2,Real4!AC99,0) -> 0 | N23: =Real5!$E54 -> 0 | O23: =Real5!$F54 -> 0 | P23: =IF(Amort=2,Real5!AC99,0) -> 0 | Q23: =Lån6!$E54 -> 0 | R23: =Lån6!$F54 -> 0 | S23: =IF(Amort=2,Lån6!AC99,0) -> 0 | T23: =Lån7!$E54 -> 0 | U23: =Lån7!$F54 -> 0 | V23: =IF(Amort=2,Lån7!AC99,0) -> 0 | W23: =Lån8!$E54 -> 0 | X23: =Lån8!$F54 -> 0 | Y23: =IF(Amort=2,Lån8!AC99,0) -> 0 | Z23: =Lån9!$E54 -> 0 | AA23: =Lån9!$F54 -> 0 | AB23: =IF(Amort=2,Lån9!AC99,0) -> 0 | AC23: =Lån10!$E54 -> 0 | AD23: =Lån10!$F54 -> 0 | AE23: =IF(Amort=2,Lån10!AC99,0) -> 0 | AF23: =B23+E23+H23+K23+N23+Q23+T23+W23+Z23+AC23 -> 0 | AG23: =C23+F23+I23+L23+O23+R23+U23+X23+AA23+AD23 -> 0 | AH23: 0 | AI23: =Y23+V23+S23+P23+M23+J23+G23+D23+AB23+AE23 -> 0
A24: 16 | B24: =Real1!E55 -> 0 | C24: =Real1!F55 -> 0 | D24: =IF(Amort=2,Real1!AC100,0) -> 0 | E24: =Real2!$E55 -> 0 | F24: =Real2!$F55 -> 0 | G24: =IF(Amort=2,Real2!AC100,0) -> 0 | H24: =Real3!$E55 -> 0 | I24: =Real3!$F55 -> 0 | J24: =IF(Amort=2,Real3!AC100,0) -> 0 | K24: =Real4!$E55 -> 0 | L24: =Real4!$F55 -> 0 | M24: =IF(Amort=2,Real4!AC100,0) -> 0 | N24: =Real5!$E55 -> 0 | O24: =Real5!$F55 -> 0 | P24: =IF(Amort=2,Real5!AC100,0) -> 0 | Q24: =Lån6!$E55 -> 0 | R24: =Lån6!$F55 -> 0 | S24: =IF(Amort=2,Lån6!AC100,0) -> 0 | T24: =Lån7!$E55 -> 0 | U24: =Lån7!$F55 -> 0 | V24: =IF(Amort=2,Lån7!AC100,0) -> 0 | W24: =Lån8!$E55 -> 0 | X24: =Lån8!$F55 -> 0 | Y24: =IF(Amort=2,Lån8!AC100,0) -> 0 | Z24: =Lån9!$E55 -> 0 | AA24: =Lån9!$F55 -> 0 | AB24: =IF(Amort=2,Lån9!AC100,0) -> 0 | AC24: =Lån10!$E55 -> 0 | AD24: =Lån10!$F55 -> 0 | AE24: =IF(Amort=2,Lån10!AC100,0) -> 0 | AF24: 0 | AG24: 0 | AH24: 0 | AI24: =Y24+V24+S24+P24+M24+J24+G24+D24+AB24+AE24 -> 0
A25: 17 | B25: =Real1!E56 -> 0 | C25: =Real1!F56 -> 0 | D25: =IF(Amort=2,Real1!AC101,0) -> 0 | E25: =Real2!$E56 -> 0 | F25: =Real2!$F56 -> 0 | G25: =IF(Amort=2,Real2!AC101,0) -> 0 | H25: =Real3!$E56 -> 0 | I25: =Real3!$F56 -> 0 | J25: =IF(Amort=2,Real3!AC101,0) -> 0 | K25: =Real4!$E56 -> 0 | L25: =Real4!$F56 -> 0 | M25: =IF(Amort=2,Real4!AC101,0) -> 0 | N25: =Real5!$E56 -> 0 | O25: =Real5!$F56 -> 0 | P25: =IF(Amort=2,Real5!AC101,0) -> 0 | Q25: =Lån6!$E56 -> 0 | R25: =Lån6!$F56 -> 0 | S25: =IF(Amort=2,Lån6!AC101,0) -> 0 | T25: =Lån7!$E56 -> 0 | U25: =Lån7!$F56 -> 0 | V25: =IF(Amort=2,Lån7!AC101,0) -> 0 | W25: =Lån8!$E56 -> 0 | X25: =Lån8!$F56 -> 0 | Y25: =IF(Amort=2,Lån8!AC101,0) -> 0 | Z25: =Lån9!$E56 -> 0 | AA25: =Lån9!$F56 -> 0 | AB25: =IF(Amort=2,Lån9!AC101,0) -> 0 | AC25: =Lån10!$E56 -> 0 | AD25: =Lån10!$F56 -> 0 | AE25: =IF(Amort=2,Lån10!AC101,0) -> 0 | AF25: =B25+E25+H25+K25+N25+Q25+T25+W25+Z25+AC25 -> 0 | AG25: =C25+F25+I25+L25+O25+R25+U25+X25+AA25+AD25 -> 0 | AH25: =AF25+AG25 -> 0 | AI25: =Y25+V25+S25+P25+M25+J25+G25+D25+AB25+AE25 -> 0
A26: 18 | B26: =Real1!E57 -> 0 | C26: =Real1!F57 -> 0 | D26: =IF(Amort=2,Real1!AC102,0) -> 0 | E26: =Real2!$E57 -> 0 | F26: =Real2!$F57 -> 0 | G26: =IF(Amort=2,Real2!AC102,0) -> 0 | H26: =Real3!$E57 -> 0 | I26: =Real3!$F57 -> 0 | J26: =IF(Amort=2,Real3!AC102,0) -> 0 | K26: =Real4!$E57 -> 0 | L26: =Real4!$F57 -> 0 | M26: =IF(Amort=2,Real4!AC102,0) -> 0 | N26: =Real5!$E57 -> 0 | O26: =Real5!$F57 -> 0 | P26: =IF(Amort=2,Real5!AC102,0) -> 0 | Q26: =Lån6!$E57 -> 0 | R26: =Lån6!$F57 -> 0 | S26: =IF(Amort=2,Lån6!AC102,0) -> 0 | T26: =Lån7!$E57 -> 0 | U26: =Lån7!$F57 -> 0 | V26: =IF(Amort=2,Lån7!AC102,0) -> 0 | W26: =Lån8!$E57 -> 0 | X26: =Lån8!$F57 -> 0 | Y26: =IF(Amort=2,Lån8!AC102,0) -> 0 | Z26: =Lån9!$E57 -> 0 | AA26: =Lån9!$F57 -> 0 | AB26: =IF(Amort=2,Lån9!AC102,0) -> 0 | AC26: =Lån10!$E57 -> 0 | AD26: =Lån10!$F57 -> 0 | AE26: =IF(Amort=2,Lån10!AC102,0) -> 0 | AF26: =B26+E26+H26+K26+N26+Q26+T26+W26+Z26+AC26 -> 0 | AG26: =C26+F26+I26+L26+O26+R26+U26+X26+AA26+AD26 -> 0 | AH26: 0 | AI26: =Y26+V26+S26+P26+M26+J26+G26+D26+AB26+AE26 -> 0
A27: 19 | B27: =Real1!E58 -> 0 | C27: =Real1!F58 -> 0 | D27: =IF(Amort=2,Real1!AC103,0) -> 0 | E27: =Real2!$E58 -> 0 | F27: =Real2!$F58 -> 0 | G27: =IF(Amort=2,Real2!AC103,0) -> 0 | H27: =Real3!$E58 -> 0 | I27: =Real3!$F58 -> 0 | J27: =IF(Amort=2,Real3!AC103,0) -> 0 | K27: =Real4!$E58 -> 0 | L27: =Real4!$F58 -> 0 | M27: =IF(Amort=2,Real4!AC103,0) -> 0 | N27: =Real5!$E58 -> 0 | O27: =Real5!$F58 -> 0 | P27: =IF(Amort=2,Real5!AC103,0) -> 0 | Q27: =Lån6!$E58 -> 0 | R27: =Lån6!$F58 -> 0 | S27: =IF(Amort=2,Lån6!AC103,0) -> 0 | T27: =Lån7!$E58 -> 0 | U27: =Lån7!$F58 -> 0 | V27: =IF(Amort=2,Lån7!AC103,0) -> 0 | W27: =Lån8!$E58 -> 0 | X27: =Lån8!$F58 -> 0 | Y27: =IF(Amort=2,Lån8!AC103,0) -> 0 | Z27: =Lån9!$E58 -> 0 | AA27: =Lån9!$F58 -> 0 | AB27: =IF(Amort=2,Lån9!AC103,0) -> 0 | AC27: =Lån10!$E58 -> 0 | AD27: =Lån10!$F58 -> 0 | AE27: =IF(Amort=2,Lån10!AC103,0) -> 0 | AF27: =B27+E27+H27+K27+N27+Q27+T27+W27+Z27+AC27 -> 0 | AG27: =C27+F27+I27+L27+O27+R27+U27+X27+AA27+AD27 -> 0 | AH27: 0 | AI27: =Y27+V27+S27+P27+M27+J27+G27+D27+AB27+AE27 -> 0
A28: 20 | B28: =Real1!E59 -> 0 | C28: =Real1!F59 -> 0 | D28: =IF(Amort=2,Real1!AC104,0) -> 0 | E28: =Real2!$E59 -> 0 | F28: =Real2!$F59 -> 0 | G28: =IF(Amort=2,Real2!AC104,0) -> 0 | H28: =Real3!$E59 -> 0 | I28: =Real3!$F59 -> 0 | J28: =IF(Amort=2,Real3!AC104,0) -> 0 | K28: =Real4!$E59 -> 0 | L28: =Real4!$F59 -> 0 | M28: =IF(Amort=2,Real4!AC104,0) -> 0 | N28: =Real5!$E59 -> 0 | O28: =Real5!$F59 -> 0 | P28: =IF(Amort=2,Real5!AC104,0) -> 0 | Q28: =Lån6!$E59 -> 0 | R28: =Lån6!$F59 -> 0 | S28: =IF(Amort=2,Lån6!AC104,0) -> 0 | T28: =Lån7!$E59 -> 0 | U28: =Lån7!$F59 -> 0 | V28: =IF(Amort=2,Lån7!AC104,0) -> 0 | W28: =Lån8!$E59 -> 0 | X28: =Lån8!$F59 -> 0 | Y28: =IF(Amort=2,Lån8!AC104,0) -> 0 | Z28: =Lån9!$E59 -> 0 | AA28: =Lån9!$F59 -> 0 | AB28: =IF(Amort=2,Lån9!AC104,0) -> 0 | AC28: =Lån10!$E59 -> 0 | AD28: =Lån10!$F59 -> 0 | AE28: =IF(Amort=2,Lån10!AC104,0) -> 0 | AF28: 0 | AG28: 0 | AH28: 0 | AI28: =Y28+V28+S28+P28+M28+J28+G28+D28+AB28+AE28 -> 0
B29: Afdrag | C29: =IF(Amort=1,"Rente/adm","Rente ialt") -> Rente/adm | D29: =IF(Amort=2,"Amort","") ->  | E29: Afdrag | F29: =IF(Amort=1,"Rente/adm","Rente ialt") -> Rente/adm | G29: =IF(Amort=2,"Amort","") ->  | H29: Afdrag | I29: =IF(Amort=1,"Rente/adm","Rente ialt") -> Rente/adm | J29: =IF(Amort=2,"Amort","") ->  | K29: Afdrag | L29: =IF(Amort=1,"Rente/adm","Rente ialt") -> Rente/adm | M29: =IF(Amort=2,"Amort","") ->  | N29: Afdrag | O29: =IF(Amort=1,"Rente/adm","Rente ialt") -> Rente/adm | P29: =IF(Amort=2,"Amort","") ->  | Q29: Afdrag | R29: =IF(Amort=1,"Rente/adm","Rente ialt") -> Rente/adm | S29: =IF(Amort=2,"Amort","") ->  | T29: Afdrag | U29: =IF(Amort=1,"Rente/adm","Rente ialt") -> Rente/adm | V29: =IF(Amort=2,"Amort","") ->  | W29: Afdrag | X29: =IF(Amort=1,"Rente/adm","Rente ialt") -> Rente/adm | Y29: =IF(Amort=2,"Amort","") ->  | Z29: Afdrag | AA29: =IF(Amort=1,"Rente/adm","Rente ialt") -> Rente/adm | AB29: =IF(Amort=2,"Amort","") ->  | AC29: Afdrag | AD29: =IF(Amort=1,"Rente/adm","Rente ialt") -> Rente/adm | AE29: =IF(Amort=2,"Amort","") ->  | AF29: Afdrag | AG29: =IF(Amort=1,"Rente/adm","Rente ialt") -> Rente/adm | AH29: Ydelse | AI29: =IF(Amort=2,"Amort/1000","") -> 
A30: 1. år | B30: =SUM(B9:B12) -> 0 | C30: =SUM(C9:C12) -> 0 | D30: =IF(Amort=2,ROUND((Real1!$AF$88),0),0) -> 0 | E30: 0 | F30: 0 | G30: =IF(Amort=2,ROUND((Real2!$AF$88),0),0) -> 0 | H30: 0 | I30: 0 | J30: =IF(Amort=2,ROUND((Real3!$AF$88),0),0) -> 0 | K30: 0 | L30: 0 | M30: =IF(Amort=2,ROUND((Real4!$AF$88),0),0) -> 0 | N30: 0 | O30: 0 | P30: =IF(Amort=2,ROUND((Real5!$AF$88),0),0) -> 0 | Q30: 0 | R30: 0 | S30: =IF(Amort=2,ROUND((Lån6!$AF$88),0),0) -> 0 | T30: 0 | U30: 0 | V30: =IF(Amort=2,ROUND((Lån7!$AF$88),0),0) -> 0 | W30: =SUM(W9:W12) -> 0 | X30: 0 | Y30: =IF(Amort=2,ROUND((Lån8!$AF$88),0),0) -> 0 | Z30: =SUM(Z9:Z12) -> 0 | AA30: =SUM(AA9:AA12) -> 0 | AB30: =IF(Amort=2,ROUND((Lån9!$AF$88),0),0) -> 0 | AC30: =SUM(AC9:AC12) -> 0 | AD30: 0 | AE30: =IF(Amort=2,ROUND((Lån10!$AF$88),0),0) -> 0 | AF30: =ROUND(B30+E30+H30+K30+N30+Q30+T30+W30+Z30+AC30,0) -> 0 | AG30: =ROUND(C30+F30+I30+L30+O30+R30+U30+X30+AA30+AD30,0) -> 0 | AH30: =AF30+AG30 -> 0 | AI30: =IF(Amort=2,(ROUND(D30+G30+J30+M30+P30+S30+V30+Y30+AB30+AE30,0))/1000,0) -> 0
A31: 2. år | B31: =SUM(B13:B16) -> 0 | C31: 0 | D31: =IF(Amort=2,ROUND((Real1!$AF$92),0),0) -> 0 | E31: 0 | F31: 0 | G31: =IF(Amort=2,ROUND((Real2!$AF$92),0),0) -> 0 | H31: 0 | I31: 0 | J31: =IF(Amort=2,ROUND((Real3!$AF$92),0),0) -> 0 | K31: 0 | L31: 0 | M31: =IF(Amort=2,ROUND((Real4!$AF$92),0),0) -> 0 | N31: 0 | O31: 0 | P31: =IF(Amort=2,ROUND((Real5!$AF$92),0),0) -> 0 | Q31: 0 | R31: 0 | S31: =IF(Amort=2,ROUND((Lån6!$AF$92),0),0) -> 0 | T31: 0 | U31: 0 | V31: =IF(Amort=2,ROUND((Lån7!$AF$92),0),0) -> 0 | W31: =SUM(W13:W16) -> 0 | X31: 0 | Y31: =IF(Amort=2,ROUND((Lån8!$AF$92),0),0) -> 0 | Z31: =SUM(Z13:Z16) -> 0 | AA31: 0 | AB31: =IF(Amort=2,ROUND((Lån9!$AF$92),0),0) -> 0 | AC31: =SUM(AC13:AC16) -> 0 | AD31: 0 | AE31: =IF(Amort=2,ROUND((Lån10!$AF$92),0),0) -> 0 | AF31: =ROUND(B31+E31+H31+K31+N31+Q31+T31+W31+Z31+AC31,0) -> 0 | AG31: =ROUND(C31+F31+I31+L31+O31+R31+U31+X31+AA31+AD31,0) -> 0 | AH31: =AF31+AG31 -> 0 | AI31: =IF(Amort=2,(ROUND(D31+G31+J31+M31+P31+S31+V31+Y31+AB31+AE31,0))/1000,0) -> 0
A32: 3. år | B32: =SUM(B17:B20) -> 0 | C32: 0 | D32: =IF(Amort=2,ROUND((Real1!$AF$96),0),0) -> 0 | E32: 0 | F32: 0 | G32: =IF(Amort=2,ROUND((Real2!$AF$96),0),0) -> 0 | H32: 0 | I32: 0 | J32: =IF(Amort=2,ROUND((Real3!$AF$96),0),0) -> 0 | K32: 0 | L32: 0 | M32: =IF(Amort=2,ROUND((Real4!$AF$96),0),0) -> 0 | N32: 0 | O32: 0 | P32: =IF(Amort=2,ROUND((Real5!$AF$96),0),0) -> 0 | Q32: 0 | R32: 0 | S32: =IF(Amort=2,ROUND((Lån6!$AF$96),0),0) -> 0 | T32: 0 | U32: 0 | V32: =IF(Amort=2,ROUND((Lån7!$AF$96),0),0) -> 0 | W32: =SUM(W17:W20) -> 0 | X32: 0 | Y32: =IF(Amort=2,ROUND((Lån8!$AF$96),0),0) -> 0 | Z32: =SUM(Z17:Z20) -> 0 | AA32: 0 | AB32: =IF(Amort=2,ROUND((Lån9!$AF$96),0),0) -> 0 | AC32: =SUM(AC17:AC20) -> 0 | AD32: 0 | AE32: =IF(Amort=2,ROUND((Lån10!$AF$96),0),0) -> 0 | AF32: =ROUND(B32+E32+H32+K32+N32+Q32+T32+W32+Z32+AC32,0) -> 0 | AG32: =ROUND(C32+F32+I32+L32+O32+R32+U32+X32+AA32+AD32,0) -> 0 | AH32: =AF32+AG32 -> 0 | AI32: =IF(Amort=2,(ROUND(D32+G32+J32+M32+P32+S32+V32+Y32+AB32+AE32,0))/1000,0) -> 0
A33: 4. år | B33: =SUM(B21:B24) -> 0 | C33: 0 | D33: =IF(Amort=2,ROUND((Real1!$AF$100),0),0) -> 0 | E33: 0 | F33: 0 | G33: =IF(Amort=2,ROUND((Real2!$AF$100),0),0) -> 0 | H33: 0 | I33: 0 | J33: =IF(Amort=2,ROUND((Real3!$AF$100),0),0) -> 0 | K33: 0 | L33: 0 | M33: =IF(Amort=2,ROUND((Real4!$AF$100),0),0) -> 0 | N33: 0 | O33: 0 | P33: =IF(Amort=2,ROUND((Real5!$AF$100),0),0) -> 0 | Q33: 0 | R33: 0 | S33: =IF(Amort=2,ROUND((Lån6!$AF$100),0),0) -> 0 | T33: 0 | U33: 0 | V33: =IF(Amort=2,ROUND((Lån7!$AF$100),0),0) -> 0 | W33: =SUM(W21:W24) -> 0 | X33: 0 | Y33: =IF(Amort=2,ROUND((Lån8!$AF$100),0),0) -> 0 | Z33: =SUM(Z21:Z24) -> 0 | AA33: 0 | AB33: =IF(Amort=2,ROUND((Lån9!$AF$100),0),0) -> 0 | AC33: =SUM(AC21:AC24) -> 0 | AD33: 0 | AE33: =IF(Amort=2,ROUND((Lån10!$AF$100),0),0) -> 0 | AF33: 0 | AG33: 0 | AH33: =AF33+AG33 -> 0 | AI33: =IF(Amort=2,(ROUND(D33+G33+J33+M33+P33+S33+V33+Y33+AB33+AE33,0))/1000,0) -> 0
A34: 5. år | B34: =SUM(B25:B28) -> 0 | C34: =SUM(C25:C28) -> 0 | D34: 0 | E34: 0 | F34: 0 | G34: 0 | H34: 0 | I34: 0 | J34: 0 | K34: 0 | L34: 0 | M34: 0 | N34: 0 | O34: 0 | P34: 0 | Q34: 0 | R34: 0 | S34: 0 | T34: 0 | U34: 0 | V34: 0 | W34: 0 | X34: 0 | Y34: 0 | Z34: =SUM(Z25:Z28) -> 0 | AA34: 0 | AB34: 0 | AC34: 0 | AD34: 0 | AE34: =IF(Amort=2,ROUND((Lån10!$AF$100),0),0) -> 0 | AF34: =ROUND(B34+E34+H34+K34+N34+Q34+T34+W34+Z34+AC34,0) -> 0 | AG34: =ROUND(C34+F34+I34+L34+O34+R34+U34+X34+AA34+AD34,0) -> 0 | AH34: =AF34+AG34 -> 0 | AI34: =IF(Amort=2,(ROUND(D34+G34+J34+M34+P34+S34+V34+Y34+AB34+AE34,0))/1000,0) -> 0
A46: Stiftelsesprovision (beregnes af hovedstol, min. 10.000)) | C46: =Real1!$H32*-1 -> 0 | F46: =Real2!$H32*-1 -> 0 | I46: =Real3!$H32*-1 -> 0 | L46: =Real4!$H32*-1 -> 0 | O46: =Real5!$H32*-1 -> 0 | R46: =Lån6!$H32*-1 -> 0 | U46: =Lån7!$H32*-1 -> 0 | X46: =Lån8!$H32*-1 -> 0 | AG46: =SUM(C46:X46) -> 0
A47: Kurtage (beregnes af kursværdi) | C47: =Real1!$H33*-1 -> 0 | F47: =Real2!$H33*-1 -> 0 | I47: =Real3!$H33*-1 -> 0 | L47: =Real4!$H33*-1 -> 0 | O47: =Real5!$H33*-1 -> 0 | R47: =Lån6!$H33*-1 -> 0 | U47: =Lån7!$H33*-1 -> 0 | X47: =Lån8!$H33*-1 -> 0 | AG47: 0
A48: Vurdering og lånetilbud, kr. | C48: =Real1!$H34*-1 -> 0 | F48: =Real2!$H34*-1 -> 0 | I48: =Real3!$H34*-1 -> 0 | L48: =Real4!$H34*-1 -> 0 | O48: =Real5!$H34*-1 -> 0 | R48: =Lån6!$H34*-1 -> 0 | U48: =Lån7!$H34*-1 -> 0 | X48: =Lån8!$H34*-1 -> 0 | AG48: 0
A49: Stempelafgift, staten (beregnes af hovedstol, opr. hele 100 kr) | C49: =Real1!$H35*-1 -> 0 | F49: =Real2!$H35*-1 -> 0 | I49: =Real3!$H35*-1 -> 0 | L49: =Real4!$H35*-1 -> 0 | O49: =Real5!$H35*-1 -> 0 | R49: =Lån6!$H35*-1 -> 0 | U49: =Lån7!$H35*-1 -> 0 | X49: =Lån8!$H35*-1 -> 0 | AG49: 0
A50: Tinglysning, staten, kr. | C50: =Real1!$H36*-1 -> 0 | F50: =Real2!$H36*-1 -> 0 | I50: =Real3!$H36*-1 -> 0 | L50: =Real4!$H36*-1 -> 0 | O50: =Real5!$H36*-1 -> 0 | R50: =Lån6!$H36*-1 -> 0 | U50: =Lån7!$H36*-1 -> 0 | X50: =Lån8!$H36*-1 -> 0 | AG50: 0
A51: Låneomk. | C51: =SUM(C46:C50) -> 0 | F51: =SUM(F46:F50) -> 0 | I51: =SUM(I46:I50) -> 0 | L51: =SUM(L46:L50) -> 0 | O51: =SUM(O46:O50) -> 0 | R51: =SUM(R46:R50) -> 0 | U51: =SUM(U46:U50) -> 0 | X51: =SUM(X46:X50) -> 0 | AF51: =SUM(C51:X51) -> 0 | AG51: 0
A53: Kurstab | C53: =Real1!I30*-1 -> 0 | F53: =Real2!$I30*-1 -> 0 | I53: =Real3!$I30*-1 -> 0 | L53: =Real4!$I30*-1 -> 0 | O53: =Real5!$I30*-1 -> 0 | R53: =Lån6!$I30*-1 -> 0 | U53: =Lån7!$I30*-1 -> 0 | X53: =Lån7!$I30*-1 -> 0 | AG53: =SUM(C53:X53) -> 0
A54: Amortisering | C54: =C51*-1+C53 -> 0 | F54: =F51*-1+F53 -> 0 | I54: =I51*-1+I53 -> 0 | L54: =L51*-1+L53 -> 0 | O54: =O51*-1+O53 -> 0 | R54: =R51*-1+R53 -> 0 | U54: =U51*-1+U53 -> 0 | X54: =X51*-1+X53 -> 0 | AF54: =SUM(C54:X54) -> 0 | AG54: =AG51*-1+AG53 -> 0
AP55: Til kopiering til BudgetVejlby
AP57: Renter og bidrag i alt
AP58: =AG30/-1000 -> 0 | AQ58: År 1
AP59: =AG31/-1000 -> 0 | AQ59: År 2 | AR59: Der kopieres i makroen med indsæt speciel kun værdier
AP60: =AG32/-1000 -> 0 | AQ60: År 3 | AR60: Hvert område har sit eget navn, FVKopi1, FVKopi2 osv.
AP61: =AG33/-1000 -> 0 | AQ61: År 4
AP62: =AG34/-1000 -> 0 | AQ62: År 5
AP63: Prioritetsomk
AP64: =IF(Amort=1,'Omk. & restfinans'!I23/-1000,0) -> 0 | AT64: År 1 | AX64: År 2 | BC64: År 3 | BH64: År 4 | BN64: År 5
AP65: Realkredit | AR65: -Gæld | AT65: +Afdrag | AW65: -Gæld | AY65: +Afdrag | BB65: -Gæld | BD65: +Afdrag | BG65: -Gæld | BI65: +Afdrag | BL65: -Gæld | BN65: +Afdrag
AP66: =B5 -> Fast rente 30 år | AR66: =-ROUND(B$7/1000,3) -> 0 | AT66: =ROUND($B30/1000,3) -> 0 | AW66: =AR66+AS66+AT66+AU66 -> 0 | AY66: =ROUND($B31/1000,3) -> 0 | BB66: =AW66+AX66+AY66+AZ66 -> 0 | BD66: =ROUND($B32/1000,3) -> 0 | BG66: =BB66+BC66+BD66+BE66 -> 0 | BI66: =ROUND($B33/1000,3) -> 0 | BL66: =BG66+BH66+BI66+BJ66 -> 0 | BN66: =ROUND($B34/1000,3) -> 0
AP67: =E5 -> Flexkort | AR67: =-ROUND(E$7/1000,3) -> 0 | AT67: =ROUND($E30/1000,3) -> 0 | AW67: =AR67+AS67+AT67+AU67 -> 0 | AY67: =ROUND($E31/1000,3) -> 0 | BB67: =AW67+AX67+AY67+AZ67 -> 0 | BD67: =ROUND($E32/1000,3) -> 0 | BG67: =BB67+BC67+BD67+BE67 -> 0 | BI67: =ROUND($E33/1000,3) -> 0 | BL67: =BG67+BH67+BI67+BJ67 -> 0 | BN67: =ROUND($E34/1000,3) -> 0
AP68: =H5 -> 0 | AR68: =-ROUND(H$7/1000,3) -> 0 | AT68: =ROUND($H30/1000,3) -> 0 | AW68: 0 | AY68: =ROUND($H31/1000,3) -> 0 | BB68: 0 | BD68: =ROUND($H32/1000,3) -> 0 | BG68: 0 | BI68: =ROUND($H33/1000,3) -> 0 | BL68: 0 | BN68: =ROUND($H34/1000,3) -> 0
AP69: =K5 -> 0 | AR69: =-ROUND(K$7/1000,3) -> 0 | AT69: =ROUND($K30/1000,3) -> 0 | AW69: 0 | AY69: =ROUND($K31/1000,3) -> 0 | BB69: 0 | BD69: =ROUND($K32/1000,3) -> 0 | BG69: 0 | BI69: =ROUND($K33/1000,3) -> 0 | BL69: 0 | BN69: =ROUND($K34/1000,3) -> 0
AP70: =N5 -> 0 | AR70: =-ROUND(N$7/1000,3) -> 0 | AT70: =ROUND($N30/1000,3) -> 0 | AW70: 0 | AY70: =ROUND($N31/1000,3) -> 0 | BB70: 0 | BD70: =ROUND($N32/1000,3) -> 0 | BG70: 0 | BI70: =ROUND($N33/1000,3) -> 0 | BL70: 0 | BN70: =ROUND($N34/1000,3) -> 0
AP71: Pengeinstitut
AP72: =Q5 -> Banklån | AR72: =-ROUND(Q$7/1000,3) -> 0 | AT72: =ROUND($Q30/1000,3) -> 0 | AW72: =AR72+AS72+AT72+AU72 -> 0 | AY72: =ROUND($Q31/1000,3) -> 0 | BB72: 0 | BD72: =ROUND($Q32/1000,3) -> 0 | BG72: 0 | BI72: =ROUND($Q33/1000,3) -> 0 | BL72: 0 | BN72: =ROUND($Q34/1000,3) -> 0
AP73: =T5 -> EIFO | AR73: =-ROUND(T$7/1000,3) -> 0 | AT73: =ROUND($T30/1000,3) -> 0 | AW73: =AR73+AS73+AT73+AU73 -> 0 | AY73: =ROUND($T31/1000,3) -> 0 | BB73: 0 | BD73: =ROUND($T32/1000,3) -> 0 | BG73: 0 | BI73: =ROUND($T33/1000,3) -> 0 | BL73: 0 | BN73: =ROUND($T34/1000,3) -> 0
AP74: =W5 -> Etableringslån | AR74: =-ROUND(W$7/1000,3) -> 0 | AT74: =ROUND($W30/1000,3) -> 0 | AW74: 0 | AY74: =ROUND($W31/1000,3) -> 0 | BB74: =AW74+AX74+AY74+AZ74 -> 0 | BD74: =ROUND($W32/1000,3) -> 0 | BG74: =BB74+BC74+BD74+BE74 -> 0 | BI74: =ROUND($W33/1000,3) -> 0 | BL74: =BG74+BH74+BI74+BJ74 -> 0 | BN74: =ROUND($W34/1000,3) -> 0
AP75: =Z5 -> Familielån | AR75: =-ROUND(Z$7/1000,3) -> 0 | AT75: =ROUND($Z30/1000,3) -> 0 | AW75: 0 | AY75: =ROUND($Z31/1000,3) -> 0 | BB75: 0 | BD75: =ROUND($Z32/1000,3) -> 0 | BG75: 0 | BI75: =ROUND($Z33/1000,3) -> 0 | BL75: 0 | BN75: =ROUND($Z34/1000,3) -> 0
AP76: =AC5 -> Sælgerpantebrev | AR76: =-ROUND(AC$7/1000,3) -> 0 | AT76: =ROUND($AC30/1000,3) -> 0 | AW76: 0 | AY76: =ROUND($AC31/1000,3) -> 0 | BB76: 0 | BD76: =ROUND($AC32/1000,3) -> 0 | BG76: 0 | BI76: =ROUND($AC33/1000,3) -> 0 | BL76: 0 | BN76: =ROUND($AC34/1000,3) -> 0

Sheet Real1
D1: =IF(Amort=2,"Amortiseret kostpris","") ->  | H1: =IF(ISBLANK(G1),Finansplan!L20,G1) -> 98.88 | I1: kurs | J1: =Finansplan!R59 -> © CHA 12.02.2025 | P1: =IF(AND(ISBLANK(G1),ISBLANK(G2),ISBLANK(G3),ISBLANK(G4),ISBLANK(G5),ISBLANK(G6),ISBLANK(G7),ISBLANK(G8),ISBLANK(G9),ISBLANK(G10),ISBLANK(G32),ISBLANK(G33),ISBLANK(G34),ISBLANK(G35),ISBLANK(G36)),0,1) -> 0
D2: =Finansplan!B20 -> Fast rente 30 år | H2: =IF(ISBLANK(G2),Finansplan!K20,G2) -> o | I2: k = kontant-, o = obl.lån
D3: =IF(H2="k","Kontantlån","Obligationslån") -> Obligationslån | H3: =IF(ISBLANK(G3),Finansplan!J20,G3) -> a | I3: a = annuitet, s = serielån
D4: =IF(H3="s","Serielån","Annuitetslån") -> Annuitetslån | H4: =IF(ISBLANK(G4),Finansplan!I20,G4) -> 0 | I4: hovedstol / restgæld
D5: =IF(H6>0,"med afdragsfrihed","") ->  | H5: =IF(ISBLANK(G5),IF(Finansplan!O20<=50,Finansplan!O20,50),IF(G5<=50,G5,50)) -> 30 | I5: års løbetid | J5: =IF(G5>50,"Max 50 år","") -> 
D6: =IF(H5>30,"Grafikken viser kun de første 30 år af ydelsen","") ->  | H6: =IF(ISBLANK(G6),Finansplan!P20,G6) -> 0 | I6: års afdragsfrihed
H7: =IF(ISBLANK(G7),Finansplan!M20,G7) -> 0.0406 | I7: debitorrente
H8: =IF(ISBLANK(G8),4,G8) -> 4 | I8: terminer inden første status
B9: Effektiv rente før skat | D9: =IF($H$2="k",J70,I70) -> 0 | E9: Nuværdi ydelser | F9: =IF(H2="o",I79,J79) -> 0 | H9: =IF(ISBLANK(G9),Finansplan!I2,G9) -> 0.385 | I9: skatteprocent
B10: Effektiv rente efter skat | D10: =IF($H$2="k",J72,I72) -> 0 | E10: Nominel rente | F10: =E70*4 -> 0.03999610793 | H10: =IF(ISBLANK(G10),Finansplan!N20,G10) -> 0.0125 | I10: adm.bidrags procent
B29: =IF(H2="k","Bagvedliggende obligationer","HOVEDSTOL = pålydende = tinglyst gæld") -> HOVEDSTOL = pålydende = tinglyst gæld | I29: =IF(H2="k",IFERROR(H4/H1*100,0),H4) -> 0 | J29: 1
B30: =IF(H2="k","",IF(I30>0," Kursgevinst"," Kurstab")) -> Kurstab | I30: =IF(H2="k",0,I31-I29) -> 0 | J30: =IF(H4>0,(I29-I31)/I29*-1,0) -> 0
B31: KURSVÆRDI, kurs | D31: =$H$1 -> 98.88 | E31: =IF(H2="k"," = HOVEDSTOL = tinglyst gæld","") ->  | I31: =IF(H2="k",H4,ROUND(H4*H1/100,0)) -> 0
B32: Stiftelsesprovision | F32: =IF(H4>0,IF(H$2="o",H32/I$29,H32/I$31),0) -> 0 | H32: =IF(H4>0,IF(H2="o",I74,J74),0) -> 0
B33: Kurtage (afregningsprovision, beregnes af kursværdi) | F33: =H33/(I31+0.0001) -> 0 | H33: =IF(I31=0,0,IF(ISBLANK(G33),E73,G33)) -> 0
B34: Lånesags- og ekspeditionsgebyr | F34: =IF($I$31=0,0,VurderingGebyrSats) -> 0 | H34: =IF(I31=0,0,IF(ISBLANK(G34),'Omk. & restfinans'!F18,G34)) -> 0
B35: Stempelafgift, staten (beregnes af hovedstol, opr. hele 100 kr | F35: =IF(H4>0,IF(H$2="o",H35/I$29,H35/I$31),0) -> 0 | H35: =IF(ISBLANK(G35),IF(H2="o",I73,J73),G35) -> 0
B36: Tinglysning, staten, kr. | F36: =IF($I$31=0,0,TinglysningPtbr) -> 0 | H36: =IF($I$31=0,0,IF(ISBLANK(G36),TinglysningPtbr,G36)) -> 0
B37: LÅNEOMKOSTNINGER I ALT | H37: =SUM(H32:H36) -> 0 | I37: =H37*-1 -> 0 | J37: =IF(H4>0,I37/I29,0) -> 0
B38: NETTOPROVENU (Udbetalt kreditbeløb) | I38: =ROUND(I31+I37,0) -> 0 | J38: =IF(H4>0,I38/I29*1,0) -> 0
B39: YDELSE | C39: Termin | D39: =IF(Amort=1,"Primo","Forpligtelse") -> Primo | E39: =IF(Amort=1,"Afdrag","Amort afdrag") -> Afdrag | F39: =IF(Amort=1,"Rente+bidrag","Amort. rente") -> Rente+bidrag | I39: Afdrag | J39: =IF(Amort=1,"Rente+bidrag","Amort. rente") -> Rente+bidrag
B40: =IF($H$8=1,"_______________","") ->  | C40: 1 | D40: =AE85 -> 0 | E40: =AA85 -> 0 | F40: =AB85+AC85 -> 0 | H40: =IF($H$8=1,">årlig sum>","") ->  | I40: =IF($H$8=1,E40,"") ->  | J40: =IF($H$8=1,F40,"") -> 
B41: =IF($H$8=2,"_______________","") ->  | C41: 2 | D41: =AE86 -> 0 | E41: 0 | F41: =AB86+AC86 -> 0 | H41: =IF($H$8=2,">årlig sum>","") ->  | I41: =IF($H$8=2,SUM(E41+E40),"") ->  | J41: =IF($H$8=2,SUM(F41+F40),"") -> 
B42: =IF($H$8=3,"__________________","") ->  | C42: 3 | D42: 0 | E42: 0 | F42: 0 | H42: =IF($H$8=3,">årlig sum>","") ->  | I42: =IF($H$8=3,SUM(E40:E42),"") ->  | J42: =IF($H$8=3,SUM(F40:F42),"") -> 
B43: =IF($H$8=4,"___________________","") -> ___________________ | C43: 4 | D43: 0 | E43: 0 | F43: 0 | H43: =IF($H$8=4,">årlig sum>","") -> >årlig sum> | I43: =IF($H$8=4,SUM(E40:E43),"") -> 0 | J43: =IF($H$8=4,SUM(F40:F43),"") -> 0
B44: =IF($H$8=1,"_______________","") ->  | C44: 5 | D44: 0 | E44: 0 | F44: 0 | H44: =IF($H$8=1,">årlig sum>","") ->  | I44: =IF($H$8=1,SUM(E41:E44),"") ->  | J44: =IF($H$8=1,SUM(F41:F44),"") -> 
B45: =IF($H$8=2,"_______________","") ->  | C45: 6 | D45: 0 | E45: 0 | F45: 0 | H45: =IF($H$8=2,">årlig sum>","") ->  | I45: =IF($H$8=2,SUM(E42:E45),"") ->  | J45: =IF($H$8=2,SUM(F42:F45),"") -> 
B46: =IF($H$8=3,"__________________","") ->  | C46: 7 | D46: 0 | E46: 0 | F46: 0 | H46: =IF($H$8=3,">årlig sum>","") ->  | I46: =IF($H$8=3,SUM(E43:E46),"") ->  | J46: =IF($H$8=3,SUM(F43:F46),"") -> 
B47: =IF($H$8=4,"___________________","") -> ___________________ | C47: 8 | D47: 0 | E47: 0 | F47: 0 | H47: =IF($H$8=4,">årlig sum>","") -> >årlig sum> | I47: =IF($H$8=4,SUM(E44:E47),"") -> 0 | J47: =IF($H$8=4,SUM(F44:F47),"") -> 0
B48: =IF($H$8=1,"_______________","") ->  | C48: 9 | D48: 0 | E48: 0 | F48: 0 | H48: =IF($H$8=1,">årlig sum>","") ->  | I48: =IF($H$8=1,SUM(E45:E48),"") ->  | J48: =IF($H$8=1,SUM(F45:F48),"") -> 
B49: =IF($H$8=2,"_______________","") ->  | C49: 10 | D49: 0 | E49: 0 | F49: 0 | H49: =IF($H$8=2,">årlig sum>","") ->  | I49: =IF($H$8=2,SUM(E46:E49),"") ->  | J49: =IF($H$8=2,SUM(F46:F49),"") -> 
B50: =IF($H$8=3,"__________________","") ->  | C50: 11 | D50: 0 | E50: 0 | F50: 0 | H50: =IF($H$8=3,">årlig sum>","") ->  | I50: =IF($H$8=3,SUM(E47:E50),"") ->  | J50: =IF($H$8=3,SUM(F47:F50),"") -> 
B51: =IF($H$8=4,"___________________","") -> ___________________ | C51: 12 | D51: 0 | E51: 0 | F51: 0 | H51: =IF($H$8=4,">årlig sum>","") -> >årlig sum> | I51: =IF($H$8=4,SUM(E48:E51),"") -> 0 | J51: =IF($H$8=4,SUM(F48:F51),"") -> 0
B52: =IF($H$8=1,"_______________","") ->  | C52: 13 | D52: 0 | E52: 0 | F52: 0 | H52: =IF($H$8=1,">årlig sum>","") ->  | I52: =IF($H$8=1,SUM(E49:E52),"") ->  | J52: =IF($H$8=1,SUM(F49:F52),"") -> 
B53: =IF($H$8=2,"_______________","") ->  | C53: 14 | D53: 0 | E53: 0 | F53: 0 | H53: =IF($H$8=2,">årlig sum>","") ->  | I53: =IF($H$8=2,SUM(E50:E53),"") ->  | J53: =IF($H$8=2,SUM(F50:F53),"") -> 
B54: =IF($H$8=3,"__________________","") ->  | C54: 15 | D54: 0 | E54: 0 | F54: 0 | H54: =IF($H$8=3,">årlig sum>","") ->  | I54: =IF($H$8=3,SUM(E51:E54),"") ->  | J54: =IF($H$8=3,SUM(F51:F54),"") -> 
B55: =IF($H$8=4,"___________________","") -> ___________________ | C55: 16 | D55: 0 | E55: 0 | F55: 0 | H55: =IF($H$8=4,">årlig sum>","") -> >årlig sum> | I55: =IF($H$8=4,SUM(E52:E55),"") -> 0 | J55: =IF($H$8=4,SUM(F52:F55),"") -> 0
B56: =IF($H$8=1,"_______________","") ->  | C56: 17 | D56: 0 | E56: 0 | F56: 0 | H56: =IF($H$8=1,">årlig sum>","") ->  | I56: =IF($H$8=1,SUM(E53:E56),"") ->  | J56: =IF($H$8=1,SUM(F53:F56),"") -> 
B57: =IF($H$8=2,"_______________","") ->  | C57: 18 | D57: 0 | E57: 0 | F57: 0 | H57: =IF($H$8=2,">årlig sum>","") ->  | I57: =IF($H$8=2,SUM(E54:E57),"") ->  | J57: =IF($H$8=2,SUM(F54:F57),"") -> 
B58: =IF($H$8=3,"__________________","") ->  | C58: 19 | D58: 0 | E58: 0 | F58: 0 | H58: =IF($H$8=3,">årlig sum>","") ->  | I58: =IF($H$8=3,SUM(E55:E58),"") ->  | J58: =IF($H$8=3,SUM(F55:F58),"") -> 
B59: =IF($H$8=4,"___________________","") -> ___________________ | C59: 20 | D59: 0 | E59: 0 | F59: 0 | H59: =IF($H$8=4,">årlig sum>","") -> >årlig sum> | I59: =IF($H$8=4,SUM(E56:E59),"") -> 0 | J59: =IF($H$8=4,SUM(F56:F59),"") -> 0
B60: =IF($H$8=1,"_______________","") ->  | C60: 21 | D60: 0 | E60: 0 | F60: 0 | H60: =IF($H$8=1,">årlig sum>","") ->  | I60: =IF($H$8=1,SUM(E57:E60),"") ->  | J60: =IF($H$8=1,SUM(F57:F60),"") -> 
B61: =IF($H$8=2,"_______________","") ->  | C61: 22 | D61: 0 | E61: 0 | F61: 0 | H61: =IF($H$8=2,">årlig sum>","") ->  | I61: =IF($H$8=2,SUM(E58:E61),"") ->  | J61: =IF($H$8=2,SUM(F58:F61),"") -> 
B62: =IF($H$8=3,"__________________","") ->  | C62: 23 | D62: 0 | E62: 0 | F62: 0 | H62: =IF($H$8=3,">årlig sum>","") ->  | I62: =IF($H$8=3,SUM(E59:E62),"") ->  | J62: =IF($H$8=3,SUM(F59:F62),"") -> 
B63: =IF($H$8=4,"___________________","") -> ___________________ | C63: 24 | D63: 0 | E63: 0 | F63: 0 | H63: =IF($H$8=4,">årlig sum>","") -> >årlig sum> | I63: =IF($H$8=4,SUM(E60:E63),"") -> 0 | J63: =IF($H$8=4,SUM(F60:F63),"") -> 0
B64: B E R E G N I N G A F Y D E L S E, I N T E R N R E N T E , N U T I D S V Æ R D I O G A M O R T I S E R I N G
B65: Løbetid ialt i antal terminer................................................................ | E65: =H5*4 -> 120 | F65: Ydelse pr. termin ved kontantlån....................................... | J65: =PMT(J66,E66,I31)*-1 -> 0
B66: Afdragsterminer (min 1)................................................................ | E66: =IF((H5-H6)*4<1,1,(H5-H6)*4) -> 120 | F66: Nominel kontantlåns rente pr. termin…................ | J66: =E70 -> 0.009999026982
B67: Afdrag efter termin............................................................... | E67: =E65-E66 -> 0 | F67: Hovedstol, der skal afdrages.......................................... | J67: =IF($H$2="k",I31,I29) -> 0
B68: Afdrag pr. termin, hvis serielån............................................................... | E68: =J67/E66 -> 0 | I68: Obligation | J68: Kontant
B69: Afdrag pr. termin, hvis serielån amort. kostpris……………………………….. | E69: =H84*-1/E66 -> 0 | F69: Eff. rente/termin.......................................................... | I69: =IF(H4>0,IRR(F84:F284),0) -> 0 | J69: =IF(H4>0,IRR(S84:S284),0) -> 0
B70: Nominel rente % pr. termin................................................ | E70: =(1+H7)^0.25-1 -> 0.009999026982 | F70: Eff. rente p.a.......................................................... | I70: =((1+I69)^4-1) -> 0 | J70: =((1+J69)^4-1) -> 0
B71: Annuitetsydelse pr. termin ex adm................................. | E71: =PMT(E70,E66,I29)*-1 -> 0 | F71: Eff. rente/termin efter skat........................................................... | I71: =IF(H4>0,IRR(H84:H204),0) -> 0 | J71: =IF(H4>0,IRR(T84:T204),0) -> 0
B72: Adm.-bidrag beregnes af restgælden årligt......... | E72: =H10 -> 0.0125 | F72: Eff. rente p.a. efter skat........................................................... | I72: =((1+I71)^4-1) -> 0 | J72: =((1+J71)^4-1) -> 0
B73: Kurtage 0,15 % af kontantværdi (min 175), kr............................................... | E73: =IF(I31*KurtageUnderSats<KurtageMinSats,KurtageMinSats,I31*KurtageUnderSats) -> 175 | F73: Stempelberegning realkredit, opr........................................................... | I73: =IF(ISNUMBER('Omk. & restfinans'!E19),0,CEILING(I29*Stempel,100)) -> 0 | J73: =IF(ISNUMBER('Omk. & restfinans'!E19),0,CEILING(I31*Stempel,100)) -> 0
B74: Kurtage dog minimum kr.…………………………… | E74: =KurtageMinSats -> 175 | F74: Indskud realkredit.(min. 10.000)......................................................... | I74: =IF(ISNUMBER($G$32),$G$32*I29,IF('Omk. & restfinans'!$E$16>0,I29*'Omk. & restfinans'!$F$16,IF(StiftelsesprovisionSats*I29<MinStiftelse,MinStiftelse,StiftelsesprovisionSats*I29))) -> 10000 | J74: =IF(ISNUMBER($G$32),$G$32*I31,IF('Omk. & restfinans'!$E$16>0,I31*'Omk. & restfinans'!$F$16,IF(StiftelsesprovisionSats*I31<MinStiftelse,MinStiftelse,StiftelsesprovisionSats*I31))) -> 10000
B75: Standard indskud……………………………… | E75: =IF(H2="o",I29*StiftelsesprovisionSats,I31*StiftelsesprovisionSats) -> 0 | F75: Amortiseringstillæg i alt………………………… | I75: =H37 + I30*-1 -> 0 | J75: =H37 -> 0
B76: Standard stempel……………………………….. | E76: =CEILING(IF(H2="o",I29*Stempel,I31*Stempel),100) -> 0 | F76: Tildelt amortiseringstillæg i alt…………. | I76: =SUM(M85:M284) -> 0 | J76: =SUM(X85:X284) -> 0
I77: Obligation | J77: Kontant
B78: Kalkulationsrenten pr. termin (beregnet på grundlag af kalkulationsrenten p.a. fra arket Finansplan)…………………………………………………………………………. | I78: =KRenteTermin -> 0.01227223443 | J78: =KRenteTermin -> 0.01227223443 | Z78: =H2 -> o | AA78: kontant/obl
B79: Nutidsværdi af ydelserne ved kalkulationsrenten pr. termin................................................................................... | I79: =NPV(KRenteTermin,F85:F205) -> 0 | J79: =NPV(KRenteTermin,S85:S205) -> 0 | Z79: =Amort -> 1 | AA79: amortiseret
K80: OBLIGATIONSLÅN | V80: KONTANTLÅN
A81: OBLIGATIONSLÅN | K81: AMORTISERET KOSTPRIS | O81: KONTANTLÅN | V81: AMORTISERET KOSTPRIS
B82: Nominel | D82: Nominel | E82: Adm.- | F82: Ydelse | H82: Ydelse | I82: rente+afdrag | K82: Amortiseret | L82: Rente i alt | M82: Amorti- | O82: Nominel | P82: Nominel | Q82: Nominel | R82: Adm.- | S82: Ydelse | T82: Ydelse | V82: Amortiseret | W82: Amort | X82: Amorti- | Z82: DIAGRAMDATA | AA82: =IF(Amort=1,"","Amort.") ->  | AB82: =IF($H$2="k","kontantlån","Obligationslån") -> Obligationslån | AE82: Forpligtelse | AF82: Årlig
A83: T | B83: forpligtelse | C83: Afdrag | D83: Rente | E83: bidrag | F83: før skat | H83: efter skat | I83: før skat | K83: forpligtelse | L83: (Effektiv | M83: serings | O83: forpligtelse | P83: Afdrag | Q83: Rente | R83: bidrag | S83: før skat | T83: efter skat | V83: forpligtelse | W83: Effektiv | X83: serings | Z83: Termin | AA83: Afdrag | AB83: Rente | AC83: =IF(Amort=1,"Adm.bidrag","Amort. tillæg") -> Adm.bidrag | AD83: Ydelse efter skat | AE83: primo | AF83: amortisering
A84: Primo | F84: =I38*-1 -> 0 | H84: =F84 -> 0 | I84: =I31*-1 -> 0 | L84: rente) | M84: tillæg | S84: =$I$38*-1 -> 0 | T84: =$I$38*-1 -> 0 | W84: rente | X84: tillæg | Z84: 0
A85: 1 | B85: =I29 -> 0 | C85: =IF($A85>$E$65,0,IF($A85>$E$67,IF($H$3="s",$E$68,$E$71-D85),0)) -> 0 | D85: =$E$70*B85 -> 0 | E85: =B85*$E$72/4 -> 0 | F85: =E85+D85+C85 -> 0 | H85: =C85+((D85+E85)*(1-$H$9)) -> 0 | I85: =C85+D85 -> 0 | K85: =B85-I75 -> 0 | L85: =K85*$I$69 -> 0 | M85: =L85-D85-E85 -> 0 | O85: =I31 -> 0 | P85: =IF($A85>$E$65,0,IF($A85>$E$67,IF($H$3="s",$E$68,$J$65-Q85),0)) -> 0 | Q85: =O85*$J$66 -> 0 | R85: =O85*$E$72/4 -> 0 | S85: =Q85+R85+P85 -> 0 | T85: =P85+((R85+Q85)*(1-$H$9)) -> 0 | V85: =O85-$J$75 -> 0 | W85: =V85*$J$69 -> 0 | X85: =W85-Q85-R85 -> 0 | Z85: 1 | AA85: =IF(Amort=2,IF($H$2="o",C85-M85,P85-X85),IF($H$2="o",C85,P85)) -> 0 | AB85: =IF(Amort=1,IF($H$2="o",D85,Q85),IF($H$2="o",L85-M85,W85-X85)) -> 0 | AC85: =IF(Amort=1,IF($H$2="o",E85,R85),IF($H$2="o",M85,X85)) -> 0 | AD85: =IF($H$2="o",H85,T85) -> 0 | AE85: =IF(Amort=2,IF($H$2="o",K85,V85),IF($H$2="o",B85,O85)) -> 0
A86: 2 | B86: =B85-C85 -> 0 | C86: 0 | D86: =$E$70*B86 -> 0 | E86: 0 | F86: 0 | H86: =C86+((D86+E86)*(1-$H$9)) -> 0 | I86: 0 | K86: =K85-C85+M85 -> 0 | L86: =K86*$I$69 -> 0 | M86: =L86-D86-E86 -> 0 | O86: =O85-P85 -> 0 | P86: 0 | Q86: =O86*$J$66 -> 0 | R86: 0 | S86: 0 | T86: =P86+((R86+Q86)*(1-$H$9)) -> 0 | V86: =V85+X85-P85 -> 0 | W86: =V86*$J$69 -> 0 | X86: =W86-Q86-R86 -> 0 | Z86: 2 | AA86: 0 | AB86: 0 | AC86: 0 | AD86: =IF($H$2="o",H86,T86) -> 0 | AE86: 0
A87: 3 | B87: 0 | C87: 0 | D87: 0 | E87: 0 | F87: 0 | H87: 0 | I87: 0 | K87: =K86-C86+M86 -> 0 | L87: 0 | M87: =L87-D87-E87 -> 0 | O87: 0 | P87: 0 | Q87: 0 | R87: 0 | S87: 0 | T87: 0 | V87: =V86+X86-P86 -> 0 | W87: 0 | X87: =W87-Q87-R87 -> 0 | Z87: 3 | AA87: 0 | AB87: 0 | AC87: 0 | AD87: 0 | AE87: 0
A88: 4 | B88: 0 | C88: 0 | D88: 0 | E88: 0 | F88: 0 | H88: 0 | I88: 0 | K88: =K87-C87+M87 -> 0 | L88: 0 | M88: =L88-D88-E88 -> 0 | O88: 0 | P88: 0 | Q88: 0 | R88: 0 | S88: 0 | T88: 0 | V88: 0 | W88: 0 | X88: 0 | Z88: 4 | AA88: 0 | AB88: 0 | AC88: 0 | AD88: 0 | AE88: 0 | AF88: =SUM(AC85:AC88) -> 0
A89: 5 | B89: 0 | C89: 0 | D89: 0 | E89: 0 | F89: 0 | H89: 0 | I89: 0 | K89: =K88-C88+M88 -> 0 | L89: 0 | M89: =L89-D89-E89 -> 0 | O89: 0 | P89: 0 | Q89: 0 | R89: 0 | S89: 0 | T89: 0 | V89: 0 | W89: 0 | X89: 0 | Z89: 5 | AA89: 0 | AB89: 0 | AC89: 0 | AD89: 0 | AE89: 0
A90: 6 | B90: 0 | C90: 0 | D90: 0 | E90: 0 | F90: 0 | H90: 0 | I90: 0 | K90: 0 | L90: 0 | M90: 0 | O90: 0 | P90: 0 | Q90: 0 | R90: 0 | S90: 0 | T90: 0 | V90: 0 | W90: 0 | X90: 0 | Z90: 6 | AA90: 0 | AB90: 0 | AC90: 0 | AD90: 0 | AE90: 0
A91: 7 | B91: 0 | C91: 0 | D91: 0 | E91: 0 | F91: 0 | H91: 0 | I91: 0 | K91: 0 | L91: 0 | M91: 0 | O91: 0 | P91: 0 | Q91: 0 | R91: 0 | S91: 0 | T91: 0 | V91: 0 | W91: 0 | X91: 0 | Z91: 7 | AA91: 0 | AB91: 0 | AC91: 0 | AD91: 0 | AE91: 0
A92: 8 | B92: 0 | C92: 0 | D92: 0 | E92: 0 | F92: 0 | H92: 0 | I92: 0 | K92: 0 | L92: 0 | M92: 0 | O92: 0 | P92: 0 | Q92: 0 | R92: 0 | S92: 0 | T92: 0 | V92: 0 | W92: 0 | X92: 0 | Z92: 8 | AA92: 0 | AB92: 0 | AC92: 0 | AD92: 0 | AE92: 0 | AF92: =SUM(AC89:AC92) -> 0
A93: 9 | B93: 0 | C93: 0 | D93: 0 | E93: 0 | F93: 0 | H93: 0 | I93: 0 | K93: 0 | L93: 0 | M93: 0 | O93: 0 | P93: 0 | Q93: 0 | R93: 0 | S93: 0 | T93: 0 | V93: 0 | W93: 0 | X93: 0 | Z93: 9 | AA93: 0 | AB93: 0 | AC93: 0 | AD93: 0 | AE93: 0
A94: 10 | B94: 0 | C94: 0 | D94: 0 | E94: 0 | F94: 0 | H94: 0 | I94: 0 | K94: 0 | L94: 0 | M94: 0 | O94: 0 | P94: 0 | Q94: 0 | R94: 0 | S94: 0 | T94: 0 | V94: 0 | W94: 0 | X94: 0 | Z94: 10 | AA94: 0 | AB94: 0 | AC94: 0 | AD94: 0 | AE94: 0
A95: 11 | B95: 0 | C95: 0 | D95: 0 | E95: 0 | F95: 0 | H95: 0 | I95: 0 | K95: 0 | L95: 0 | M95: 0 | O95: 0 | P95: 0 | Q95: 0 | R95: 0 | S95: 0 | T95: 0 | V95: 0 | W95: 0 | X95: 0 | Z95: 11 | AA95: 0 | AB95: 0 | AC95: 0 | AD95: 0 | AE95: 0
A96: 12 | B96: 0 | C96: 0 | D96: 0 | E96: 0 | F96: 0 | H96: 0 | I96: 0 | K96: 0 | L96: 0 | M96: 0 | O96: 0 | P96: 0 | Q96: 0 | R96: 0 | S96: 0 | T96: 0 | V96: 0 | W96: 0 | X96: 0 | Z96: 12 | AA96: 0 | AB96: 0 | AC96: 0 | AD96: 0 | AE96: 0 | AF96: =SUM(AC93:AC96) -> 0
A97: 13 | B97: 0 | C97: 0 | D97: 0 | E97: 0 | F97: 0 | H97: 0 | I97: 0 | K97: 0 | L97: 0 | M97: 0 | O97: 0 | P97: 0 | Q97: 0 | R97: 0 | S97: 0 | T97: 0 | V97: 0 | W97: 0 | X97: 0 | Z97: 13 | AA97: 0 | AB97: 0 | AC97: 0 | AD97: 0 | AE97: 0
A98: 14 | B98: 0 | C98: 0 | D98: 0 | E98: 0 | F98: 0 | H98: 0 | I98: 0 | K98: 0 | L98: 0 | M98: 0 | O98: 0 | P98: 0 | Q98: 0 | R98: 0 | S98: 0 | T98: 0 | V98: 0 | W98: 0 | X98: 0 | Z98: 14 | AA98: 0 | AB98: 0 | AC98: 0 | AD98: 0 | AE98: 0
A99: 15 | B99: 0 | C99: 0 | D99: 0 | E99: 0 | F99: 0 | H99: 0 | I99: 0 | K99: 0 | L99: 0 | M99: 0 | O99: 0 | P99: 0 | Q99: 0 | R99: 0 | S99: 0 | T99: 0 | V99: 0 | W99: 0 | X99: 0 | Z99: 15 | AA99: 0 | AB99: 0 | AC99: 0 | AD99: 0 | AE99: 0
A100: 16 | B100: 0 | C100: 0 | D100: 0 | E100: 0 | F100: 0 | H100: 0 | I100: 0 | K100: 0 | L100: 0 | M100: 0 | O100: 0 | P100: 0 | Q100: 0 | R100: 0 | S100: 0 | T100: 0 | V100: 0 | W100: 0 | X100: 0 | Z100: 16 | AA100: 0 | AB100: 0 | AC100: 0 | AD100: 0 | AE100: 0 | AF100: =SUM(AC97:AC100) -> 0
A101: 17 | B101: 0 | C101: 0 | D101: 0 | E101: 0 | F101: 0 | H101: 0 | I101: 0 | K101: 0 | L101: 0 | M101: 0 | O101: 0 | P101: 0 | Q101: 0 | R101: 0 | S101: 0 | T101: 0 | V101: 0 | W101: 0 | X101: 0 | Z101: 17 | AA101: 0 | AB101: 0 | AC101: 0 | AD101: 0 | AE101: 0
A102: 18 | B102: 0 | C102: 0 | D102: 0 | E102: 0 | F102: 0 | H102: 0 | I102: 0 | K102: 0 | L102: 0 | M102: 0 | O102: 0 | P102: 0 | Q102: 0 | R102: 0 | S102: 0 | T102: 0 | V102: 0 | W102: 0 | X102: 0 | Z102: 18 | AA102: 0 | AB102: 0 | AC102: 0 | AD102: 0 | AE102: 0
A103: 19 | B103: 0 | C103: 0 | D103: 0 | E103: 0 | F103: 0 | H103: 0 | I103: 0 | K103: 0 | L103: 0 | M103: 0 | O103: 0 | P103: 0 | Q103: 0 | R103: 0 | S103: 0 | T103: 0 | V103: 0 | W103: 0 | X103: 0 | Z103: 19 | AA103: 0 | AB103: 0 | AC103: 0 | AD103: 0 | AE103: 0
A104: 20 | B104: 0 | C104: 0 | D104: 0 | E104: 0 | F104: 0 | H104: 0 | I104: 0 | K104: 0 | L104: 0 | M104: 0 | O104: 0 | P104: 0 | Q104: 0 | R104: 0 | S104: 0 | T104: 0 | V104: 0 | W104: 0 | X104: 0 | Z104: 20 | AA104: 0 | AB104: 0 | AC104: 0 | AD104: 0 | AE104: 0
A105: 21 | B105: 0 | C105: 0 | D105: 0 | E105: 0 | F105: 0 | H105: 0 | I105: 0 | K105: 0 | L105: 0 | M105: 0 | O105: 0 | P105: 0 | Q105: 0 | R105: 0 | S105: 0 | T105: 0 | V105: 0 | W105: 0 | X105: 0 | Z105: 21 | AA105: 0 | AB105: 0 | AC105: 0 | AD105: 0 | AE105: 0
A106: 22 | B106: 0 | C106: 0 | D106: 0 | E106: 0 | F106: 0 | H106: 0 | I106: 0 | K106: 0 | L106: 0 | M106: 0 | O106: 0 | P106: 0 | Q106: 0 | R106: 0 | S106: 0 | T106: 0 | V106: 0 | W106: 0 | X106: 0 | Z106: 22 | AA106: 0 | AB106: 0 | AC106: 0 | AD106: 0 | AE106: 0
A107: 23 | B107: 0 | C107: 0 | D107: 0 | E107: 0 | F107: 0 | H107: 0 | I107: 0 | K107: 0 | L107: 0 | M107: 0 | O107: 0 | P107: 0 | Q107: 0 | R107: 0 | S107: 0 | T107: 0 | V107: 0 | W107: 0 | X107: 0 | Z107: 23 | AA107: 0 | AB107: 0 | AC107: 0 | AD107: 0 | AE107: 0
A108: 24 | B108: 0 | C108: 0 | D108: 0 | E108: 0 | F108: 0 | H108: 0 | I108: 0 | K108: 0 | L108: 0 | M108: 0 | O108: 0 | P108: 0 | Q108: 0 | R108: 0 | S108: 0 | T108: 0 | V108: 0 | W108: 0 | X108: 0 | Z108: 24 | AA108: 0 | AB108: 0 | AC108: 0 | AD108: 0 | AE108: 0
A109: 25 | B109: 0 | C109: 0 | D109: 0 | E109: 0 | F109: 0 | H109: 0 | I109: 0 | K109: 0 | L109: 0 | M109: 0 | O109: 0 | P109: 0 | Q109: 0 | R109: 0 | S109: 0 | T109: 0 | V109: 0 | W109: 0 | X109: 0 | Z109: 25 | AA109: 0 | AB109: 0 | AC109: 0 | AD109: 0 | AE109: 0
A110: 26 | B110: 0 | C110: 0 | D110: 0 | E110: 0 | F110: 0 | H110: 0 | I110: 0 | K110: 0 | L110: 0 | M110: 0 | O110: 0 | P110: 0 | Q110: 0 | R110: 0 | S110: 0 | T110: 0 | V110: 0 | W110: 0 | X110: 0 | Z110: 26 | AA110: 0 | AB110: 0 | AC110: 0 | AD110: 0 | AE110: 0
A111: 27 | B111: 0 | C111: 0 | D111: 0 | E111: 0 | F111: 0 | H111: 0 | I111: 0 | K111: 0 | L111: 0 | M111: 0 | O111: 0 | P111: 0 | Q111: 0 | R111: 0 | S111: 0 | T111: 0 | V111: 0 | W111: 0 | X111: 0 | Z111: 27 | AA111: 0 | AB111: 0 | AC111: 0 | AD111: 0 | AE111: 0
A112: 28 | B112: 0 | C112: 0 | D112: 0 | E112: 0 | F112: 0 | H112: 0 | I112: 0 | K112: 0 | L112: 0 | M112: 0 | O112: 0 | P112: 0 | Q112: 0 | R112: 0 | S112: 0 | T112: 0 | V112: 0 | W112: 0 | X112: 0 | Z112: 28 | AA112: 0 | AB112: 0 | AC112: 0 | AD112: 0 | AE112: 0
A113: 29 | B113: 0 | C113: 0 | D113: 0 | E113: 0 | F113: 0 | H113: 0 | I113: 0 | K113: 0 | L113: 0 | M113: 0 | O113: 0 | P113: 0 | Q113: 0 | R113: 0 | S113: 0 | T113: 0 | V113: 0 | W113: 0 | X113: 0 | Z113: 29 | AA113: 0 | AB113: 0 | AC113: 0 | AD113: 0 | AE113: 0
A114: 30 | B114: 0 | C114: 0 | D114: 0 | E114: 0 | F114: 0 | H114: 0 | I114: 0 | K114: 0 | L114: 0 | M114: 0 | O114: 0 | P114: 0 | Q114: 0 | R114: 0 | S114: 0 | T114: 0 | V114: 0 | W114: 0 | X114: 0 | Z114: 30 | AA114: 0 | AB114: 0 | AC114: 0 | AD114: 0 | AE114: 0
A115: 31 | B115: 0 | C115: 0 | D115: 0 | E115: 0 | F115: 0 | H115: 0 | I115: 0 | K115: 0 | L115: 0 | M115: 0 | O115: 0 | P115: 0 | Q115: 0 | R115: 0 | S115: 0 | T115: 0 | V115: 0 | W115: 0 | X115: 0 | Z115: 31 | AA115: 0 | AB115: 0 | AC115: 0 | AD115: 0 | AE115: 0
A116: 32 | B116: 0 | C116: 0 | D116: 0 | E116: 0 | F116: 0 | H116: 0 | I116: 0 | K116: 0 | L116: 0 | M116: 0 | O116: 0 | P116: 0 | Q116: 0 | R116: 0 | S116: 0 | T116: 0 | V116: 0 | W116: 0 | X116: 0 | Z116: 32 | AA116: 0 | AB116: 0 | AC116: 0 | AD116: 0 | AE116: 0
A117: 33 | B117: 0 | C117: =IF($A117>$E$65,0,IF($A117>$E$67,IF($H$3="s",$E$68,$E$71-D117),0)) -> 0 | D117: 0 | E117: =B117*$E$72/4 -> 0 | F117: 0 | H117: 0 | I117: 0 | K117: 0 | L117: 0 | M117: 0 | O117: 0 | P117: =IF($A117>$E$65,0,IF($A117>$E$67,IF($H$3="s",$E$68,$J$65-Q117),0)) -> 0 | Q117: =O117*$J$66 -> 0 | R117: =O117*$E$72/4 -> 0 | S117: =Q117+R117+P117 -> 0 | T117: 0 | V117: 0 | W117: 0 | X117: 0 | Z117: 33 | AA117: =IF(Amort=2,IF($H$2="o",C117-M117,P117-X117),IF($H$2="o",C117,P117)) -> 0 | AB117: =IF(Amort=1,IF($H$2="o",D117,Q117),IF($H$2="o",L117-M117,W117-X117)) -> 0 | AC117: =IF(Amort=1,IF($H$2="o",E117,R117),IF($H$2="o",M117,X117)) -> 0 | AD117: 0 | AE117: =IF(Amort=2,IF($H$2="o",K117,V117),IF($H$2="o",B117,O117)) -> 0
A118: 34 | B118: 0 | C118: 0 | D118: 0 | E118: 0 | F118: 0 | H118: 0 | I118: 0 | K118: 0 | L118: 0 | M118: 0 | O118: =O117-P117 -> 0 | P118: 0 | Q118: 0 | R118: 0 | S118: 0 | T118: 0 | V118: 0 | W118: 0 | X118: 0 | Z118: 34 | AA118: 0 | AB118: 0 | AC118: 0 | AD118: 0 | AE118: 0
A119: 35 | B119: 0 | C119: 0 | D119: 0 | E119: 0 | F119: 0 | H119: 0 | I119: 0 | K119: 0 | L119: 0 | M119: 0 | O119: 0 | P119: 0 | Q119: 0 | R119: 0 | S119: 0 | T119: 0 | V119: 0 | W119: 0 | X119: 0 | Z119: 35 | AA119: 0 | AB119: 0 | AC119: 0 | AD119: 0 | AE119: 0
A120: 36 | B120: 0 | C120: 0 | D120: 0 | E120: 0 | F120: 0 | H120: 0 | I120: 0 | K120: 0 | L120: 0 | M120: 0 | O120: 0 | P120: 0 | Q120: 0 | R120: 0 | S120: 0 | T120: 0 | V120: 0 | W120: 0 | X120: 0 | Z120: 36 | AA120: 0 | AB120: 0 | AC120: 0 | AD120: 0 | AE120: 0
A121: 37 | B121: 0 | C121: 0 | D121: 0 | E121: 0 | F121: 0 | H121: 0 | I121: 0 | K121: 0 | L121: 0 | M121: 0 | O121: 0 | P121: 0 | Q121: 0 | R121: 0 | S121: 0 | T121: 0 | V121: 0 | W121: 0 | X121: 0 | Z121: 37 | AA121: 0 | AB121: 0 | AC121: 0 | AD121: 0 | AE121: 0
A122: 38 | B122: 0 | C122: 0 | D122: 0 | E122: 0 | F122: 0 | H122: 0 | I122: 0 | K122: 0 | L122: 0 | M122: 0 | O122: 0 | P122: 0 | Q122: 0 | R122: 0 | S122: 0 | T122: 0 | V122: 0 | W122: 0 | X122: 0 | Z122: 38 | AA122: 0 | AB122: 0 | AC122: 0 | AD122: 0 | AE122: 0
A123: 39 | B123: 0 | C123: 0 | D123: 0 | E123: 0 | F123: 0 | H123: 0 | I123: 0 | K123: 0 | L123: 0 | M123: 0 | O123: 0 | P123: 0 | Q123: 0 | R123: 0 | S123: 0 | T123: 0 | V123: 0 | W123: 0 | X123: 0 | Z123: 39 | AA123: 0 | AB123: 0 | AC123: 0 | AD123: 0 | AE123: 0
A124: 40 | B124: 0 | C124: 0 | D124: 0 | E124: 0 | F124: 0 | H124: 0 | I124: 0 | K124: 0 | L124: 0 | M124: 0 | O124: 0 | P124: 0 | Q124: 0 | R124: 0 | S124: 0 | T124: 0 | V124: 0 | W124: 0 | X124: 0 | Z124: 40 | AA124: 0 | AB124: 0 | AC124: 0 | AD124: 0 | AE124: 0
A125: 41 | B125: 0 | C125: 0 | D125: 0 | E125: 0 | F125: 0 | H125: 0 | I125: 0 | K125: 0 | L125: 0 | M125: 0 | O125: 0 | P125: 0 | Q125: 0 | R125: 0 | S125: 0 | T125: 0 | V125: 0 | W125: 0 | X125: 0 | Z125: 41 | AA125: 0 | AB125: 0 | AC125: 0 | AD125: 0 | AE125: 0
A126: 42 | B126: 0 | C126: 0 | D126: 0 | E126: 0 | F126: 0 | H126: 0 | I126: 0 | K126: 0 | L126: 0 | M126: 0 | O126: 0 | P126: 0 | Q126: 0 | R126: 0 | S126: 0 | T126: 0 | V126: 0 | W126: 0 | X126: 0 | Z126: 42 | AA126: 0 | AB126: 0 | AC126: 0 | AD126: 0 | AE126: 0
A127: 43 | B127: 0 | C127: 0 | D127: 0 | E127: 0 | F127: 0 | H127: 0 | I127: 0 | K127: 0 | L127: 0 | M127: 0 | O127: 0 | P127: 0 | Q127: 0 | R127: 0 | S127: 0 | T127: 0 | V127: 0 | W127: 0 | X127: 0 | Z127: 43 | AA127: 0 | AB127: 0 | AC127: 0 | AD127: 0 | AE127: 0
A128: 44 | B128: 0 | C128: 0 | D128: 0 | E128: 0 | F128: 0 | H128: 0 | I128: 0 | K128: 0 | L128: 0 | M128: 0 | O128: 0 | P128: 0 | Q128: 0 | R128: 0 | S128: 0 | T128: 0 | V128: 0 | W128: 0 | X128: 0 | Z128: 44 | AA128: 0 | AB128: 0 | AC128: 0 | AD128: 0 | AE128: 0
A129: 45 | B129: 0 | C129: 0 | D129: 0 | E129: 0 | F129: 0 | H129: 0 | I129: 0 | K129: 0 | L129: 0 | M129: 0 | O129: 0 | P129: 0 | Q129: 0 | R129: 0 | S129: 0 | T129: 0 | V129: 0 | W129: 0 | X129: 0 | Z129: 45 | AA129: 0 | AB129: 0 | AC129: 0 | AD129: 0 | AE129: 0
A130: 46 | B130: 0 | C130: 0 | D130: 0 | E130: 0 | F130: 0 | H130: 0 | I130: 0 | K130: 0 | L130: 0 | M130: 0 | O130: 0 | P130: 0 | Q130: 0 | R130: 0 | S130: 0 | T130: 0 | V130: 0 | W130: 0 | X130: 0 | Z130: 46 | AA130: 0 | AB130: 0 | AC130: 0 | AD130: 0 | AE130: 0
A131: 47 | B131: 0 | C131: 0 | D131: 0 | E131: 0 | F131: 0 | H131: 0 | I131: 0 | K131: 0 | L131: 0 | M131: 0 | O131: 0 | P131: 0 | Q131: 0 | R131: 0 | S131: 0 | T131: 0 | V131: 0 | W131: 0 | X131: 0 | Z131: 47 | AA131: 0 | AB131: 0 | AC131: 0 | AD131: 0 | AE131: 0
A132: 48 | B132: 0 | C132: 0 | D132: 0 | E132: 0 | F132: 0 | H132: 0 | I132: 0 | K132: 0 | L132: 0 | M132: 0 | O132: 0 | P132: 0 | Q132: 0 | R132: 0 | S132: 0 | T132: 0 | V132: 0 | W132: 0 | X132: 0 | Z132: 48 | AA132: 0 | AB132: 0 | AC132: 0 | AD132: 0 | AE132: 0
A133: 49 | B133: 0 | C133: 0 | D133: 0 | E133: 0 | F133: 0 | H133: 0 | I133: 0 | K133: 0 | L133: 0 | M133: 0 | O133: 0 | P133: 0 | Q133: 0 | R133: 0 | S133: 0 | T133: 0 | V133: 0 | W133: 0 | X133: 0 | Z133: 49 | AA133: 0 | AB133: 0 | AC133: 0 | AD133: 0 | AE133: 0
A134: 50 | B134: 0 | C134: 0 | D134: 0 | E134: 0 | F134: 0 | H134: 0 | I134: 0 | K134: 0 | L134: 0 | M134: 0 | O134: 0 | P134: 0 | Q134: 0 | R134: 0 | S134: 0 | T134: 0 | V134: 0 | W134: 0 | X134: 0 | Z134: 50 | AA134: 0 | AB134: 0 | AC134: 0 | AD134: 0 | AE134: 0
A135: 51 | B135: 0 | C135: 0 | D135: 0 | E135: 0 | F135: 0 | H135: 0 | I135: 0 | K135: 0 | L135: 0 | M135: 0 | O135: 0 | P135: 0 | Q135: 0 | R135: 0 | S135: 0 | T135: 0 | V135: 0 | W135: 0 | X135: 0 | Z135: 51 | AA135: 0 | AB135: 0 | AC135: 0 | AD135: 0 | AE135: 0
A136: 52 | B136: 0 | C136: 0 | D136: 0 | E136: 0 | F136: 0 | H136: 0 | I136: 0 | K136: 0 | L136: 0 | M136: 0 | O136: 0 | P136: 0 | Q136: 0 | R136: 0 | S136: 0 | T136: 0 | V136: 0 | W136: 0 | X136: 0 | Z136: 52 | AA136: 0 | AB136: 0 | AC136: 0 | AD136: 0 | AE136: 0
A137: 53 | B137: 0 | C137: 0 | D137: 0 | E137: 0 | F137: 0 | H137: 0 | I137: 0 | K137: 0 | L137: 0 | M137: 0 | O137: 0 | P137: 0 | Q137: 0 | R137: 0 | S137: 0 | T137: 0 | V137: 0 | W137: 0 | X137: 0 | Z137: 53 | AA137: 0 | AB137: 0 | AC137: 0 | AD137: 0 | AE137: 0
A138: 54 | B138: 0 | C138: 0 | D138: 0 | E138: 0 | F138: 0 | H138: 0 | I138: 0 | K138: 0 | L138: 0 | M138: 0 | O138: 0 | P138: 0 | Q138: 0 | R138: 0 | S138: 0 | T138: 0 | V138: 0 | W138: 0 | X138: 0 | Z138: 54 | AA138: 0 | AB138: 0 | AC138: 0 | AD138: 0 | AE138: 0
A139: 55 | B139: 0 | C139: 0 | D139: 0 | E139: 0 | F139: 0 | H139: 0 | I139: 0 | K139: 0 | L139: 0 | M139: 0 | O139: 0 | P139: 0 | Q139: 0 | R139: 0 | S139: 0 | T139: 0 | V139: 0 | W139: 0 | X139: 0 | Z139: 55 | AA139: 0 | AB139: 0 | AC139: 0 | AD139: 0 | AE139: 0
A140: 56 | B140: 0 | C140: 0 | D140: 0 | E140: 0 | F140: 0 | H140: 0 | I140: 0 | K140: 0 | L140: 0 | M140: 0 | O140: 0 | P140: 0 | Q140: 0 | R140: 0 | S140: 0 | T140: 0 | V140: 0 | W140: 0 | X140: 0 | Z140: 56 | AA140: 0 | AB140: 0 | AC140: 0 | AD140: 0 | AE140: 0
A141: 57 | B141: 0 | C141: 0 | D141: 0 | E141: 0 | F141: 0 | H141: 0 | I141: 0 | K141: 0 | L141: 0 | M141: 0 | O141: 0 | P141: 0 | Q141: 0 | R141: 0 | S141: 0 | T141: 0 | V141: 0 | W141: 0 | X141: 0 | Z141: 57 | AA141: 0 | AB141: 0 | AC141: 0 | AD141: 0 | AE141: 0
A142: 58 | B142: 0 | C142: 0 | D142: 0 | E142: 0 | F142: 0 | H142: 0 | I142: 0 | K142: 0 | L142: 0 | M142: 0 | O142: 0 | P142: 0 | Q142: 0 | R142: 0 | S142: 0 | T142: 0 | V142: 0 | W142: 0 | X142: 0 | Z142: 58 | AA142: 0 | AB142: 0 | AC142: 0 | AD142: 0 | AE142: 0
A143: 59 | B143: 0 | C143: 0 | D143: 0 | E143: 0 | F143: 0 | H143: 0 | I143: 0 | K143: 0 | L143: 0 | M143: 0 | O143: 0 | P143: 0 | Q143: 0 | R143: 0 | S143: 0 | T143: 0 | V143: 0 | W143: 0 | X143: 0 | Z143: 59 | AA143: 0 | AB143: 0 | AC143: 0 | AD143: 0 | AE143: 0
A144: 60 | B144: 0 | C144: 0 | D144: 0 | E144: 0 | F144: 0 | H144: 0 | I144: 0 | K144: 0 | L144: 0 | M144: 0 | O144: 0 | P144: 0 | Q144: 0 | R144: 0 | S144: 0 | T144: 0 | V144: 0 | W144: 0 | X144: 0 | Z144: 60 | AA144: 0 | AB144: 0 | AC144: 0 | AD144: 0 | AE144: 0
A145: 61 | B145: 0 | C145: 0 | D145: 0 | E145: 0 | F145: 0 | H145: 0 | I145: 0 | K145: 0 | L145: 0 | M145: 0 | O145: 0 | P145: 0 | Q145: 0 | R145: 0 | S145: 0 | T145: 0 | V145: 0 | W145: 0 | X145: 0 | Z145: 61 | AA145: 0 | AB145: 0 | AC145: 0 | AD145: 0 | AE145: 0
A146: 62 | B146: 0 | C146: 0 | D146: 0 | E146: 0 | F146: 0 | H146: 0 | I146: 0 | K146: 0 | L146: 0 | M146: 0 | O146: 0 | P146: 0 | Q146: 0 | R146: 0 | S146: 0 | T146: 0 | V146: 0 | W146: 0 | X146: 0 | Z146: 62 | AA146: 0 | AB146: 0 | AC146: 0 | AD146: 0 | AE146: 0
A147: 63 | B147: 0 | C147: 0 | D147: 0 | E147: 0 | F147: 0 | H147: 0 | I147: 0 | K147: 0 | L147: 0 | M147: 0 | O147: 0 | P147: 0 | Q147: 0 | R147: 0 | S147: 0 | T147: 0 | V147: 0 | W147: 0 | X147: 0 | Z147: 63 | AA147: 0 | AB147: 0 | AC147: 0 | AD147: 0 | AE147: 0
A148: 64 | B148: 0 | C148: 0 | D148: 0 | E148: 0 | F148: 0 | H148: 0 | I148: 0 | K148: 0 | L148: 0 | M148: 0 | O148: 0 | P148: 0 | Q148: 0 | R148: 0 | S148: 0 | T148: 0 | V148: 0 | W148: 0 | X148: 0 | Z148: 64 | AA148: 0 | AB148: 0 | AC148: 0 | AD148: 0 | AE148: 0
A149: 65 | B149: 0 | C149: =IF($A149>$E$65,0,IF($A149>$E$67,IF($H$3="s",$E$68,$E$71-D149),0)) -> 0 | D149: 0 | E149: =B149*$E$72/4 -> 0 | F149: =E149+D149+C149 -> 0 | H149: 0 | I149: =C149+D149 -> 0 | K149: 0 | L149: 0 | M149: 0 | O149: 0 | P149: =IF($A149>$E$65,0,IF($A149>$E$67,IF($H$3="s",$E$68,$J$65-Q149),0)) -> 0 | Q149: =O149*$J$66 -> 0 | R149: =O149*$E$72/4 -> 0 | S149: =Q149+R149+P149 -> 0 | T149: 0 | V149: 0 | W149: 0 | X149: 0 | Z149: 65 | AA149: =IF(Amort=2,IF($H$2="o",C149-M149,P149-X149),IF($H$2="o",C149,P149)) -> 0 | AB149: =IF(Amort=1,IF($H$2="o",D149,Q149),IF($H$2="o",L149-M149,W149-X149)) -> 0 | AC149: =IF(Amort=1,IF($H$2="o",E149,R149),IF($H$2="o",M149,X149)) -> 0 | AD149: 0 | AE149: =IF(Amort=2,IF($H$2="o",K149,V149),IF($H$2="o",B149,O149)) -> 0
A150: 66 | B150: =B149-C149 -> 0 | C150: 0 | D150: =$E$70*B150 -> 0 | E150: 0 | F150: 0 | H150: =C150+((D150+E150)*(1-$H$9)) -> 0 | I150: 0 | K150: 0 | L150: =K150*$I$69 -> 0 | M150: 0 | O150: =O149-P149 -> 0 | P150: 0 | Q150: 0 | R150: 0 | S150: 0 | T150: =P150+((R150+Q150)*(1-$H$9)) -> 0 | V150: 0 | W150: =V150*$J$69 -> 0 | X150: 0 | Z150: 66 | AA150: 0 | AB150: 0 | AC150: 0 | AD150: =IF($H$2="o",H150,T150) -> 0 | AE150: 0
A151: 67 | B151: 0 | C151: 0 | D151: 0 | E151: 0 | F151: 0 | H151: 0 | I151: 0 | K151: 0 | L151: 0 | M151: 0 | O151: 0 | P151: 0 | Q151: 0 | R151: 0 | S151: 0 | T151: 0 | V151: =V150+X150-P150 -> 0 | W151: 0 | X151: =W151-Q151-R151 -> 0 | Z151: 67 | AA151: 0 | AB151: 0 | AC151: 0 | AD151: 0 | AE151: 0
A152: 68 | B152: 0 | C152: 0 | D152: 0 | E152: 0 | F152: 0 | H152: 0 | I152: 0 | K152: 0 | L152: 0 | M152: 0 | O152: 0 | P152: 0 | Q152: 0 | R152: 0 | S152: 0 | T152: 0 | V152: 0 | W152: 0 | X152: 0 | Z152: 68 | AA152: 0 | AB152: 0 | AC152: 0 | AD152: 0 | AE152: 0
A153: 69 | B153: 0 | C153: 0 | D153: 0 | E153: 0 | F153: 0 | H153: 0 | I153: 0 | K153: =K152-C152+M152 -> 0 | L153: 0 | M153: =L153-D153-E153 -> 0 | O153: 0 | P153: 0 | Q153: 0 | R153: 0 | S153: 0 | T153: 0 | V153: 0 | W153: 0 | X153: 0 | Z153: 69 | AA153: 0 | AB153: 0 | AC153: 0 | AD153: 0 | AE153: 0
A154: 70 | B154: 0 | C154: 0 | D154: 0 | E154: 0 | F154: 0 | H154: 0 | I154: 0 | K154: 0 | L154: 0 | M154: 0 | O154: 0 | P154: 0 | Q154: 0 | R154: 0 | S154: 0 | T154: 0 | V154: 0 | W154: 0 | X154: 0 | Z154: 70 | AA154: 0 | AB154: 0 | AC154: 0 | AD154: 0 | AE154: 0
A155: 71 | B155: 0 | C155: 0 | D155: 0 | E155: 0 | F155: 0 | H155: 0 | I155: 0 | K155: 0 | L155: 0 | M155: 0 | O155: 0 | P155: 0 | Q155: 0 | R155: 0 | S155: 0 | T155: 0 | V155: 0 | W155: 0 | X155: 0 | Z155: 71 | AA155: 0 | AB155: 0 | AC155: 0 | AD155: 0 | AE155: 0
A156: 72 | B156: 0 | C156: 0 | D156: 0 | E156: 0 | F156: 0 | H156: 0 | I156: 0 | K156: 0 | L156: 0 | M156: 0 | O156: 0 | P156: 0 | Q156: 0 | R156: 0 | S156: 0 | T156: 0 | V156: 0 | W156: 0 | X156: 0 | Z156: 72 | AA156: 0 | AB156: 0 | AC156: 0 | AD156: 0 | AE156: 0
A157: 73 | B157: 0 | C157: 0 | D157: 0 | E157: 0 | F157: 0 | H157: 0 | I157: 0 | K157: 0 | L157: 0 | M157: 0 | O157: 0 | P157: 0 | Q157: 0 | R157: 0 | S157: 0 | T157: 0 | V157: 0 | W157: 0 | X157: 0 | Z157: 73 | AA157: 0 | AB157: 0 | AC157: 0 | AD157: 0 | AE157: 0
A158: 74 | B158: 0 | C158: 0 | D158: 0 | E158: 0 | F158: 0 | H158: 0 | I158: 0 | K158: 0 | L158: 0 | M158: 0 | O158: 0 | P158: 0 | Q158: 0 | R158: 0 | S158: 0 | T158: 0 | V158: 0 | W158: 0 | X158: 0 | Z158: 74 | AA158: 0 | AB158: 0 | AC158: 0 | AD158: 0 | AE158: 0
A159: 75 | B159: 0 | C159: 0 | D159: 0 | E159: 0 | F159: 0 | H159: 0 | I159: 0 | K159: 0 | L159: 0 | M159: 0 | O159: 0 | P159: 0 | Q159: 0 | R159: 0 | S159: 0 | T159: 0 | V159: 0 | W159: 0 | X159: 0 | Z159: 75 | AA159: 0 | AB159: 0 | AC159: 0 | AD159: 0 | AE159: 0
A160: 76 | B160: 0 | C160: 0 | D160: 0 | E160: 0 | F160: 0 | H160: 0 | I160: 0 | K160: 0 | L160: 0 | M160: 0 | O160: 0 | P160: 0 | Q160: 0 | R160: 0 | S160: 0 | T160: 0 | V160: 0 | W160: 0 | X160: 0 | Z160: 76 | AA160: 0 | AB160: 0 | AC160: 0 | AD160: 0 | AE160: 0
A161: 77 | B161: 0 | C161: 0 | D161: 0 | E161: 0 | F161: 0 | H161: 0 | I161: 0 | K161: 0 | L161: 0 | M161: 0 | O161: 0 | P161: 0 | Q161: 0 | R161: 0 | S161: 0 | T161: 0 | V161: 0 | W161: 0 | X161: 0 | Z161: 77 | AA161: 0 | AB161: 0 | AC161: 0 | AD161: 0 | AE161: 0
A162: 78 | B162: 0 | C162: 0 | D162: 0 | E162: 0 | F162: 0 | H162: 0 | I162: 0 | K162: 0 | L162: 0 | M162: 0 | O162: 0 | P162: 0 | Q162: 0 | R162: 0 | S162: 0 | T162: 0 | V162: 0 | W162: 0 | X162: 0 | Z162: 78 | AA162: 0 | AB162: 0 | AC162: 0 | AD162: 0 | AE162: 0
A163: 79 | B163: 0 | C163: 0 | D163: 0 | E163: 0 | F163: 0 | H163: 0 | I163: 0 | K163: 0 | L163: 0 | M163: 0 | O163: 0 | P163: 0 | Q163: 0 | R163: 0 | S163: 0 | T163: 0 | V163: 0 | W163: 0 | X163: 0 | Z163: 79 | AA163: 0 | AB163: 0 | AC163: 0 | AD163: 0 | AE163: 0
A164: 80 | B164: 0 | C164: 0 | D164: 0 | E164: 0 | F164: 0 | H164: 0 | I164: 0 | K164: 0 | L164: 0 | M164: 0 | O164: 0 | P164: 0 | Q164: 0 | R164: 0 | S164: 0 | T164: 0 | V164: 0 | W164: 0 | X164: 0 | Z164: 80 | AA164: 0 | AB164: 0 | AC164: 0 | AD164: 0 | AE164: 0
A165: 81 | B165: 0 | C165: 0 | D165: 0 | E165: 0 | F165: 0 | H165: 0 | I165: 0 | K165: 0 | L165: 0 | M165: 0 | O165: 0 | P165: 0 | Q165: 0 | R165: 0 | S165: 0 | T165: 0 | V165: 0 | W165: 0 | X165: 0 | Z165: 81 | AA165: 0 | AB165: 0 | AC165: 0 | AD165: 0 | AE165: 0
A166: 82 | B166: 0 | C166: 0 | D166: 0 | E166: 0 | F166: 0 | H166: 0 | I166: 0 | K166: 0 | L166: 0 | M166: 0 | O166: 0 | P166: 0 | Q166: 0 | R166: 0 | S166: 0 | T166: 0 | V166: 0 | W166: 0 | X166: 0 | Z166: 82 | AA166: 0 | AB166: 0 | AC166: 0 | AD166: 0 | AE166: 0
A167: 83 | B167: 0 | C167: 0 | D167: 0 | E167: 0 | F167: 0 | H167: 0 | I167: 0 | K167: 0 | L167: 0 | M167: 0 | O167: 0 | P167: 0 | Q167: 0 | R167: 0 | S167: 0 | T167: 0 | V167: 0 | W167: 0 | X167: 0 | Z167: 83 | AA167: 0 | AB167: 0 | AC167: 0 | AD167: 0 | AE167: 0
A168: 84 | B168: 0 | C168: 0 | D168: 0 | E168: 0 | F168: 0 | H168: 0 | I168: 0 | K168: 0 | L168: 0 | M168: 0 | O168: 0 | P168: 0 | Q168: 0 | R168: 0 | S168: 0 | T168: 0 | V168: 0 | W168: 0 | X168: 0 | Z168: 84 | AA168: 0 | AB168: 0 | AC168: 0 | AD168: 0 | AE168: 0
A169: 85 | B169: 0 | C169: 0 | D169: 0 | E169: 0 | F169: 0 | H169: 0 | I169: 0 | K169: 0 | L169: 0 | M169: 0 | O169: 0 | P169: 0 | Q169: 0 | R169: 0 | S169: 0 | T169: 0 | V169: 0 | W169: 0 | X169: 0 | Z169: 85 | AA169: 0 | AB169: 0 | AC169: 0 | AD169: 0 | AE169: 0
A170: 86 | B170: 0 | C170: 0 | D170: 0 | E170: 0 | F170: 0 | H170: 0 | I170: 0 | K170: 0 | L170: 0 | M170: 0 | O170: 0 | P170: 0 | Q170: 0 | R170: 0 | S170: 0 | T170: 0 | V170: 0 | W170: 0 | X170: 0 | Z170: 86 | AA170: 0 | AB170: 0 | AC170: 0 | AD170: 0 | AE170: 0
A171: 87 | B171: 0 | C171: 0 | D171: 0 | E171: 0 | F171: 0 | H171: 0 | I171: 0 | K171: 0 | L171: 0 | M171: 0 | O171: 0 | P171: 0 | Q171: 0 | R171: 0 | S171: 0 | T171: 0 | V171: 0 | W171: 0 | X171: 0 | Z171: 87 | AA171: 0 | AB171: 0 | AC171: 0 | AD171: 0 | AE171: 0
A172: 88 | B172: 0 | C172: 0 | D172: 0 | E172: 0 | F172: 0 | H172: 0 | I172: 0 | K172: 0 | L172: 0 | M172: 0 | O172: 0 | P172: 0 | Q172: 0 | R172: 0 | S172: 0 | T172: 0 | V172: 0 | W172: 0 | X172: 0 | Z172: 88 | AA172: 0 | AB172: 0 | AC172: 0 | AD172: 0 | AE172: 0
A173: 89 | B173: 0 | C173: 0 | D173: 0 | E173: 0 | F173: 0 | H173: 0 | I173: 0 | K173: 0 | L173: 0 | M173: 0 | O173: 0 | P173: 0 | Q173: 0 | R173: 0 | S173: 0 | T173: 0 | V173: 0 | W173: 0 | X173: 0 | Z173: 89 | AA173: 0 | AB173: 0 | AC173: 0 | AD173: 0 | AE173: 0
A174: 90 | B174: 0 | C174: 0 | D174: 0 | E174: 0 | F174: 0 | H174: 0 | I174: 0 | K174: 0 | L174: 0 | M174: 0 | O174: 0 | P174: 0 | Q174: 0 | R174: 0 | S174: 0 | T174: 0 | V174: 0 | W174: 0 | X174: 0 | Z174: 90 | AA174: 0 | AB174: 0 | AC174: 0 | AD174: 0 | AE174: 0
A175: 91 | B175: 0 | C175: 0 | D175: 0 | E175: 0 | F175: 0 | H175: 0 | I175: 0 | K175: 0 | L175: 0 | M175: 0 | O175: 0 | P175: 0 | Q175: 0 | R175: 0 | S175: 0 | T175: 0 | V175: 0 | W175: 0 | X175: 0 | Z175: 91 | AA175: 0 | AB175: 0 | AC175: 0 | AD175: 0 | AE175: 0
A176: 92 | B176: 0 | C176: 0 | D176: 0 | E176: 0 | F176: 0 | H176: 0 | I176: 0 | K176: 0 | L176: 0 | M176: 0 | O176: 0 | P176: 0 | Q176: 0 | R176: 0 | S176: 0 | T176: 0 | V176: 0 | W176: 0 | X176: 0 | Z176: 92 | AA176: 0 | AB176: 0 | AC176: 0 | AD176: 0 | AE176: 0
A177: 93 | B177: 0 | C177: 0 | D177: 0 | E177: 0 | F177: 0 | H177: 0 | I177: 0 | K177: 0 | L177: 0 | M177: 0 | O177: 0 | P177: 0 | Q177: 0 | R177: 0 | S177: 0 | T177: 0 | V177: 0 | W177: 0 | X177: 0 | Z177: 93 | AA177: 0 | AB177: 0 | AC177: 0 | AD177: 0 | AE177: 0
A178: 94 | B178: 0 | C178: 0 | D178: 0 | E178: 0 | F178: 0 | H178: 0 | I178: 0 | K178: 0 | L178: 0 | M178: 0 | O178: 0 | P178: 0 | Q178: 0 | R178: 0 | S178: 0 | T178: 0 | V178: 0 | W178: 0 | X178: 0 | Z178: 94 | AA178: 0 | AB178: 0 | AC178: 0 | AD178: 0 | AE178: 0
A179: 95 | B179: 0 | C179: 0 | D179: 0 | E179: 0 | F179: 0 | H179: 0 | I179: 0 | K179: 0 | L179: 0 | M179: 0 | O179: 0 | P179: 0 | Q179: 0 | R179: 0 | S179: 0 | T179: 0 | V179: 0 | W179: 0 | X179: 0 | Z179: 95 | AA179: 0 | AB179: 0 | AC179: 0 | AD179: 0 | AE179: 0
A180: 96 | B180: 0 | C180: 0 | D180: 0 | E180: 0 | F180: 0 | H180: 0 | I180: 0 | K180: 0 | L180: 0 | M180: 0 | O180: 0 | P180: 0 | Q180: 0 | R180: 0 | S180: 0 | T180: 0 | V180: 0 | W180: 0 | X180: 0 | Z180: 96 | AA180: 0 | AB180: 0 | AC180: 0 | AD180: 0 | AE180: 0
A181: 97 | B181: 0 | C181: =IF($A181>$E$65,0,IF($A181>$E$67,IF($H$3="s",$E$68,$E$71-D181),0)) -> 0 | D181: 0 | E181: =B181*$E$72/4 -> 0 | F181: 0 | H181: 0 | I181: 0 | K181: 0 | L181: 0 | M181: 0 | O181: 0 | P181: =IF($A181>$E$65,0,IF($A181>$E$67,IF($H$3="s",$E$68,$J$65-Q181),0)) -> 0 | Q181: =O181*$J$66 -> 0 | R181: =O181*$E$72/4 -> 0 | S181: =Q181+R181+P181 -> 0 | T181: 0 | V181: 0 | W181: 0 | X181: 0 | Z181: 97 | AA181: =IF(Amort=2,IF($H$2="o",C181-M181,P181-X181),IF($H$2="o",C181,P181)) -> 0 | AB181: =IF(Amort=1,IF($H$2="o",D181,Q181),IF($H$2="o",L181-M181,W181-X181)) -> 0 | AC181: =IF(Amort=1,IF($H$2="o",E181,R181),IF($H$2="o",M181,X181)) -> 0 | AD181: 0 | AE181: =IF(Amort=2,IF($H$2="o",K181,V181),IF($H$2="o",B181,O181)) -> 0
A182: 98 | B182: 0 | C182: 0 | D182: 0 | E182: 0 | F182: 0 | H182: 0 | I182: 0 | K182: 0 | L182: 0 | M182: 0 | O182: =O181-P181 -> 0 | P182: 0 | Q182: 0 | R182: 0 | S182: 0 | T182: 0 | V182: 0 | W182: 0 | X182: 0 | Z182: 98 | AA182: 0 | AB182: 0 | AC182: 0 | AD182: 0 | AE182: 0
A183: 99 | B183: 0 | C183: 0 | D183: 0 | E183: 0 | F183: 0 | H183: 0 | I183: 0 | K183: 0 | L183: 0 | M183: 0 | O183: 0 | P183: 0 | Q183: 0 | R183: 0 | S183: 0 | T183: 0 | V183: 0 | W183: 0 | X183: 0 | Z183: 99 | AA183: 0 | AB183: 0 | AC183: 0 | AD183: 0 | AE183: 0
A184: 100 | B184: 0 | C184: 0 | D184: 0 | E184: 0 | F184: 0 | H184: 0 | I184: 0 | K184: 0 | L184: 0 | M184: 0 | O184: 0 | P184: 0 | Q184: 0 | R184: 0 | S184: 0 | T184: 0 | V184: 0 | W184: 0 | X184: 0 | Z184: 100 | AA184: 0 | AB184: 0 | AC184: 0 | AD184: 0 | AE184: 0
A185: 101 | B185: 0 | C185: 0 | D185: 0 | E185: 0 | F185: 0 | H185: 0 | I185: 0 | K185: 0 | L185: 0 | M185: 0 | O185: 0 | P185: 0 | Q185: 0 | R185: 0 | S185: 0 | T185: 0 | V185: 0 | W185: 0 | X185: 0 | Z185: 101 | AA185: 0 | AB185: 0 | AC185: 0 | AD185: 0 | AE185: 0
A186: 102 | B186: 0 | C186: 0 | D186: 0 | E186: 0 | F186: 0 | H186: 0 | I186: 0 | K186: 0 | L186: 0 | M186: 0 | O186: 0 | P186: 0 | Q186: 0 | R186: 0 | S186: 0 | T186: 0 | V186: 0 | W186: 0 | X186: 0 | Z186: 102 | AA186: 0 | AB186: 0 | AC186: 0 | AD186: 0 | AE186: 0
A187: 103 | B187: 0 | C187: 0 | D187: 0 | E187: 0 | F187: 0 | H187: 0 | I187: 0 | K187: 0 | L187: 0 | M187: 0 | O187: 0 | P187: 0 | Q187: 0 | R187: 0 | S187: 0 | T187: 0 | V187: 0 | W187: 0 | X187: 0 | Z187: 103 | AA187: 0 | AB187: 0 | AC187: 0 | AD187: 0 | AE187: 0
A188: 104 | B188: 0 | C188: 0 | D188: 0 | E188: 0 | F188: 0 | H188: 0 | I188: 0 | K188: 0 | L188: 0 | M188: 0 | O188: 0 | P188: 0 | Q188: 0 | R188: 0 | S188: 0 | T188: 0 | V188: 0 | W188: 0 | X188: 0 | Z188: 104 | AA188: 0 | AB188: 0 | AC188: 0 | AD188: 0 | AE188: 0
A189: 105 | B189: 0 | C189: 0 | D189: 0 | E189: 0 | F189: 0 | H189: 0 | I189: 0 | K189: 0 | L189: 0 | M189: 0 | O189: 0 | P189: 0 | Q189: 0 | R189: 0 | S189: 0 | T189: 0 | V189: 0 | W189: 0 | X189: 0 | Z189: 105 | AA189: 0 | AB189: 0 | AC189: 0 | AD189: 0 | AE189: 0
A190: 106 | B190: 0 | C190: 0 | D190: 0 | E190: 0 | F190: 0 | H190: 0 | I190: 0 | K190: 0 | L190: 0 | M190: 0 | O190: 0 | P190: 0 | Q190: 0 | R190: 0 | S190: 0 | T190: 0 | V190: 0 | W190: 0 | X190: 0 | Z190: 106 | AA190: 0 | AB190: 0 | AC190: 0 | AD190: 0 | AE190: 0
A191: 107 | B191: 0 | C191: 0 | D191: 0 | E191: 0 | F191: 0 | H191: 0 | I191: 0 | K191: 0 | L191: 0 | M191: 0 | O191: 0 | P191: 0 | Q191: 0 | R191: 0 | S191: 0 | T191: 0 | V191: 0 | W191: 0 | X191: 0 | Z191: 107 | AA191: 0 | AB191: 0 | AC191: 0 | AD191: 0 | AE191: 0
A192: 108 | B192: 0 | C192: 0 | D192: 0 | E192: 0 | F192: 0 | H192: 0 | I192: 0 | K192: 0 | L192: 0 | M192: 0 | O192: 0 | P192: 0 | Q192: 0 | R192: 0 | S192: 0 | T192: 0 | V192: 0 | W192: 0 | X192: 0 | Z192: 108 | AA192: 0 | AB192: 0 | AC192: 0 | AD192: 0 | AE192: 0
A193: 109 | B193: 0 | C193: 0 | D193: 0 | E193: 0 | F193: 0 | H193: 0 | I193: 0 | K193: 0 | L193: 0 | M193: 0 | O193: 0 | P193: 0 | Q193: 0 | R193: 0 | S193: 0 | T193: 0 | V193: 0 | W193: 0 | X193: 0 | Z193: 109 | AA193: 0 | AB193: 0 | AC193: 0 | AD193: 0 | AE193: 0
A194: 110 | B194: 0 | C194: 0 | D194: 0 | E194: 0 | F194: 0 | H194: 0 | I194: 0 | K194: 0 | L194: 0 | M194: 0 | O194: 0 | P194: 0 | Q194: 0 | R194: 0 | S194: 0 | T194: 0 | V194: 0 | W194: 0 | X194: 0 | Z194: 110 | AA194: 0 | AB194: 0 | AC194: 0 | AD194: 0 | AE194: 0
A195: 111 | B195: 0 | C195: 0 | D195: 0 | E195: 0 | F195: 0 | H195: 0 | I195: 0 | K195: 0 | L195: 0 | M195: 0 | O195: 0 | P195: 0 | Q195: 0 | R195: 0 | S195: 0 | T195: 0 | V195: 0 | W195: 0 | X195: 0 | Z195: 111 | AA195: 0 | AB195: 0 | AC195: 0 | AD195: 0 | AE195: 0
A196: 112 | B196: 0 | C196: 0 | D196: 0 | E196: 0 | F196: 0 | H196: 0 | I196: 0 | K196: 0 | L196: 0 | M196: 0 | O196: 0 | P196: 0 | Q196: 0 | R196: 0 | S196: 0 | T196: 0 | V196: 0 | W196: 0 | X196: 0 | Z196: 112 | AA196: 0 | AB196: 0 | AC196: 0 | AD196: 0 | AE196: 0
A197: 113 | B197: 0 | C197: 0 | D197: 0 | E197: 0 | F197: 0 | H197: 0 | I197: 0 | K197: 0 | L197: 0 | M197: 0 | O197: 0 | P197: 0 | Q197: 0 | R197: 0 | S197: 0 | T197: 0 | V197: 0 | W197: 0 | X197: 0 | Z197: 113 | AA197: 0 | AB197: 0 | AC197: 0 | AD197: 0 | AE197: 0
A198: 114 | B198: 0 | C198: 0 | D198: 0 | E198: 0 | F198: 0 | H198: 0 | I198: 0 | K198: 0 | L198: 0 | M198: 0 | O198: 0 | P198: 0 | Q198: 0 | R198: 0 | S198: 0 | T198: 0 | V198: 0 | W198: 0 | X198: 0 | Z198: 114 | AA198: 0 | AB198: 0 | AC198: 0 | AD198: 0 | AE198: 0
A199: 115 | B199: 0 | C199: 0 | D199: 0 | E199: 0 | F199: 0 | H199: 0 | I199: 0 | K199: 0 | L199: 0 | M199: 0 | O199: 0 | P199: 0 | Q199: 0 | R199: 0 | S199: 0 | T199: 0 | V199: 0 | W199: 0 | X199: 0 | Z199: 115 | AA199: 0 | AB199: 0 | AC199: 0 | AD199: 0 | AE199: 0
A200: 116 | B200: 0 | C200: 0 | D200: 0 | E200: 0 | F200: 0 | H200: 0 | I200: 0 | K200: 0 | L200: 0 | M200: 0 | O200: 0 | P200: 0 | Q200: 0 | R200: 0 | S200: 0 | T200: 0 | V200: 0 | W200: 0 | X200: 0 | Z200: 116 | AA200: 0 | AB200: 0 | AC200: 0 | AD200: 0 | AE200: 0
A201: 117 | B201: 0 | C201: 0 | D201: 0 | E201: 0 | F201: 0 | H201: 0 | I201: 0 | K201: 0 | L201: 0 | M201: 0 | O201: 0 | P201: 0 | Q201: 0 | R201: 0 | S201: 0 | T201: 0 | V201: 0 | W201: 0 | X201: 0 | Z201: 117 | AA201: 0 | AB201: 0 | AC201: 0 | AD201: 0 | AE201: 0
A202: 118 | B202: 0 | C202: 0 | D202: 0 | E202: 0 | F202: 0 | H202: 0 | I202: 0 | K202: 0 | L202: 0 | M202: 0 | O202: 0 | P202: 0 | Q202: 0 | R202: 0 | S202: 0 | T202: 0 | V202: 0 | W202: 0 | X202: 0 | Z202: 118 | AA202: 0 | AB202: 0 | AC202: 0 | AD202: 0 | AE202: 0
A203: 119 | B203: 0 | C203: 0 | D203: 0 | E203: 0 | F203: 0 | H203: 0 | I203: 0 | K203: 0 | L203: 0 | M203: 0 | O203: 0 | P203: 0 | Q203: 0 | R203: 0 | S203: 0 | T203: 0 | V203: 0 | W203: 0 | X203: 0 | Z203: 119 | AA203: 0 | AB203: 0 | AC203: 0 | AD203: 0 | AE203: 0
A204: 120 | B204: 0 | C204: 0 | D204: 0 | E204: 0 | F204: 0 | H204: 0 | I204: 0 | K204: 0 | L204: 0 | M204: 0 | O204: 0 | P204: 0 | Q204: 0 | R204: 0 | S204: 0 | T204: 0 | V204: 0 | W204: 0 | X204: 0 | Z204: 120 | AA204: 0 | AB204: 0 | AC204: 0 | AD204: 0 | AE204: 0
D205: =SUM(D85:D204) -> 0 | Z205: 121

Sheet Real2
D1: =IF(Amort=2,"Amortiseret kostpris","") ->  | H1: =IF(ISBLANK(G1),Finansplan!L21,G1) -> 100.011 | I1: kurs | J1: =Finansplan!R59 -> © CHA 12.02.2025 | P1: =IF(AND(ISBLANK(G1),ISBLANK(G2),ISBLANK(G3),ISBLANK(G4),ISBLANK(G5),ISBLANK(G6),ISBLANK(G7),ISBLANK(G8),ISBLANK(G9),ISBLANK(G10),ISBLANK(G32),ISBLANK(G33),ISBLANK(G34),ISBLANK(G35),ISBLANK(G36)),0,1) -> 0
D2: =Finansplan!B21 -> Flexkort | H2: =IF(ISBLANK(G2),Finansplan!K21,G2) -> o | I2: k = kontant-, o = obl.lån
D3: =IF(H2="k","Kontantlån","Obligationslån") -> Obligationslån | H3: =IF(ISBLANK(G3),Finansplan!J21,G3) -> a | I3: a = annuitet, s = serielån
D4: =IF(H3="s","Serielån","Annuitetslån") -> Annuitetslån | H4: =IF(ISBLANK(G4),Finansplan!I21,G4) -> 0 | I4: hovedstol / restgæld
D5: =IF(H6>0,"med afdragsfrihed","") -> med afdragsfrihed | H5: =IF(ISBLANK(G5),IF(Finansplan!O21<=50,Finansplan!O21,50),IF(G5<=50,G5,50)) -> 30 | I5: års løbetid | J5: =IF(G5>50,"Max 50 år","") -> 
D6: =IF(H5>30,"Grafikken viser kun de første 30 år af ydelsen","") ->  | H6: =IF(ISBLANK(G6),Finansplan!P21,G6) -> 10 | I6: års afdragsfrihed
H7: =IF(ISBLANK(G7),Finansplan!M21,G7) -> 0.0278 | I7: debitorrente
H8: =IF(ISBLANK(G8),4,G8) -> 4 | I8: terminer inden første status
B9: Effektiv rente før skat | D9: =IF($H$2="k",J70,I70) -> 0 | E9: Nuværdi ydelser | F9: =IF(H2="o",I79,J79) -> 0 | H9: =IF(ISBLANK(G9),Finansplan!I2,G9) -> 0.385 | I9: skatteprocent
B10: Effektiv rente efter skat | D10: =IF($H$2="k",J72,I72) -> 0 | E10: Nominel rente | F10: =E70*4 -> 0.02751479684 | H10: =IF(ISBLANK(G10),Finansplan!N21,G10) -> 0.0125 | I10: adm.bidrags procent
B29: =IF(H2="k","Bagvedliggende obligationer","HOVEDSTOL = pålydende = tinglyst gæld") -> HOVEDSTOL = pålydende = tinglyst gæld | I29: =IF(H2="k",IFERROR(H4/H1*100,0),H4) -> 0 | J29: 1
B30: =IF(H2="k","",IF(I30>0," Kursgevinst"," Kurstab")) -> Kurstab | I30: =IF(H2="k",0,I31-I29) -> 0 | J30: =IF(H4>0,(I29-I31)/I29*-1,0) -> 0
B31: KURSVÆRDI, kurs | D31: =$H$1 -> 100.011 | E31: =IF(H2="k"," = HOVEDSTOL = tinglyst gæld","") ->  | I31: =IF(H2="k",H4,ROUND(H4*H1/100,0)) -> 0
B32: Stiftelsesprovision | F32: =IF(H4>0,IF(H$2="o",H32/I$29,H32/I$31),0) -> 0 | H32: =IF(H4>0,IF(H2="o",I74,J74),0) -> 0
B33: Kurtage (afregningsprovision, beregnes af kursværdi) | F33: =H33/(I31+0.0001) -> 0 | H33: =IF(I31=0,0,IF(ISBLANK(G33),E73,G33)) -> 0
B34: Lånesags- og ekspeditionsgebyr | F34: =IF($I$31=0,0,VurderingGebyrSats) -> 0 | H34: =IF(I31=0,0,IF(ISBLANK(G34),'Omk. & restfinans'!F18,G34)) -> 0
B35: Stempelafgift, staten (beregnes af hovedstol, opr. hele 100 kr | F35: =IF(H4>0,IF(H$2="o",H35/I$29,H35/I$31),0) -> 0 | H35: =IF(ISBLANK(G35),IF(H2="o",I73,J73),G35) -> 0
B36: Tinglysning, staten, kr. | F36: =IF($I$31=0,0,TinglysningPtbr) -> 0 | H36: =IF($I$31=0,0,IF(ISBLANK(G36),TinglysningPtbr,G36)) -> 0
B37: LÅNEOMKOSTNINGER I ALT | H37: =SUM(H32:H36) -> 0 | I37: =H37*-1 -> 0 | J37: =IF(H4>0,I37/I29,0) -> 0
B38: NETTOPROVENU (Udbetalt kreditbeløb) | I38: =ROUND(I31+I37,0) -> 0 | J38: =IF(H4>0,I38/I29*1,0) -> 0
B39: YDELSE | C39: Termin | D39: =IF(Amort=1,"Primo","Forpligtelse") -> Primo | E39: =IF(Amort=1,"Afdrag","Amort afdrag") -> Afdrag | F39: =IF(Amort=1,"Rente+bidrag","Amort. rente") -> Rente+bidrag | I39: Afdrag | J39: =IF(Amort=2,"Rente i alt","Rente+bidrag") -> Rente+bidrag
B40: =IF($H$8=1,"_______________","") ->  | C40: 1 | D40: =AE85 -> 0 | E40: =AA85 -> 0 | F40: =AB85+AC85 -> 0 | H40: =IF($H$8=1,">årlig sum>","") ->  | I40: =IF($H$8=1,E40,"") ->  | J40: =IF($H$8=1,F40,"") -> 
B41: =IF($H$8=2,"_______________","") ->  | C41: 2 | D41: =AE86 -> 0 | E41: 0 | F41: 0 | H41: =IF($H$8=2,">årlig sum>","") ->  | I41: =IF($H$8=2,SUM(E41+E40),"") ->  | J41: =IF($H$8=2,SUM(F41+F40),"") -> 
B42: =IF($H$8=3,"__________________","") ->  | C42: 3 | D42: 0 | E42: 0 | F42: 0 | H42: =IF($H$8=3,">årlig sum>","") ->  | I42: =IF($H$8=3,SUM(E40:E42),"") ->  | J42: =IF($H$8=3,SUM(F40:F42),"") -> 
B43: =IF($H$8=4,"___________________","") -> ___________________ | C43: 4 | D43: 0 | E43: 0 | F43: 0 | H43: =IF($H$8=4,">årlig sum>","") -> >årlig sum> | I43: =IF($H$8=4,SUM(E40:E43),"") -> 0 | J43: =IF($H$8=4,SUM(F40:F43),"") -> 0
B44: =IF($H$8=1,"_______________","") ->  | C44: 5 | D44: 0 | E44: 0 | F44: 0 | H44: =IF($H$8=1,">årlig sum>","") ->  | I44: =IF($H$8=1,SUM(E41:E44),"") ->  | J44: =IF($H$8=1,SUM(F41:F44),"") -> 
B45: =IF($H$8=2,"_______________","") ->  | C45: 6 | D45: 0 | E45: 0 | F45: 0 | H45: =IF($H$8=2,">årlig sum>","") ->  | I45: =IF($H$8=2,SUM(E42:E45),"") ->  | J45: =IF($H$8=2,SUM(F42:F45),"") -> 
B46: =IF($H$8=3,"__________________","") ->  | C46: 7 | D46: 0 | E46: 0 | F46: 0 | H46: =IF($H$8=3,">årlig sum>","") ->  | I46: =IF($H$8=3,SUM(E43:E46),"") ->  | J46: =IF($H$8=3,SUM(F43:F46),"") -> 
B47: =IF($H$8=4,"___________________","") -> ___________________ | C47: 8 | D47: 0 | E47: 0 | F47: 0 | H47: =IF($H$8=4,">årlig sum>","") -> >årlig sum> | I47: =IF($H$8=4,SUM(E44:E47),"") -> 0 | J47: =IF($H$8=4,SUM(F44:F47),"") -> 0
B48: =IF($H$8=1,"_______________","") ->  | C48: 9 | D48: 0 | E48: 0 | F48: 0 | H48: =IF($H$8=1,">årlig sum>","") ->  | I48: =IF($H$8=1,SUM(E45:E48),"") ->  | J48: =IF($H$8=1,SUM(F45:F48),"") -> 
B49: =IF($H$8=2,"_______________","") ->  | C49: 10 | D49: 0 | E49: 0 | F49: 0 | H49: =IF($H$8=2,">årlig sum>","") ->  | I49: =IF($H$8=2,SUM(E46:E49),"") ->  | J49: =IF($H$8=2,SUM(F46:F49),"") -> 
B50: =IF($H$8=3,"__________________","") ->  | C50: 11 | D50: 0 | E50: 0 | F50: 0 | H50: =IF($H$8=3,">årlig sum>","") ->  | I50: =IF($H$8=3,SUM(E47:E50),"") ->  | J50: =IF($H$8=3,SUM(F47:F50),"") -> 
B51: =IF($H$8=4,"___________________","") -> ___________________ | C51: 12 | D51: 0 | E51: 0 | F51: 0 | H51: =IF($H$8=4,">årlig sum>","") -> >årlig sum> | I51: =IF($H$8=4,SUM(E48:E51),"") -> 0 | J51: =IF($H$8=4,SUM(F48:F51),"") -> 0
B52: =IF($H$8=1,"_______________","") ->  | C52: 13 | D52: 0 | E52: 0 | F52: 0 | H52: =IF($H$8=1,">årlig sum>","") ->  | I52: =IF($H$8=1,SUM(E49:E52),"") ->  | J52: =IF($H$8=1,SUM(F49:F52),"") -> 
B53: =IF($H$8=2,"_______________","") ->  | C53: 14 | D53: 0 | E53: 0 | F53: 0 | H53: =IF($H$8=2,">årlig sum>","") ->  | I53: =IF($H$8=2,SUM(E50:E53),"") ->  | J53: =IF($H$8=2,SUM(F50:F53),"") -> 
B54: =IF($H$8=3,"__________________","") ->  | C54: 15 | D54: 0 | E54: 0 | F54: 0 | H54: =IF($H$8=3,">årlig sum>","") ->  | I54: =IF($H$8=3,SUM(E51:E54),"") ->  | J54: =IF($H$8=3,SUM(F51:F54),"") -> 
B55: =IF($H$8=4,"___________________","") -> ___________________ | C55: 16 | D55: 0 | E55: 0 | F55: 0 | H55: =IF($H$8=4,">årlig sum>","") -> >årlig sum> | I55: =IF($H$8=4,SUM(E52:E55),"") -> 0 | J55: =IF($H$8=4,SUM(F52:F55),"") -> 0
B56: =IF($H$8=1,"_______________","") ->  | C56: 17 | D56: 0 | E56: 0 | F56: 0 | H56: =IF($H$8=1,">årlig sum>","") ->  | I56: =IF($H$8=1,SUM(E53:E56),"") ->  | J56: =IF($H$8=1,SUM(F53:F56),"") -> 
B57: =IF($H$8=2,"_______________","") ->  | C57: 18 | D57: 0 | E57: 0 | F57: 0 | H57: =IF($H$8=2,">årlig sum>","") ->  | I57: =IF($H$8=2,SUM(E54:E57),"") ->  | J57: =IF($H$8=2,SUM(F54:F57),"") -> 
B58: =IF($H$8=3,"__________________","") ->  | C58: 19 | D58: 0 | E58: 0 | F58: 0 | H58: =IF($H$8=3,">årlig sum>","") ->  | I58: =IF($H$8=3,SUM(E55:E58),"") ->  | J58: =IF($H$8=3,SUM(F55:F58),"") -> 
B59: =IF($H$8=4,"___________________","") -> ___________________ | C59: 20 | D59: 0 | E59: 0 | F59: 0 | H59: =IF($H$8=4,">årlig sum>","") -> >årlig sum> | I59: =IF($H$8=4,SUM(E56:E59),"") -> 0 | J59: =IF($H$8=4,SUM(F56:F59),"") -> 0
B60: =IF($H$8=1,"_______________","") ->  | C60: 21 | D60: 0 | E60: 0 | F60: 0 | H60: =IF($H$8=1,">årlig sum>","") ->  | I60: =IF($H$8=1,SUM(E57:E60),"") ->  | J60: =IF($H$8=1,SUM(F57:F60),"") -> 
B61: =IF($H$8=2,"_______________","") ->  | C61: 22 | D61: 0 | E61: 0 | F61: 0 | H61: =IF($H$8=2,">årlig sum>","") ->  | I61: =IF($H$8=2,SUM(E58:E61),"") ->  | J61: =IF($H$8=2,SUM(F58:F61),"") -> 
B62: =IF($H$8=3,"__________________","") ->  | C62: 23 | D62: 0 | E62: 0 | F62: 0 | H62: =IF($H$8=3,">årlig sum>","") ->  | I62: =IF($H$8=3,SUM(E59:E62),"") ->  | J62: =IF($H$8=3,SUM(F59:F62),"") -> 
B63: =IF($H$8=4,"___________________","") -> ___________________ | C63: 24 | D63: 0 | E63: 0 | F63: 0 | H63: =IF($H$8=4,">årlig sum>","") -> >årlig sum> | I63: =IF($H$8=4,SUM(E60:E63),"") -> 0 | J63: =IF($H$8=4,SUM(F60:F63),"") -> 0
B64: B E R E G N I N G A F Y D E L S E, I N T E R N R E N T E , N U T I D S V Æ R D I O G A M O R T I S E R I N G
B65: Løbetid ialt i antal terminer................................................................ | E65: =H5*4 -> 120 | F65: Ydelse pr. termin ved kontantlån....................................... | J65: =PMT(J66,E66,I31)*-1 -> 0
B66: Afdragsterminer (min 1)................................................................ | E66: =IF((H5-H6)*4<1,1,(H5-H6)*4) -> 80 | F66: Nominel kontantlåns rente pr. termin…................ | J66: =E70 -> 0.00687869921
B67: Afdrag efter termin............................................................... | E67: =E65-E66 -> 40 | F67: Hovedstol, der skal afdrages.......................................... | J67: =IF($H$2="k",I31,I29) -> 0
B68: Afdrag pr. termin, hvis serielån............................................................... | E68: =J67/E66 -> 0 | I68: Obligation | J68: Kontant
B69: Afdrag pr. termin, hvis serielån amort. kostpris……………………………….. | E69: =H84*-1/E66 -> 0 | F69: Eff. rente/termin.......................................................... | I69: =IF(H4>0,IRR(F84:F284),0) -> 0 | J69: =IF(H4>0,IRR(S84:S204),0) -> 0
B70: Nominel rente % pr. termin................................................ | E70: =(1+H7)^0.25-1 -> 0.00687869921 | F70: Eff. rente p.a.......................................................... | I70: =((1+I69)^4-1) -> 0 | J70: =((1+J69)^4-1) -> 0
B71: Annuitetsydelse pr. termin ex adm................................. | E71: =PMT(E70,E66,I29)*-1 -> 0 | F71: Eff. rente/termin efter skat........................................................... | I71: =IF(H4>0,IRR(H84:H204),0) -> 0 | J71: =IF(H4>0,IRR(T84:T204),0) -> 0
B72: Adm.-bidrag beregnes af restgælden årligt......... | E72: =H10 -> 0.0125 | F72: Eff. rente p.a. efter skat........................................................... | I72: =((1+I71)^4-1) -> 0 | J72: =((1+J71)^4-1) -> 0
B73: Kurtage 0,15 % af kontantværdi (min 175), kr............................................... | E73: =IF(I31*KurtageUnderSats<KurtageMinSats,KurtageMinSats,I31*KurtageUnderSats) -> 175 | F73: Stempelberegning realkredit, opr........................................................... | I73: =IF(ISNUMBER('Omk. & restfinans'!E19),0,CEILING(I29*Stempel,100)) -> 0 | J73: =IF(ISNUMBER('Omk. & restfinans'!E19),0,CEILING(I31*Stempel,100)) -> 0
B74: Kurtage dog minimum kr.…………………………… | E74: =KurtageMinSats -> 175 | F74: Indskud realkredit.(min. 10.000)......................................................... | I74: =IF(ISNUMBER($G$32),$G$32*I29,IF('Omk. & restfinans'!$E$16>0,I29*'Omk. & restfinans'!$F$16,IF(StiftelsesprovisionSats*I29<MinStiftelse,MinStiftelse,StiftelsesprovisionSats*I29))) -> 10000 | J74: =IF(ISNUMBER($G$32),$G$32*I31,IF('Omk. & restfinans'!$E$16>0,I31*'Omk. & restfinans'!$F$16,IF(StiftelsesprovisionSats*I31<MinStiftelse,MinStiftelse,StiftelsesprovisionSats*I31))) -> 10000
B75: Standard indskud……………………………… | E75: =IF(H2="o",I29*StiftelsesprovisionSats,I31*StiftelsesprovisionSats) -> 0 | F75: Amortiseringstillæg i alt………………………… | I75: =H37 + I30*-1 -> 0 | J75: =H37 -> 0
B76: Standard stempel……………………………….. | E76: =CEILING(IF(H2="o",I29*Stempel,I31*Stempel),100) -> 0 | F76: Tildelt amortiseringstillæg i alt…………. | I76: =SUM(M85:M284) -> 0 | J76: =SUM(X85:X284) -> 0
I77: Obligation | J77: Kontant
B78: Kalkulationsrenten pr. termin (beregnet på grundlag af kalkulationsrenten p.a. fra arket Finansplan)…………………………………………………………………………. | I78: =KRenteTermin -> 0.01227223443 | J78: =KRenteTermin -> 0.01227223443 | Z78: =H2 -> o | AA78: kontant/obl
B79: Nutidsværdi af ydelserne ved kalkulationsrenten pr. termin................................................................................... | I79: =NPV(KRenteTermin,F85:F205) -> 0 | J79: =NPV(KRenteTermin,S85:S205) -> 0 | Z79: =Amort -> 1 | AA79: amortiseret=2
K80: OBLIGATIONSLÅN | V80: KONTANTLÅN
A81: OBLIGATIONSLÅN | K81: AMORTISERET KOSTPRIS | O81: KONTANTLÅN | V81: AMORTISERET KOSTPRIS
B82: Nominel | D82: Nominel | E82: Adm.- | F82: Ydelse | H82: Ydelse | I82: rente+afdrag | K82: Amortiseret | L82: Rente i alt | M82: Amorti- | O82: Nominel | P82: Nominel | Q82: Nominel | R82: Adm.- | S82: Ydelse | T82: Ydelse | V82: Amortiseret | W82: Amort | X82: Amorti- | Z82: DIAGRAMDATA | AA82: =IF(Amort=1,"","Amort.") ->  | AB82: =IF($H$2="k","kontantlån","Obligationslån") -> Obligationslån | AE82: Forpligtelse | AF82: Årlig
A83: T | B83: forpligtelse | C83: Afdrag | D83: Rente | E83: bidrag | F83: før skat | H83: efter skat | I83: før skat | K83: forpligtelse | L83: (Effektiv | M83: serings | O83: forpligtelse | P83: Afdrag | Q83: Rente | R83: bidrag | S83: før skat | T83: efter skat | V83: forpligtelse | W83: Effektiv | X83: serings | Z83: Termin | AA83: Afdrag | AB83: Rente | AC83: =IF(Amort=1,"Adm.bidrag","Amort. tillæg") -> Adm.bidrag | AD83: Ydelse efter skat | AE83: primo | AF83: amortisering
A84: Primo | F84: =I38*-1 -> 0 | H84: =F84 -> 0 | I84: =I31*-1 -> 0 | L84: rente) | M84: tillæg | S84: =$I$38*-1 -> 0 | T84: =$I$38*-1 -> 0 | W84: rente | X84: tillæg | Z84: 0
A85: 1 | B85: =I29 -> 0 | C85: =IF($A85>$E$65,0,IF($A85>$E$67,IF($H$3="s",$E$68,$E$71-D85),0)) -> 0 | D85: =$E$70*B85 -> 0 | E85: =B85*$E$72/4 -> 0 | F85: =E85+D85+C85 -> 0 | H85: =C85+((D85+E85)*(1-$H$9)) -> 0 | I85: =C85+D85 -> 0 | K85: =B85-I75 -> 0 | L85: =K85*$I$69 -> 0 | M85: =L85-D85-E85 -> 0 | O85: =I31 -> 0 | P85: =IF($A85>$E$65,0,IF($A85>$E$67,IF($H$3="s",$E$68,$J$65-Q85),0)) -> 0 | Q85: =O85*$J$66 -> 0 | R85: =O85*$E$72/4 -> 0 | S85: =Q85+R85+P85 -> 0 | T85: =P85+((R85+Q85)*(1-$H$9)) -> 0 | V85: =O85-$J$75 -> 0 | W85: =V85*$J$69 -> 0 | X85: =W85-Q85-R85 -> 0 | Z85: 1 | AA85: =IF(Amort=2,IF($H$2="o",C85-M85,P85-X85),IF($H$2="o",C85,P85)) -> 0 | AB85: =IF(Amort=1,IF($H$2="o",D85,Q85),IF($H$2="o",L85-M85,W85-X85)) -> 0 | AC85: =IF(Amort=1,IF($H$2="o",E85,R85),IF($H$2="o",M85,X85)) -> 0 | AD85: =IF($H$2="o",H85,T85) -> 0 | AE85: =IF(Amort=2,IF($H$2="o",K85,V85),IF($H$2="o",B85,O85)) -> 0
A86: 2 | B86: =B85-C85 -> 0 | C86: =IF($A86>$E$65,0,IF($A86>$E$67,IF($H$3="s",$E$68,$E$71-D86),0)) -> 0 | D86: =$E$70*B86 -> 0 | E86: 0 | F86: 0 | H86: =C86+((D86+E86)*(1-$H$9)) -> 0 | I86: 0 | K86: =K85-C85+M85 -> 0 | L86: =K86*$I$69 -> 0 | M86: =L86-D86-E86 -> 0 | O86: =O85-P85 -> 0 | P86: =IF($A86>$E$65,0,IF($A86>$E$67,IF($H$3="s",$E$68,$J$65-Q86),0)) -> 0 | Q86: =O86*$J$66 -> 0 | R86: 0 | S86: 0 | T86: =P86+((R86+Q86)*(1-$H$9)) -> 0 | V86: =V85+X85-P85 -> 0 | W86: =V86*$J$69 -> 0 | X86: =W86-Q86-R86 -> 0 | Z86: 2 | AA86: 0 | AB86: 0 | AC86: 0 | AD86: =IF($H$2="o",H86,T86) -> 0 | AE86: 0
A87: 3 | B87: 0 | C87: 0 | D87: 0 | E87: 0 | F87: 0 | H87: 0 | I87: 0 | K87: =K86-C86+M86 -> 0 | L87: 0 | M87: =L87-D87-E87 -> 0 | O87: 0 | P87: 0 | Q87: 0 | R87: 0 | S87: 0 | T87: 0 | V87: =V86+X86-P86 -> 0 | W87: 0 | X87: =W87-Q87-R87 -> 0 | Z87: 3 | AA87: 0 | AB87: 0 | AC87: 0 | AD87: 0 | AE87: 0
A88: 4 | B88: 0 | C88: 0 | D88: 0 | E88: 0 | F88: 0 | H88: 0 | I88: 0 | K88: =K87-C87+M87 -> 0 | L88: 0 | M88: =L88-D88-E88 -> 0 | O88: 0 | P88: 0 | Q88: 0 | R88: 0 | S88: 0 | T88: 0 | V88: 0 | W88: 0 | X88: 0 | Z88: 4 | AA88: 0 | AB88: 0 | AC88: 0 | AD88: 0 | AE88: 0 | AF88: =SUM(AC85:AC88) -> 0
A89: 5 | B89: 0 | C89: 0 | D89: 0 | E89: 0 | F89: 0 | H89: 0 | I89: 0 | K89: =K88-C88+M88 -> 0 | L89: 0 | M89: =L89-D89-E89 -> 0 | O89: 0 | P89: 0 | Q89: 0 | R89: 0 | S89: 0 | T89: 0 | V89: 0 | W89: 0 | X89: 0 | Z89: 5 | AA89: 0 | AB89: 0 | AC89: 0 | AD89: 0 | AE89: 0
A90: 6 | B90: 0 | C90: 0 | D90: 0 | E90: 0 | F90: 0 | H90: 0 | I90: 0 | K90: 0 | L90: 0 | M90: 0 | O90: 0 | P90: 0 | Q90: 0 | R90: 0 | S90: 0 | T90: 0 | V90: 0 | W90: 0 | X90: 0 | Z90: 6 | AA90: 0 | AB90: 0 | AC90: 0 | AD90: 0 | AE90: 0
A91: 7 | B91: 0 | C91: 0 | D91: 0 | E91: 0 | F91: 0 | H91: 0 | I91: 0 | K91: 0 | L91: 0 | M91: 0 | O91: 0 | P91: 0 | Q91: 0 | R91: 0 | S91: 0 | T91: 0 | V91: 0 | W91: 0 | X91: 0 | Z91: 7 | AA91: 0 | AB91: 0 | AC91: 0 | AD91: 0 | AE91: 0
A92: 8 | B92: 0 | C92: 0 | D92: 0 | E92: 0 | F92: 0 | H92: 0 | I92: 0 | K92: 0 | L92: 0 | M92: 0 | O92: 0 | P92: 0 | Q92: 0 | R92: 0 | S92: 0 | T92: 0 | V92: 0 | W92: 0 | X92: 0 | Z92: 8 | AA92: 0 | AB92: 0 | AC92: 0 | AD92: 0 | AE92: 0 | AF92: =SUM(AC89:AC92) -> 0
A93: 9 | B93: 0 | C93: 0 | D93: 0 | E93: 0 | F93: 0 | H93: 0 | I93: 0 | K93: 0 | L93: 0 | M93: 0 | O93: 0 | P93: 0 | Q93: 0 | R93: 0 | S93: 0 | T93: 0 | V93: 0 | W93: 0 | X93: 0 | Z93: 9 | AA93: 0 | AB93: 0 | AC93: 0 | AD93: 0 | AE93: 0
A94: 10 | B94: 0 | C94: 0 | D94: 0 | E94: 0 | F94: 0 | H94: 0 | I94: 0 | K94: 0 | L94: 0 | M94: 0 | O94: 0 | P94: 0 | Q94: 0 | R94: 0 | S94: 0 | T94: 0 | V94: 0 | W94: 0 | X94: 0 | Z94: 10 | AA94: 0 | AB94: 0 | AC94: 0 | AD94: 0 | AE94: 0
A95: 11 | B95: 0 | C95: 0 | D95: 0 | E95: 0 | F95: 0 | H95: 0 | I95: 0 | K95: 0 | L95: 0 | M95: 0 | O95: 0 | P95: 0 | Q95: 0 | R95: 0 | S95: 0 | T95: 0 | V95: 0 | W95: 0 | X95: 0 | Z95: 11 | AA95: 0 | AB95: 0 | AC95: 0 | AD95: 0 | AE95: 0
A96: 12 | B96: 0 | C96: 0 | D96: 0 | E96: 0 | F96: 0 | H96: 0 | I96: 0 | K96: 0 | L96: 0 | M96: 0 | O96: 0 | P96: 0 | Q96: 0 | R96: 0 | S96: 0 | T96: 0 | V96: 0 | W96: 0 | X96: 0 | Z96: 12 | AA96: 0 | AB96: 0 | AC96: 0 | AD96: 0 | AE96: 0 | AF96: =SUM(AC93:AC96) -> 0
A97: 13 | B97: 0 | C97: 0 | D97: 0 | E97: 0 | F97: 0 | H97: 0 | I97: 0 | K97: 0 | L97: 0 | M97: 0 | O97: 0 | P97: 0 | Q97: 0 | R97: 0 | S97: 0 | T97: 0 | V97: 0 | W97: 0 | X97: 0 | Z97: 13 | AA97: 0 | AB97: 0 | AC97: 0 | AD97: 0 | AE97: 0
A98: 14 | B98: 0 | C98: 0 | D98: 0 | E98: 0 | F98: 0 | H98: 0 | I98: 0 | K98: 0 | L98: 0 | M98: 0 | O98: 0 | P98: 0 | Q98: 0 | R98: 0 | S98: 0 | T98: 0 | V98: 0 | W98: 0 | X98: 0 | Z98: 14 | AA98: 0 | AB98: 0 | AC98: 0 | AD98: 0 | AE98: 0
A99: 15 | B99: 0 | C99: 0 | D99: 0 | E99: 0 | F99: 0 | H99: 0 | I99: 0 | K99: 0 | L99: 0 | M99: 0 | O99: 0 | P99: 0 | Q99: 0 | R99: 0 | S99: 0 | T99: 0 | V99: 0 | W99: 0 | X99: 0 | Z99: 15 | AA99: 0 | AB99: 0 | AC99: 0 | AD99: 0 | AE99: 0
A100: 16 | B100: 0 | C100: 0 | D100: 0 | E100: 0 | F100: 0 | H100: 0 | I100: 0 | K100: 0 | L100: 0 | M100: 0 | O100: 0 | P100: 0 | Q100: 0 | R100: 0 | S100: 0 | T100: 0 | V100: 0 | W100: 0 | X100: 0 | Z100: 16 | AA100: 0 | AB100: 0 | AC100: 0 | AD100: 0 | AE100: 0 | AF100: =SUM(AC97:AC100) -> 0
A101: 17 | B101: 0 | C101: 0 | D101: 0 | E101: 0 | F101: 0 | H101: 0 | I101: 0 | K101: 0 | L101: 0 | M101: 0 | O101: 0 | P101: 0 | Q101: 0 | R101: 0 | S101: 0 | T101: 0 | V101: 0 | W101: 0 | X101: 0 | Z101: 17 | AA101: 0 | AB101: 0 | AC101: 0 | AD101: 0 | AE101: 0
A102: 18 | B102: 0 | C102: 0 | D102: 0 | E102: 0 | F102: 0 | H102: 0 | I102: 0 | K102: 0 | L102: 0 | M102: 0 | O102: 0 | P102: 0 | Q102: 0 | R102: 0 | S102: 0 | T102: 0 | V102: 0 | W102: 0 | X102: 0 | Z102: 18 | AA102: 0 | AB102: 0 | AC102: 0 | AD102: 0 | AE102: 0
A103: 19 | B103: 0 | C103: 0 | D103: 0 | E103: 0 | F103: 0 | H103: 0 | I103: 0 | K103: 0 | L103: 0 | M103: 0 | O103: 0 | P103: 0 | Q103: 0 | R103: 0 | S103: 0 | T103: 0 | V103: 0 | W103: 0 | X103: 0 | Z103: 19 | AA103: 0 | AB103: 0 | AC103: 0 | AD103: 0 | AE103: 0
A104: 20 | B104: 0 | C104: 0 | D104: 0 | E104: 0 | F104: 0 | H104: 0 | I104: 0 | K104: 0 | L104: 0 | M104: 0 | O104: 0 | P104: 0 | Q104: 0 | R104: 0 | S104: 0 | T104: 0 | V104: 0 | W104: 0 | X104: 0 | Z104: 20 | AA104: 0 | AB104: 0 | AC104: 0 | AD104: 0 | AE104: 0
A105: 21 | B105: 0 | C105: 0 | D105: 0 | E105: 0 | F105: 0 | H105: 0 | I105: 0 | K105: 0 | L105: 0 | M105: 0 | O105: 0 | P105: 0 | Q105: 0 | R105: 0 | S105: 0 | T105: 0 | V105: 0 | W105: 0 | X105: 0 | Z105: 21 | AA105: 0 | AB105: 0 | AC105: 0 | AD105: 0 | AE105: 0
A106: 22 | B106: 0 | C106: 0 | D106: 0 | E106: 0 | F106: 0 | H106: 0 | I106: 0 | K106: 0 | L106: 0 | M106: 0 | O106: 0 | P106: 0 | Q106: 0 | R106: 0 | S106: 0 | T106: 0 | V106: 0 | W106: 0 | X106: 0 | Z106: 22 | AA106: 0 | AB106: 0 | AC106: 0 | AD106: 0 | AE106: 0
A107: 23 | B107: 0 | C107: 0 | D107: 0 | E107: 0 | F107: 0 | H107: 0 | I107: 0 | K107: 0 | L107: 0 | M107: 0 | O107: 0 | P107: 0 | Q107: 0 | R107: 0 | S107: 0 | T107: 0 | V107: 0 | W107: 0 | X107: 0 | Z107: 23 | AA107: 0 | AB107: 0 | AC107: 0 | AD107: 0 | AE107: 0
A108: 24 | B108: 0 | C108: 0 | D108: 0 | E108: 0 | F108: 0 | H108: 0 | I108: 0 | K108: 0 | L108: 0 | M108: 0 | O108: 0 | P108: 0 | Q108: 0 | R108: 0 | S108: 0 | T108: 0 | V108: 0 | W108: 0 | X108: 0 | Z108: 24 | AA108: 0 | AB108: 0 | AC108: 0 | AD108: 0 | AE108: 0
A109: 25 | B109: 0 | C109: 0 | D109: 0 | E109: 0 | F109: 0 | H109: 0 | I109: 0 | K109: 0 | L109: 0 | M109: 0 | O109: 0 | P109: 0 | Q109: 0 | R109: 0 | S109: 0 | T109: 0 | V109: 0 | W109: 0 | X109: 0 | Z109: 25 | AA109: 0 | AB109: 0 | AC109: 0 | AD109: 0 | AE109: 0
A110: 26 | B110: 0 | C110: 0 | D110: 0 | E110: 0 | F110: 0 | H110: 0 | I110: 0 | K110: 0 | L110: 0 | M110: 0 | O110: 0 | P110: 0 | Q110: 0 | R110: 0 | S110: 0 | T110: 0 | V110: 0 | W110: 0 | X110: 0 | Z110: 26 | AA110: 0 | AB110: 0 | AC110: 0 | AD110: 0 | AE110: 0
A111: 27 | B111: 0 | C111: 0 | D111: 0 | E111: 0 | F111: 0 | H111: 0 | I111: 0 | K111: 0 | L111: 0 | M111: 0 | O111: 0 | P111: 0 | Q111: 0 | R111: 0 | S111: 0 | T111: 0 | V111: 0 | W111: 0 | X111: 0 | Z111: 27 | AA111: 0 | AB111: 0 | AC111: 0 | AD111: 0 | AE111: 0
A112: 28 | B112: 0 | C112: 0 | D112: 0 | E112: 0 | F112: 0 | H112: 0 | I112: 0 | K112: 0 | L112: 0 | M112: 0 | O112: 0 | P112: 0 | Q112: 0 | R112: 0 | S112: 0 | T112: 0 | V112: 0 | W112: 0 | X112: 0 | Z112: 28 | AA112: 0 | AB112: 0 | AC112: 0 | AD112: 0 | AE112: 0
A113: 29 | B113: 0 | C113: 0 | D113: 0 | E113: 0 | F113: 0 | H113: 0 | I113: 0 | K113: 0 | L113: 0 | M113: 0 | O113: 0 | P113: 0 | Q113: 0 | R113: 0 | S113: 0 | T113: 0 | V113: 0 | W113: 0 | X113: 0 | Z113: 29 | AA113: 0 | AB113: 0 | AC113: 0 | AD113: 0 | AE113: 0
A114: 30 | B114: 0 | C114: 0 | D114: 0 | E114: 0 | F114: 0 | H114: 0 | I114: 0 | K114: 0 | L114: 0 | M114: 0 | O114: 0 | P114: 0 | Q114: 0 | R114: 0 | S114: 0 | T114: 0 | V114: 0 | W114: 0 | X114: 0 | Z114: 30 | AA114: 0 | AB114: 0 | AC114: 0 | AD114: 0 | AE114: 0
A115: 31 | B115: 0 | C115: 0 | D115: 0 | E115: 0 | F115: 0 | H115: 0 | I115: 0 | K115: 0 | L115: 0 | M115: 0 | O115: 0 | P115: 0 | Q115: 0 | R115: 0 | S115: 0 | T115: 0 | V115: 0 | W115: 0 | X115: 0 | Z115: 31 | AA115: 0 | AB115: 0 | AC115: 0 | AD115: 0 | AE115: 0
A116: 32 | B116: 0 | C116: 0 | D116: 0 | E116: 0 | F116: 0 | H116: 0 | I116: 0 | K116: 0 | L116: 0 | M116: 0 | O116: 0 | P116: 0 | Q116: 0 | R116: 0 | S116: 0 | T116: 0 | V116: 0 | W116: 0 | X116: 0 | Z116: 32 | AA116: 0 | AB116: 0 | AC116: 0 | AD116: 0 | AE116: 0
A117: 33 | B117: 0 | C117: 0 | D117: 0 | E117: 0 | F117: 0 | H117: 0 | I117: 0 | K117: 0 | L117: 0 | M117: 0 | O117: 0 | P117: 0 | Q117: 0 | R117: 0 | S117: 0 | T117: 0 | V117: 0 | W117: 0 | X117: 0 | Z117: 33 | AA117: =IF(Amort=2,IF($H$2="o",C117-M117,P117-X117),IF($H$2="o",C117,P117)) -> 0 | AB117: =IF(Amort=1,IF($H$2="o",D117,Q117),IF($H$2="o",L117-M117,W117-X117)) -> 0 | AC117: =IF(Amort=1,IF($H$2="o",E117,R117),IF($H$2="o",M117,X117)) -> 0 | AD117: 0 | AE117: 0
A118: 34 | B118: 0 | C118: 0 | D118: 0 | E118: 0 | F118: 0 | H118: 0 | I118: 0 | K118: 0 | L118: 0 | M118: 0 | O118: 0 | P118: 0 | Q118: 0 | R118: 0 | S118: 0 | T118: 0 | V118: 0 | W118: 0 | X118: 0 | Z118: 34 | AA118: 0 | AB118: 0 | AC118: 0 | AD118: 0 | AE118: 0
A119: 35 | B119: 0 | C119: 0 | D119: 0 | E119: 0 | F119: 0 | H119: 0 | I119: 0 | K119: 0 | L119: 0 | M119: 0 | O119: 0 | P119: 0 | Q119: 0 | R119: 0 | S119: 0 | T119: 0 | V119: 0 | W119: 0 | X119: 0 | Z119: 35 | AA119: 0 | AB119: 0 | AC119: 0 | AD119: 0 | AE119: 0
A120: 36 | B120: 0 | C120: 0 | D120: 0 | E120: 0 | F120: 0 | H120: 0 | I120: 0 | K120: 0 | L120: 0 | M120: 0 | O120: 0 | P120: 0 | Q120: 0 | R120: 0 | S120: 0 | T120: 0 | V120: 0 | W120: 0 | X120: 0 | Z120: 36 | AA120: 0 | AB120: 0 | AC120: 0 | AD120: 0 | AE120: 0
A121: 37 | B121: 0 | C121: 0 | D121: 0 | E121: 0 | F121: 0 | H121: 0 | I121: 0 | K121: 0 | L121: 0 | M121: 0 | O121: 0 | P121: 0 | Q121: 0 | R121: 0 | S121: 0 | T121: 0 | V121: 0 | W121: 0 | X121: 0 | Z121: 37 | AA121: 0 | AB121: 0 | AC121: 0 | AD121: 0 | AE121: 0
A122: 38 | B122: 0 | C122: 0 | D122: 0 | E122: 0 | F122: 0 | H122: 0 | I122: 0 | K122: 0 | L122: 0 | M122: 0 | O122: 0 | P122: 0 | Q122: 0 | R122: 0 | S122: 0 | T122: 0 | V122: 0 | W122: 0 | X122: 0 | Z122: 38 | AA122: 0 | AB122: 0 | AC122: 0 | AD122: 0 | AE122: 0
A123: 39 | B123: 0 | C123: 0 | D123: 0 | E123: 0 | F123: 0 | H123: 0 | I123: 0 | K123: 0 | L123: 0 | M123: 0 | O123: 0 | P123: 0 | Q123: 0 | R123: 0 | S123: 0 | T123: 0 | V123: 0 | W123: 0 | X123: 0 | Z123: 39 | AA123: 0 | AB123: 0 | AC123: 0 | AD123: 0 | AE123: 0
A124: 40 | B124: 0 | C124: 0 | D124: 0 | E124: 0 | F124: 0 | H124: 0 | I124: 0 | K124: 0 | L124: 0 | M124: 0 | O124: 0 | P124: 0 | Q124: 0 | R124: 0 | S124: 0 | T124: 0 | V124: 0 | W124: 0 | X124: 0 | Z124: 40 | AA124: 0 | AB124: 0 | AC124: 0 | AD124: 0 | AE124: 0
A125: 41 | B125: 0 | C125: 0 | D125: 0 | E125: 0 | F125: 0 | H125: 0 | I125: 0 | K125: 0 | L125: 0 | M125: 0 | O125: 0 | P125: 0 | Q125: 0 | R125: 0 | S125: 0 | T125: 0 | V125: 0 | W125: 0 | X125: 0 | Z125: 41 | AA125: 0 | AB125: 0 | AC125: 0 | AD125: 0 | AE125: 0
A126: 42 | B126: 0 | C126: 0 | D126: 0 | E126: 0 | F126: 0 | H126: 0 | I126: 0 | K126: 0 | L126: 0 | M126: 0 | O126: 0 | P126: 0 | Q126: 0 | R126: 0 | S126: 0 | T126: 0 | V126: 0 | W126: 0 | X126: 0 | Z126: 42 | AA126: 0 | AB126: 0 | AC126: 0 | AD126: 0 | AE126: 0
A127: 43 | B127: 0 | C127: 0 | D127: 0 | E127: 0 | F127: 0 | H127: 0 | I127: 0 | K127: 0 | L127: 0 | M127: 0 | O127: 0 | P127: 0 | Q127: 0 | R127: 0 | S127: 0 | T127: 0 | V127: 0 | W127: 0 | X127: 0 | Z127: 43 | AA127: 0 | AB127: 0 | AC127: 0 | AD127: 0 | AE127: 0
A128: 44 | B128: 0 | C128: 0 | D128: 0 | E128: 0 | F128: 0 | H128: 0 | I128: 0 | K128: 0 | L128: 0 | M128: 0 | O128: 0 | P128: 0 | Q128: 0 | R128: 0 | S128: 0 | T128: 0 | V128: 0 | W128: 0 | X128: 0 | Z128: 44 | AA128: 0 | AB128: 0 | AC128: 0 | AD128: 0 | AE128: 0
A129: 45 | B129: 0 | C129: 0 | D129: 0 | E129: 0 | F129: 0 | H129: 0 | I129: 0 | K129: 0 | L129: 0 | M129: 0 | O129: 0 | P129: 0 | Q129: 0 | R129: 0 | S129: 0 | T129: 0 | V129: 0 | W129: 0 | X129: 0 | Z129: 45 | AA129: 0 | AB129: 0 | AC129: 0 | AD129: 0 | AE129: 0
A130: 46 | B130: 0 | C130: 0 | D130: 0 | E130: 0 | F130: 0 | H130: 0 | I130: 0 | K130: 0 | L130: 0 | M130: 0 | O130: 0 | P130: 0 | Q130: 0 | R130: 0 | S130: 0 | T130: 0 | V130: 0 | W130: 0 | X130: 0 | Z130: 46 | AA130: 0 | AB130: 0 | AC130: 0 | AD130: 0 | AE130: 0
A131: 47 | B131: 0 | C131: 0 | D131: 0 | E131: 0 | F131: 0 | H131: 0 | I131: 0 | K131: 0 | L131: 0 | M131: 0 | O131: 0 | P131: 0 | Q131: 0 | R131: 0 | S131: 0 | T131: 0 | V131: 0 | W131: 0 | X131: 0 | Z131: 47 | AA131: 0 | AB131: 0 | AC131: 0 | AD131: 0 | AE131: 0
A132: 48 | B132: 0 | C132: 0 | D132: 0 | E132: 0 | F132: 0 | H132: 0 | I132: 0 | K132: 0 | L132: 0 | M132: 0 | O132: 0 | P132: 0 | Q132: 0 | R132: 0 | S132: 0 | T132: 0 | V132: 0 | W132: 0 | X132: 0 | Z132: 48 | AA132: 0 | AB132: 0 | AC132: 0 | AD132: 0 | AE132: 0
A133: 49 | B133: 0 | C133: 0 | D133: 0 | E133: 0 | F133: 0 | H133: 0 | I133: 0 | K133: 0 | L133: 0 | M133: 0 | O133: 0 | P133: 0 | Q133: 0 | R133: 0 | S133: 0 | T133: 0 | V133: 0 | W133: 0 | X133: 0 | Z133: 49 | AA133: 0 | AB133: 0 | AC133: 0 | AD133: 0 | AE133: 0
A134: 50 | B134: 0 | C134: 0 | D134: 0 | E134: 0 | F134: 0 | H134: 0 | I134: 0 | K134: 0 | L134: 0 | M134: 0 | O134: 0 | P134: 0 | Q134: 0 | R134: 0 | S134: 0 | T134: 0 | V134: 0 | W134: 0 | X134: 0 | Z134: 50 | AA134: 0 | AB134: 0 | AC134: 0 | AD134: 0 | AE134: 0
A135: 51 | B135: 0 | C135: 0 | D135: 0 | E135: 0 | F135: 0 | H135: 0 | I135: 0 | K135: 0 | L135: 0 | M135: 0 | O135: 0 | P135: 0 | Q135: 0 | R135: 0 | S135: 0 | T135: 0 | V135: 0 | W135: 0 | X135: 0 | Z135: 51 | AA135: 0 | AB135: 0 | AC135: 0 | AD135: 0 | AE135: 0
A136: 52 | B136: 0 | C136: 0 | D136: 0 | E136: 0 | F136: 0 | H136: 0 | I136: 0 | K136: 0 | L136: 0 | M136: 0 | O136: 0 | P136: 0 | Q136: 0 | R136: 0 | S136: 0 | T136: 0 | V136: 0 | W136: 0 | X136: 0 | Z136: 52 | AA136: 0 | AB136: 0 | AC136: 0 | AD136: 0 | AE136: 0
A137: 53 | B137: 0 | C137: 0 | D137: 0 | E137: 0 | F137: 0 | H137: 0 | I137: 0 | K137: 0 | L137: 0 | M137: 0 | O137: 0 | P137: 0 | Q137: 0 | R137: 0 | S137: 0 | T137: 0 | V137: 0 | W137: 0 | X137: 0 | Z137: 53 | AA137: 0 | AB137: 0 | AC137: 0 | AD137: 0 | AE137: 0
A138: 54 | B138: 0 | C138: 0 | D138: 0 | E138: 0 | F138: 0 | H138: 0 | I138: 0 | K138: 0 | L138: 0 | M138: 0 | O138: 0 | P138: 0 | Q138: 0 | R138: 0 | S138: 0 | T138: 0 | V138: 0 | W138: 0 | X138: 0 | Z138: 54 | AA138: 0 | AB138: 0 | AC138: 0 | AD138: 0 | AE138: 0
A139: 55 | B139: 0 | C139: 0 | D139: 0 | E139: 0 | F139: 0 | H139: 0 | I139: 0 | K139: 0 | L139: 0 | M139: 0 | O139: 0 | P139: 0 | Q139: 0 | R139: 0 | S139: 0 | T139: 0 | V139: 0 | W139: 0 | X139: 0 | Z139: 55 | AA139: 0 | AB139: 0 | AC139: 0 | AD139: 0 | AE139: 0
A140: 56 | B140: 0 | C140: 0 | D140: 0 | E140: 0 | F140: 0 | H140: 0 | I140: 0 | K140: 0 | L140: 0 | M140: 0 | O140: 0 | P140: 0 | Q140: 0 | R140: 0 | S140: 0 | T140: 0 | V140: 0 | W140: 0 | X140: 0 | Z140: 56 | AA140: 0 | AB140: 0 | AC140: 0 | AD140: 0 | AE140: 0
A141: 57 | B141: 0 | C141: 0 | D141: 0 | E141: 0 | F141: 0 | H141: 0 | I141: 0 | K141: 0 | L141: 0 | M141: 0 | O141: 0 | P141: 0 | Q141: 0 | R141: 0 | S141: 0 | T141: 0 | V141: 0 | W141: 0 | X141: 0 | Z141: 57 | AA141: 0 | AB141: 0 | AC141: 0 | AD141: 0 | AE141: 0
A142: 58 | B142: 0 | C142: 0 | D142: 0 | E142: 0 | F142: 0 | H142: 0 | I142: 0 | K142: 0 | L142: 0 | M142: 0 | O142: 0 | P142: 0 | Q142: 0 | R142: 0 | S142: 0 | T142: 0 | V142: 0 | W142: 0 | X142: 0 | Z142: 58 | AA142: 0 | AB142: 0 | AC142: 0 | AD142: 0 | AE142: 0
A143: 59 | B143: 0 | C143: 0 | D143: 0 | E143: 0 | F143: 0 | H143: 0 | I143: 0 | K143: 0 | L143: 0 | M143: 0 | O143: 0 | P143: 0 | Q143: 0 | R143: 0 | S143: 0 | T143: 0 | V143: 0 | W143: 0 | X143: 0 | Z143: 59 | AA143: 0 | AB143: 0 | AC143: 0 | AD143: 0 | AE143: 0
A144: 60 | B144: 0 | C144: 0 | D144: 0 | E144: 0 | F144: 0 | H144: 0 | I144: 0 | K144: 0 | L144: 0 | M144: 0 | O144: 0 | P144: 0 | Q144: 0 | R144: 0 | S144: 0 | T144: 0 | V144: 0 | W144: 0 | X144: 0 | Z144: 60 | AA144: 0 | AB144: 0 | AC144: 0 | AD144: 0 | AE144: 0
A145: 61 | B145: 0 | C145: 0 | D145: 0 | E145: 0 | F145: 0 | H145: 0 | I145: 0 | K145: 0 | L145: 0 | M145: 0 | O145: 0 | P145: 0 | Q145: 0 | R145: 0 | S145: 0 | T145: 0 | V145: 0 | W145: 0 | X145: 0 | Z145: 61 | AA145: 0 | AB145: 0 | AC145: 0 | AD145: 0 | AE145: 0
A146: 62 | B146: 0 | C146: 0 | D146: 0 | E146: 0 | F146: 0 | H146: 0 | I146: 0 | K146: 0 | L146: 0 | M146: 0 | O146: 0 | P146: 0 | Q146: 0 | R146: 0 | S146: 0 | T146: 0 | V146: 0 | W146: 0 | X146: 0 | Z146: 62 | AA146: 0 | AB146: 0 | AC146: 0 | AD146: 0 | AE146: 0
A147: 63 | B147: 0 | C147: 0 | D147: 0 | E147: 0 | F147: 0 | H147: 0 | I147: 0 | K147: 0 | L147: 0 | M147: 0 | O147: 0 | P147: 0 | Q147: 0 | R147: 0 | S147: 0 | T147: 0 | V147: 0 | W147: 0 | X147: 0 | Z147: 63 | AA147: 0 | AB147: 0 | AC147: 0 | AD147: 0 | AE147: 0
A148: 64 | B148: 0 | C148: 0 | D148: 0 | E148: 0 | F148: 0 | H148: 0 | I148: 0 | K148: 0 | L148: 0 | M148: 0 | O148: 0 | P148: 0 | Q148: 0 | R148: 0 | S148: 0 | T148: 0 | V148: 0 | W148: 0 | X148: 0 | Z148: 64 | AA148: 0 | AB148: 0 | AC148: 0 | AD148: 0 | AE148: 0
A149: 65 | B149: 0 | C149: =IF($A149>$E$65,0,IF($A149>$E$67,IF($H$3="s",$E$68,$E$71-D149),0)) -> 0 | D149: 0 | E149: =B149*$E$72/4 -> 0 | F149: =E149+D149+C149 -> 0 | H149: 0 | I149: =C149+D149 -> 0 | K149: 0 | L149: 0 | M149: 0 | O149: 0 | P149: =IF($A149>$E$65,0,IF($A149>$E$67,IF($H$3="s",$E$68,$J$65-Q149),0)) -> 0 | Q149: 0 | R149: =O149*$E$72/4 -> 0 | S149: =Q149+R149+P149 -> 0 | T149: 0 | V149: 0 | W149: 0 | X149: 0 | Z149: 65 | AA149: =IF(Amort=2,IF($H$2="o",C149-M149,P149-X149),IF($H$2="o",C149,P149)) -> 0 | AB149: =IF(Amort=1,IF($H$2="o",D149,Q149),IF($H$2="o",L149-M149,W149-X149)) -> 0 | AC149: =IF(Amort=1,IF($H$2="o",E149,R149),IF($H$2="o",M149,X149)) -> 0 | AD149: 0 | AE149: =IF(Amort=2,IF($H$2="o",K149,V149),IF($H$2="o",B149,O149)) -> 0
A150: 66 | B150: =B149-C149 -> 0 | C150: 0 | D150: =$E$70*B150 -> 0 | E150: 0 | F150: 0 | H150: =C150+((D150+E150)*(1-$H$9)) -> 0 | I150: 0 | K150: 0 | L150: =K150*$I$69 -> 0 | M150: 0 | O150: =O149-P149 -> 0 | P150: 0 | Q150: =O150*$J$66 -> 0 | R150: 0 | S150: 0 | T150: =P150+((R150+Q150)*(1-$H$9)) -> 0 | V150: 0 | W150: =V150*$J$69 -> 0 | X150: 0 | Z150: 66 | AA150: 0 | AB150: 0 | AC150: 0 | AD150: =IF($H$2="o",H150,T150) -> 0 | AE150: 0
A151: 67 | B151: 0 | C151: 0 | D151: 0 | E151: 0 | F151: 0 | H151: 0 | I151: 0 | K151: 0 | L151: 0 | M151: 0 | O151: 0 | P151: 0 | Q151: 0 | R151: 0 | S151: 0 | T151: 0 | V151: =V150+X150-P150 -> 0 | W151: 0 | X151: =W151-Q151-R151 -> 0 | Z151: 67 | AA151: 0 | AB151: 0 | AC151: 0 | AD151: 0 | AE151: 0
A152: 68 | B152: 0 | C152: 0 | D152: 0 | E152: 0 | F152: 0 | H152: 0 | I152: 0 | K152: 0 | L152: 0 | M152: 0 | O152: 0 | P152: 0 | Q152: 0 | R152: 0 | S152: 0 | T152: 0 | V152: 0 | W152: 0 | X152: 0 | Z152: 68 | AA152: 0 | AB152: 0 | AC152: 0 | AD152: 0 | AE152: 0
A153: 69 | B153: 0 | C153: 0 | D153: 0 | E153: 0 | F153: 0 | H153: 0 | I153: 0 | K153: =K152-C152+M152 -> 0 | L153: 0 | M153: =L153-D153-E153 -> 0 | O153: 0 | P153: 0 | Q153: 0 | R153: 0 | S153: 0 | T153: 0 | V153: 0 | W153: 0 | X153: 0 | Z153: 69 | AA153: 0 | AB153: 0 | AC153: 0 | AD153: 0 | AE153: 0
A154: 70 | B154: 0 | C154: 0 | D154: 0 | E154: 0 | F154: 0 | H154: 0 | I154: 0 | K154: 0 | L154: 0 | M154: 0 | O154: 0 | P154: 0 | Q154: 0 | R154: 0 | S154: 0 | T154: 0 | V154: 0 | W154: 0 | X154: 0 | Z154: 70 | AA154: 0 | AB154: 0 | AC154: 0 | AD154: 0 | AE154: 0
A155: 71 | B155: 0 | C155: 0 | D155: 0 | E155: 0 | F155: 0 | H155: 0 | I155: 0 | K155: 0 | L155: 0 | M155: 0 | O155: 0 | P155: 0 | Q155: 0 | R155: 0 | S155: 0 | T155: 0 | V155: 0 | W155: 0 | X155: 0 | Z155: 71 | AA155: 0 | AB155: 0 | AC155: 0 | AD155: 0 | AE155: 0
A156: 72 | B156: 0 | C156: 0 | D156: 0 | E156: 0 | F156: 0 | H156: 0 | I156: 0 | K156: 0 | L156: 0 | M156: 0 | O156: 0 | P156: 0 | Q156: 0 | R156: 0 | S156: 0 | T156: 0 | V156: 0 | W156: 0 | X156: 0 | Z156: 72 | AA156: 0 | AB156: 0 | AC156: 0 | AD156: 0 | AE156: 0
A157: 73 | B157: 0 | C157: 0 | D157: 0 | E157: 0 | F157: 0 | H157: 0 | I157: 0 | K157: 0 | L157: 0 | M157: 0 | O157: 0 | P157: 0 | Q157: 0 | R157: 0 | S157: 0 | T157: 0 | V157: 0 | W157: 0 | X157: 0 | Z157: 73 | AA157: 0 | AB157: 0 | AC157: 0 | AD157: 0 | AE157: 0
A158: 74 | B158: 0 | C158: 0 | D158: 0 | E158: 0 | F158: 0 | H158: 0 | I158: 0 | K158: 0 | L158: 0 | M158: 0 | O158: 0 | P158: 0 | Q158: 0 | R158: 0 | S158: 0 | T158: 0 | V158: 0 | W158: 0 | X158: 0 | Z158: 74 | AA158: 0 | AB158: 0 | AC158: 0 | AD158: 0 | AE158: 0
A159: 75 | B159: 0 | C159: 0 | D159: 0 | E159: 0 | F159: 0 | H159: 0 | I159: 0 | K159: 0 | L159: 0 | M159: 0 | O159: 0 | P159: 0 | Q159: 0 | R159: 0 | S159: 0 | T159: 0 | V159: 0 | W159: 0 | X159: 0 | Z159: 75 | AA159: 0 | AB159: 0 | AC159: 0 | AD159: 0 | AE159: 0
A160: 76 | B160: 0 | C160: 0 | D160: 0 | E160: 0 | F160: 0 | H160: 0 | I160: 0 | K160: 0 | L160: 0 | M160: 0 | O160: 0 | P160: 0 | Q160: 0 | R160: 0 | S160: 0 | T160: 0 | V160: 0 | W160: 0 | X160: 0 | Z160: 76 | AA160: 0 | AB160: 0 | AC160: 0 | AD160: 0 | AE160: 0
A161: 77 | B161: 0 | C161: 0 | D161: 0 | E161: 0 | F161: 0 | H161: 0 | I161: 0 | K161: 0 | L161: 0 | M161: 0 | O161: 0 | P161: 0 | Q161: 0 | R161: 0 | S161: 0 | T161: 0 | V161: 0 | W161: 0 | X161: 0 | Z161: 77 | AA161: 0 | AB161: 0 | AC161: 0 | AD161: 0 | AE161: 0
A162: 78 | B162: 0 | C162: 0 | D162: 0 | E162: 0 | F162: 0 | H162: 0 | I162: 0 | K162: 0 | L162: 0 | M162: 0 | O162: 0 | P162: 0 | Q162: 0 | R162: 0 | S162: 0 | T162: 0 | V162: 0 | W162: 0 | X162: 0 | Z162: 78 | AA162: 0 | AB162: 0 | AC162: 0 | AD162: 0 | AE162: 0
A163: 79 | B163: 0 | C163: 0 | D163: 0 | E163: 0 | F163: 0 | H163: 0 | I163: 0 | K163: 0 | L163: 0 | M163: 0 | O163: 0 | P163: 0 | Q163: 0 | R163: 0 | S163: 0 | T163: 0 | V163: 0 | W163: 0 | X163: 0 | Z163: 79 | AA163: 0 | AB163: 0 | AC163: 0 | AD163: 0 | AE163: 0
A164: 80 | B164: 0 | C164: 0 | D164: 0 | E164: 0 | F164: 0 | H164: 0 | I164: 0 | K164: 0 | L164: 0 | M164: 0 | O164: 0 | P164: 0 | Q164: 0 | R164: 0 | S164: 0 | T164: 0 | V164: 0 | W164: 0 | X164: 0 | Z164: 80 | AA164: 0 | AB164: 0 | AC164: 0 | AD164: 0 | AE164: 0
A165: 81 | B165: 0 | C165: 0 | D165: 0 | E165: 0 | F165: 0 | H165: 0 | I165: 0 | K165: 0 | L165: 0 | M165: 0 | O165: 0 | P165: 0 | Q165: 0 | R165: 0 | S165: 0 | T165: 0 | V165: 0 | W165: 0 | X165: 0 | Z165: 81 | AA165: 0 | AB165: 0 | AC165: 0 | AD165: 0 | AE165: 0
A166: 82 | B166: 0 | C166: 0 | D166: 0 | E166: 0 | F166: 0 | H166: 0 | I166: 0 | K166: 0 | L166: 0 | M166: 0 | O166: 0 | P166: 0 | Q166: 0 | R166: 0 | S166: 0 | T166: 0 | V166: 0 | W166: 0 | X166: 0 | Z166: 82 | AA166: 0 | AB166: 0 | AC166: 0 | AD166: 0 | AE166: 0
A167: 83 | B167: 0 | C167: 0 | D167: 0 | E167: 0 | F167: 0 | H167: 0 | I167: 0 | K167: 0 | L167: 0 | M167: 0 | O167: 0 | P167: 0 | Q167: 0 | R167: 0 | S167: 0 | T167: 0 | V167: 0 | W167: 0 | X167: 0 | Z167: 83 | AA167: 0 | AB167: 0 | AC167: 0 | AD167: 0 | AE167: 0
A168: 84 | B168: 0 | C168: 0 | D168: 0 | E168: 0 | F168: 0 | H168: 0 | I168: 0 | K168: 0 | L168: 0 | M168: 0 | O168: 0 | P168: 0 | Q168: 0 | R168: 0 | S168: 0 | T168: 0 | V168: 0 | W168: 0 | X168: 0 | Z168: 84 | AA168: 0 | AB168: 0 | AC168: 0 | AD168: 0 | AE168: 0
A169: 85 | B169: 0 | C169: 0 | D169: 0 | E169: 0 | F169: 0 | H169: 0 | I169: 0 | K169: 0 | L169: 0 | M169: 0 | O169: 0 | P169: 0 | Q169: 0 | R169: 0 | S169: 0 | T169: 0 | V169: 0 | W169: 0 | X169: 0 | Z169: 85 | AA169: 0 | AB169: 0 | AC169: 0 | AD169: 0 | AE169: 0
A170: 86 | B170: 0 | C170: 0 | D170: 0 | E170: 0 | F170: 0 | H170: 0 | I170: 0 | K170: 0 | L170: 0 | M170: 0 | O170: 0 | P170: 0 | Q170: 0 | R170: 0 | S170: 0 | T170: 0 | V170: 0 | W170: 0 | X170: 0 | Z170: 86 | AA170: 0 | AB170: 0 | AC170: 0 | AD170: 0 | AE170: 0
A171: 87 | B171: 0 | C171: 0 | D171: 0 | E171: 0 | F171: 0 | H171: 0 | I171: 0 | K171: 0 | L171: 0 | M171: 0 | O171: 0 | P171: 0 | Q171: 0 | R171: 0 | S171: 0 | T171: 0 | V171: 0 | W171: 0 | X171: 0 | Z171: 87 | AA171: 0 | AB171: 0 | AC171: 0 | AD171: 0 | AE171: 0
A172: 88 | B172: 0 | C172: 0 | D172: 0 | E172: 0 | F172: 0 | H172: 0 | I172: 0 | K172: 0 | L172: 0 | M172: 0 | O172: 0 | P172: 0 | Q172: 0 | R172: 0 | S172: 0 | T172: 0 | V172: 0 | W172: 0 | X172: 0 | Z172: 88 | AA172: 0 | AB172: 0 | AC172: 0 | AD172: 0 | AE172: 0
A173: 89 | B173: 0 | C173: 0 | D173: 0 | E173: 0 | F173: 0 | H173: 0 | I173: 0 | K173: 0 | L173: 0 | M173: 0 | O173: 0 | P173: 0 | Q173: 0 | R173: 0 | S173: 0 | T173: 0 | V173: 0 | W173: 0 | X173: 0 | Z173: 89 | AA173: 0 | AB173: 0 | AC173: 0 | AD173: 0 | AE173: 0
A174: 90 | B174: 0 | C174: 0 | D174: 0 | E174: 0 | F174: 0 | H174: 0 | I174: 0 | K174: 0 | L174: 0 | M174: 0 | O174: 0 | P174: 0 | Q174: 0 | R174: 0 | S174: 0 | T174: 0 | V174: 0 | W174: 0 | X174: 0 | Z174: 90 | AA174: 0 | AB174: 0 | AC174: 0 | AD174: 0 | AE174: 0
A175: 91 | B175: 0 | C175: 0 | D175: 0 | E175: 0 | F175: 0 | H175: 0 | I175: 0 | K175: 0 | L175: 0 | M175: 0 | O175: 0 | P175: 0 | Q175: 0 | R175: 0 | S175: 0 | T175: 0 | V175: 0 | W175: 0 | X175: 0 | Z175: 91 | AA175: 0 | AB175: 0 | AC175: 0 | AD175: 0 | AE175: 0
A176: 92 | B176: 0 | C176: 0 | D176: 0 | E176: 0 | F176: 0 | H176: 0 | I176: 0 | K176: 0 | L176: 0 | M176: 0 | O176: 0 | P176: 0 | Q176: 0 | R176: 0 | S176: 0 | T176: 0 | V176: 0 | W176: 0 | X176: 0 | Z176: 92 | AA176: 0 | AB176: 0 | AC176: 0 | AD176: 0 | AE176: 0
A177: 93 | B177: 0 | C177: 0 | D177: 0 | E177: 0 | F177: 0 | H177: 0 | I177: 0 | K177: 0 | L177: 0 | M177: 0 | O177: 0 | P177: 0 | Q177: 0 | R177: 0 | S177: 0 | T177: 0 | V177: 0 | W177: 0 | X177: 0 | Z177: 93 | AA177: 0 | AB177: 0 | AC177: 0 | AD177: 0 | AE177: 0
A178: 94 | B178: 0 | C178: 0 | D178: 0 | E178: 0 | F178: 0 | H178: 0 | I178: 0 | K178: 0 | L178: 0 | M178: 0 | O178: 0 | P178: 0 | Q178: 0 | R178: 0 | S178: 0 | T178: 0 | V178: 0 | W178: 0 | X178: 0 | Z178: 94 | AA178: 0 | AB178: 0 | AC178: 0 | AD178: 0 | AE178: 0
A179: 95 | B179: 0 | C179: 0 | D179: 0 | E179: 0 | F179: 0 | H179: 0 | I179: 0 | K179: 0 | L179: 0 | M179: 0 | O179: 0 | P179: 0 | Q179: 0 | R179: 0 | S179: 0 | T179: 0 | V179: 0 | W179: 0 | X179: 0 | Z179: 95 | AA179: 0 | AB179: 0 | AC179: 0 | AD179: 0 | AE179: 0
A180: 96 | B180: 0 | C180: 0 | D180: 0 | E180: 0 | F180: 0 | H180: 0 | I180: 0 | K180: 0 | L180: 0 | M180: 0 | O180: 0 | P180: 0 | Q180: 0 | R180: 0 | S180: 0 | T180: 0 | V180: 0 | W180: 0 | X180: 0 | Z180: 96 | AA180: 0 | AB180: 0 | AC180: 0 | AD180: 0 | AE180: 0
A181: 97 | B181: 0 | C181: 0 | D181: 0 | E181: 0 | F181: 0 | H181: 0 | I181: 0 | K181: 0 | L181: 0 | M181: 0 | O181: 0 | P181: 0 | Q181: 0 | R181: 0 | S181: 0 | T181: 0 | V181: 0 | W181: 0 | X181: 0 | Z181: 97 | AA181: =IF(Amort=2,IF($H$2="o",C181-M181,P181-X181),IF($H$2="o",C181,P181)) -> 0 | AB181: =IF(Amort=1,IF($H$2="o",D181,Q181),IF($H$2="o",L181-M181,W181-X181)) -> 0 | AC181: =IF(Amort=1,IF($H$2="o",E181,R181),IF($H$2="o",M181,X181)) -> 0 | AD181: 0 | AE181: 0
A182: 98 | B182: 0 | C182: 0 | D182: 0 | E182: 0 | F182: 0 | H182: 0 | I182: 0 | K182: 0 | L182: 0 | M182: 0 | O182: 0 | P182: 0 | Q182: 0 | R182: 0 | S182: 0 | T182: 0 | V182: 0 | W182: 0 | X182: 0 | Z182: 98 | AA182: 0 | AB182: 0 | AC182: 0 | AD182: 0 | AE182: 0
A183: 99 | B183: 0 | C183: 0 | D183: 0 | E183: 0 | F183: 0 | H183: 0 | I183: 0 | K183: 0 | L183: 0 | M183: 0 | O183: 0 | P183: 0 | Q183: 0 | R183: 0 | S183: 0 | T183: 0 | V183: 0 | W183: 0 | X183: 0 | Z183: 99 | AA183: 0 | AB183: 0 | AC183: 0 | AD183: 0 | AE183: 0
A184: 100 | B184: 0 | C184: 0 | D184: 0 | E184: 0 | F184: 0 | H184: 0 | I184: 0 | K184: 0 | L184: 0 | M184: 0 | O184: 0 | P184: 0 | Q184: 0 | R184: 0 | S184: 0 | T184: 0 | V184: 0 | W184: 0 | X184: 0 | Z184: 100 | AA184: 0 | AB184: 0 | AC184: 0 | AD184: 0 | AE184: 0
A185: 101 | B185: 0 | C185: 0 | D185: 0 | E185: 0 | F185: 0 | H185: 0 | I185: 0 | K185: 0 | L185: 0 | M185: 0 | O185: 0 | P185: 0 | Q185: 0 | R185: 0 | S185: 0 | T185: 0 | V185: 0 | W185: 0 | X185: 0 | Z185: 101 | AA185: 0 | AB185: 0 | AC185: 0 | AD185: 0 | AE185: 0
A186: 102 | B186: 0 | C186: 0 | D186: 0 | E186: 0 | F186: 0 | H186: 0 | I186: 0 | K186: 0 | L186: 0 | M186: 0 | O186: 0 | P186: 0 | Q186: 0 | R186: 0 | S186: 0 | T186: 0 | V186: 0 | W186: 0 | X186: 0 | Z186: 102 | AA186: 0 | AB186: 0 | AC186: 0 | AD186: 0 | AE186: 0
A187: 103 | B187: 0 | C187: 0 | D187: 0 | E187: 0 | F187: 0 | H187: 0 | I187: 0 | K187: 0 | L187: 0 | M187: 0 | O187: 0 | P187: 0 | Q187: 0 | R187: 0 | S187: 0 | T187: 0 | V187: 0 | W187: 0 | X187: 0 | Z187: 103 | AA187: 0 | AB187: 0 | AC187: 0 | AD187: 0 | AE187: 0
A188: 104 | B188: 0 | C188: 0 | D188: 0 | E188: 0 | F188: 0 | H188: 0 | I188: 0 | K188: 0 | L188: 0 | M188: 0 | O188: 0 | P188: 0 | Q188: 0 | R188: 0 | S188: 0 | T188: 0 | V188: 0 | W188: 0 | X188: 0 | Z188: 104 | AA188: 0 | AB188: 0 | AC188: 0 | AD188: 0 | AE188: 0
A189: 105 | B189: 0 | C189: 0 | D189: 0 | E189: 0 | F189: 0 | H189: 0 | I189: 0 | K189: 0 | L189: 0 | M189: 0 | O189: 0 | P189: 0 | Q189: 0 | R189: 0 | S189: 0 | T189: 0 | V189: 0 | W189: 0 | X189: 0 | Z189: 105 | AA189: 0 | AB189: 0 | AC189: 0 | AD189: 0 | AE189: 0
A190: 106 | B190: 0 | C190: 0 | D190: 0 | E190: 0 | F190: 0 | H190: 0 | I190: 0 | K190: 0 | L190: 0 | M190: 0 | O190: 0 | P190: 0 | Q190: 0 | R190: 0 | S190: 0 | T190: 0 | V190: 0 | W190: 0 | X190: 0 | Z190: 106 | AA190: 0 | AB190: 0 | AC190: 0 | AD190: 0 | AE190: 0
A191: 107 | B191: 0 | C191: 0 | D191: 0 | E191: 0 | F191: 0 | H191: 0 | I191: 0 | K191: 0 | L191: 0 | M191: 0 | O191: 0 | P191: 0 | Q191: 0 | R191: 0 | S191: 0 | T191: 0 | V191: 0 | W191: 0 | X191: 0 | Z191: 107 | AA191: 0 | AB191: 0 | AC191: 0 | AD191: 0 | AE191: 0
A192: 108 | B192: 0 | C192: 0 | D192: 0 | E192: 0 | F192: 0 | H192: 0 | I192: 0 | K192: 0 | L192: 0 | M192: 0 | O192: 0 | P192: 0 | Q192: 0 | R192: 0 | S192: 0 | T192: 0 | V192: 0 | W192: 0 | X192: 0 | Z192: 108 | AA192: 0 | AB192: 0 | AC192: 0 | AD192: 0 | AE192: 0
A193: 109 | B193: 0 | C193: 0 | D193: 0 | E193: 0 | F193: 0 | H193: 0 | I193: 0 | K193: 0 | L193: 0 | M193: 0 | O193: 0 | P193: 0 | Q193: 0 | R193: 0 | S193: 0 | T193: 0 | V193: 0 | W193: 0 | X193: 0 | Z193: 109 | AA193: 0 | AB193: 0 | AC193: 0 | AD193: 0 | AE193: 0
A194: 110 | B194: 0 | C194: 0 | D194: 0 | E194: 0 | F194: 0 | H194: 0 | I194: 0 | K194: 0 | L194: 0 | M194: 0 | O194: 0 | P194: 0 | Q194: 0 | R194: 0 | S194: 0 | T194: 0 | V194: 0 | W194: 0 | X194: 0 | Z194: 110 | AA194: 0 | AB194: 0 | AC194: 0 | AD194: 0 | AE194: 0
A195: 111 | B195: 0 | C195: 0 | D195: 0 | E195: 0 | F195: 0 | H195: 0 | I195: 0 | K195: 0 | L195: 0 | M195: 0 | O195: 0 | P195: 0 | Q195: 0 | R195: 0 | S195: 0 | T195: 0 | V195: 0 | W195: 0 | X195: 0 | Z195: 111 | AA195: 0 | AB195: 0 | AC195: 0 | AD195: 0 | AE195: 0
A196: 112 | B196: 0 | C196: 0 | D196: 0 | E196: 0 | F196: 0 | H196: 0 | I196: 0 | K196: 0 | L196: 0 | M196: 0 | O196: 0 | P196: 0 | Q196: 0 | R196: 0 | S196: 0 | T196: 0 | V196: 0 | W196: 0 | X196: 0 | Z196: 112 | AA196: 0 | AB196: 0 | AC196: 0 | AD196: 0 | AE196: 0
A197: 113 | B197: 0 | C197: 0 | D197: 0 | E197: 0 | F197: 0 | H197: 0 | I197: 0 | K197: 0 | L197: 0 | M197: 0 | O197: 0 | P197: 0 | Q197: 0 | R197: 0 | S197: 0 | T197: 0 | V197: 0 | W197: 0 | X197: 0 | Z197: 113 | AA197: 0 | AB197: 0 | AC197: 0 | AD197: 0 | AE197: 0
A198: 114 | B198: 0 | C198: 0 | D198: 0 | E198: 0 | F198: 0 | H198: 0 | I198: 0 | K198: 0 | L198: 0 | M198: 0 | O198: 0 | P198: 0 | Q198: 0 | R198: 0 | S198: 0 | T198: 0 | V198: 0 | W198: 0 | X198: 0 | Z198: 114 | AA198: 0 | AB198: 0 | AC198: 0 | AD198: 0 | AE198: 0
A199: 115 | B199: 0 | C199: 0 | D199: 0 | E199: 0 | F199: 0 | H199: 0 | I199: 0 | K199: 0 | L199: 0 | M199: 0 | O199: 0 | P199: 0 | Q199: 0 | R199: 0 | S199: 0 | T199: 0 | V199: 0 | W199: 0 | X199: 0 | Z199: 115 | AA199: 0 | AB199: 0 | AC199: 0 | AD199: 0 | AE199: 0
A200: 116 | B200: 0 | C200: 0 | D200: 0 | E200: 0 | F200: 0 | H200: 0 | I200: 0 | K200: 0 | L200: 0 | M200: 0 | O200: 0 | P200: 0 | Q200: 0 | R200: 0 | S200: 0 | T200: 0 | V200: 0 | W200: 0 | X200: 0 | Z200: 116 | AA200: 0 | AB200: 0 | AC200: 0 | AD200: 0 | AE200: 0
A201: 117 | B201: 0 | C201: 0 | D201: 0 | E201: 0 | F201: 0 | H201: 0 | I201: 0 | K201: 0 | L201: 0 | M201: 0 | O201: 0 | P201: 0 | Q201: 0 | R201: 0 | S201: 0 | T201: 0 | V201: 0 | W201: 0 | X201: 0 | Z201: 117 | AA201: 0 | AB201: 0 | AC201: 0 | AD201: 0 | AE201: 0
A202: 118 | B202: 0 | C202: 0 | D202: 0 | E202: 0 | F202: 0 | H202: 0 | I202: 0 | K202: 0 | L202: 0 | M202: 0 | O202: 0 | P202: 0 | Q202: 0 | R202: 0 | S202: 0 | T202: 0 | V202: 0 | W202: 0 | X202: 0 | Z202: 118 | AA202: 0 | AB202: 0 | AC202: 0 | AD202: 0 | AE202: 0
A203: 119 | B203: 0 | C203: 0 | D203: 0 | E203: 0 | F203: 0 | H203: 0 | I203: 0 | K203: 0 | L203: 0 | M203: 0 | O203: 0 | P203: 0 | Q203: 0 | R203: 0 | S203: 0 | T203: 0 | V203: 0 | W203: 0 | X203: 0 | Z203: 119 | AA203: 0 | AB203: 0 | AC203: 0 | AD203: 0 | AE203: 0
A204: 120 | B204: 0 | C204: 0 | D204: 0 | E204: 0 | F204: 0 | H204: 0 | I204: 0 | K204: 0 | L204: 0 | M204: 0 | O204: 0 | P204: 0 | Q204: 0 | R204: 0 | S204: 0 | T204: 0 | V204: 0 | W204: 0 | X204: 0 | Z204: 120 | AA204: 0 | AB204: 0 | AC204: 0 | AD204: 0 | AE204: 0
D205: =SUM(D85:D204) -> 0

Sheet Real3
D1: =IF(Amort=2,"Amortiseret kostpris","") ->  | H1: =IF(ISBLANK(G1),Finansplan!L22,G1) -> 96 | I1: kurs | J1: =Finansplan!R59 -> © CHA 12.02.2025 | P1: =IF(AND(ISBLANK(G1),ISBLANK(G2),ISBLANK(G3),ISBLANK(G4),ISBLANK(G5),ISBLANK(G6),ISBLANK(G7),ISBLANK(G8),ISBLANK(G9),ISBLANK(G10),ISBLANK(G32),ISBLANK(G33),ISBLANK(G34),ISBLANK(G35),ISBLANK(G36)),0,1) -> 0
D2: =Finansplan!B22 -> 0 | H2: =IF(ISBLANK(G2),Finansplan!K22,G2) -> k | I2: k = kontant-, o = obl.lån
D3: =IF(H2="k","Kontantlån","Obligationslån") -> Kontantlån | H3: =IF(ISBLANK(G3),Finansplan!J22,G3) -> a | I3: a = annuitet, s = serielån
D4: =IF(H3="s","Serielån","Annuitetslån") -> Annuitetslån | H4: =IF(ISBLANK(G4),Finansplan!I22,G4) -> 0 | I4: hovedstol / restgæld
D5: =IF(H6>0,"med afdragsfrihed","") ->  | H5: =IF(ISBLANK(G5),IF(Finansplan!O22<=50,Finansplan!O22,50),IF(G5<=50,G5,50)) -> 30 | I5: års løbetid | J5: =IF(G5>50,"Max 50 år","") -> 
D6: =IF(H5>30,"Grafikken viser kun de første 30 år af ydelsen","") ->  | H6: =IF(ISBLANK(G6),Finansplan!P22,G6) -> 0 | I6: års afdragsfrihed
H7: =IF(ISBLANK(G7),Finansplan!M22,G7) -> 0.02 | I7: debitorrente
H8: =IF(ISBLANK(G8),4,G8) -> 4 | I8: terminer inden første status
B9: Effektiv rente før skat | D9: =IF($H$2="k",J70,I70) -> 0 | E9: Nuværdi ydelser | F9: =IF(H2="o",I79,J79) -> 0 | H9: =IF(ISBLANK(G9),Finansplan!I2,G9) -> 0.385 | I9: skatteprocent
B10: Effektiv rente efter skat | D10: =IF($H$2="k",J72,I72) -> 0 | E10: Nominel rente | F10: =E70*4 -> 0.01985172629 | H10: =IF(ISBLANK(G10),Finansplan!N22,G10) -> 0.012 | I10: adm.bidrags procent
B29: =IF(H2="k","Bagvedliggende obligationer","HOVEDSTOL = pålydende = tinglyst gæld") -> Bagvedliggende obligationer | I29: =IF(H2="k",IFERROR(H4/H1*100,0),H4) -> 0 | J29: 1
B30: =IF(H2="k","",IF(I30>0," Kursgevinst"," Kurstab")) ->  | I30: =IF(H2="k",0,I31-I29) -> 0 | J30: =IF(H4>0,(I29-I31)/I29*-1,0) -> 0
B31: KURSVÆRDI, kurs | D31: =$H$1 -> 96 | E31: =IF(H2="k"," = HOVEDSTOL = tinglyst gæld","") -> = HOVEDSTOL = tinglyst gæld | I31: =IF(H2="k",H4,ROUND(H4*H1/100,0)) -> 0
B32: Stiftelsesprovision | F32: =IF(H4>0,IF(H$2="o",H32/I$29,H32/I$31),0) -> 0 | H32: =IF(H4>0,IF(H2="o",I74,J74),0) -> 0
B33: Kurtage (afregningsprovision, beregnes af kursværdi) | F33: =H33/(I31+0.0001) -> 0 | H33: =IF(I31=0,0,IF(ISBLANK(G33),E73,G33)) -> 0
B34: Lånesags- og ekspeditionsgebyr | F34: =IF($I$31=0,0,VurderingGebyrSats) -> 0 | H34: =IF(I31=0,0,IF(ISBLANK(G34),'Omk. & restfinans'!F18,G34)) -> 0
B35: Stempelafgift, staten (beregnes af hovedstol, opr. hele 100 kr | F35: =IF(H4>0,IF(H$2="o",H35/I$29,H35/I$31),0) -> 0 | H35: =IF(ISBLANK(G35),IF(H2="o",I73,J73),G35) -> 0
B36: Tinglysning, staten, kr. | F36: =IF($I$31=0,0,TinglysningPtbr) -> 0 | H36: =IF($I$31=0,0,IF(ISBLANK(G36),TinglysningPtbr,G36)) -> 0
B37: LÅNEOMKOSTNINGER I ALT | H37: =SUM(H32:H36) -> 0 | I37: =H37*-1 -> 0 | J37: =IF(H4>0,I37/I29,0) -> 0
B38: NETTOPROVENU (Udbetalt kreditbeløb) | I38: =ROUND(I31+I37,0) -> 0 | J38: =IF(H4>0,I38/I29*1,0) -> 0
B39: YDELSE | C39: Termin | D39: =IF(Amort=1,"Primo","Forpligtelse") -> Primo | E39: =IF(Amort=1,"Afdrag","Amort afdrag") -> Afdrag | F39: =IF(Amort=1,"Rente+bidrag","Amort. rente") -> Rente+bidrag | I39: Afdrag | J39: =IF(Amort=1,"Rente+bidrag","Amort. rente") -> Rente+bidrag
B40: =IF($H$8=1,"_______________","") ->  | C40: 1 | D40: =AE85 -> 0 | E40: =AA85 -> 0 | F40: =AB85+AC85 -> 0 | H40: =IF($H$8=1,">årlig sum>","") ->  | I40: =IF($H$8=1,E40,"") ->  | J40: =IF($H$8=1,F40,"") -> 
B41: =IF($H$8=2,"_______________","") ->  | C41: 2 | D41: =AE86 -> 0 | E41: 0 | F41: 0 | H41: =IF($H$8=2,">årlig sum>","") ->  | I41: =IF($H$8=2,SUM(E41+E40),"") ->  | J41: =IF($H$8=2,SUM(F41+F40),"") -> 
B42: =IF($H$8=3,"__________________","") ->  | C42: 3 | D42: 0 | E42: 0 | F42: 0 | H42: =IF($H$8=3,">årlig sum>","") ->  | I42: =IF($H$8=3,SUM(E40:E42),"") ->  | J42: =IF($H$8=3,SUM(F40:F42),"") -> 
B43: =IF($H$8=4,"___________________","") -> ___________________ | C43: 4 | D43: 0 | E43: 0 | F43: 0 | H43: =IF($H$8=4,">årlig sum>","") -> >årlig sum> | I43: =IF($H$8=4,SUM(E40:E43),"") -> 0 | J43: =IF($H$8=4,SUM(F40:F43),"") -> 0
B44: =IF($H$8=1,"_______________","") ->  | C44: 5 | D44: 0 | E44: 0 | F44: 0 | H44: =IF($H$8=1,">årlig sum>","") ->  | I44: =IF($H$8=1,SUM(E41:E44),"") ->  | J44: =IF($H$8=1,SUM(F41:F44),"") -> 
B45: =IF($H$8=2,"_______________","") ->  | C45: 6 | D45: 0 | E45: 0 | F45: 0 | H45: =IF($H$8=2,">årlig sum>","") ->  | I45: =IF($H$8=2,SUM(E42:E45),"") ->  | J45: =IF($H$8=2,SUM(F42:F45),"") -> 
B46: =IF($H$8=3,"__________________","") ->  | C46: 7 | D46: 0 | E46: 0 | F46: 0 | H46: =IF($H$8=3,">årlig sum>","") ->  | I46: =IF($H$8=3,SUM(E43:E46),"") ->  | J46: =IF($H$8=3,SUM(F43:F46),"") -> 
B47: =IF($H$8=4,"___________________","") -> ___________________ | C47: 8 | D47: 0 | E47: 0 | F47: 0 | H47: =IF($H$8=4,">årlig sum>","") -> >årlig sum> | I47: =IF($H$8=4,SUM(E44:E47),"") -> 0 | J47: =IF($H$8=4,SUM(F44:F47),"") -> 0
B48: =IF($H$8=1,"_______________","") ->  | C48: 9 | D48: 0 | E48: 0 | F48: 0 | H48: =IF($H$8=1,">årlig sum>","") ->  | I48: =IF($H$8=1,SUM(E45:E48),"") ->  | J48: =IF($H$8=1,SUM(F45:F48),"") -> 
B49: =IF($H$8=2,"_______________","") ->  | C49: 10 | D49: 0 | E49: 0 | F49: 0 | H49: =IF($H$8=2,">årlig sum>","") ->  | I49: =IF($H$8=2,SUM(E46:E49),"") ->  | J49: =IF($H$8=2,SUM(F46:F49),"") -> 
B50: =IF($H$8=3,"__________________","") ->  | C50: 11 | D50: 0 | E50: 0 | F50: 0 | H50: =IF($H$8=3,">årlig sum>","") ->  | I50: =IF($H$8=3,SUM(E47:E50),"") ->  | J50: =IF($H$8=3,SUM(F47:F50),"") -> 
B51: =IF($H$8=4,"___________________","") -> ___________________ | C51: 12 | D51: 0 | E51: 0 | F51: 0 | H51: =IF($H$8=4,">årlig sum>","") -> >årlig sum> | I51: =IF($H$8=4,SUM(E48:E51),"") -> 0 | J51: =IF($H$8=4,SUM(F48:F51),"") -> 0
B52: =IF($H$8=1,"_______________","") ->  | C52: 13 | D52: 0 | E52: 0 | F52: 0 | H52: =IF($H$8=1,">årlig sum>","") ->  | I52: =IF($H$8=1,SUM(E49:E52),"") ->  | J52: =IF($H$8=1,SUM(F49:F52),"") -> 
B53: =IF($H$8=2,"_______________","") ->  | C53: 14 | D53: 0 | E53: 0 | F53: 0 | H53: =IF($H$8=2,">årlig sum>","") ->  | I53: =IF($H$8=2,SUM(E50:E53),"") ->  | J53: =IF($H$8=2,SUM(F50:F53),"") -> 
B54: =IF($H$8=3,"__________________","") ->  | C54: 15 | D54: 0 | E54: 0 | F54: 0 | H54: =IF($H$8=3,">årlig sum>","") ->  | I54: =IF($H$8=3,SUM(E51:E54),"") ->  | J54: =IF($H$8=3,SUM(F51:F54),"") -> 
B55: =IF($H$8=4,"___________________","") -> ___________________ | C55: 16 | D55: 0 | E55: 0 | F55: 0 | H55: =IF($H$8=4,">årlig sum>","") -> >årlig sum> | I55: =IF($H$8=4,SUM(E52:E55),"") -> 0 | J55: =IF($H$8=4,SUM(F52:F55),"") -> 0
B56: =IF($H$8=1,"_______________","") ->  | C56: 17 | D56: 0 | E56: 0 | F56: 0 | H56: =IF($H$8=1,">årlig sum>","") ->  | I56: =IF($H$8=1,SUM(E53:E56),"") ->  | J56: =IF($H$8=1,SUM(F53:F56),"") -> 
B57: =IF($H$8=2,"_______________","") ->  | C57: 18 | D57: 0 | E57: 0 | F57: 0 | H57: =IF($H$8=2,">årlig sum>","") ->  | I57: =IF($H$8=2,SUM(E54:E57),"") ->  | J57: =IF($H$8=2,SUM(F54:F57),"") -> 
B58: =IF($H$8=3,"__________________","") ->  | C58: 19 | D58: 0 | E58: 0 | F58: 0 | H58: =IF($H$8=3,">årlig sum>","") ->  | I58: =IF($H$8=3,SUM(E55:E58),"") ->  | J58: =IF($H$8=3,SUM(F55:F58),"") -> 
B59: =IF($H$8=4,"___________________","") -> ___________________ | C59: 20 | D59: 0 | E59: 0 | F59: 0 | H59: =IF($H$8=4,">årlig sum>","") -> >årlig sum> | I59: =IF($H$8=4,SUM(E56:E59),"") -> 0 | J59: =IF($H$8=4,SUM(F56:F59),"") -> 0
B60: =IF($H$8=1,"_______________","") ->  | C60: 21 | D60: 0 | E60: 0 | F60: 0 | H60: =IF($H$8=1,">årlig sum>","") ->  | I60: =IF($H$8=1,SUM(E57:E60),"") ->  | J60: =IF($H$8=1,SUM(F57:F60),"") -> 
B61: =IF($H$8=2,"_______________","") ->  | C61: 22 | D61: 0 | E61: 0 | F61: 0 | H61: =IF($H$8=2,">årlig sum>","") ->  | I61: =IF($H$8=2,SUM(E58:E61),"") ->  | J61: =IF($H$8=2,SUM(F58:F61),"") -> 
B62: =IF($H$8=3,"__________________","") ->  | C62: 23 | D62: 0 | E62: 0 | F62: 0 | H62: =IF($H$8=3,">årlig sum>","") ->  | I62: =IF($H$8=3,SUM(E59:E62),"") ->  | J62: =IF($H$8=3,SUM(F59:F62),"") -> 
B63: =IF($H$8=4,"___________________","") -> ___________________ | C63: 24 | D63: 0 | E63: 0 | F63: 0 | H63: =IF($H$8=4,">årlig sum>","") -> >årlig sum> | I63: =IF($H$8=4,SUM(E60:E63),"") -> 0 | J63: =IF($H$8=4,SUM(F60:F63),"") -> 0
B64: B E R E G N I N G A F Y D E L S E, I N T E R N R E N T E , N U T I D S V Æ R D I O G A M O R T I S E R I N G
B65: Løbetid ialt i antal terminer................................................................ | E65: =H5*4 -> 120 | F65: Ydelse pr. termin ved kontantlån....................................... | J65: =PMT(J66,E66,I31)*-1 -> 0
B66: Afdragsterminer (min 1)................................................................ | E66: =IF((H5-H6)*4<1,1,(H5-H6)*4) -> 120 | F66: Nominel kontantlåns rente pr. termin…................ | J66: =E70 -> 0.004962931573
B67: Afdrag efter termin............................................................... | E67: =E65-E66 -> 0 | F67: Hovedstol, der skal afdrages.......................................... | J67: =IF($H$2="k",I31,I29) -> 0
B68: Afdrag pr. termin, hvis serielån............................................................... | E68: =J67/E66 -> 0 | I68: Obligation | J68: Kontant
B69: Afdrag pr. termin, hvis serielån amort. kostpris……………………………….. | E69: =H84*-1/E66 -> 0 | F69: Eff. rente/termin.......................................................... | I69: =IF(H4>0,IRR(F84:F284),0) -> 0 | J69: =IF(H4>0,IRR(S84:S284),0) -> 0
B70: Nominel rente % pr. termin................................................ | E70: =(1+H7)^0.25-1 -> 0.004962931573 | F70: Eff. rente p.a.......................................................... | I70: =((1+I69)^4-1) -> 0 | J70: =((1+J69)^4-1) -> 0
B71: Annuitetsydelse pr. termin ex adm................................. | E71: =PMT(E70,E66,I29)*-1 -> 0 | F71: Eff. rente/termin efter skat........................................................... | I71: =IF(H4>0,IRR(H84:H204),0) -> 0 | J71: =IF(H4>0,IRR(T84:T204),0) -> 0
B72: Adm.-bidrag beregnes af restgælden årligt......... | E72: =H10 -> 0.012 | F72: Eff. rente p.a. efter skat........................................................... | I72: =((1+I71)^4-1) -> 0 | J72: =((1+J71)^4-1) -> 0
B73: Kurtage 0,15 % af kontantværdi (min 175), kr............................................... | E73: =IF(I31*KurtageUnderSats<KurtageMinSats,KurtageMinSats,I31*KurtageUnderSats) -> 175 | F73: Stempelberegning realkredit, opr........................................................... | I73: =IF(ISNUMBER('Omk. & restfinans'!E19),0,CEILING(I29*Stempel,100)) -> 0 | J73: =IF(ISNUMBER('Omk. & restfinans'!E19),0,CEILING(I31*Stempel,100)) -> 0
B74: Kurtage dog minimum kr.…………………………… | E74: =KurtageMinSats -> 175 | F74: Indskud realkredit.(min. 10.000)......................................................... | I74: =IF(ISNUMBER($G$32),$G$32*I29,IF('Omk. & restfinans'!$E$16>0,I29*'Omk. & restfinans'!$F$16,IF(StiftelsesprovisionSats*I29<MinStiftelse,MinStiftelse,StiftelsesprovisionSats*I29))) -> 10000 | J74: =IF(ISNUMBER($G$32),$G$32*I31,IF('Omk. & restfinans'!$E$16>0,I31*'Omk. & restfinans'!$F$16,IF(StiftelsesprovisionSats*I31<MinStiftelse,MinStiftelse,StiftelsesprovisionSats*I31))) -> 10000
B75: Standard indskud……………………………… | E75: =IF(H2="o",I29*StiftelsesprovisionSats,I31*StiftelsesprovisionSats) -> 0 | F75: Amortiseringstillæg i alt………………………… | I75: =H37 + I30*-1 -> 0 | J75: =H37 -> 0
B76: Standard stempel……………………………….. | E76: =CEILING(IF(H2="o",I29*Stempel,I31*Stempel),100) -> 0 | F76: Tildelt amortiseringstillæg i alt…………. | I76: =SUM(M85:M284) -> 0 | J76: =SUM(X85:X284) -> 0
I77: Obligation | J77: Kontant
B78: Kalkulationsrenten pr. termin (beregnet på grundlag af kalkulationsrenten p.a. fra arket Finansplan)…………………………………………………………………………. | I78: =KRenteTermin -> 0.01227223443 | J78: =KRenteTermin -> 0.01227223443 | Z78: =H2 -> k | AA78: kontant/obl
B79: Nutidsværdi af ydelserne ved kalkulationsrenten pr. termin................................................................................... | I79: =NPV(KRenteTermin,F85:F205) -> 0 | J79: =NPV(KRenteTermin,S85:S205) -> 0 | Z79: =Amort -> 1 | AA79: amortiseret
K80: OBLIGATIONSLÅN | V80: KONTANTLÅN
A81: OBLIGATIONSLÅN | K81: AMORTISERET KOSTPRIS | O81: KONTANTLÅN | V81: AMORTISERET KOSTPRIS
B82: Nominel | D82: Nominel | E82: Adm.- | F82: Ydelse | H82: Ydelse | I82: rente+afdrag | K82: Amortiseret | L82: Rente i alt | M82: Amorti- | O82: Nominel | P82: Nominel | Q82: Nominel | R82: Adm.- | S82: Ydelse | T82: Ydelse | V82: Amortiseret | W82: Amort | X82: Amorti- | Z82: DIAGRAMDATA | AA82: =IF(Amort=1,"","Amort.") ->  | AB82: =IF($H$2="k","kontantlån","Obligationslån") -> kontantlån | AE82: Forpligtelse | AF82: Årlig
A83: T | B83: forpligtelse | C83: Afdrag | D83: Rente | E83: bidrag | F83: før skat | H83: efter skat | I83: før skat | K83: forpligtelse | L83: (Effektiv | M83: serings | O83: forpligtelse | P83: Afdrag | Q83: Rente | R83: bidrag | S83: før skat | T83: efter skat | V83: forpligtelse | W83: Effektiv | X83: serings | Z83: Termin | AA83: Afdrag | AB83: Rente | AC83: =IF(Amort=1,"Adm.bidrag","Amort. tillæg") -> Adm.bidrag | AD83: Ydelse efter skat | AE83: primo | AF83: amortisering
A84: Primo | F84: =I38*-1 -> 0 | H84: =F84 -> 0 | I84: =I31*-1 -> 0 | L84: rente) | M84: tillæg | S84: =$I$38*-1 -> 0 | T84: =$I$38*-1 -> 0 | W84: rente | X84: tillæg | Z84: 0
A85: 1 | B85: =I29 -> 0 | C85: =IF($A85>$E$65,0,IF($A85>$E$67,IF($H$3="s",$E$68,$E$71-D85),0)) -> 0 | D85: =$E$70*B85 -> 0 | E85: =B85*$E$72/4 -> 0 | F85: =E85+D85+C85 -> 0 | H85: =C85+((D85+E85)*(1-$H$9)) -> 0 | I85: =C85+D85 -> 0 | K85: =B85-I75 -> 0 | L85: =K85*$I$69 -> 0 | M85: =L85-D85-E85 -> 0 | O85: =I31 -> 0 | P85: =IF($A85>$E$65,0,IF($A85>$E$67,IF($H$3="s",$E$68,$J$65-Q85),0)) -> 0 | Q85: =O85*$J$66 -> 0 | R85: =O85*$E$72/4 -> 0 | S85: =Q85+R85+P85 -> 0 | T85: =P85+((R85+Q85)*(1-$H$9)) -> 0 | V85: =O85-$J$75 -> 0 | W85: =V85*$J$69 -> 0 | X85: =W85-Q85-R85 -> 0 | Z85: 1 | AA85: =IF(Amort=2,IF($H$2="o",C85-M85,P85-X85),IF($H$2="o",C85,P85)) -> 0 | AB85: =IF(Amort=1,IF($H$2="o",D85,Q85),IF($H$2="o",L85-M85,W85-X85)) -> 0 | AC85: =IF(Amort=1,IF($H$2="o",E85,R85),IF($H$2="o",M85,X85)) -> 0 | AD85: =IF($H$2="o",H85,T85) -> 0 | AE85: =IF(Amort=2,IF($H$2="o",K85,V85),IF($H$2="o",B85,O85)) -> 0
A86: 2 | B86: =B85-C85 -> 0 | C86: 0 | D86: =$E$70*B86 -> 0 | E86: 0 | F86: 0 | H86: =C86+((D86+E86)*(1-$H$9)) -> 0 | I86: 0 | K86: =K85-C85+M85 -> 0 | L86: =K86*$I$69 -> 0 | M86: =L86-D86-E86 -> 0 | O86: =O85-P85 -> 0 | P86: =IF($A86>$E$65,0,IF($A86>$E$67,IF($H$3="s",$E$68,$J$65-Q86),0)) -> 0 | Q86: =O86*$J$66 -> 0 | R86: 0 | S86: 0 | T86: =P86+((R86+Q86)*(1-$H$9)) -> 0 | V86: =V85+X85-P85 -> 0 | W86: =V86*$J$69 -> 0 | X86: =W86-Q86-R86 -> 0 | Z86: 2 | AA86: 0 | AB86: 0 | AC86: 0 | AD86: =IF($H$2="o",H86,T86) -> 0 | AE86: 0
A87: 3 | B87: 0 | C87: 0 | D87: 0 | E87: 0 | F87: 0 | H87: 0 | I87: 0 | K87: =K86-C86+M86 -> 0 | L87: 0 | M87: =L87-D87-E87 -> 0 | O87: 0 | P87: 0 | Q87: 0 | R87: 0 | S87: 0 | T87: 0 | V87: =V86+X86-P86 -> 0 | W87: 0 | X87: =W87-Q87-R87 -> 0 | Z87: 3 | AA87: 0 | AB87: 0 | AC87: 0 | AD87: 0 | AE87: 0
A88: 4 | B88: 0 | C88: 0 | D88: 0 | E88: 0 | F88: 0 | H88: 0 | I88: 0 | K88: =K87-C87+M87 -> 0 | L88: 0 | M88: =L88-D88-E88 -> 0 | O88: 0 | P88: 0 | Q88: 0 | R88: 0 | S88: 0 | T88: 0 | V88: 0 | W88: 0 | X88: 0 | Z88: 4 | AA88: 0 | AB88: 0 | AC88: 0 | AD88: 0 | AE88: 0 | AF88: =SUM(AC85:AC88) -> 0
A89: 5 | B89: 0 | C89: 0 | D89: 0 | E89: 0 | F89: 0 | H89: 0 | I89: 0 | K89: =K88-C88+M88 -> 0 | L89: 0 | M89: =L89-D89-E89 -> 0 | O89: 0 | P89: 0 | Q89: 0 | R89: 0 | S89: 0 | T89: 0 | V89: 0 | W89: 0 | X89: 0 | Z89: 5 | AA89: 0 | AB89: 0 | AC89: 0 | AD89: 0 | AE89: 0
A90: 6 | B90: 0 | C90: 0 | D90: 0 | E90: 0 | F90: 0 | H90: 0 | I90: 0 | K90: 0 | L90: 0 | M90: 0 | O90: 0 | P90: 0 | Q90: 0 | R90: 0 | S90: 0 | T90: 0 | V90: 0 | W90: 0 | X90: 0 | Z90: 6 | AA90: 0 | AB90: 0 | AC90: 0 | AD90: 0 | AE90: 0
A91: 7 | B91: 0 | C91: 0 | D91: 0 | E91: 0 | F91: 0 | H91: 0 | I91: 0 | K91: 0 | L91: 0 | M91: 0 | O91: 0 | P91: 0 | Q91: 0 | R91: 0 | S91: 0 | T91: 0 | V91: 0 | W91: 0 | X91: 0 | Z91: 7 | AA91: 0 | AB91: 0 | AC91: 0 | AD91: 0 | AE91: 0
A92: 8 | B92: 0 | C92: 0 | D92: 0 | E92: 0 | F92: 0 | H92: 0 | I92: 0 | K92: 0 | L92: 0 | M92: 0 | O92: 0 | P92: 0 | Q92: 0 | R92: 0 | S92: 0 | T92: 0 | V92: 0 | W92: 0 | X92: 0 | Z92: 8 | AA92: 0 | AB92: 0 | AC92: 0 | AD92: 0 | AE92: 0 | AF92: =SUM(AC89:AC92) -> 0
A93: 9 | B93: 0 | C93: 0 | D93: 0 | E93: 0 | F93: 0 | H93: 0 | I93: 0 | K93: 0 | L93: 0 | M93: 0 | O93: 0 | P93: 0 | Q93: 0 | R93: 0 | S93: 0 | T93: 0 | V93: 0 | W93: 0 | X93: 0 | Z93: 9 | AA93: 0 | AB93: 0 | AC93: 0 | AD93: 0 | AE93: 0
A94: 10 | B94: 0 | C94: 0 | D94: 0 | E94: 0 | F94: 0 | H94: 0 | I94: 0 | K94: 0 | L94: 0 | M94: 0 | O94: 0 | P94: 0 | Q94: 0 | R94: 0 | S94: 0 | T94: 0 | V94: 0 | W94: 0 | X94: 0 | Z94: 10 | AA94: 0 | AB94: 0 | AC94: 0 | AD94: 0 | AE94: 0
A95: 11 | B95: 0 | C95: 0 | D95: 0 | E95: 0 | F95: 0 | H95: 0 | I95: 0 | K95: 0 | L95: 0 | M95: 0 | O95: 0 | P95: 0 | Q95: 0 | R95: 0 | S95: 0 | T95: 0 | V95: 0 | W95: 0 | X95: 0 | Z95: 11 | AA95: 0 | AB95: 0 | AC95: 0 | AD95: 0 | AE95: 0
A96: 12 | B96: 0 | C96: 0 | D96: 0 | E96: 0 | F96: 0 | H96: 0 | I96: 0 | K96: 0 | L96: 0 | M96: 0 | O96: 0 | P96: 0 | Q96: 0 | R96: 0 | S96: 0 | T96: 0 | V96: 0 | W96: 0 | X96: 0 | Z96: 12 | AA96: 0 | AB96: 0 | AC96: 0 | AD96: 0 | AE96: 0 | AF96: =SUM(AC93:AC96) -> 0
A97: 13 | B97: 0 | C97: 0 | D97: 0 | E97: 0 | F97: 0 | H97: 0 | I97: 0 | K97: 0 | L97: 0 | M97: 0 | O97: 0 | P97: 0 | Q97: 0 | R97: 0 | S97: 0 | T97: 0 | V97: 0 | W97: 0 | X97: 0 | Z97: 13 | AA97: 0 | AB97: 0 | AC97: 0 | AD97: 0 | AE97: 0
A98: 14 | B98: 0 | C98: 0 | D98: 0 | E98: 0 | F98: 0 | H98: 0 | I98: 0 | K98: 0 | L98: 0 | M98: 0 | O98: 0 | P98: 0 | Q98: 0 | R98: 0 | S98: 0 | T98: 0 | V98: 0 | W98: 0 | X98: 0 | Z98: 14 | AA98: 0 | AB98: 0 | AC98: 0 | AD98: 0 | AE98: 0
A99: 15 | B99: 0 | C99: 0 | D99: 0 | E99: 0 | F99: 0 | H99: 0 | I99: 0 | K99: 0 | L99: 0 | M99: 0 | O99: 0 | P99: 0 | Q99: 0 | R99: 0 | S99: 0 | T99: 0 | V99: 0 | W99: 0 | X99: 0 | Z99: 15 | AA99: 0 | AB99: 0 | AC99: 0 | AD99: 0 | AE99: 0
A100: 16 | B100: 0 | C100: 0 | D100: 0 | E100: 0 | F100: 0 | H100: 0 | I100: 0 | K100: 0 | L100: 0 | M100: 0 | O100: 0 | P100: 0 | Q100: 0 | R100: 0 | S100: 0 | T100: 0 | V100: 0 | W100: 0 | X100: 0 | Z100: 16 | AA100: 0 | AB100: 0 | AC100: 0 | AD100: 0 | AE100: 0 | AF100: =SUM(AC97:AC100) -> 0
A101: 17 | B101: 0 | C101: 0 | D101: 0 | E101: 0 | F101: 0 | H101: 0 | I101: 0 | K101: 0 | L101: 0 | M101: 0 | O101: 0 | P101: 0 | Q101: 0 | R101: 0 | S101: 0 | T101: 0 | V101: 0 | W101: 0 | X101: 0 | Z101: 17 | AA101: 0 | AB101: 0 | AC101: 0 | AD101: 0 | AE101: 0
A102: 18 | B102: 0 | C102: 0 | D102: 0 | E102: 0 | F102: 0 | H102: 0 | I102: 0 | K102: 0 | L102: 0 | M102: 0 | O102: 0 | P102: 0 | Q102: 0 | R102: 0 | S102: 0 | T102: 0 | V102: 0 | W102: 0 | X102: 0 | Z102: 18 | AA102: 0 | AB102: 0 | AC102: 0 | AD102: 0 | AE102: 0
A103: 19 | B103: 0 | C103: 0 | D103: 0 | E103: 0 | F103: 0 | H103: 0 | I103: 0 | K103: 0 | L103: 0 | M103: 0 | O103: 0 | P103: 0 | Q103: 0 | R103: 0 | S103: 0 | T103: 0 | V103: 0 | W103: 0 | X103: 0 | Z103: 19 | AA103: 0 | AB103: 0 | AC103: 0 | AD103: 0 | AE103: 0
A104: 20 | B104: 0 | C104: 0 | D104: 0 | E104: 0 | F104: 0 | H104: 0 | I104: 0 | K104: 0 | L104: 0 | M104: 0 | O104: 0 | P104: 0 | Q104: 0 | R104: 0 | S104: 0 | T104: 0 | V104: 0 | W104: 0 | X104: 0 | Z104: 20 | AA104: 0 | AB104: 0 | AC104: 0 | AD104: 0 | AE104: 0
A105: 21 | B105: 0 | C105: 0 | D105: 0 | E105: 0 | F105: 0 | H105: 0 | I105: 0 | K105: 0 | L105: 0 | M105: 0 | O105: 0 | P105: 0 | Q105: 0 | R105: 0 | S105: 0 | T105: 0 | V105: 0 | W105: 0 | X105: 0 | Z105: 21 | AA105: 0 | AB105: 0 | AC105: 0 | AD105: 0 | AE105: 0
A106: 22 | B106: 0 | C106: 0 | D106: 0 | E106: 0 | F106: 0 | H106: 0 | I106: 0 | K106: 0 | L106: 0 | M106: 0 | O106: 0 | P106: 0 | Q106: 0 | R106: 0 | S106: 0 | T106: 0 | V106: 0 | W106: 0 | X106: 0 | Z106: 22 | AA106: 0 | AB106: 0 | AC106: 0 | AD106: 0 | AE106: 0
A107: 23 | B107: 0 | C107: 0 | D107: 0 | E107: 0 | F107: 0 | H107: 0 | I107: 0 | K107: 0 | L107: 0 | M107: 0 | O107: 0 | P107: 0 | Q107: 0 | R107: 0 | S107: 0 | T107: 0 | V107: 0 | W107: 0 | X107: 0 | Z107: 23 | AA107: 0 | AB107: 0 | AC107: 0 | AD107: 0 | AE107: 0
A108: 24 | B108: 0 | C108: 0 | D108: 0 | E108: 0 | F108: 0 | H108: 0 | I108: 0 | K108: 0 | L108: 0 | M108: 0 | O108: 0 | P108: 0 | Q108: 0 | R108: 0 | S108: 0 | T108: 0 | V108: 0 | W108: 0 | X108: 0 | Z108: 24 | AA108: 0 | AB108: 0 | AC108: 0 | AD108: 0 | AE108: 0
A109: 25 | B109: 0 | C109: 0 | D109: 0 | E109: 0 | F109: 0 | H109: 0 | I109: 0 | K109: 0 | L109: 0 | M109: 0 | O109: 0 | P109: 0 | Q109: 0 | R109: 0 | S109: 0 | T109: 0 | V109: 0 | W109: 0 | X109: 0 | Z109: 25 | AA109: 0 | AB109: 0 | AC109: 0 | AD109: 0 | AE109: 0
A110: 26 | B110: 0 | C110: 0 | D110: 0 | E110: 0 | F110: 0 | H110: 0 | I110: 0 | K110: 0 | L110: 0 | M110: 0 | O110: 0 | P110: 0 | Q110: 0 | R110: 0 | S110: 0 | T110: 0 | V110: 0 | W110: 0 | X110: 0 | Z110: 26 | AA110: 0 | AB110: 0 | AC110: 0 | AD110: 0 | AE110: 0
A111: 27 | B111: 0 | C111: 0 | D111: 0 | E111: 0 | F111: 0 | H111: 0 | I111: 0 | K111: 0 | L111: 0 | M111: 0 | O111: 0 | P111: 0 | Q111: 0 | R111: 0 | S111: 0 | T111: 0 | V111: 0 | W111: 0 | X111: 0 | Z111: 27 | AA111: 0 | AB111: 0 | AC111: 0 | AD111: 0 | AE111: 0
A112: 28 | B112: 0 | C112: 0 | D112: 0 | E112: 0 | F112: 0 | H112: 0 | I112: 0 | K112: 0 | L112: 0 | M112: 0 | O112: 0 | P112: 0 | Q112: 0 | R112: 0 | S112: 0 | T112: 0 | V112: 0 | W112: 0 | X112: 0 | Z112: 28 | AA112: 0 | AB112: 0 | AC112: 0 | AD112: 0 | AE112: 0
A113: 29 | B113: 0 | C113: 0 | D113: 0 | E113: 0 | F113: 0 | H113: 0 | I113: 0 | K113: 0 | L113: 0 | M113: 0 | O113: 0 | P113: 0 | Q113: 0 | R113: 0 | S113: 0 | T113: 0 | V113: 0 | W113: 0 | X113: 0 | Z113: 29 | AA113: 0 | AB113: 0 | AC113: 0 | AD113: 0 | AE113: 0
A114: 30 | B114: 0 | C114: 0 | D114: 0 | E114: 0 | F114: 0 | H114: 0 | I114: 0 | K114: 0 | L114: 0 | M114: 0 | O114: 0 | P114: 0 | Q114: 0 | R114: 0 | S114: 0 | T114: 0 | V114: 0 | W114: 0 | X114: 0 | Z114: 30 | AA114: 0 | AB114: 0 | AC114: 0 | AD114: 0 | AE114: 0
A115: 31 | B115: 0 | C115: 0 | D115: 0 | E115: 0 | F115: 0 | H115: 0 | I115: 0 | K115: 0 | L115: 0 | M115: 0 | O115: 0 | P115: 0 | Q115: 0 | R115: 0 | S115: 0 | T115: 0 | V115: 0 | W115: 0 | X115: 0 | Z115: 31 | AA115: 0 | AB115: 0 | AC115: 0 | AD115: 0 | AE115: 0
A116: 32 | B116: 0 | C116: 0 | D116: 0 | E116: 0 | F116: 0 | H116: 0 | I116: 0 | K116: 0 | L116: 0 | M116: 0 | O116: 0 | P116: 0 | Q116: 0 | R116: 0 | S116: 0 | T116: 0 | V116: 0 | W116: 0 | X116: 0 | Z116: 32 | AA116: 0 | AB116: 0 | AC116: 0 | AD116: 0 | AE116: 0
A117: 33 | B117: 0 | C117: 0 | D117: 0 | E117: 0 | F117: 0 | H117: 0 | I117: 0 | K117: 0 | L117: 0 | M117: 0 | O117: 0 | P117: 0 | Q117: 0 | R117: 0 | S117: 0 | T117: 0 | V117: 0 | W117: 0 | X117: 0 | Z117: 33 | AA117: =IF(Amort=2,IF($H$2="o",C117-M117,P117-X117),IF($H$2="o",C117,P117)) -> 0 | AB117: =IF(Amort=1,IF($H$2="o",D117,Q117),IF($H$2="o",L117-M117,W117-X117)) -> 0 | AC117: =IF(Amort=1,IF($H$2="o",E117,R117),IF($H$2="o",M117,X117)) -> 0 | AD117: 0 | AE117: 0
A118: 34 | B118: 0 | C118: 0 | D118: 0 | E118: 0 | F118: 0 | H118: 0 | I118: 0 | K118: 0 | L118: 0 | M118: 0 | O118: 0 | P118: 0 | Q118: 0 | R118: 0 | S118: 0 | T118: 0 | V118: 0 | W118: 0 | X118: 0 | Z118: 34 | AA118: 0 | AB118: 0 | AC118: 0 | AD118: 0 | AE118: 0
A119: 35 | B119: 0 | C119: 0 | D119: 0 | E119: 0 | F119: 0 | H119: 0 | I119: 0 | K119: 0 | L119: 0 | M119: 0 | O119: 0 | P119: 0 | Q119: 0 | R119: 0 | S119: 0 | T119: 0 | V119: 0 | W119: 0 | X119: 0 | Z119: 35 | AA119: 0 | AB119: 0 | AC119: 0 | AD119: 0 | AE119: 0
A120: 36 | B120: 0 | C120: 0 | D120: 0 | E120: 0 | F120: 0 | H120: 0 | I120: 0 | K120: 0 | L120: 0 | M120: 0 | O120: 0 | P120: 0 | Q120: 0 | R120: 0 | S120: 0 | T120: 0 | V120: 0 | W120: 0 | X120: 0 | Z120: 36 | AA120: 0 | AB120: 0 | AC120: 0 | AD120: 0 | AE120: 0
A121: 37 | B121: 0 | C121: 0 | D121: 0 | E121: 0 | F121: 0 | H121: 0 | I121: 0 | K121: 0 | L121: 0 | M121: 0 | O121: 0 | P121: 0 | Q121: 0 | R121: 0 | S121: 0 | T121: 0 | V121: 0 | W121: 0 | X121: 0 | Z121: 37 | AA121: 0 | AB121: 0 | AC121: 0 | AD121: 0 | AE121: 0
A122: 38 | B122: 0 | C122: 0 | D122: 0 | E122: 0 | F122: 0 | H122: 0 | I122: 0 | K122: 0 | L122: 0 | M122: 0 | O122: 0 | P122: 0 | Q122: 0 | R122: 0 | S122: 0 | T122: 0 | V122: 0 | W122: 0 | X122: 0 | Z122: 38 | AA122: 0 | AB122: 0 | AC122: 0 | AD122: 0 | AE122: 0
A123: 39 | B123: 0 | C123: 0 | D123: 0 | E123: 0 | F123: 0 | H123: 0 | I123: 0 | K123: 0 | L123: 0 | M123: 0 | O123: 0 | P123: 0 | Q123: 0 | R123: 0 | S123: 0 | T123: 0 | V123: 0 | W123: 0 | X123: 0 | Z123: 39 | AA123: 0 | AB123: 0 | AC123: 0 | AD123: 0 | AE123: 0
A124: 40 | B124: 0 | C124: 0 | D124: 0 | E124: 0 | F124: 0 | H124: 0 | I124: 0 | K124: 0 | L124: 0 | M124: 0 | O124: 0 | P124: 0 | Q124: 0 | R124: 0 | S124: 0 | T124: 0 | V124: 0 | W124: 0 | X124: 0 | Z124: 40 | AA124: 0 | AB124: 0 | AC124: 0 | AD124: 0 | AE124: 0
A125: 41 | B125: 0 | C125: 0 | D125: 0 | E125: 0 | F125: 0 | H125: 0 | I125: 0 | K125: 0 | L125: 0 | M125: 0 | O125: 0 | P125: 0 | Q125: 0 | R125: 0 | S125: 0 | T125: 0 | V125: 0 | W125: 0 | X125: 0 | Z125: 41 | AA125: 0 | AB125: 0 | AC125: 0 | AD125: 0 | AE125: 0
A126: 42 | B126: 0 | C126: 0 | D126: 0 | E126: 0 | F126: 0 | H126: 0 | I126: 0 | K126: 0 | L126: 0 | M126: 0 | O126: 0 | P126: 0 | Q126: 0 | R126: 0 | S126: 0 | T126: 0 | V126: 0 | W126: 0 | X126: 0 | Z126: 42 | AA126: 0 | AB126: 0 | AC126: 0 | AD126: 0 | AE126: 0
A127: 43 | B127: 0 | C127: 0 | D127: 0 | E127: 0 | F127: 0 | H127: 0 | I127: 0 | K127: 0 | L127: 0 | M127: 0 | O127: 0 | P127: 0 | Q127: 0 | R127: 0 | S127: 0 | T127: 0 | V127: 0 | W127: 0 | X127: 0 | Z127: 43 | AA127: 0 | AB127: 0 | AC127: 0 | AD127: 0 | AE127: 0
A128: 44 | B128: 0 | C128: 0 | D128: 0 | E128: 0 | F128: 0 | H128: 0 | I128: 0 | K128: 0 | L128: 0 | M128: 0 | O128: 0 | P128: 0 | Q128: 0 | R128: 0 | S128: 0 | T128: 0 | V128: 0 | W128: 0 | X128: 0 | Z128: 44 | AA128: 0 | AB128: 0 | AC128: 0 | AD128: 0 | AE128: 0
A129: 45 | B129: 0 | C129: 0 | D129: 0 | E129: 0 | F129: 0 | H129: 0 | I129: 0 | K129: 0 | L129: 0 | M129: 0 | O129: 0 | P129: 0 | Q129: 0 | R129: 0 | S129: 0 | T129: 0 | V129: 0 | W129: 0 | X129: 0 | Z129: 45 | AA129: 0 | AB129: 0 | AC129: 0 | AD129: 0 | AE129: 0
A130: 46 | B130: 0 | C130: 0 | D130: 0 | E130: 0 | F130: 0 | H130: 0 | I130: 0 | K130: 0 | L130: 0 | M130: 0 | O130: 0 | P130: 0 | Q130: 0 | R130: 0 | S130: 0 | T130: 0 | V130: 0 | W130: 0 | X130: 0 | Z130: 46 | AA130: 0 | AB130: 0 | AC130: 0 | AD130: 0 | AE130: 0
A131: 47 | B131: 0 | C131: 0 | D131: 0 | E131: 0 | F131: 0 | H131: 0 | I131: 0 | K131: 0 | L131: 0 | M131: 0 | O131: 0 | P131: 0 | Q131: 0 | R131: 0 | S131: 0 | T131: 0 | V131: 0 | W131: 0 | X131: 0 | Z131: 47 | AA131: 0 | AB131: 0 | AC131: 0 | AD131: 0 | AE131: 0
A132: 48 | B132: 0 | C132: 0 | D132: 0 | E132: 0 | F132: 0 | H132: 0 | I132: 0 | K132: 0 | L132: 0 | M132: 0 | O132: 0 | P132: 0 | Q132: 0 | R132: 0 | S132: 0 | T132: 0 | V132: 0 | W132: 0 | X132: 0 | Z132: 48 | AA132: 0 | AB132: 0 | AC132: 0 | AD132: 0 | AE132: 0
A133: 49 | B133: 0 | C133: 0 | D133: 0 | E133: 0 | F133: 0 | H133: 0 | I133: 0 | K133: 0 | L133: 0 | M133: 0 | O133: 0 | P133: 0 | Q133: 0 | R133: 0 | S133: 0 | T133: 0 | V133: 0 | W133: 0 | X133: 0 | Z133: 49 | AA133: 0 | AB133: 0 | AC133: 0 | AD133: 0 | AE133: 0
A134: 50 | B134: 0 | C134: 0 | D134: 0 | E134: 0 | F134: 0 | H134: 0 | I134: 0 | K134: 0 | L134: 0 | M134: 0 | O134: 0 | P134: 0 | Q134: 0 | R134: 0 | S134: 0 | T134: 0 | V134: 0 | W134: 0 | X134: 0 | Z134: 50 | AA134: 0 | AB134: 0 | AC134: 0 | AD134: 0 | AE134: 0
A135: 51 | B135: 0 | C135: 0 | D135: 0 | E135: 0 | F135: 0 | H135: 0 | I135: 0 | K135: 0 | L135: 0 | M135: 0 | O135: 0 | P135: 0 | Q135: 0 | R135: 0 | S135: 0 | T135: 0 | V135: 0 | W135: 0 | X135: 0 | Z135: 51 | AA135: 0 | AB135: 0 | AC135: 0 | AD135: 0 | AE135: 0
A136: 52 | B136: 0 | C136: 0 | D136: 0 | E136: 0 | F136: 0 | H136: 0 | I136: 0 | K136: 0 | L136: 0 | M136: 0 | O136: 0 | P136: 0 | Q136: 0 | R136: 0 | S136: 0 | T136: 0 | V136: 0 | W136: 0 | X136: 0 | Z136: 52 | AA136: 0 | AB136: 0 | AC136: 0 | AD136: 0 | AE136: 0
A137: 53 | B137: 0 | C137: 0 | D137: 0 | E137: 0 | F137: 0 | H137: 0 | I137: 0 | K137: 0 | L137: 0 | M137: 0 | O137: 0 | P137: 0 | Q137: 0 | R137: 0 | S137: 0 | T137: 0 | V137: 0 | W137: 0 | X137: 0 | Z137: 53 | AA137: 0 | AB137: 0 | AC137: 0 | AD137: 0 | AE137: 0
A138: 54 | B138: 0 | C138: 0 | D138: 0 | E138: 0 | F138: 0 | H138: 0 | I138: 0 | K138: 0 | L138: 0 | M138: 0 | O138: 0 | P138: 0 | Q138: 0 | R138: 0 | S138: 0 | T138: 0 | V138: 0 | W138: 0 | X138: 0 | Z138: 54 | AA138: 0 | AB138: 0 | AC138: 0 | AD138: 0 | AE138: 0
A139: 55 | B139: 0 | C139: 0 | D139: 0 | E139: 0 | F139: 0 | H139: 0 | I139: 0 | K139: 0 | L139: 0 | M139: 0 | O139: 0 | P139: 0 | Q139: 0 | R139: 0 | S139: 0 | T139: 0 | V139: 0 | W139: 0 | X139: 0 | Z139: 55 | AA139: 0 | AB139: 0 | AC139: 0 | AD139: 0 | AE139: 0
A140: 56 | B140: 0 | C140: 0 | D140: 0 | E140: 0 | F140: 0 | H140: 0 | I140: 0 | K140: 0 | L140: 0 | M140: 0 | O140: 0 | P140: 0 | Q140: 0 | R140: 0 | S140: 0 | T140: 0 | V140: 0 | W140: 0 | X140: 0 | Z140: 56 | AA140: 0 | AB140: 0 | AC140: 0 | AD140: 0 | AE140: 0
A141: 57 | B141: 0 | C141: 0 | D141: 0 | E141: 0 | F141: 0 | H141: 0 | I141: 0 | K141: 0 | L141: 0 | M141: 0 | O141: 0 | P141: 0 | Q141: 0 | R141: 0 | S141: 0 | T141: 0 | V141: 0 | W141: 0 | X141: 0 | Z141: 57 | AA141: 0 | AB141: 0 | AC141: 0 | AD141: 0 | AE141: 0
A142: 58 | B142: 0 | C142: 0 | D142: 0 | E142: 0 | F142: 0 | H142: 0 | I142: 0 | K142: 0 | L142: 0 | M142: 0 | O142: 0 | P142: 0 | Q142: 0 | R142: 0 | S142: 0 | T142: 0 | V142: 0 | W142: 0 | X142: 0 | Z142: 58 | AA142: 0 | AB142: 0 | AC142: 0 | AD142: 0 | AE142: 0
A143: 59 | B143: 0 | C143: 0 | D143: 0 | E143: 0 | F143: 0 | H143: 0 | I143: 0 | K143: 0 | L143: 0 | M143: 0 | O143: 0 | P143: 0 | Q143: 0 | R143: 0 | S143: 0 | T143: 0 | V143: 0 | W143: 0 | X143: 0 | Z143: 59 | AA143: 0 | AB143: 0 | AC143: 0 | AD143: 0 | AE143: 0
A144: 60 | B144: 0 | C144: 0 | D144: 0 | E144: 0 | F144: 0 | H144: 0 | I144: 0 | K144: 0 | L144: 0 | M144: 0 | O144: 0 | P144: 0 | Q144: 0 | R144: 0 | S144: 0 | T144: 0 | V144: 0 | W144: 0 | X144: 0 | Z144: 60 | AA144: 0 | AB144: 0 | AC144: 0 | AD144: 0 | AE144: 0
A145: 61 | B145: 0 | C145: 0 | D145: 0 | E145: 0 | F145: 0 | H145: 0 | I145: 0 | K145: 0 | L145: 0 | M145: 0 | O145: 0 | P145: 0 | Q145: 0 | R145: 0 | S145: 0 | T145: 0 | V145: 0 | W145: 0 | X145: 0 | Z145: 61 | AA145: 0 | AB145: 0 | AC145: 0 | AD145: 0 | AE145: 0
A146: 62 | B146: 0 | C146: 0 | D146: 0 | E146: 0 | F146: 0 | H146: 0 | I146: 0 | K146: 0 | L146: 0 | M146: 0 | O146: 0 | P146: 0 | Q146: 0 | R146: 0 | S146: 0 | T146: 0 | V146: 0 | W146: 0 | X146: 0 | Z146: 62 | AA146: 0 | AB146: 0 | AC146: 0 | AD146: 0 | AE146: 0
A147: 63 | B147: 0 | C147: 0 | D147: 0 | E147: 0 | F147: 0 | H147: 0 | I147: 0 | K147: 0 | L147: 0 | M147: 0 | O147: 0 | P147: 0 | Q147: 0 | R147: 0 | S147: 0 | T147: 0 | V147: 0 | W147: 0 | X147: 0 | Z147: 63 | AA147: 0 | AB147: 0 | AC147: 0 | AD147: 0 | AE147: 0
A148: 64 | B148: 0 | C148: 0 | D148: 0 | E148: 0 | F148: 0 | H148: 0 | I148: 0 | K148: 0 | L148: 0 | M148: 0 | O148: 0 | P148: 0 | Q148: 0 | R148: 0 | S148: 0 | T148: 0 | V148: 0 | W148: 0 | X148: 0 | Z148: 64 | AA148: 0 | AB148: 0 | AC148: 0 | AD148: 0 | AE148: 0
A149: 65 | B149: 0 | C149: =IF($A149>$E$65,0,IF($A149>$E$67,IF($H$3="s",$E$68,$E$71-D149),0)) -> 0 | D149: 0 | E149: =B149*$E$72/4 -> 0 | F149: =E149+D149+C149 -> 0 | H149: 0 | I149: =C149+D149 -> 0 | K149: 0 | L149: 0 | M149: 0 | O149: 0 | P149: 0 | Q149: 0 | R149: =O149*$E$72/4 -> 0 | S149: =Q149+R149+P149 -> 0 | T149: 0 | V149: 0 | W149: 0 | X149: 0 | Z149: 65 | AA149: =IF(Amort=2,IF($H$2="o",C149-M149,P149-X149),IF($H$2="o",C149,P149)) -> 0 | AB149: =IF(Amort=1,IF($H$2="o",D149,Q149),IF($H$2="o",L149-M149,W149-X149)) -> 0 | AC149: =IF(Amort=1,IF($H$2="o",E149,R149),IF($H$2="o",M149,X149)) -> 0 | AD149: 0 | AE149: =IF(Amort=2,IF($H$2="o",K149,V149),IF($H$2="o",B149,O149)) -> 0
A150: 66 | B150: =B149-C149 -> 0 | C150: 0 | D150: =$E$70*B150 -> 0 | E150: 0 | F150: 0 | H150: =C150+((D150+E150)*(1-$H$9)) -> 0 | I150: 0 | K150: 0 | L150: =K150*$I$69 -> 0 | M150: 0 | O150: =O149-P149 -> 0 | P150: =IF($A150>$E$65,0,IF($A150>$E$67,IF($H$3="s",$E$68,$J$65-Q150),0)) -> 0 | Q150: =O150*$J$66 -> 0 | R150: 0 | S150: 0 | T150: =P150+((R150+Q150)*(1-$H$9)) -> 0 | V150: 0 | W150: =V150*$J$69 -> 0 | X150: 0 | Z150: 66 | AA150: 0 | AB150: 0 | AC150: 0 | AD150: =IF($H$2="o",H150,T150) -> 0 | AE150: 0
A151: 67 | B151: 0 | C151: 0 | D151: 0 | E151: 0 | F151: 0 | H151: 0 | I151: 0 | K151: 0 | L151: 0 | M151: 0 | O151: 0 | P151: 0 | Q151: 0 | R151: 0 | S151: 0 | T151: 0 | V151: =V150+X150-P150 -> 0 | W151: 0 | X151: =W151-Q151-R151 -> 0 | Z151: 67 | AA151: 0 | AB151: 0 | AC151: 0 | AD151: 0 | AE151: 0
A152: 68 | B152: 0 | C152: 0 | D152: 0 | E152: 0 | F152: 0 | H152: 0 | I152: 0 | K152: 0 | L152: 0 | M152: 0 | O152: 0 | P152: 0 | Q152: 0 | R152: 0 | S152: 0 | T152: 0 | V152: 0 | W152: 0 | X152: 0 | Z152: 68 | AA152: 0 | AB152: 0 | AC152: 0 | AD152: 0 | AE152: 0
A153: 69 | B153: 0 | C153: 0 | D153: 0 | E153: 0 | F153: 0 | H153: 0 | I153: 0 | K153: =K152-C152+M152 -> 0 | L153: 0 | M153: =L153-D153-E153 -> 0 | O153: 0 | P153: 0 | Q153: 0 | R153: 0 | S153: 0 | T153: 0 | V153: 0 | W153: 0 | X153: 0 | Z153: 69 | AA153: 0 | AB153: 0 | AC153: 0 | AD153: 0 | AE153: 0
A154: 70 | B154: 0 | C154: 0 | D154: 0 | E154: 0 | F154: 0 | H154: 0 | I154: 0 | K154: 0 | L154: 0 | M154: 0 | O154: 0 | P154: 0 | Q154: 0 | R154: 0 | S154: 0 | T154: 0 | V154: 0 | W154: 0 | X154: 0 | Z154: 70 | AA154: 0 | AB154: 0 | AC154: 0 | AD154: 0 | AE154: 0
A155: 71 | B155: 0 | C155: 0 | D155: 0 | E155: 0 | F155: 0 | H155: 0 | I155: 0 | K155: 0 | L155: 0 | M155: 0 | O155: 0 | P155: 0 | Q155: 0 | R155: 0 | S155: 0 | T155: 0 | V155: 0 | W155: 0 | X155: 0 | Z155: 71 | AA155: 0 | AB155: 0 | AC155: 0 | AD155: 0 | AE155: 0
A156: 72 | B156: 0 | C156: 0 | D156: 0 | E156: 0 | F156: 0 | H156: 0 | I156: 0 | K156: 0 | L156: 0 | M156: 0 | O156: 0 | P156: 0 | Q156: 0 | R156: 0 | S156: 0 | T156: 0 | V156: 0 | W156: 0 | X156: 0 | Z156: 72 | AA156: 0 | AB156: 0 | AC156: 0 | AD156: 0 | AE156: 0
A157: 73 | B157: 0 | C157: 0 | D157: 0 | E157: 0 | F157: 0 | H157: 0 | I157: 0 | K157: 0 | L157: 0 | M157: 0 | O157: 0 | P157: 0 | Q157: 0 | R157: 0 | S157: 0 | T157: 0 | V157: 0 | W157: 0 | X157: 0 | Z157: 73 | AA157: 0 | AB157: 0 | AC157: 0 | AD157: 0 | AE157: 0
A158: 74 | B158: 0 | C158: 0 | D158: 0 | E158: 0 | F158: 0 | H158: 0 | I158: 0 | K158: 0 | L158: 0 | M158: 0 | O158: 0 | P158: 0 | Q158: 0 | R158: 0 | S158: 0 | T158: 0 | V158: 0 | W158: 0 | X158: 0 | Z158: 74 | AA158: 0 | AB158: 0 | AC158: 0 | AD158: 0 | AE158: 0
A159: 75 | B159: 0 | C159: 0 | D159: 0 | E159: 0 | F159: 0 | H159: 0 | I159: 0 | K159: 0 | L159: 0 | M159: 0 | O159: 0 | P159: 0 | Q159: 0 | R159: 0 | S159: 0 | T159: 0 | V159: 0 | W159: 0 | X159: 0 | Z159: 75 | AA159: 0 | AB159: 0 | AC159: 0 | AD159: 0 | AE159: 0
A160: 76 | B160: 0 | C160: 0 | D160: 0 | E160: 0 | F160: 0 | H160: 0 | I160: 0 | K160: 0 | L160: 0 | M160: 0 | O160: 0 | P160: 0 | Q160: 0 | R160: 0 | S160: 0 | T160: 0 | V160: 0 | W160: 0 | X160: 0 | Z160: 76 | AA160: 0 | AB160: 0 | AC160: 0 | AD160: 0 | AE160: 0
A161: 77 | B161: 0 | C161: 0 | D161: 0 | E161: 0 | F161: 0 | H161: 0 | I161: 0 | K161: 0 | L161: 0 | M161: 0 | O161: 0 | P161: 0 | Q161: 0 | R161: 0 | S161: 0 | T161: 0 | V161: 0 | W161: 0 | X161: 0 | Z161: 77 | AA161: 0 | AB161: 0 | AC161: 0 | AD161: 0 | AE161: 0
A162: 78 | B162: 0 | C162: 0 | D162: 0 | E162: 0 | F162: 0 | H162: 0 | I162: 0 | K162: 0 | L162: 0 | M162: 0 | O162: 0 | P162: 0 | Q162: 0 | R162: 0 | S162: 0 | T162: 0 | V162: 0 | W162: 0 | X162: 0 | Z162: 78 | AA162: 0 | AB162: 0 | AC162: 0 | AD162: 0 | AE162: 0
A163: 79 | B163: 0 | C163: 0 | D163: 0 | E163: 0 | F163: 0 | H163: 0 | I163: 0 | K163: 0 | L163: 0 | M163: 0 | O163: 0 | P163: 0 | Q163: 0 | R163: 0 | S163: 0 | T163: 0 | V163: 0 | W163: 0 | X163: 0 | Z163: 79 | AA163: 0 | AB163: 0 | AC163: 0 | AD163: 0 | AE163: 0
A164: 80 | B164: 0 | C164: 0 | D164: 0 | E164: 0 | F164: 0 | H164: 0 | I164: 0 | K164: 0 | L164: 0 | M164: 0 | O164: 0 | P164: 0 | Q164: 0 | R164: 0 | S164: 0 | T164: 0 | V164: 0 | W164: 0 | X164: 0 | Z164: 80 | AA164: 0 | AB164: 0 | AC164: 0 | AD164: 0 | AE164: 0
A165: 81 | B165: 0 | C165: 0 | D165: 0 | E165: 0 | F165: 0 | H165: 0 | I165: 0 | K165: 0 | L165: 0 | M165: 0 | O165: 0 | P165: 0 | Q165: 0 | R165: 0 | S165: 0 | T165: 0 | V165: 0 | W165: 0 | X165: 0 | Z165: 81 | AA165: 0 | AB165: 0 | AC165: 0 | AD165: 0 | AE165: 0
A166: 82 | B166: 0 | C166: 0 | D166: 0 | E166: 0 | F166: 0 | H166: 0 | I166: 0 | K166: 0 | L166: 0 | M166: 0 | O166: 0 | P166: 0 | Q166: 0 | R166: 0 | S166: 0 | T166: 0 | V166: 0 | W166: 0 | X166: 0 | Z166: 82 | AA166: 0 | AB166: 0 | AC166: 0 | AD166: 0 | AE166: 0
A167: 83 | B167: 0 | C167: 0 | D167: 0 | E167: 0 | F167: 0 | H167: 0 | I167: 0 | K167: 0 | L167: 0 | M167: 0 | O167: 0 | P167: 0 | Q167: 0 | R167: 0 | S167: 0 | T167: 0 | V167: 0 | W167: 0 | X167: 0 | Z167: 83 | AA167: 0 | AB167: 0 | AC167: 0 | AD167: 0 | AE167: 0
A168: 84 | B168: 0 | C168: 0 | D168: 0 | E168: 0 | F168: 0 | H168: 0 | I168: 0 | K168: 0 | L168: 0 | M168: 0 | O168: 0 | P168: 0 | Q168: 0 | R168: 0 | S168: 0 | T168: 0 | V168: 0 | W168: 0 | X168: 0 | Z168: 84 | AA168: 0 | AB168: 0 | AC168: 0 | AD168: 0 | AE168: 0
A169: 85 | B169: 0 | C169: 0 | D169: 0 | E169: 0 | F169: 0 | H169: 0 | I169: 0 | K169: 0 | L169: 0 | M169: 0 | O169: 0 | P169: 0 | Q169: 0 | R169: 0 | S169: 0 | T169: 0 | V169: 0 | W169: 0 | X169: 0 | Z169: 85 | AA169: 0 | AB169: 0 | AC169: 0 | AD169: 0 | AE169: 0
A170: 86 | B170: 0 | C170: 0 | D170: 0 | E170: 0 | F170: 0 | H170: 0 | I170: 0 | K170: 0 | L170: 0 | M170: 0 | O170: 0 | P170: 0 | Q170: 0 | R170: 0 | S170: 0 | T170: 0 | V170: 0 | W170: 0 | X170: 0 | Z170: 86 | AA170: 0 | AB170: 0 | AC170: 0 | AD170: 0 | AE170: 0
A171: 87 | B171: 0 | C171: 0 | D171: 0 | E171: 0 | F171: 0 | H171: 0 | I171: 0 | K171: 0 | L171: 0 | M171: 0 | O171: 0 | P171: 0 | Q171: 0 | R171: 0 | S171: 0 | T171: 0 | V171: 0 | W171: 0 | X171: 0 | Z171: 87 | AA171: 0 | AB171: 0 | AC171: 0 | AD171: 0 | AE171: 0
A172: 88 | B172: 0 | C172: 0 | D172: 0 | E172: 0 | F172: 0 | H172: 0 | I172: 0 | K172: 0 | L172: 0 | M172: 0 | O172: 0 | P172: 0 | Q172: 0 | R172: 0 | S172: 0 | T172: 0 | V172: 0 | W172: 0 | X172: 0 | Z172: 88 | AA172: 0 | AB172: 0 | AC172: 0 | AD172: 0 | AE172: 0
A173: 89 | B173: 0 | C173: 0 | D173: 0 | E173: 0 | F173: 0 | H173: 0 | I173: 0 | K173: 0 | L173: 0 | M173: 0 | O173: 0 | P173: 0 | Q173: 0 | R173: 0 | S173: 0 | T173: 0 | V173: 0 | W173: 0 | X173: 0 | Z173: 89 | AA173: 0 | AB173: 0 | AC173: 0 | AD173: 0 | AE173: 0
A174: 90 | B174: 0 | C174: 0 | D174: 0 | E174: 0 | F174: 0 | H174: 0 | I174: 0 | K174: 0 | L174: 0 | M174: 0 | O174: 0 | P174: 0 | Q174: 0 | R174: 0 | S174: 0 | T174: 0 | V174: 0 | W174: 0 | X174: 0 | Z174: 90 | AA174: 0 | AB174: 0 | AC174: 0 | AD174: 0 | AE174: 0
A175: 91 | B175: 0 | C175: 0 | D175: 0 | E175: 0 | F175: 0 | H175: 0 | I175: 0 | K175: 0 | L175: 0 | M175: 0 | O175: 0 | P175: 0 | Q175: 0 | R175: 0 | S175: 0 | T175: 0 | V175: 0 | W175: 0 | X175: 0 | Z175: 91 | AA175: 0 | AB175: 0 | AC175: 0 | AD175: 0 | AE175: 0
A176: 92 | B176: 0 | C176: 0 | D176: 0 | E176: 0 | F176: 0 | H176: 0 | I176: 0 | K176: 0 | L176: 0 | M176: 0 | O176: 0 | P176: 0 | Q176: 0 | R176: 0 | S176: 0 | T176: 0 | V176: 0 | W176: 0 | X176: 0 | Z176: 92 | AA176: 0 | AB176: 0 | AC176: 0 | AD176: 0 | AE176: 0
A177: 93 | B177: 0 | C177: 0 | D177: 0 | E177: 0 | F177: 0 | H177: 0 | I177: 0 | K177: 0 | L177: 0 | M177: 0 | O177: 0 | P177: 0 | Q177: 0 | R177: 0 | S177: 0 | T177: 0 | V177: 0 | W177: 0 | X177: 0 | Z177: 93 | AA177: 0 | AB177: 0 | AC177: 0 | AD177: 0 | AE177: 0
A178: 94 | B178: 0 | C178: 0 | D178: 0 | E178: 0 | F178: 0 | H178: 0 | I178: 0 | K178: 0 | L178: 0 | M178: 0 | O178: 0 | P178: 0 | Q178: 0 | R178: 0 | S178: 0 | T178: 0 | V178: 0 | W178: 0 | X178: 0 | Z178: 94 | AA178: 0 | AB178: 0 | AC178: 0 | AD178: 0 | AE178: 0
A179: 95 | B179: 0 | C179: 0 | D179: 0 | E179: 0 | F179: 0 | H179: 0 | I179: 0 | K179: 0 | L179: 0 | M179: 0 | O179: 0 | P179: 0 | Q179: 0 | R179: 0 | S179: 0 | T179: 0 | V179: 0 | W179: 0 | X179: 0 | Z179: 95 | AA179: 0 | AB179: 0 | AC179: 0 | AD179: 0 | AE179: 0
A180: 96 | B180: 0 | C180: 0 | D180: 0 | E180: 0 | F180: 0 | H180: 0 | I180: 0 | K180: 0 | L180: 0 | M180: 0 | O180: 0 | P180: 0 | Q180: 0 | R180: 0 | S180: 0 | T180: 0 | V180: 0 | W180: 0 | X180: 0 | Z180: 96 | AA180: 0 | AB180: 0 | AC180: 0 | AD180: 0 | AE180: 0
A181: 97 | B181: 0 | C181: 0 | D181: 0 | E181: 0 | F181: 0 | H181: 0 | I181: 0 | K181: 0 | L181: 0 | M181: 0 | O181: 0 | P181: 0 | Q181: 0 | R181: 0 | S181: 0 | T181: 0 | V181: 0 | W181: 0 | X181: 0 | Z181: 97 | AA181: =IF(Amort=2,IF($H$2="o",C181-M181,P181-X181),IF($H$2="o",C181,P181)) -> 0 | AB181: =IF(Amort=1,IF($H$2="o",D181,Q181),IF($H$2="o",L181-M181,W181-X181)) -> 0 | AC181: =IF(Amort=1,IF($H$2="o",E181,R181),IF($H$2="o",M181,X181)) -> 0 | AD181: 0 | AE181: 0
A182: 98 | B182: 0 | C182: 0 | D182: 0 | E182: 0 | F182: 0 | H182: 0 | I182: 0 | K182: 0 | L182: 0 | M182: 0 | O182: 0 | P182: 0 | Q182: 0 | R182: 0 | S182: 0 | T182: 0 | V182: 0 | W182: 0 | X182: 0 | Z182: 98 | AA182: 0 | AB182: 0 | AC182: 0 | AD182: 0 | AE182: 0
A183: 99 | B183: 0 | C183: 0 | D183: 0 | E183: 0 | F183: 0 | H183: 0 | I183: 0 | K183: 0 | L183: 0 | M183: 0 | O183: 0 | P183: 0 | Q183: 0 | R183: 0 | S183: 0 | T183: 0 | V183: 0 | W183: 0 | X183: 0 | Z183: 99 | AA183: 0 | AB183: 0 | AC183: 0 | AD183: 0 | AE183: 0
A184: 100 | B184: 0 | C184: 0 | D184: 0 | E184: 0 | F184: 0 | H184: 0 | I184: 0 | K184: 0 | L184: 0 | M184: 0 | O184: 0 | P184: 0 | Q184: 0 | R184: 0 | S184: 0 | T184: 0 | V184: 0 | W184: 0 | X184: 0 | Z184: 100 | AA184: 0 | AB184: 0 | AC184: 0 | AD184: 0 | AE184: 0
A185: 101 | B185: 0 | C185: 0 | D185: 0 | E185: 0 | F185: 0 | H185: 0 | I185: 0 | K185: 0 | L185: 0 | M185: 0 | O185: 0 | P185: 0 | Q185: 0 | R185: 0 | S185: 0 | T185: 0 | V185: 0 | W185: 0 | X185: 0 | Z185: 101 | AA185: 0 | AB185: 0 | AC185: 0 | AD185: 0 | AE185: 0
A186: 102 | B186: 0 | C186: 0 | D186: 0 | E186: 0 | F186: 0 | H186: 0 | I186: 0 | K186: 0 | L186: 0 | M186: 0 | O186: 0 | P186: 0 | Q186: 0 | R186: 0 | S186: 0 | T186: 0 | V186: 0 | W186: 0 | X186: 0 | Z186: 102 | AA186: 0 | AB186: 0 | AC186: 0 | AD186: 0 | AE186: 0
A187: 103 | B187: 0 | C187: 0 | D187: 0 | E187: 0 | F187: 0 | H187: 0 | I187: 0 | K187: 0 | L187: 0 | M187: 0 | O187: 0 | P187: 0 | Q187: 0 | R187: 0 | S187: 0 | T187: 0 | V187: 0 | W187: 0 | X187: 0 | Z187: 103 | AA187: 0 | AB187: 0 | AC187: 0 | AD187: 0 | AE187: 0
A188: 104 | B188: 0 | C188: 0 | D188: 0 | E188: 0 | F188: 0 | H188: 0 | I188: 0 | K188: 0 | L188: 0 | M188: 0 | O188: 0 | P188: 0 | Q188: 0 | R188: 0 | S188: 0 | T188: 0 | V188: 0 | W188: 0 | X188: 0 | Z188: 104 | AA188: 0 | AB188: 0 | AC188: 0 | AD188: 0 | AE188: 0
A189: 105 | B189: 0 | C189: 0 | D189: 0 | E189: 0 | F189: 0 | H189: 0 | I189: 0 | K189: 0 | L189: 0 | M189: 0 | O189: 0 | P189: 0 | Q189: 0 | R189: 0 | S189: 0 | T189: 0 | V189: 0 | W189: 0 | X189: 0 | Z189: 105 | AA189: 0 | AB189: 0 | AC189: 0 | AD189: 0 | AE189: 0
A190: 106 | B190: 0 | C190: 0 | D190: 0 | E190: 0 | F190: 0 | H190: 0 | I190: 0 | K190: 0 | L190: 0 | M190: 0 | O190: 0 | P190: 0 | Q190: 0 | R190: 0 | S190: 0 | T190: 0 | V190: 0 | W190: 0 | X190: 0 | Z190: 106 | AA190: 0 | AB190: 0 | AC190: 0 | AD190: 0 | AE190: 0
A191: 107 | B191: 0 | C191: 0 | D191: 0 | E191: 0 | F191: 0 | H191: 0 | I191: 0 | K191: 0 | L191: 0 | M191: 0 | O191: 0 | P191: 0 | Q191: 0 | R191: 0 | S191: 0 | T191: 0 | V191: 0 | W191: 0 | X191: 0 | Z191: 107 | AA191: 0 | AB191: 0 | AC191: 0 | AD191: 0 | AE191: 0
A192: 108 | B192: 0 | C192: 0 | D192: 0 | E192: 0 | F192: 0 | H192: 0 | I192: 0 | K192: 0 | L192: 0 | M192: 0 | O192: 0 | P192: 0 | Q192: 0 | R192: 0 | S192: 0 | T192: 0 | V192: 0 | W192: 0 | X192: 0 | Z192: 108 | AA192: 0 | AB192: 0 | AC192: 0 | AD192: 0 | AE192: 0
A193: 109 | B193: 0 | C193: 0 | D193: 0 | E193: 0 | F193: 0 | H193: 0 | I193: 0 | K193: 0 | L193: 0 | M193: 0 | O193: 0 | P193: 0 | Q193: 0 | R193: 0 | S193: 0 | T193: 0 | V193: 0 | W193: 0 | X193: 0 | Z193: 109 | AA193: 0 | AB193: 0 | AC193: 0 | AD193: 0 | AE193: 0
A194: 110 | B194: 0 | C194: 0 | D194: 0 | E194: 0 | F194: 0 | H194: 0 | I194: 0 | K194: 0 | L194: 0 | M194: 0 | O194: 0 | P194: 0 | Q194: 0 | R194: 0 | S194: 0 | T194: 0 | V194: 0 | W194: 0 | X194: 0 | Z194: 110 | AA194: 0 | AB194: 0 | AC194: 0 | AD194: 0 | AE194: 0
A195: 111 | B195: 0 | C195: 0 | D195: 0 | E195: 0 | F195: 0 | H195: 0 | I195: 0 | K195: 0 | L195: 0 | M195: 0 | O195: 0 | P195: 0 | Q195: 0 | R195: 0 | S195: 0 | T195: 0 | V195: 0 | W195: 0 | X195: 0 | Z195: 111 | AA195: 0 | AB195: 0 | AC195: 0 | AD195: 0 | AE195: 0
A196: 112 | B196: 0 | C196: 0 | D196: 0 | E196: 0 | F196: 0 | H196: 0 | I196: 0 | K196: 0 | L196: 0 | M196: 0 | O196: 0 | P196: 0 | Q196: 0 | R196: 0 | S196: 0 | T196: 0 | V196: 0 | W196: 0 | X196: 0 | Z196: 112 | AA196: 0 | AB196: 0 | AC196: 0 | AD196: 0 | AE196: 0
A197: 113 | B197: 0 | C197: 0 | D197: 0 | E197: 0 | F197: 0 | H197: 0 | I197: 0 | K197: 0 | L197: 0 | M197: 0 | O197: 0 | P197: 0 | Q197: 0 | R197: 0 | S197: 0 | T197: 0 | V197: 0 | W197: 0 | X197: 0 | Z197: 113 | AA197: 0 | AB197: 0 | AC197: 0 | AD197: 0 | AE197: 0
A198: 114 | B198: 0 | C198: 0 | D198: 0 | E198: 0 | F198: 0 | H198: 0 | I198: 0 | K198: 0 | L198: 0 | M198: 0 | O198: 0 | P198: 0 | Q198: 0 | R198: 0 | S198: 0 | T198: 0 | V198: 0 | W198: 0 | X198: 0 | Z198: 114 | AA198: 0 | AB198: 0 | AC198: 0 | AD198: 0 | AE198: 0
A199: 115 | B199: 0 | C199: 0 | D199: 0 | E199: 0 | F199: 0 | H199: 0 | I199: 0 | K199: 0 | L199: 0 | M199: 0 | O199: 0 | P199: 0 | Q199: 0 | R199: 0 | S199: 0 | T199: 0 | V199: 0 | W199: 0 | X199: 0 | Z199: 115 | AA199: 0 | AB199: 0 | AC199: 0 | AD199: 0 | AE199: 0
A200: 116 | B200: 0 | C200: 0 | D200: 0 | E200: 0 | F200: 0 | H200: 0 | I200: 0 | K200: 0 | L200: 0 | M200: 0 | O200: 0 | P200: 0 | Q200: 0 | R200: 0 | S200: 0 | T200: 0 | V200: 0 | W200: 0 | X200: 0 | Z200: 116 | AA200: 0 | AB200: 0 | AC200: 0 | AD200: 0 | AE200: 0
A201: 117 | B201: 0 | C201: 0 | D201: 0 | E201: 0 | F201: 0 | H201: 0 | I201: 0 | K201: 0 | L201: 0 | M201: 0 | O201: 0 | P201: 0 | Q201: 0 | R201: 0 | S201: 0 | T201: 0 | V201: 0 | W201: 0 | X201: 0 | Z201: 117 | AA201: 0 | AB201: 0 | AC201: 0 | AD201: 0 | AE201: 0
A202: 118 | B202: 0 | C202: 0 | D202: 0 | E202: 0 | F202: 0 | H202: 0 | I202: 0 | K202: 0 | L202: 0 | M202: 0 | O202: 0 | P202: 0 | Q202: 0 | R202: 0 | S202: 0 | T202: 0 | V202: 0 | W202: 0 | X202: 0 | Z202: 118 | AA202: 0 | AB202: 0 | AC202: 0 | AD202: 0 | AE202: 0
A203: 119 | B203: 0 | C203: 0 | D203: 0 | E203: 0 | F203: 0 | H203: 0 | I203: 0 | K203: 0 | L203: 0 | M203: 0 | O203: 0 | P203: 0 | Q203: 0 | R203: 0 | S203: 0 | T203: 0 | V203: 0 | W203: 0 | X203: 0 | Z203: 119 | AA203: 0 | AB203: 0 | AC203: 0 | AD203: 0 | AE203: 0
A204: 120 | B204: 0 | C204: 0 | D204: 0 | E204: 0 | F204: 0 | H204: 0 | I204: 0 | K204: 0 | L204: 0 | M204: 0 | O204: 0 | P204: 0 | Q204: 0 | R204: 0 | S204: 0 | T204: 0 | V204: 0 | W204: 0 | X204: 0 | Z204: 120 | AA204: 0 | AB204: 0 | AC204: 0 | AD204: 0 | AE204: 0

Sheet Real4
D1: =IF(Amort=2,"Amortiseret kostpris","") ->  | H1: =IF(ISBLANK(G1),Finansplan!L23,G1) -> 99 | I1: kurs | J1: =Finansplan!R59 -> © CHA 12.02.2025 | P1: =IF(AND(ISBLANK(G1),ISBLANK(G2),ISBLANK(G3),ISBLANK(G4),ISBLANK(G5),ISBLANK(G6),ISBLANK(G7),ISBLANK(G8),ISBLANK(G9),ISBLANK(G10),ISBLANK(G32),ISBLANK(G33),ISBLANK(G34),ISBLANK(G35),ISBLANK(G36)),0,1) -> 0
D2: =Finansplan!B23 -> 0 | H2: =IF(ISBLANK(G2),Finansplan!K23,G2) -> o | I2: k = kontant-, o = obl.lån
D3: =IF(H2="k","Kontantlån","Obligationslån") -> Obligationslån | H3: =IF(ISBLANK(G3),Finansplan!J23,G3) -> a | I3: a = annuitet, s = serielån
D4: =IF(H3="s","Serielån","Annuitetslån") -> Annuitetslån | H4: =IF(ISBLANK(G4),Finansplan!I23,G4) -> 0 | I4: hovedstol / restgæld
D5: =IF(H6>0,"med afdragsfrihed","") ->  | H5: =IF(ISBLANK(G5),IF(Finansplan!O23<=50,Finansplan!O23,50),IF(G5<=50,G5,50)) -> 30 | I5: års løbetid | J5: =IF(G5>50,"Max 50 år","") -> 
D6: =IF(H5>30,"Grafikken viser kun de første 30 år af ydelsen","") ->  | H6: =IF(ISBLANK(G6),Finansplan!P23,G6) -> 0 | I6: års afdragsfrihed
H7: =IF(ISBLANK(G7),Finansplan!M23,G7) -> 0.02 | I7: debitorrente
H8: =IF(ISBLANK(G8),4,G8) -> 4 | I8: terminer inden første status
B9: Effektiv rente før skat | D9: =IF($H$2="k",J70,I70) -> 0 | E9: Nuværdi ydelser | F9: =IF(H2="o",I79,J79) -> 0 | H9: =IF(ISBLANK(G9),Finansplan!I2,G9) -> 0.385 | I9: skatteprocent
B10: Effektiv rente efter skat | D10: =IF($H$2="k",J72,I72) -> 0 | E10: Nominel rente | F10: =E70*4 -> 0.01985172629 | H10: =IF(ISBLANK(G10),Finansplan!N23,G10) -> 0.0125 | I10: adm.bidrags procent
B29: =IF(H2="k","Bagvedliggende obligationer","HOVEDSTOL = pålydende = tinglyst gæld") -> HOVEDSTOL = pålydende = tinglyst gæld | I29: =IF(H2="k",IFERROR(H4/H1*100,0),H4) -> 0 | J29: 1
B30: =IF(H2="k","",IF(I30>0," Kursgevinst"," Kurstab")) -> Kurstab | I30: =IF(H2="k",0,I31-I29) -> 0 | J30: =IF(H4>0,(I29-I31)/I29*-1,0) -> 0
B31: KURSVÆRDI, kurs | D31: =$H$1 -> 99 | E31: =IF(H2="k"," = HOVEDSTOL = tinglyst gæld","") ->  | I31: =IF(H2="k",H4,ROUND(H4*H1/100,0)) -> 0
B32: Stiftelsesprovision | F32: =IF(H4>0,IF(H$2="o",H32/I$29,H32/I$31),0) -> 0 | H32: =IF(H4>0,IF(H2="o",I74,J74),0) -> 0
B33: Kurtage (afregningsprovision, beregnes af kursværdi) | F33: =H33/(I31+0.0001) -> 0 | H33: =IF(I31=0,0,IF(ISBLANK(G33),E73,G33)) -> 0
B34: Lånesags- og ekspeditionsgebyr | F34: =IF($I$31=0,0,VurderingGebyrSats) -> 0 | H34: =IF(I31=0,0,IF(ISBLANK(G34),'Omk. & restfinans'!F18,G34)) -> 0
B35: Stempelafgift, staten (beregnes af hovedstol, opr. hele 100 kr | F35: =IF(H4>0,IF(H$2="o",H35/I$29,H35/I$31),0) -> 0 | H35: =IF(ISBLANK(G35),IF(H2="o",I73,J73),G35) -> 0
B36: Tinglysning, staten, kr. | F36: =IF($I$31=0,0,TinglysningPtbr) -> 0 | H36: =IF($I$31=0,0,IF(ISBLANK(G36),TinglysningPtbr,G36)) -> 0
B37: LÅNEOMKOSTNINGER I ALT | H37: =SUM(H32:H36) -> 0 | I37: =H37*-1 -> 0 | J37: =IF(H4>0,I37/I29,0) -> 0
B38: NETTOPROVENU (Udbetalt kreditbeløb) | I38: =ROUND(I31+I37,0) -> 0 | J38: =IF(H4>0,I38/I29*1,0) -> 0
B39: YDELSE | C39: Termin | D39: =IF(Amort=1,"Primo","Forpligtelse") -> Primo | E39: =IF(Amort=1,"Afdrag","Amort afdrag") -> Afdrag | F39: =IF(Amort=1,"Rente+bidrag","Amort. rente") -> Rente+bidrag | I39: Afdrag | J39: =IF(Amort=1,"Rente+bidrag","Amort. rente") -> Rente+bidrag
B40: =IF($H$8=1,"_______________","") ->  | C40: 1 | D40: =AE85 -> 0 | E40: =AA85 -> 0 | F40: =AB85+AC85 -> 0 | H40: =IF($H$8=1,">årlig sum>","") ->  | I40: =IF($H$8=1,E40,"") ->  | J40: =IF($H$8=1,F40,"") -> 
B41: =IF($H$8=2,"_______________","") ->  | C41: 2 | D41: =AE86 -> 0 | E41: 0 | F41: 0 | H41: =IF($H$8=2,">årlig sum>","") ->  | I41: =IF($H$8=2,SUM(E41+E40),"") ->  | J41: =IF($H$8=2,SUM(F41+F40),"") -> 
B42: =IF($H$8=3,"__________________","") ->  | C42: 3 | D42: 0 | E42: 0 | F42: 0 | H42: =IF($H$8=3,">årlig sum>","") ->  | I42: =IF($H$8=3,SUM(E40:E42),"") ->  | J42: =IF($H$8=3,SUM(F40:F42),"") -> 
B43: =IF($H$8=4,"___________________","") -> ___________________ | C43: 4 | D43: 0 | E43: 0 | F43: 0 | H43: =IF($H$8=4,">årlig sum>","") -> >årlig sum> | I43: =IF($H$8=4,SUM(E40:E43),"") -> 0 | J43: =IF($H$8=4,SUM(F40:F43),"") -> 0
B44: =IF($H$8=1,"_______________","") ->  | C44: 5 | D44: 0 | E44: 0 | F44: 0 | H44: =IF($H$8=1,">årlig sum>","") ->  | I44: =IF($H$8=1,SUM(E41:E44),"") ->  | J44: =IF($H$8=1,SUM(F41:F44),"") -> 
B45: =IF($H$8=2,"_______________","") ->  | C45: 6 | D45: 0 | E45: 0 | F45: 0 | H45: =IF($H$8=2,">årlig sum>","") ->  | I45: =IF($H$8=2,SUM(E42:E45),"") ->  | J45: =IF($H$8=2,SUM(F42:F45),"") -> 
B46: =IF($H$8=3,"__________________","") ->  | C46: 7 | D46: 0 | E46: 0 | F46: 0 | H46: =IF($H$8=3,">årlig sum>","") ->  | I46: =IF($H$8=3,SUM(E43:E46),"") ->  | J46: =IF($H$8=3,SUM(F43:F46),"") -> 
B47: =IF($H$8=4,"___________________","") -> ___________________ | C47: 8 | D47: 0 | E47: 0 | F47: 0 | H47: =IF($H$8=4,">årlig sum>","") -> >årlig sum> | I47: =IF($H$8=4,SUM(E44:E47),"") -> 0 | J47: =IF($H$8=4,SUM(F44:F47),"") -> 0
B48: =IF($H$8=1,"_______________","") ->  | C48: 9 | D48: 0 | E48: 0 | F48: 0 | H48: =IF($H$8=1,">årlig sum>","") ->  | I48: =IF($H$8=1,SUM(E45:E48),"") ->  | J48: =IF($H$8=1,SUM(F45:F48),"") -> 
B49: =IF($H$8=2,"_______________","") ->  | C49: 10 | D49: 0 | E49: 0 | F49: 0 | H49: =IF($H$8=2,">årlig sum>","") ->  | I49: =IF($H$8=2,SUM(E46:E49),"") ->  | J49: =IF($H$8=2,SUM(F46:F49),"") -> 
B50: =IF($H$8=3,"__________________","") ->  | C50: 11 | D50: 0 | E50: 0 | F50: 0 | H50: =IF($H$8=3,">årlig sum>","") ->  | I50: =IF($H$8=3,SUM(E47:E50),"") ->  | J50: =IF($H$8=3,SUM(F47:F50),"") -> 
B51: =IF($H$8=4,"___________________","") -> ___________________ | C51: 12 | D51: 0 | E51: 0 | F51: 0 | H51: =IF($H$8=4,">årlig sum>","") -> >årlig sum> | I51: =IF($H$8=4,SUM(E48:E51),"") -> 0 | J51: =IF($H$8=4,SUM(F48:F51),"") -> 0
B52: =IF($H$8=1,"_______________","") ->  | C52: 13 | D52: 0 | E52: 0 | F52: 0 | H52: =IF($H$8=1,">årlig sum>","") ->  | I52: =IF($H$8=1,SUM(E49:E52),"") ->  | J52: =IF($H$8=1,SUM(F49:F52),"") -> 
B53: =IF($H$8=2,"_______________","") ->  | C53: 14 | D53: 0 | E53: 0 | F53: 0 | H53: =IF($H$8=2,">årlig sum>","") ->  | I53: =IF($H$8=2,SUM(E50:E53),"") ->  | J53: =IF($H$8=2,SUM(F50:F53),"") -> 
B54: =IF($H$8=3,"__________________","") ->  | C54: 15 | D54: 0 | E54: 0 | F54: 0 | H54: =IF($H$8=3,">årlig sum>","") ->  | I54: =IF($H$8=3,SUM(E51:E54),"") ->  | J54: =IF($H$8=3,SUM(F51:F54),"") -> 
B55: =IF($H$8=4,"___________________","") -> ___________________ | C55: 16 | D55: 0 | E55: 0 | F55: 0 | H55: =IF($H$8=4,">årlig sum>","") -> >årlig sum> | I55: =IF($H$8=4,SUM(E52:E55),"") -> 0 | J55: =IF($H$8=4,SUM(F52:F55),"") -> 0
B56: =IF($H$8=1,"_______________","") ->  | C56: 17 | D56: 0 | E56: 0 | F56: 0 | H56: =IF($H$8=1,">årlig sum>","") ->  | I56: =IF($H$8=1,SUM(E53:E56),"") ->  | J56: =IF($H$8=1,SUM(F53:F56),"") -> 
B57: =IF($H$8=2,"_______________","") ->  | C57: 18 | D57: 0 | E57: 0 | F57: 0 | H57: =IF($H$8=2,">årlig sum>","") ->  | I57: =IF($H$8=2,SUM(E54:E57),"") ->  | J57: =IF($H$8=2,SUM(F54:F57),"") -> 
B58: =IF($H$8=3,"__________________","") ->  | C58: 19 | D58: 0 | E58: 0 | F58: 0 | H58: =IF($H$8=3,">årlig sum>","") ->  | I58: =IF($H$8=3,SUM(E55:E58),"") ->  | J58: =IF($H$8=3,SUM(F55:F58),"") -> 
B59: =IF($H$8=4,"___________________","") -> ___________________ | C59: 20 | D59: 0 | E59: 0 | F59: 0 | H59: =IF($H$8=4,">årlig sum>","") -> >årlig sum> | I59: =IF($H$8=4,SUM(E56:E59),"") -> 0 | J59: =IF($H$8=4,SUM(F56:F59),"") -> 0
B60: =IF($H$8=1,"_______________","") ->  | C60: 21 | D60: 0 | E60: 0 | F60: 0 | H60: =IF($H$8=1,">årlig sum>","") ->  | I60: =IF($H$8=1,SUM(E57:E60),"") ->  | J60: =IF($H$8=1,SUM(F57:F60),"") -> 
B61: =IF($H$8=2,"_______________","") ->  | C61: 22 | D61: 0 | E61: 0 | F61: 0 | H61: =IF($H$8=2,">årlig sum>","") ->  | I61: =IF($H$8=2,SUM(E58:E61),"") ->  | J61: =IF($H$8=2,SUM(F58:F61),"") -> 
B62: =IF($H$8=3,"__________________","") ->  | C62: 23 | D62: 0 | E62: 0 | F62: 0 | H62: =IF($H$8=3,">årlig sum>","") ->  | I62: =IF($H$8=3,SUM(E59:E62),"") ->  | J62: =IF($H$8=3,SUM(F59:F62),"") -> 
B63: =IF($H$8=4,"___________________","") -> ___________________ | C63: 24 | D63: 0 | E63: 0 | F63: 0 | H63: =IF($H$8=4,">årlig sum>","") -> >årlig sum> | I63: =IF($H$8=4,SUM(E60:E63),"") -> 0 | J63: =IF($H$8=4,SUM(F60:F63),"") -> 0
B64: B E R E G N I N G A F Y D E L S E, I N T E R N R E N T E , N U T I D S V Æ R D I O G A M O R T I S E R I N G
B65: Løbetid ialt i antal terminer................................................................ | E65: =H5*4 -> 120 | F65: Annuitetsydelse pr. termin ved kontantlån ex. adm....................................... | J65: =PMT(J66,E66,I31)*-1 -> 0
B66: Afdragsterminer (min 1)................................................................ | E66: =IF((H5-H6)*4<1,1,(H5-H6)*4) -> 120 | F66: Nominel kontantlåns rente pr. termin…................ | J66: =E70 -> 0.004962931573
B67: Afdrag efter termin............................................................... | E67: =E65-E66 -> 0 | F67: Hovedstol, der skal afdrages.......................................... | J67: =IF($H$2="k",I31,I29) -> 0
B68: Afdrag pr. termin, hvis serielån............................................................... | E68: =J67/E66 -> 0 | I68: Obligation | J68: Kontant
B69: Afdrag pr. termin, hvis serielån amort. kostpris……………………………….. | E69: =H84*-1/E66 -> 0 | F69: Eff. rente/termin.......................................................... | I69: =IF(H4>0,IRR(F84:F284),0) -> 0 | J69: =IF(H4>0,IRR(S84:S284),0) -> 0
B70: Nominel rente % pr. termin................................................ | E70: =(1+H7)^0.25-1 -> 0.004962931573 | F70: Eff. rente p.a.......................................................... | I70: =((1+I69)^4-1) -> 0 | J70: =((1+J69)^4-1) -> 0
B71: Annuitetsydelse pr. termin ex adm................................. | E71: =PMT(E70,E66,I29)*-1 -> 0 | F71: Eff. rente/termin efter skat........................................................... | I71: =IF(H4>0,IRR(H84:H204),0) -> 0 | J71: =IF(H4>0,IRR(T84:T204),0) -> 0
B72: Adm.-bidrag beregnes af restgælden årligt......... | E72: =H10 -> 0.0125 | F72: Eff. rente p.a. efter skat........................................................... | I72: =((1+I71)^4-1) -> 0 | J72: =((1+J71)^4-1) -> 0
B73: Kurtage 0,15 % af kontantværdi (min 175), kr............................................... | E73: =IF(I31*KurtageUnderSats<KurtageMinSats,KurtageMinSats,I31*KurtageUnderSats) -> 175 | F73: Stempelberegning realkredit, opr........................................................... | I73: =IF(ISNUMBER('Omk. & restfinans'!E19),0,CEILING(I29*Stempel,100)) -> 0 | J73: =IF(ISNUMBER('Omk. & restfinans'!E19),0,CEILING(I31*Stempel,100)) -> 0
B74: Kurtage dog minimum kr.…………………………… | E74: =KurtageMinSats -> 175 | F74: Indskud realkredit.(min. 10.000)......................................................... | I74: =IF(ISNUMBER($G$32),$G$32*I29,IF('Omk. & restfinans'!$E$16>0,I29*'Omk. & restfinans'!$F$16,IF(StiftelsesprovisionSats*I29<MinStiftelse,MinStiftelse,StiftelsesprovisionSats*I29))) -> 10000 | J74: =IF(ISNUMBER($G$32),$G$32*I31,IF('Omk. & restfinans'!$E$16>0,I31*'Omk. & restfinans'!$F$16,IF(StiftelsesprovisionSats*I31<MinStiftelse,MinStiftelse,StiftelsesprovisionSats*I31))) -> 10000
B75: Standard indskud……………………………… | E75: =IF(H2="o",I29*StiftelsesprovisionSats,I31*StiftelsesprovisionSats) -> 0 | F75: Amortiseringstillæg i alt………………………… | I75: =H37 + I30*-1 -> 0 | J75: =H37 -> 0
B76: Standard stempel……………………………….. | E76: =CEILING(IF(H2="o",I29*Stempel,I31*Stempel),100) -> 0 | F76: Tildelt amortiseringstillæg i alt…………. | I76: =SUM(M85:M284) -> 0 | J76: =SUM(X85:X284) -> 0
I77: Obligation | J77: Kontant
B78: Kalkulationsrenten pr. termin (beregnet på grundlag af kalkulationsrenten p.a. fra arket Finansplan)…………………………………………………………………………. | I78: =KRenteTermin -> 0.01227223443 | J78: =KRenteTermin -> 0.01227223443 | Z78: =H2 -> o | AA78: kontant/obl
B79: Nutidsværdi af ydelserne ved kalkulationsrenten pr. termin................................................................................... | I79: =NPV(KRenteTermin,F85:F205) -> 0 | J79: =NPV(KRenteTermin,S85:S205) -> 0 | Z79: =Amort -> 1 | AA79: amortiseret
K80: OBLIGATIONSLÅN | V80: KONTANTLÅN
A81: OBLIGATIONSLÅN | I81: =IRR(I84:I284) ->  | K81: AMORTISERET KOSTPRIS | O81: KONTANTLÅN | V81: AMORTISERET KOSTPRIS
B82: Nominel | D82: Nominel | E82: Adm.- | F82: Ydelse | H82: Ydelse | I82: rente+afdrag | K82: Amortiseret | L82: Rente i alt | M82: Amorti- | O82: Nominel | P82: Nominel | Q82: Nominel | R82: Adm.- | S82: Ydelse | T82: Ydelse | V82: Amortiseret | W82: Amort | X82: Amorti- | Z82: DIAGRAMDATA | AA82: =IF(Amort=1,"","Amort.") ->  | AB82: =IF($H$2="k","kontantlån","Obligationslån") -> Obligationslån | AE82: Forpligtelse | AF82: Årlig
A83: T | B83: forpligtelse | C83: Afdrag | D83: Rente | E83: bidrag | F83: før skat | H83: efter skat | I83: før skat | K83: forpligtelse | L83: (Effektiv | M83: serings | O83: forpligtelse | P83: Afdrag | Q83: Rente | R83: bidrag | S83: før skat | T83: efter skat | V83: forpligtelse | W83: Effektiv | X83: serings | Z83: Termin | AA83: Afdrag | AB83: Rente | AC83: =IF(Amort=1,"Adm.bidrag","Amort. tillæg") -> Adm.bidrag | AD83: Ydelse efter skat | AE83: primo | AF83: amortisering
A84: Primo | F84: =I38*-1 -> 0 | H84: =F84 -> 0 | I84: =I31*-1 -> 0 | L84: rente) | M84: tillæg | S84: =$I$38*-1 -> 0 | T84: =$I$38*-1 -> 0 | W84: rente | X84: tillæg | Z84: 0
A85: 1 | B85: =I29 -> 0 | C85: =IF($A85>$E$65,0,IF($A85>$E$67,IF($H$3="s",$E$68,$E$71-D85),0)) -> 0 | D85: =$E$70*B85 -> 0 | E85: =B85*$E$72/4 -> 0 | F85: =E85+D85+C85 -> 0 | H85: =C85+((D85+E85)*(1-$H$9)) -> 0 | I85: =C85+D85 -> 0 | K85: =B85-I75 -> 0 | L85: =K85*$I$69 -> 0 | M85: =L85-D85-E85 -> 0 | O85: =I31 -> 0 | P85: =IF($A85>$E$65,0,IF($A85>$E$67,IF($H$3="s",$E$68,$J$65-Q85),0)) -> 0 | Q85: =O85*$J$66 -> 0 | R85: =O85*$E$72/4 -> 0 | S85: =Q85+R85+P85 -> 0 | T85: =P85+((R85+Q85)*(1-$H$9)) -> 0 | V85: =O85-$J$75 -> 0 | W85: =V85*$J$69 -> 0 | X85: =W85-Q85-R85 -> 0 | Z85: 1 | AA85: =IF(Amort=2,IF($H$2="o",C85-M85,P85-X85),IF($H$2="o",C85,P85)) -> 0 | AB85: =IF(Amort=1,IF($H$2="o",D85,Q85),IF($H$2="o",L85-M85,W85-X85)) -> 0 | AC85: =IF(Amort=1,IF($H$2="o",E85,R85),IF($H$2="o",M85,X85)) -> 0 | AD85: =IF($H$2="o",H85,T85) -> 0 | AE85: =IF(Amort=2,IF($H$2="o",K85,V85),IF($H$2="o",B85,O85)) -> 0
A86: 2 | B86: =B85-C85 -> 0 | C86: 0 | D86: =$E$70*B86 -> 0 | E86: 0 | F86: 0 | H86: =C86+((D86+E86)*(1-$H$9)) -> 0 | I86: =C86+D86 -> 0 | K86: =K85-C85+M85 -> 0 | L86: =K86*$I$69 -> 0 | M86: =L86-D86-E86 -> 0 | O86: =O85-P85 -> 0 | P86: =IF($A86>$E$65,0,IF($A86>$E$67,IF($H$3="s",$E$68,$J$65-Q86),0)) -> 0 | Q86: =O86*$J$66 -> 0 | R86: 0 | S86: =Q86+R86+P86 -> 0 | T86: =P86+((R86+Q86)*(1-$H$9)) -> 0 | V86: =V85+X85-P85 -> 0 | W86: =V86*$J$69 -> 0 | X86: =W86-Q86-R86 -> 0 | Z86: 2 | AA86: 0 | AB86: 0 | AC86: 0 | AD86: =IF($H$2="o",H86,T86) -> 0 | AE86: 0
A87: 3 | B87: 0 | C87: 0 | D87: 0 | E87: 0 | F87: 0 | H87: 0 | I87: 0 | K87: =K86-C86+M86 -> 0 | L87: 0 | M87: =L87-D87-E87 -> 0 | O87: 0 | P87: 0 | Q87: 0 | R87: 0 | S87: 0 | T87: 0 | V87: =V86+X86-P86 -> 0 | W87: 0 | X87: =W87-Q87-R87 -> 0 | Z87: 3 | AA87: 0 | AB87: 0 | AC87: 0 | AD87: 0 | AE87: 0
A88: 4 | B88: 0 | C88: 0 | D88: 0 | E88: 0 | F88: 0 | H88: 0 | I88: 0 | K88: =K87-C87+M87 -> 0 | L88: 0 | M88: =L88-D88-E88 -> 0 | O88: 0 | P88: 0 | Q88: 0 | R88: 0 | S88: 0 | T88: 0 | V88: 0 | W88: 0 | X88: 0 | Z88: 4 | AA88: 0 | AB88: 0 | AC88: 0 | AD88: 0 | AE88: 0 | AF88: =SUM(AC85:AC88) -> 0
A89: 5 | B89: 0 | C89: 0 | D89: 0 | E89: 0 | F89: 0 | H89: 0 | I89: 0 | K89: =K88-C88+M88 -> 0 | L89: 0 | M89: =L89-D89-E89 -> 0 | O89: 0 | P89: 0 | Q89: 0 | R89: 0 | S89: 0 | T89: 0 | V89: 0 | W89: 0 | X89: 0 | Z89: 5 | AA89: 0 | AB89: 0 | AC89: 0 | AD89: 0 | AE89: 0
A90: 6 | B90: 0 | C90: 0 | D90: 0 | E90: 0 | F90: 0 | H90: 0 | I90: 0 | K90: 0 | L90: 0 | M90: 0 | O90: 0 | P90: 0 | Q90: 0 | R90: 0 | S90: 0 | T90: 0 | V90: 0 | W90: 0 | X90: 0 | Z90: 6 | AA90: 0 | AB90: 0 | AC90: 0 | AD90: 0 | AE90: 0
A91: 7 | B91: 0 | C91: 0 | D91: 0 | E91: 0 | F91: 0 | H91: 0 | I91: 0 | K91: 0 | L91: 0 | M91: 0 | O91: 0 | P91: 0 | Q91: 0 | R91: 0 | S91: 0 | T91: 0 | V91: 0 | W91: 0 | X91: 0 | Z91: 7 | AA91: 0 | AB91: 0 | AC91: 0 | AD91: 0 | AE91: 0
A92: 8 | B92: 0 | C92: 0 | D92: 0 | E92: 0 | F92: 0 | H92: 0 | I92: 0 | K92: 0 | L92: 0 | M92: 0 | O92: 0 | P92: 0 | Q92: 0 | R92: 0 | S92: 0 | T92: 0 | V92: 0 | W92: 0 | X92: 0 | Z92: 8 | AA92: 0 | AB92: 0 | AC92: 0 | AD92: 0 | AE92: 0 | AF92: =SUM(AC89:AC92) -> 0
A93: 9 | B93: 0 | C93: 0 | D93: 0 | E93: 0 | F93: 0 | H93: 0 | I93: 0 | K93: 0 | L93: 0 | M93: 0 | O93: 0 | P93: 0 | Q93: 0 | R93: 0 | S93: 0 | T93: 0 | V93: 0 | W93: 0 | X93: 0 | Z93: 9 | AA93: 0 | AB93: 0 | AC93: 0 | AD93: 0 | AE93: 0
A94: 10 | B94: 0 | C94: 0 | D94: 0 | E94: 0 | F94: 0 | H94: 0 | I94: 0 | K94: 0 | L94: 0 | M94: 0 | O94: 0 | P94: 0 | Q94: 0 | R94: 0 | S94: 0 | T94: 0 | V94: 0 | W94: 0 | X94: 0 | Z94: 10 | AA94: 0 | AB94: 0 | AC94: 0 | AD94: 0 | AE94: 0
A95: 11 | B95: 0 | C95: 0 | D95: 0 | E95: 0 | F95: 0 | H95: 0 | I95: 0 | K95: 0 | L95: 0 | M95: 0 | O95: 0 | P95: 0 | Q95: 0 | R95: 0 | S95: 0 | T95: 0 | V95: 0 | W95: 0 | X95: 0 | Z95: 11 | AA95: 0 | AB95: 0 | AC95: 0 | AD95: 0 | AE95: 0
A96: 12 | B96: 0 | C96: 0 | D96: 0 | E96: 0 | F96: 0 | H96: 0 | I96: 0 | K96: 0 | L96: 0 | M96: 0 | O96: 0 | P96: 0 | Q96: 0 | R96: 0 | S96: 0 | T96: 0 | V96: 0 | W96: 0 | X96: 0 | Z96: 12 | AA96: 0 | AB96: 0 | AC96: 0 | AD96: 0 | AE96: 0 | AF96: =SUM(AC93:AC96) -> 0
A97: 13 | B97: 0 | C97: 0 | D97: 0 | E97: 0 | F97: 0 | H97: 0 | I97: 0 | K97: 0 | L97: 0 | M97: 0 | O97: 0 | P97: 0 | Q97: 0 | R97: 0 | S97: 0 | T97: 0 | V97: 0 | W97: 0 | X97: 0 | Z97: 13 | AA97: 0 | AB97: 0 | AC97: 0 | AD97: 0 | AE97: 0
A98: 14 | B98: 0 | C98: 0 | D98: 0 | E98: 0 | F98: 0 | H98: 0 | I98: 0 | K98: 0 | L98: 0 | M98: 0 | O98: 0 | P98: 0 | Q98: 0 | R98: 0 | S98: 0 | T98: 0 | V98: 0 | W98: 0 | X98: 0 | Z98: 14 | AA98: 0 | AB98: 0 | AC98: 0 | AD98: 0 | AE98: 0
A99: 15 | B99: 0 | C99: 0 | D99: 0 | E99: 0 | F99: 0 | H99: 0 | I99: 0 | K99: 0 | L99: 0 | M99: 0 | O99: 0 | P99: 0 | Q99: 0 | R99: 0 | S99: 0 | T99: 0 | V99: 0 | W99: 0 | X99: 0 | Z99: 15 | AA99: 0 | AB99: 0 | AC99: 0 | AD99: 0 | AE99: 0
A100: 16 | B100: 0 | C100: 0 | D100: 0 | E100: 0 | F100: 0 | H100: 0 | I100: 0 | K100: 0 | L100: 0 | M100: 0 | O100: 0 | P100: 0 | Q100: 0 | R100: 0 | S100: 0 | T100: 0 | V100: 0 | W100: 0 | X100: 0 | Z100: 16 | AA100: 0 | AB100: 0 | AC100: 0 | AD100: 0 | AE100: 0 | AF100: =SUM(AC97:AC100) -> 0
A101: 17 | B101: 0 | C101: 0 | D101: 0 | E101: 0 | F101: 0 | H101: 0 | I101: 0 | K101: 0 | L101: 0 | M101: 0 | O101: 0 | P101: 0 | Q101: 0 | R101: 0 | S101: 0 | T101: 0 | V101: 0 | W101: 0 | X101: 0 | Z101: 17 | AA101: 0 | AB101: 0 | AC101: 0 | AD101: 0 | AE101: 0
A102: 18 | B102: 0 | C102: 0 | D102: 0 | E102: 0 | F102: 0 | H102: 0 | I102: 0 | K102: 0 | L102: 0 | M102: 0 | O102: 0 | P102: 0 | Q102: 0 | R102: 0 | S102: 0 | T102: 0 | V102: 0 | W102: 0 | X102: 0 | Z102: 18 | AA102: 0 | AB102: 0 | AC102: 0 | AD102: 0 | AE102: 0
A103: 19 | B103: 0 | C103: 0 | D103: 0 | E103: 0 | F103: 0 | H103: 0 | I103: 0 | K103: 0 | L103: 0 | M103: 0 | O103: 0 | P103: 0 | Q103: 0 | R103: 0 | S103: 0 | T103: 0 | V103: 0 | W103: 0 | X103: 0 | Z103: 19 | AA103: 0 | AB103: 0 | AC103: 0 | AD103: 0 | AE103: 0
A104: 20 | B104: 0 | C104: 0 | D104: 0 | E104: 0 | F104: 0 | H104: 0 | I104: 0 | K104: 0 | L104: 0 | M104: 0 | O104: 0 | P104: 0 | Q104: 0 | R104: 0 | S104: 0 | T104: 0 | V104: 0 | W104: 0 | X104: 0 | Z104: 20 | AA104: 0 | AB104: 0 | AC104: 0 | AD104: 0 | AE104: 0
A105: 21 | B105: 0 | C105: 0 | D105: 0 | E105: 0 | F105: 0 | H105: 0 | I105: 0 | K105: 0 | L105: 0 | M105: 0 | O105: 0 | P105: 0 | Q105: 0 | R105: 0 | S105: 0 | T105: 0 | V105: 0 | W105: 0 | X105: 0 | Z105: 21 | AA105: 0 | AB105: 0 | AC105: 0 | AD105: 0 | AE105: 0
A106: 22 | B106: 0 | C106: 0 | D106: 0 | E106: 0 | F106: 0 | H106: 0 | I106: 0 | K106: 0 | L106: 0 | M106: 0 | O106: 0 | P106: 0 | Q106: 0 | R106: 0 | S106: 0 | T106: 0 | V106: 0 | W106: 0 | X106: 0 | Z106: 22 | AA106: 0 | AB106: 0 | AC106: 0 | AD106: 0 | AE106: 0
A107: 23 | B107: 0 | C107: 0 | D107: 0 | E107: 0 | F107: 0 | H107: 0 | I107: 0 | K107: 0 | L107: 0 | M107: 0 | O107: 0 | P107: 0 | Q107: 0 | R107: 0 | S107: 0 | T107: 0 | V107: 0 | W107: 0 | X107: 0 | Z107: 23 | AA107: 0 | AB107: 0 | AC107: 0 | AD107: 0 | AE107: 0
A108: 24 | B108: 0 | C108: 0 | D108: 0 | E108: 0 | F108: 0 | H108: 0 | I108: 0 | K108: 0 | L108: 0 | M108: 0 | O108: 0 | P108: 0 | Q108: 0 | R108: 0 | S108: 0 | T108: 0 | V108: 0 | W108: 0 | X108: 0 | Z108: 24 | AA108: 0 | AB108: 0 | AC108: 0 | AD108: 0 | AE108: 0
A109: 25 | B109: 0 | C109: 0 | D109: 0 | E109: 0 | F109: 0 | H109: 0 | I109: 0 | K109: 0 | L109: 0 | M109: 0 | O109: 0 | P109: 0 | Q109: 0 | R109: 0 | S109: 0 | T109: 0 | V109: 0 | W109: 0 | X109: 0 | Z109: 25 | AA109: 0 | AB109: 0 | AC109: 0 | AD109: 0 | AE109: 0
A110: 26 | B110: 0 | C110: 0 | D110: 0 | E110: 0 | F110: 0 | H110: 0 | I110: 0 | K110: 0 | L110: 0 | M110: 0 | O110: 0 | P110: 0 | Q110: 0 | R110: 0 | S110: 0 | T110: 0 | V110: 0 | W110: 0 | X110: 0 | Z110: 26 | AA110: 0 | AB110: 0 | AC110: 0 | AD110: 0 | AE110: 0
A111: 27 | B111: 0 | C111: 0 | D111: 0 | E111: 0 | F111: 0 | H111: 0 | I111: 0 | K111: 0 | L111: 0 | M111: 0 | O111: 0 | P111: 0 | Q111: 0 | R111: 0 | S111: 0 | T111: 0 | V111: 0 | W111: 0 | X111: 0 | Z111: 27 | AA111: 0 | AB111: 0 | AC111: 0 | AD111: 0 | AE111: 0
A112: 28 | B112: 0 | C112: 0 | D112: 0 | E112: 0 | F112: 0 | H112: 0 | I112: 0 | K112: 0 | L112: 0 | M112: 0 | O112: 0 | P112: 0 | Q112: 0 | R112: 0 | S112: 0 | T112: 0 | V112: 0 | W112: 0 | X112: 0 | Z112: 28 | AA112: 0 | AB112: 0 | AC112: 0 | AD112: 0 | AE112: 0
A113: 29 | B113: 0 | C113: 0 | D113: 0 | E113: 0 | F113: 0 | H113: 0 | I113: 0 | K113: 0 | L113: 0 | M113: 0 | O113: 0 | P113: 0 | Q113: 0 | R113: 0 | S113: 0 | T113: 0 | V113: 0 | W113: 0 | X113: 0 | Z113: 29 | AA113: 0 | AB113: 0 | AC113: 0 | AD113: 0 | AE113: 0
A114: 30 | B114: 0 | C114: 0 | D114: 0 | E114: 0 | F114: 0 | H114: 0 | I114: 0 | K114: 0 | L114: 0 | M114: 0 | O114: 0 | P114: 0 | Q114: 0 | R114: 0 | S114: 0 | T114: 0 | V114: 0 | W114: 0 | X114: 0 | Z114: 30 | AA114: 0 | AB114: 0 | AC114: 0 | AD114: 0 | AE114: 0
A115: 31 | B115: 0 | C115: 0 | D115: 0 | E115: 0 | F115: 0 | H115: 0 | I115: 0 | K115: 0 | L115: 0 | M115: 0 | O115: 0 | P115: 0 | Q115: 0 | R115: 0 | S115: 0 | T115: 0 | V115: 0 | W115: 0 | X115: 0 | Z115: 31 | AA115: 0 | AB115: 0 | AC115: 0 | AD115: 0 | AE115: 0
A116: 32 | B116: 0 | C116: 0 | D116: 0 | E116: 0 | F116: 0 | H116: 0 | I116: 0 | K116: 0 | L116: 0 | M116: 0 | O116: 0 | P116: 0 | Q116: 0 | R116: 0 | S116: 0 | T116: 0 | V116: 0 | W116: 0 | X116: 0 | Z116: 32 | AA116: 0 | AB116: 0 | AC116: 0 | AD116: 0 | AE116: 0
A117: 33 | B117: 0 | C117: 0 | D117: 0 | E117: 0 | F117: 0 | H117: 0 | I117: 0 | K117: 0 | L117: 0 | M117: 0 | O117: 0 | P117: 0 | Q117: 0 | R117: 0 | S117: 0 | T117: 0 | V117: 0 | W117: 0 | X117: 0 | Z117: 33 | AA117: =IF(Amort=2,IF($H$2="o",C117-M117,P117-X117),IF($H$2="o",C117,P117)) -> 0 | AB117: =IF(Amort=1,IF($H$2="o",D117,Q117),IF($H$2="o",L117-M117,W117-X117)) -> 0 | AC117: =IF(Amort=1,IF($H$2="o",E117,R117),IF($H$2="o",M117,X117)) -> 0 | AD117: 0 | AE117: 0
A118: 34 | B118: 0 | C118: 0 | D118: 0 | E118: 0 | F118: 0 | H118: 0 | I118: 0 | K118: 0 | L118: 0 | M118: 0 | O118: 0 | P118: 0 | Q118: 0 | R118: 0 | S118: 0 | T118: 0 | V118: 0 | W118: 0 | X118: 0 | Z118: 34 | AA118: 0 | AB118: 0 | AC118: 0 | AD118: 0 | AE118: 0
A119: 35 | B119: 0 | C119: 0 | D119: 0 | E119: 0 | F119: 0 | H119: 0 | I119: 0 | K119: 0 | L119: 0 | M119: 0 | O119: 0 | P119: 0 | Q119: 0 | R119: 0 | S119: 0 | T119: 0 | V119: 0 | W119: 0 | X119: 0 | Z119: 35 | AA119: 0 | AB119: 0 | AC119: 0 | AD119: 0 | AE119: 0
A120: 36 | B120: 0 | C120: 0 | D120: 0 | E120: 0 | F120: 0 | H120: 0 | I120: 0 | K120: 0 | L120: 0 | M120: 0 | O120: 0 | P120: 0 | Q120: 0 | R120: 0 | S120: 0 | T120: 0 | V120: 0 | W120: 0 | X120: 0 | Z120: 36 | AA120: 0 | AB120: 0 | AC120: 0 | AD120: 0 | AE120: 0
A121: 37 | B121: 0 | C121: 0 | D121: 0 | E121: 0 | F121: 0 | H121: 0 | I121: 0 | K121: 0 | L121: 0 | M121: 0 | O121: 0 | P121: 0 | Q121: 0 | R121: 0 | S121: 0 | T121: 0 | V121: 0 | W121: 0 | X121: 0 | Z121: 37 | AA121: 0 | AB121: 0 | AC121: 0 | AD121: 0 | AE121: 0
A122: 38 | B122: 0 | C122: 0 | D122: 0 | E122: 0 | F122: 0 | H122: 0 | I122: 0 | K122: 0 | L122: 0 | M122: 0 | O122: 0 | P122: 0 | Q122: 0 | R122: 0 | S122: 0 | T122: 0 | V122: 0 | W122: 0 | X122: 0 | Z122: 38 | AA122: 0 | AB122: 0 | AC122: 0 | AD122: 0 | AE122: 0
A123: 39 | B123: 0 | C123: 0 | D123: 0 | E123: 0 | F123: 0 | H123: 0 | I123: 0 | K123: 0 | L123: 0 | M123: 0 | O123: 0 | P123: 0 | Q123: 0 | R123: 0 | S123: 0 | T123: 0 | V123: 0 | W123: 0 | X123: 0 | Z123: 39 | AA123: 0 | AB123: 0 | AC123: 0 | AD123: 0 | AE123: 0
A124: 40 | B124: 0 | C124: 0 | D124: 0 | E124: 0 | F124: 0 | H124: 0 | I124: 0 | K124: 0 | L124: 0 | M124: 0 | O124: 0 | P124: 0 | Q124: 0 | R124: 0 | S124: 0 | T124: 0 | V124: 0 | W124: 0 | X124: 0 | Z124: 40 | AA124: 0 | AB124: 0 | AC124: 0 | AD124: 0 | AE124: 0
A125: 41 | B125: 0 | C125: 0 | D125: 0 | E125: 0 | F125: 0 | H125: 0 | I125: 0 | K125: 0 | L125: 0 | M125: 0 | O125: 0 | P125: 0 | Q125: 0 | R125: 0 | S125: 0 | T125: 0 | V125: 0 | W125: 0 | X125: 0 | Z125: 41 | AA125: 0 | AB125: 0 | AC125: 0 | AD125: 0 | AE125: 0
A126: 42 | B126: 0 | C126: 0 | D126: 0 | E126: 0 | F126: 0 | H126: 0 | I126: 0 | K126: 0 | L126: 0 | M126: 0 | O126: 0 | P126: 0 | Q126: 0 | R126: 0 | S126: 0 | T126: 0 | V126: 0 | W126: 0 | X126: 0 | Z126: 42 | AA126: 0 | AB126: 0 | AC126: 0 | AD126: 0 | AE126: 0
A127: 43 | B127: 0 | C127: 0 | D127: 0 | E127: 0 | F127: 0 | H127: 0 | I127: 0 | K127: 0 | L127: 0 | M127: 0 | O127: 0 | P127: 0 | Q127: 0 | R127: 0 | S127: 0 | T127: 0 | V127: 0 | W127: 0 | X127: 0 | Z127: 43 | AA127: 0 | AB127: 0 | AC127: 0 | AD127: 0 | AE127: 0
A128: 44 | B128: 0 | C128: 0 | D128: 0 | E128: 0 | F128: 0 | H128: 0 | I128: 0 | K128: 0 | L128: 0 | M128: 0 | O128: 0 | P128: 0 | Q128: 0 | R128: 0 | S128: 0 | T128: 0 | V128: 0 | W128: 0 | X128: 0 | Z128: 44 | AA128: 0 | AB128: 0 | AC128: 0 | AD128: 0 | AE128: 0
A129: 45 | B129: 0 | C129: 0 | D129: 0 | E129: 0 | F129: 0 | H129: 0 | I129: 0 | K129: 0 | L129: 0 | M129: 0 | O129: 0 | P129: 0 | Q129: 0 | R129: 0 | S129: 0 | T129: 0 | V129: 0 | W129: 0 | X129: 0 | Z129: 45 | AA129: 0 | AB129: 0 | AC129: 0 | AD129: 0 | AE129: 0
A130: 46 | B130: 0 | C130: 0 | D130: 0 | E130: 0 | F130: 0 | H130: 0 | I130: 0 | K130: 0 | L130: 0 | M130: 0 | O130: 0 | P130: 0 | Q130: 0 | R130: 0 | S130: 0 | T130: 0 | V130: 0 | W130: 0 | X130: 0 | Z130: 46 | AA130: 0 | AB130: 0 | AC130: 0 | AD130: 0 | AE130: 0
A131: 47 | B131: 0 | C131: 0 | D131: 0 | E131: 0 | F131: 0 | H131: 0 | I131: 0 | K131: 0 | L131: 0 | M131: 0 | O131: 0 | P131: 0 | Q131: 0 | R131: 0 | S131: 0 | T131: 0 | V131: 0 | W131: 0 | X131: 0 | Z131: 47 | AA131: 0 | AB131: 0 | AC131: 0 | AD131: 0 | AE131: 0
A132: 48 | B132: 0 | C132: 0 | D132: 0 | E132: 0 | F132: 0 | H132: 0 | I132: 0 | K132: 0 | L132: 0 | M132: 0 | O132: 0 | P132: 0 | Q132: 0 | R132: 0 | S132: 0 | T132: 0 | V132: 0 | W132: 0 | X132: 0 | Z132: 48 | AA132: 0 | AB132: 0 | AC132: 0 | AD132: 0 | AE132: 0
A133: 49 | B133: 0 | C133: 0 | D133: 0 | E133: 0 | F133: 0 | H133: 0 | I133: 0 | K133: 0 | L133: 0 | M133: 0 | O133: 0 | P133: 0 | Q133: 0 | R133: 0 | S133: 0 | T133: 0 | V133: 0 | W133: 0 | X133: 0 | Z133: 49 | AA133: 0 | AB133: 0 | AC133: 0 | AD133: 0 | AE133: 0
A134: 50 | B134: 0 | C134: 0 | D134: 0 | E134: 0 | F134: 0 | H134: 0 | I134: 0 | K134: 0 | L134: 0 | M134: 0 | O134: 0 | P134: 0 | Q134: 0 | R134: 0 | S134: 0 | T134: 0 | V134: 0 | W134: 0 | X134: 0 | Z134: 50 | AA134: 0 | AB134: 0 | AC134: 0 | AD134: 0 | AE134: 0
A135: 51 | B135: 0 | C135: 0 | D135: 0 | E135: 0 | F135: 0 | H135: 0 | I135: 0 | K135: 0 | L135: 0 | M135: 0 | O135: 0 | P135: 0 | Q135: 0 | R135: 0 | S135: 0 | T135: 0 | V135: 0 | W135: 0 | X135: 0 | Z135: 51 | AA135: 0 | AB135: 0 | AC135: 0 | AD135: 0 | AE135: 0
A136: 52 | B136: 0 | C136: 0 | D136: 0 | E136: 0 | F136: 0 | H136: 0 | I136: 0 | K136: 0 | L136: 0 | M136: 0 | O136: 0 | P136: 0 | Q136: 0 | R136: 0 | S136: 0 | T136: 0 | V136: 0 | W136: 0 | X136: 0 | Z136: 52 | AA136: 0 | AB136: 0 | AC136: 0 | AD136: 0 | AE136: 0
A137: 53 | B137: 0 | C137: 0 | D137: 0 | E137: 0 | F137: 0 | H137: 0 | I137: 0 | K137: 0 | L137: 0 | M137: 0 | O137: 0 | P137: 0 | Q137: 0 | R137: 0 | S137: 0 | T137: 0 | V137: 0 | W137: 0 | X137: 0 | Z137: 53 | AA137: 0 | AB137: 0 | AC137: 0 | AD137: 0 | AE137: 0
A138: 54 | B138: 0 | C138: 0 | D138: 0 | E138: 0 | F138: 0 | H138: 0 | I138: 0 | K138: 0 | L138: 0 | M138: 0 | O138: 0 | P138: 0 | Q138: 0 | R138: 0 | S138: 0 | T138: 0 | V138: 0 | W138: 0 | X138: 0 | Z138: 54 | AA138: 0 | AB138: 0 | AC138: 0 | AD138: 0 | AE138: 0
A139: 55 | B139: 0 | C139: 0 | D139: 0 | E139: 0 | F139: 0 | H139: 0 | I139: 0 | K139: 0 | L139: 0 | M139: 0 | O139: 0 | P139: 0 | Q139: 0 | R139: 0 | S139: 0 | T139: 0 | V139: 0 | W139: 0 | X139: 0 | Z139: 55 | AA139: 0 | AB139: 0 | AC139: 0 | AD139: 0 | AE139: 0
A140: 56 | B140: 0 | C140: 0 | D140: 0 | E140: 0 | F140: 0 | H140: 0 | I140: 0 | K140: 0 | L140: 0 | M140: 0 | O140: 0 | P140: 0 | Q140: 0 | R140: 0 | S140: 0 | T140: 0 | V140: 0 | W140: 0 | X140: 0 | Z140: 56 | AA140: 0 | AB140: 0 | AC140: 0 | AD140: 0 | AE140: 0
A141: 57 | B141: 0 | C141: 0 | D141: 0 | E141: 0 | F141: 0 | H141: 0 | I141: 0 | K141: 0 | L141: 0 | M141: 0 | O141: 0 | P141: 0 | Q141: 0 | R141: 0 | S141: 0 | T141: 0 | V141: 0 | W141: 0 | X141: 0 | Z141: 57 | AA141: 0 | AB141: 0 | AC141: 0 | AD141: 0 | AE141: 0
A142: 58 | B142: 0 | C142: 0 | D142: 0 | E142: 0 | F142: 0 | H142: 0 | I142: 0 | K142: 0 | L142: 0 | M142: 0 | O142: 0 | P142: 0 | Q142: 0 | R142: 0 | S142: 0 | T142: 0 | V142: 0 | W142: 0 | X142: 0 | Z142: 58 | AA142: 0 | AB142: 0 | AC142: 0 | AD142: 0 | AE142: 0
A143: 59 | B143: 0 | C143: 0 | D143: 0 | E143: 0 | F143: 0 | H143: 0 | I143: 0 | K143: 0 | L143: 0 | M143: 0 | O143: 0 | P143: 0 | Q143: 0 | R143: 0 | S143: 0 | T143: 0 | V143: 0 | W143: 0 | X143: 0 | Z143: 59 | AA143: 0 | AB143: 0 | AC143: 0 | AD143: 0 | AE143: 0
A144: 60 | B144: 0 | C144: 0 | D144: 0 | E144: 0 | F144: 0 | H144: 0 | I144: 0 | K144: 0 | L144: 0 | M144: 0 | O144: 0 | P144: 0 | Q144: 0 | R144: 0 | S144: 0 | T144: 0 | V144: 0 | W144: 0 | X144: 0 | Z144: 60 | AA144: 0 | AB144: 0 | AC144: 0 | AD144: 0 | AE144: 0
A145: 61 | B145: 0 | C145: 0 | D145: 0 | E145: 0 | F145: 0 | H145: 0 | I145: 0 | K145: 0 | L145: 0 | M145: 0 | O145: 0 | P145: 0 | Q145: 0 | R145: 0 | S145: 0 | T145: 0 | V145: 0 | W145: 0 | X145: 0 | Z145: 61 | AA145: 0 | AB145: 0 | AC145: 0 | AD145: 0 | AE145: 0
A146: 62 | B146: 0 | C146: 0 | D146: 0 | E146: 0 | F146: 0 | H146: 0 | I146: 0 | K146: 0 | L146: 0 | M146: 0 | O146: 0 | P146: 0 | Q146: 0 | R146: 0 | S146: 0 | T146: 0 | V146: 0 | W146: 0 | X146: 0 | Z146: 62 | AA146: 0 | AB146: 0 | AC146: 0 | AD146: 0 | AE146: 0
A147: 63 | B147: 0 | C147: 0 | D147: 0 | E147: 0 | F147: 0 | H147: 0 | I147: 0 | K147: 0 | L147: 0 | M147: 0 | O147: 0 | P147: 0 | Q147: 0 | R147: 0 | S147: 0 | T147: 0 | V147: 0 | W147: 0 | X147: 0 | Z147: 63 | AA147: 0 | AB147: 0 | AC147: 0 | AD147: 0 | AE147: 0
A148: 64 | B148: 0 | C148: 0 | D148: 0 | E148: 0 | F148: 0 | H148: 0 | I148: 0 | K148: 0 | L148: 0 | M148: 0 | O148: 0 | P148: 0 | Q148: 0 | R148: 0 | S148: 0 | T148: 0 | V148: 0 | W148: 0 | X148: 0 | Z148: 64 | AA148: 0 | AB148: 0 | AC148: 0 | AD148: 0 | AE148: 0
A149: 65 | B149: 0 | C149: =IF($A149>$E$65,0,IF($A149>$E$67,IF($H$3="s",$E$68,$E$71-D149),0)) -> 0 | D149: 0 | E149: =B149*$E$72/4 -> 0 | F149: =E149+D149+C149 -> 0 | H149: 0 | I149: =C149+D149 -> 0 | K149: 0 | L149: 0 | M149: 0 | O149: 0 | P149: =IF($A149>$E$65,0,IF($A149>$E$67,IF($H$3="s",$E$68,$J$65-Q149),0)) -> 0 | Q149: 0 | R149: =O149*$E$72/4 -> 0 | S149: =Q149+R149+P149 -> 0 | T149: 0 | V149: 0 | W149: 0 | X149: 0 | Z149: 65 | AA149: =IF(Amort=2,IF($H$2="o",C149-M149,P149-X149),IF($H$2="o",C149,P149)) -> 0 | AB149: =IF(Amort=1,IF($H$2="o",D149,Q149),IF($H$2="o",L149-M149,W149-X149)) -> 0 | AC149: =IF(Amort=1,IF($H$2="o",E149,R149),IF($H$2="o",M149,X149)) -> 0 | AD149: 0 | AE149: =IF(Amort=2,IF($H$2="o",K149,V149),IF($H$2="o",B149,O149)) -> 0
A150: 66 | B150: =B149-C149 -> 0 | C150: 0 | D150: =$E$70*B150 -> 0 | E150: 0 | F150: 0 | H150: =C150+((D150+E150)*(1-$H$9)) -> 0 | I150: 0 | K150: 0 | L150: =K150*$I$69 -> 0 | M150: 0 | O150: =O149-P149 -> 0 | P150: 0 | Q150: =O150*$J$66 -> 0 | R150: 0 | S150: 0 | T150: =P150+((R150+Q150)*(1-$H$9)) -> 0 | V150: 0 | W150: =V150*$J$69 -> 0 | X150: 0 | Z150: 66 | AA150: 0 | AB150: 0 | AC150: 0 | AD150: =IF($H$2="o",H150,T150) -> 0 | AE150: 0
A151: 67 | B151: 0 | C151: 0 | D151: 0 | E151: 0 | F151: 0 | H151: 0 | I151: 0 | K151: 0 | L151: 0 | M151: 0 | O151: 0 | P151: 0 | Q151: 0 | R151: 0 | S151: 0 | T151: 0 | V151: =V150+X150-P150 -> 0 | W151: 0 | X151: =W151-Q151-R151 -> 0 | Z151: 67 | AA151: 0 | AB151: 0 | AC151: 0 | AD151: 0 | AE151: 0
A152: 68 | B152: 0 | C152: 0 | D152: 0 | E152: 0 | F152: 0 | H152: 0 | I152: 0 | K152: 0 | L152: 0 | M152: 0 | O152: 0 | P152: 0 | Q152: 0 | R152: 0 | S152: 0 | T152: 0 | V152: 0 | W152: 0 | X152: 0 | Z152: 68 | AA152: 0 | AB152: 0 | AC152: 0 | AD152: 0 | AE152: 0
A153: 69 | B153: 0 | C153: 0 | D153: 0 | E153: 0 | F153: 0 | H153: 0 | I153: 0 | K153: =K152-C152+M152 -> 0 | L153: 0 | M153: =L153-D153-E153 -> 0 | O153: 0 | P153: 0 | Q153: 0 | R153: 0 | S153: 0 | T153: 0 | V153: 0 | W153: 0 | X153: 0 | Z153: 69 | AA153: 0 | AB153: 0 | AC153: 0 | AD153: 0 | AE153: 0
A154: 70 | B154: 0 | C154: 0 | D154: 0 | E154: 0 | F154: 0 | H154: 0 | I154: 0 | K154: 0 | L154: 0 | M154: 0 | O154: 0 | P154: 0 | Q154: 0 | R154: 0 | S154: 0 | T154: 0 | V154: 0 | W154: 0 | X154: 0 | Z154: 70 | AA154: 0 | AB154: 0 | AC154: 0 | AD154: 0 | AE154: 0
A155: 71 | B155: 0 | C155: 0 | D155: 0 | E155: 0 | F155: 0 | H155: 0 | I155: 0 | K155: 0 | L155: 0 | M155: 0 | O155: 0 | P155: 0 | Q155: 0 | R155: 0 | S155: 0 | T155: 0 | V155: 0 | W155: 0 | X155: 0 | Z155: 71 | AA155: 0 | AB155: 0 | AC155: 0 | AD155: 0 | AE155: 0
A156: 72 | B156: 0 | C156: 0 | D156: 0 | E156: 0 | F156: 0 | H156: 0 | I156: 0 | K156: 0 | L156: 0 | M156: 0 | O156: 0 | P156: 0 | Q156: 0 | R156: 0 | S156: 0 | T156: 0 | V156: 0 | W156: 0 | X156: 0 | Z156: 72 | AA156: 0 | AB156: 0 | AC156: 0 | AD156: 0 | AE156: 0
A157: 73 | B157: 0 | C157: 0 | D157: 0 | E157: 0 | F157: 0 | H157: 0 | I157: 0 | K157: 0 | L157: 0 | M157: 0 | O157: 0 | P157: 0 | Q157: 0 | R157: 0 | S157: 0 | T157: 0 | V157: 0 | W157: 0 | X157: 0 | Z157: 73 | AA157: 0 | AB157: 0 | AC157: 0 | AD157: 0 | AE157: 0
A158: 74 | B158: 0 | C158: 0 | D158: 0 | E158: 0 | F158: 0 | H158: 0 | I158: 0 | K158: 0 | L158: 0 | M158: 0 | O158: 0 | P158: 0 | Q158: 0 | R158: 0 | S158: 0 | T158: 0 | V158: 0 | W158: 0 | X158: 0 | Z158: 74 | AA158: 0 | AB158: 0 | AC158: 0 | AD158: 0 | AE158: 0
A159: 75 | B159: 0 | C159: 0 | D159: 0 | E159: 0 | F159: 0 | H159: 0 | I159: 0 | K159: 0 | L159: 0 | M159: 0 | O159: 0 | P159: 0 | Q159: 0 | R159: 0 | S159: 0 | T159: 0 | V159: 0 | W159: 0 | X159: 0 | Z159: 75 | AA159: 0 | AB159: 0 | AC159: 0 | AD159: 0 | AE159: 0
A160: 76 | B160: 0 | C160: 0 | D160: 0 | E160: 0 | F160: 0 | H160: 0 | I160: 0 | K160: 0 | L160: 0 | M160: 0 | O160: 0 | P160: 0 | Q160: 0 | R160: 0 | S160: 0 | T160: 0 | V160: 0 | W160: 0 | X160: 0 | Z160: 76 | AA160: 0 | AB160: 0 | AC160: 0 | AD160: 0 | AE160: 0
A161: 77 | B161: 0 | C161: 0 | D161: 0 | E161: 0 | F161: 0 | H161: 0 | I161: 0 | K161: 0 | L161: 0 | M161: 0 | O161: 0 | P161: 0 | Q161: 0 | R161: 0 | S161: 0 | T161: 0 | V161: 0 | W161: 0 | X161: 0 | Z161: 77 | AA161: 0 | AB161: 0 | AC161: 0 | AD161: 0 | AE161: 0
A162: 78 | B162: 0 | C162: 0 | D162: 0 | E162: 0 | F162: 0 | H162: 0 | I162: 0 | K162: 0 | L162: 0 | M162: 0 | O162: 0 | P162: 0 | Q162: 0 | R162: 0 | S162: 0 | T162: 0 | V162: 0 | W162: 0 | X162: 0 | Z162: 78 | AA162: 0 | AB162: 0 | AC162: 0 | AD162: 0 | AE162: 0
A163: 79 | B163: 0 | C163: 0 | D163: 0 | E163: 0 | F163: 0 | H163: 0 | I163: 0 | K163: 0 | L163: 0 | M163: 0 | O163: 0 | P163: 0 | Q163: 0 | R163: 0 | S163: 0 | T163: 0 | V163: 0 | W163: 0 | X163: 0 | Z163: 79 | AA163: 0 | AB163: 0 | AC163: 0 | AD163: 0 | AE163: 0
A164: 80 | B164: 0 | C164: 0 | D164: 0 | E164: 0 | F164: 0 | H164: 0 | I164: 0 | K164: 0 | L164: 0 | M164: 0 | O164: 0 | P164: 0 | Q164: 0 | R164: 0 | S164: 0 | T164: 0 | V164: 0 | W164: 0 | X164: 0 | Z164: 80 | AA164: 0 | AB164: 0 | AC164: 0 | AD164: 0 | AE164: 0
A165: 81 | B165: 0 | C165: 0 | D165: 0 | E165: 0 | F165: 0 | H165: 0 | I165: 0 | K165: 0 | L165: 0 | M165: 0 | O165: 0 | P165: 0 | Q165: 0 | R165: 0 | S165: 0 | T165: 0 | V165: 0 | W165: 0 | X165: 0 | Z165: 81 | AA165: 0 | AB165: 0 | AC165: 0 | AD165: 0 | AE165: 0
A166: 82 | B166: 0 | C166: 0 | D166: 0 | E166: 0 | F166: 0 | H166: 0 | I166: 0 | K166: 0 | L166: 0 | M166: 0 | O166: 0 | P166: 0 | Q166: 0 | R166: 0 | S166: 0 | T166: 0 | V166: 0 | W166: 0 | X166: 0 | Z166: 82 | AA166: 0 | AB166: 0 | AC166: 0 | AD166: 0 | AE166: 0
A167: 83 | B167: 0 | C167: 0 | D167: 0 | E167: 0 | F167: 0 | H167: 0 | I167: 0 | K167: 0 | L167: 0 | M167: 0 | O167: 0 | P167: 0 | Q167: 0 | R167: 0 | S167: 0 | T167: 0 | V167: 0 | W167: 0 | X167: 0 | Z167: 83 | AA167: 0 | AB167: 0 | AC167: 0 | AD167: 0 | AE167: 0
A168: 84 | B168: 0 | C168: 0 | D168: 0 | E168: 0 | F168: 0 | H168: 0 | I168: 0 | K168: 0 | L168: 0 | M168: 0 | O168: 0 | P168: 0 | Q168: 0 | R168: 0 | S168: 0 | T168: 0 | V168: 0 | W168: 0 | X168: 0 | Z168: 84 | AA168: 0 | AB168: 0 | AC168: 0 | AD168: 0 | AE168: 0
A169: 85 | B169: 0 | C169: 0 | D169: 0 | E169: 0 | F169: 0 | H169: 0 | I169: 0 | K169: 0 | L169: 0 | M169: 0 | O169: 0 | P169: 0 | Q169: 0 | R169: 0 | S169: 0 | T169: 0 | V169: 0 | W169: 0 | X169: 0 | Z169: 85 | AA169: 0 | AB169: 0 | AC169: 0 | AD169: 0 | AE169: 0
A170: 86 | B170: 0 | C170: 0 | D170: 0 | E170: 0 | F170: 0 | H170: 0 | I170: 0 | K170: 0 | L170: 0 | M170: 0 | O170: 0 | P170: 0 | Q170: 0 | R170: 0 | S170: 0 | T170: 0 | V170: 0 | W170: 0 | X170: 0 | Z170: 86 | AA170: 0 | AB170: 0 | AC170: 0 | AD170: 0 | AE170: 0
A171: 87 | B171: 0 | C171: 0 | D171: 0 | E171: 0 | F171: 0 | H171: 0 | I171: 0 | K171: 0 | L171: 0 | M171: 0 | O171: 0 | P171: 0 | Q171: 0 | R171: 0 | S171: 0 | T171: 0 | V171: 0 | W171: 0 | X171: 0 | Z171: 87 | AA171: 0 | AB171: 0 | AC171: 0 | AD171: 0 | AE171: 0
A172: 88 | B172: 0 | C172: 0 | D172: 0 | E172: 0 | F172: 0 | H172: 0 | I172: 0 | K172: 0 | L172: 0 | M172: 0 | O172: 0 | P172: 0 | Q172: 0 | R172: 0 | S172: 0 | T172: 0 | V172: 0 | W172: 0 | X172: 0 | Z172: 88 | AA172: 0 | AB172: 0 | AC172: 0 | AD172: 0 | AE172: 0
A173: 89 | B173: 0 | C173: 0 | D173: 0 | E173: 0 | F173: 0 | H173: 0 | I173: 0 | K173: 0 | L173: 0 | M173: 0 | O173: 0 | P173: 0 | Q173: 0 | R173: 0 | S173: 0 | T173: 0 | V173: 0 | W173: 0 | X173: 0 | Z173: 89 | AA173: 0 | AB173: 0 | AC173: 0 | AD173: 0 | AE173: 0
A174: 90 | B174: 0 | C174: 0 | D174: 0 | E174: 0 | F174: 0 | H174: 0 | I174: 0 | K174: 0 | L174: 0 | M174: 0 | O174: 0 | P174: 0 | Q174: 0 | R174: 0 | S174: 0 | T174: 0 | V174: 0 | W174: 0 | X174: 0 | Z174: 90 | AA174: 0 | AB174: 0 | AC174: 0 | AD174: 0 | AE174: 0
A175: 91 | B175: 0 | C175: 0 | D175: 0 | E175: 0 | F175: 0 | H175: 0 | I175: 0 | K175: 0 | L175: 0 | M175: 0 | O175: 0 | P175: 0 | Q175: 0 | R175: 0 | S175: 0 | T175: 0 | V175: 0 | W175: 0 | X175: 0 | Z175: 91 | AA175: 0 | AB175: 0 | AC175: 0 | AD175: 0 | AE175: 0
A176: 92 | B176: 0 | C176: 0 | D176: 0 | E176: 0 | F176: 0 | H176: 0 | I176: 0 | K176: 0 | L176: 0 | M176: 0 | O176: 0 | P176: 0 | Q176: 0 | R176: 0 | S176: 0 | T176: 0 | V176: 0 | W176: 0 | X176: 0 | Z176: 92 | AA176: 0 | AB176: 0 | AC176: 0 | AD176: 0 | AE176: 0
A177: 93 | B177: 0 | C177: 0 | D177: 0 | E177: 0 | F177: 0 | H177: 0 | I177: 0 | K177: 0 | L177: 0 | M177: 0 | O177: 0 | P177: 0 | Q177: 0 | R177: 0 | S177: 0 | T177: 0 | V177: 0 | W177: 0 | X177: 0 | Z177: 93 | AA177: 0 | AB177: 0 | AC177: 0 | AD177: 0 | AE177: 0
A178: 94 | B178: 0 | C178: 0 | D178: 0 | E178: 0 | F178: 0 | H178: 0 | I178: 0 | K178: 0 | L178: 0 | M178: 0 | O178: 0 | P178: 0 | Q178: 0 | R178: 0 | S178: 0 | T178: 0 | V178: 0 | W178: 0 | X178: 0 | Z178: 94 | AA178: 0 | AB178: 0 | AC178: 0 | AD178: 0 | AE178: 0
A179: 95 | B179: 0 | C179: 0 | D179: 0 | E179: 0 | F179: 0 | H179: 0 | I179: 0 | K179: 0 | L179: 0 | M179: 0 | O179: 0 | P179: 0 | Q179: 0 | R179: 0 | S179: 0 | T179: 0 | V179: 0 | W179: 0 | X179: 0 | Z179: 95 | AA179: 0 | AB179: 0 | AC179: 0 | AD179: 0 | AE179: 0
A180: 96 | B180: 0 | C180: 0 | D180: 0 | E180: 0 | F180: 0 | H180: 0 | I180: 0 | K180: 0 | L180: 0 | M180: 0 | O180: 0 | P180: 0 | Q180: 0 | R180: 0 | S180: 0 | T180: 0 | V180: 0 | W180: 0 | X180: 0 | Z180: 96 | AA180: 0 | AB180: 0 | AC180: 0 | AD180: 0 | AE180: 0
A181: 97 | B181: 0 | C181: 0 | D181: 0 | E181: 0 | F181: 0 | H181: 0 | I181: 0 | K181: 0 | L181: 0 | M181: 0 | O181: 0 | P181: 0 | Q181: 0 | R181: 0 | S181: 0 | T181: 0 | V181: 0 | W181: 0 | X181: 0 | Z181: 97 | AA181: =IF(Amort=2,IF($H$2="o",C181-M181,P181-X181),IF($H$2="o",C181,P181)) -> 0 | AB181: =IF(Amort=1,IF($H$2="o",D181,Q181),IF($H$2="o",L181-M181,W181-X181)) -> 0 | AC181: =IF(Amort=1,IF($H$2="o",E181,R181),IF($H$2="o",M181,X181)) -> 0 | AD181: 0 | AE181: 0
A182: 98 | B182: 0 | C182: 0 | D182: 0 | E182: 0 | F182: 0 | H182: 0 | I182: 0 | K182: 0 | L182: 0 | M182: 0 | O182: 0 | P182: 0 | Q182: 0 | R182: 0 | S182: 0 | T182: 0 | V182: 0 | W182: 0 | X182: 0 | Z182: 98 | AA182: 0 | AB182: 0 | AC182: 0 | AD182: 0 | AE182: 0
A183: 99 | B183: 0 | C183: 0 | D183: 0 | E183: 0 | F183: 0 | H183: 0 | I183: 0 | K183: 0 | L183: 0 | M183: 0 | O183: 0 | P183: 0 | Q183: 0 | R183: 0 | S183: 0 | T183: 0 | V183: 0 | W183: 0 | X183: 0 | Z183: 99 | AA183: 0 | AB183: 0 | AC183: 0 | AD183: 0 | AE183: 0
A184: 100 | B184: 0 | C184: 0 | D184: 0 | E184: 0 | F184: 0 | H184: 0 | I184: 0 | K184: 0 | L184: 0 | M184: 0 | O184: 0 | P184: 0 | Q184: 0 | R184: 0 | S184: 0 | T184: 0 | V184: 0 | W184: 0 | X184: 0 | Z184: 100 | AA184: 0 | AB184: 0 | AC184: 0 | AD184: 0 | AE184: 0
A185: 101 | B185: 0 | C185: 0 | D185: 0 | E185: 0 | F185: 0 | H185: 0 | I185: 0 | K185: 0 | L185: 0 | M185: 0 | O185: 0 | P185: 0 | Q185: 0 | R185: 0 | S185: 0 | T185: 0 | V185: 0 | W185: 0 | X185: 0 | Z185: 101 | AA185: 0 | AB185: 0 | AC185: 0 | AD185: 0 | AE185: 0
A186: 102 | B186: 0 | C186: 0 | D186: 0 | E186: 0 | F186: 0 | H186: 0 | I186: 0 | K186: 0 | L186: 0 | M186: 0 | O186: 0 | P186: 0 | Q186: 0 | R186: 0 | S186: 0 | T186: 0 | V186: 0 | W186: 0 | X186: 0 | Z186: 102 | AA186: 0 | AB186: 0 | AC186: 0 | AD186: 0 | AE186: 0
A187: 103 | B187: 0 | C187: 0 | D187: 0 | E187: 0 | F187: 0 | H187: 0 | I187: 0 | K187: 0 | L187: 0 | M187: 0 | O187: 0 | P187: 0 | Q187: 0 | R187: 0 | S187: 0 | T187: 0 | V187: 0 | W187: 0 | X187: 0 | Z187: 103 | AA187: 0 | AB187: 0 | AC187: 0 | AD187: 0 | AE187: 0
A188: 104 | B188: 0 | C188: 0 | D188: 0 | E188: 0 | F188: 0 | H188: 0 | I188: 0 | K188: 0 | L188: 0 | M188: 0 | O188: 0 | P188: 0 | Q188: 0 | R188: 0 | S188: 0 | T188: 0 | V188: 0 | W188: 0 | X188: 0 | Z188: 104 | AA188: 0 | AB188: 0 | AC188: 0 | AD188: 0 | AE188: 0
